Workbook

Sheet print macro
A1: 7
C2: UTAH | E2: HOT
B3: Files | C3: RESULTS | E3: (CAPS ONLY)
A6: 1 | B6: Report | C6: X | E6: X | G6: =IF(E6="","",B6) -> Report | H6: Report
A7: =+A6+1 -> 2 | B7: Taxes | C7: X | E7: X | G7: Taxes | H7: Taxes
A8: =+A7+1 -> 3 | B8: Summaries | C8: X | E8: X | G8: Summaries | H8: Summaries
A9: 4 | B9: Rate Base | C9: X | E9: X | G9: Rate Base | H9: Rate Base
A10: 5 | B10: Und Stor | C10: X | E10: X | G10: Und Stor | H10: Und Stor
A11: 6 | B11: Wexpro | C11: X | E11: X | G11: Wexpro | H11: Wexpro
A12: 7 | B12: OakCity | C12: X | E12: X | G12: OakCity | H12: OakCity
A13: 8 | B13: Bad Debt | C13: X | E13: X | G13: Bad Debt | H13: Bad Debt
A14: 9 | B14: Bank Vac | C14: X | E14: X | G14: Bank Vac | H14: Bank Vac
A15: 10 | B15: Labor Ann | C15: X | E15: X | G15: Labor Ann | H15: Labor Ann
A16: 11 | B16: Affiliate ROR | C16: X | E16: X | G16: Affiliate ROR | H16: Affiliate ROR
A17: 12 | B17: ST TAX | C17: X | E17: X | G17: ST TAX | H17: ST TAX
A18: 13 | B18: Other Rev | C18: X | E18: X | G18: Other Rev | H18: Other Rev
A19: 14 | B19: ALLOCATIONS&PRETAX | C19: X | E19: X | G19: ALLOCATIONS&PRETAX | H19: ALLOCATIONS&PRETAX
A20: 15 | B20: Capital Str | C20: X | E20: X | G20: Capital Str | H20: Capital Str
A21: 16 | B21: Revenue Accounting Adjustment | C21: X | E21: X | G21: =IF(E21="","",B21) -> Revenue Accounting Adjustment | H21: Revenue Accounting Adjustment
C23: E | E23: E | F23: E | G23: E | H23: E
B30: REV SUMMARY
B31: 12-Incentive
B32: 13-Phantom
B33: 14-Tickets
B34: 19-Advertising
B35: 20-Donations

Sheet WYO DEPR EXP
AC1: 403 | AD1: Depreciation Expense | BF1: =SUM(#REF!) -> 
B2: Annualization Of Depreciation Expense | M2: 20 | Q2: Wyoming | S2: ='Rate Base'!BD33 -> 0 | U2: ='Rate Base'!BE33 -> 0 | W2: ='Rate Base'!AB33 -> 43465.28042 | Y2: ='Rate Base'!AC33 -> -317999.1596 | AE2: Distribution - Wyoming | AG2: =+#REF!/#REF! ->  | AH2: =+#REF!/#REF! ->  | AI2: =+#REF!/#REF! ->  | AJ2: =+#REF!/#REF! ->  | AK2: =+#REF!/#REF! ->  | AL2: =+#REF!/#REF! ->  | AM2: =+#REF!/#REF! ->  | AN2: =+#REF!/#REF! ->  | AO2: =+#REF!/#REF! ->  | AP2: =+#REF!/#REF! ->  | AQ2: =+#REF!/#REF! ->  | AR2: =+#REF!/#REF! ->  | AS2: =+#REF!/#REF! ->  | AT2: =+#REF!/#REF! ->  | AU2: =+#REF!/#REF! ->  | AV2: =+#REF!/#REF! ->  | AW2: =+#REF!/#REF! ->  | AX2: =+#REF!/#REF! ->  | AY2: =+#REF!/#REF! ->  | AZ2: =+#REF!/#REF! ->  | BA2: =+#REF!/#REF! ->  | BB2: =+#REF!/#REF! ->  | BC2: =+#REF!/#REF! ->  | BD2: =+#REF!/#REF! -> 
B3: ='Control Panel'!$B$1 -> Questar Gas Company | M3: 21 | Q3: Utah | R3: 0.0133 | S3: ='Rate Base'!BD34 -> 0 | T3: =1135557*0.0133 -> 15102.9081 | U3: ='Rate Base'!BE34 -> 0 | V3: =1135557*0.0133 -> 15102.9081 | W3: ='Rate Base'!AB34 -> 7134591.681 | X3: =1135557*0.0133 -> 15102.9081 | Y3: ='Rate Base'!AC34 -> -1449055.909 | Z3: =1135557*0.0133 -> 15102.9081 | AE3: Distribution - Utah | AG3: =+#REF!/#REF! ->  | AH3: =+#REF!/#REF! ->  | AI3: =+#REF!/#REF! ->  | AJ3: =+#REF!/#REF! ->  | AK3: =+#REF!/#REF! ->  | AL3: =+#REF!/#REF! ->  | AM3: =+#REF!/#REF! ->  | AN3: =+#REF!/#REF! ->  | AO3: =+#REF!/#REF! ->  | AP3: =+#REF!/#REF! ->  | AQ3: =+#REF!/#REF! ->  | AR3: =+#REF!/#REF! ->  | AS3: =+#REF!/#REF! ->  | AT3: =+#REF!/#REF! ->  | AU3: =+#REF!/#REF! ->  | AV3: =+#REF!/#REF! ->  | AW3: =+#REF!/#REF! ->  | AX3: =+#REF!/#REF! ->  | AY3: =+#REF!/#REF! ->  | AZ3: =+#REF!/#REF! ->  | BA3: =+#REF!/#REF! ->  | BB3: =+#REF!/#REF! ->  | BC3: =+#REF!/#REF! ->  | BD3: =+#REF!/#REF! -> 
B4: ='Control Panel'!$B$2 -> Utah - DEC 2011 Adjusted Avg Results | M4: 22 | Q4: Total | S4: ='Rate Base'!BD35 -> 0 | T4: =SUM(T3) -> 15102.9081 | U4: ='Rate Base'!BE35 -> 0 | V4: =SUM(V3) -> 15102.9081 | W4: ='Rate Base'!AB35 -> 7178056.961 | X4: =SUM(X3) -> 15102.9081 | Y4: ='Rate Base'!AC35 -> -1767055.069 | Z4: =SUM(Z3) -> 15102.9081 | AE4: General | AG4: =+#REF!/#REF! ->  | AH4: =+#REF!/#REF! ->  | AI4: =+#REF!/#REF! ->  | AJ4: =+#REF!/#REF! ->  | AK4: =+#REF!/#REF! ->  | AL4: =+#REF!/#REF! ->  | AM4: =+#REF!/#REF! ->  | AN4: =+#REF!/#REF! ->  | AO4: =+#REF!/#REF! ->  | AP4: =+#REF!/#REF! ->  | AQ4: =+#REF!/#REF! ->  | AR4: =+#REF!/#REF! ->  | AS4: =+#REF!/#REF! ->  | AT4: =+#REF!/#REF! ->  | AU4: =+#REF!/#REF! ->  | AV4: =+#REF!/#REF! ->  | AW4: =+#REF!/#REF! ->  | AX4: =+#REF!/#REF! ->  | AY4: =+#REF!/#REF! ->  | AZ4: =+#REF!/#REF! ->  | BA4: =+#REF!/#REF! ->  | BB4: =+#REF!/#REF! ->  | BC4: =+#REF!/#REF! ->  | BD4: =+#REF!/#REF! -> 
B5: ='Control Panel'!$B$3 -> 12 Months Ended : Dec-2011 | M5: 23 | AE5: Total Depreciation Expense | AG5: =SUM(AG2:AG4) -> 
M6: 24 | O6: 375 | P6: Structures & Improvements | AG6: =+#REF!/SUM(#REF!) ->  | AH6: =+#REF!/SUM(#REF!) ->  | AI6: =+#REF!/SUM(#REF!) ->  | AJ6: =+#REF!/SUM(#REF!) ->  | AK6: =+#REF!/SUM(#REF!) ->  | AL6: =+#REF!/SUM(#REF!) ->  | AM6: =+#REF!/SUM(#REF!) ->  | AN6: =+#REF!/SUM(#REF!) ->  | AO6: =+#REF!/SUM(#REF!) ->  | AP6: =+#REF!/SUM(#REF!) ->  | AQ6: =+#REF!/SUM(#REF!) ->  | AR6: =+#REF!/SUM(#REF!) ->  | AS6: =+#REF!/SUM(#REF!) ->  | AT6: =+#REF!/SUM(#REF!) ->  | AU6: =+#REF!/SUM(#REF!) ->  | AV6: =+#REF!/SUM(#REF!) ->  | AW6: =+#REF!/SUM(#REF!) ->  | AX6: =+#REF!/SUM(#REF!) ->  | AY6: =+#REF!/SUM(#REF!) ->  | AZ6: =+#REF!/SUM(#REF!) ->  | BA6: =+#REF!/SUM(#REF!) ->  | BB6: =+#REF!/SUM(#REF!) ->  | BC6: =+#REF!/SUM(#REF!) ->  | BD6: =+#REF!/SUM(#REF!) -> 
M7: 25 | Q7: Wyoming | R7: 0.0228 | S7: ='Rate Base'!BD38 -> 0 | T7: =$R7*S7 -> 0 | U7: ='Rate Base'!BE38 -> 0 | V7: =$R7*U7 -> 0 | W7: ='Rate Base'!AB38 -> 254017.0629 | X7: =$R7*W7 -> 5791.589034 | Y7: ='Rate Base'!AC38 -> -135910.3971 | Z7: =$R7*Y7 -> -3098.757054 | AR7: =SUM(AG6:AR6) ->  | BD7: =SUM(AS6:BD6) -> 
M8: 26 | Q8: Utah | R8: 0.0228 | S8: ='Rate Base'!BD39 -> 0 | T8: =$R8*S8 -> 0 | U8: ='Rate Base'!BE39 -> 0 | V8: =$R8*U8 -> 0 | W8: ='Rate Base'!AB39 -> 7072269.499 | X8: =$R8*W8 -> 161247.7446 | Y8: ='Rate Base'!AC39 -> -127408.4208 | Z8: =$R8*Y8 -> -2904.911995 | BB8: =+AP6/(AP6+AQ6+AR6) ->  | BC8: =+AQ6/(AP6+AQ6+AR6) ->  | BD8: =+AR6/(AP6+AQ6+AR6) -> 
B9: Annualization Of Depreciation Expense | M9: 27 | Q9: Total | S9: ='Rate Base'!BD40 -> 0 | T9: =SUM(T7:T8) -> 0 | U9: ='Rate Base'!BE40 -> 0 | V9: =SUM(V7:V8) -> 0 | W9: ='Rate Base'!AB40 -> 7326286.562 | X9: =SUM(X7:X8) -> 167039.3336 | Y9: ='Rate Base'!AC40 -> -263318.8179 | Z9: =SUM(Z7:Z8) -> -6003.669048 | BD9: =SUM(BB8:BD8) -> 
B10: =+B5 -> 12 Months Ended : Dec-2011 | M10: 28 | AG10: =+#REF!/#REF! ->  | AH10: =+#REF!/#REF! ->  | AI10: =+#REF!/#REF! ->  | AJ10: =+#REF!/#REF! ->  | AK10: =+#REF!/#REF! ->  | AL10: =+#REF!/#REF! ->  | AM10: =+#REF!/#REF! ->  | AN10: =+#REF!/#REF! ->  | AO10: =+#REF!/#REF! ->  | AP10: =+#REF!/#REF! ->  | AQ10: =+#REF!/#REF! ->  | AR10: =+#REF!/#REF! ->  | AS10: =+#REF!/#REF! ->  | AT10: =+#REF!/#REF! ->  | AU10: =+#REF!/#REF! ->  | AV10: =+#REF!/#REF! ->  | AW10: =+#REF!/#REF! ->  | AX10: =+#REF!/#REF! ->  | AY10: =+#REF!/#REF! ->  | AZ10: =+#REF!/#REF! ->  | BA10: =+#REF!/#REF! -> 
M11: 29 | O11: 376 | P11: Mains
D12: A | E12: B | F12: D | G12: E | H12: F | M12: 30 | Q12: Dist - Wy - Mains - SD
H13: Column E Less | M13: 31 | Q13: Dist - Wy - Mains - LD
H14: LessColumn B | M14: 32 | Q14: Dist - Wy - Mains - Feeders
E15: Historical 12 Months | F15: Historical Month of | G15: Historical Annualized | M15: 33 | Q15: Wyoming | R15: 0.021 | S15: ='Rate Base'!BD46 -> 0 | T15: =$R15*S15 -> 0 | U15: ='Rate Base'!BE46 -> 0 | V15: =$R15*U15 -> 0 | W15: ='Rate Base'!AB46 -> 27488855.66 | X15: =$R15*W15 -> 577265.9689 | Y15: ='Rate Base'!AC46 -> -2526773.787 | Z15: =$R15*Y15 -> -53062.24954 | AC15: 404 | AD15: Amortization and Depletion
C16: Account | E16: December 2011 | F16: December 2011 | G16: DEC 2010 | H16: Adjustment | M16: 34 | Q16: Dist - Ut - Mains - SD | AE16: Production | AG16: =+#REF!/#REF! ->  | AH16: =+#REF!/#REF! ->  | AI16: =+#REF!/#REF! ->  | AJ16: =+#REF!/#REF! ->  | AK16: =+#REF!/#REF! ->  | AL16: =+#REF!/#REF! ->  | AM16: =+#REF!/#REF! ->  | AN16: =+#REF!/#REF! ->  | AO16: =+#REF!/#REF! ->  | AP16: =+#REF!/#REF! ->  | AQ16: =+#REF!/#REF! ->  | AR16: =+#REF!/#REF! ->  | AS16: =+#REF!/#REF! ->  | AT16: =+#REF!/#REF! ->  | AU16: =+#REF!/#REF! ->  | AV16: =+#REF!/#REF! ->  | AW16: =+#REF!/#REF! ->  | AX16: =+#REF!/#REF! ->  | AY16: =+#REF!/#REF! ->  | AZ16: =+#REF!/#REF! ->  | BA16: =+#REF!/#REF! ->  | BB16: =+#REF!/#REF! ->  | BC16: =+#REF!/#REF! ->  | BD16: =+#REF!/#REF! -> 
M17: 35 | Q17: Dist - Ut - Mains - LD | AE17: Distribution - Wyoming | AG17: =+#REF!/#REF! ->  | AH17: =+#REF!/#REF! ->  | AI17: =+#REF!/#REF! ->  | AJ17: =+#REF!/#REF! ->  | AK17: =+#REF!/#REF! ->  | AL17: =+#REF!/#REF! ->  | AM17: =+#REF!/#REF! ->  | AN17: =+#REF!/#REF! ->  | AO17: =+#REF!/#REF! ->  | AP17: =+#REF!/#REF! ->  | AQ17: =+#REF!/#REF! ->  | AR17: =+#REF!/#REF! ->  | AS17: =+#REF!/#REF! ->  | AT17: =+#REF!/#REF! ->  | AU17: =+#REF!/#REF! ->  | AV17: =+#REF!/#REF! ->  | AW17: =+#REF!/#REF! ->  | AX17: =+#REF!/#REF! ->  | AY17: =+#REF!/#REF! ->  | AZ17: =+#REF!/#REF! ->  | BA17: =+#REF!/#REF! ->  | BB17: =+#REF!/#REF! ->  | BC17: =+#REF!/#REF! ->  | BD17: =+#REF!/#REF! -> 
B18: 1 | C18: 403 | D18: Depreciation Expense | M18: 36 | Q18: Dist - Ut - Mains - Feeders | AE18: Distribution - Utah | AG18: =+#REF!/#REF! ->  | AH18: =+#REF!/#REF! ->  | AI18: =+#REF!/#REF! ->  | AJ18: =+#REF!/#REF! ->  | AK18: =+#REF!/#REF! ->  | AL18: =+#REF!/#REF! ->  | AM18: =+#REF!/#REF! ->  | AN18: =+#REF!/#REF! ->  | AO18: =+#REF!/#REF! ->  | AP18: =+#REF!/#REF! ->  | AQ18: =+#REF!/#REF! ->  | AR18: =+#REF!/#REF! ->  | AS18: =+#REF!/#REF! ->  | AT18: =+#REF!/#REF! ->  | AU18: =+#REF!/#REF! ->  | AV18: =+#REF!/#REF! ->  | AW18: =+#REF!/#REF! ->  | AX18: =+#REF!/#REF! ->  | AY18: =+#REF!/#REF! ->  | AZ18: =+#REF!/#REF! ->  | BA18: =+#REF!/#REF! ->  | BB18: =+#REF!/#REF! ->  | BC18: =+#REF!/#REF! ->  | BD18: =+#REF!/#REF! -> 
B19: 2 | D19: Production | E19: =HIST_403_PROD -> 814005.62 | F19: 57865.55 | H19: 0 | I19: 1/ | M19: 37 | Q19: Utah | R19: 0.021 | S19: ='Rate Base'!BD50 -> 0 | T19: =$R19*S19 -> 0 | U19: ='Rate Base'!BE50 -> 0 | V19: =$R19*U19 -> 0 | W19: ='Rate Base'!AB50 -> 860455631.7 | X19: =$R19*W19 -> 18069568.27 | Y19: ='Rate Base'!AC50 -> -39932077.34 | Z19: =$R19*Y19 -> -838573.6242 | AE19: General | AG19: =+#REF!/#REF! ->  | AH19: =+#REF!/#REF! ->  | AI19: =+#REF!/#REF! ->  | AJ19: =+#REF!/#REF! ->  | AK19: =+#REF!/#REF! ->  | AL19: =+#REF!/#REF! ->  | AM19: =+#REF!/#REF! ->  | AN19: =+#REF!/#REF! ->  | AO19: =+#REF!/#REF! ->  | AP19: =+#REF!/#REF! ->  | AQ19: =+#REF!/#REF! ->  | AR19: =+#REF!/#REF! ->  | AS19: =+#REF!/#REF! ->  | AT19: =+#REF!/#REF! ->  | AU19: =+#REF!/#REF! ->  | AV19: =+#REF!/#REF! ->  | AW19: =+#REF!/#REF! ->  | AX19: =+#REF!/#REF! ->  | AY19: =+#REF!/#REF! ->  | AZ19: =+#REF!/#REF! ->  | BA19: =+#REF!/#REF! ->  | BB19: =+#REF!/#REF! ->  | BC19: =+#REF!/#REF! ->  | BD19: =+#REF!/#REF! -> 
B20: 3 | D20: Distribution - Wyoming | E20: =HIST_403_WY -> 1322517.81 | F20: 123037.52 | G20: =+F20*12 -> 1476450.24 | H20: =+G20-E20 -> 153932.43 | M20: 38 | Q20: Total | S20: ='Rate Base'!BD51 -> 0 | T20: =SUM(T12:T19) -> 0 | U20: ='Rate Base'!BE51 -> 0 | V20: =SUM(V12:V19) -> 0 | W20: ='Rate Base'!AB51 -> 887944487.3 | X20: =SUM(X12:X19) -> 18646834.23 | Y20: ='Rate Base'!AC51 -> -42458851.13 | Z20: =SUM(Z12:Z19) -> -891635.8737 | AE20: Total Amortization Expense | AG20: =SUM(AG16:AG19) ->  | AH20: =SUM(AH16:AH19) -> 
B21: 4 | D21: Distribution - Utah | E21: =HIST_403_UT -> 34165259.34 | F21: 2994780.74 | G21: =+F21*12 -> 35937368.88 | H21: =+G21-E21 -> 1772109.54 | M21: 39 | AG21: =SUM(AG17:AG20) ->  | AH21: =SUM(AH17:AH20) -> 
B22: 5 | D22: General | E22: =HIST_403_GEN -> 8159008.02 | F22: 717384.85 | G22: =+F22*12 -> 8608618.2 | H22: =+G22-E22 -> 449610.18 | M22: 40 | O22: 377 | P22: Compressor Station Equipment | AD22: Total Depreciation, Deplec & Amort | AG22: =+#REF!/SUM(#REF!) ->  | AH22: =+#REF!/SUM(#REF!) ->  | AI22: =+#REF!/SUM(#REF!) ->  | AJ22: =+#REF!/SUM(#REF!) ->  | AK22: =+#REF!/SUM(#REF!) ->  | AL22: =+#REF!/SUM(#REF!) ->  | AM22: =+#REF!/SUM(#REF!) ->  | AN22: =+#REF!/SUM(#REF!) ->  | AO22: =+#REF!/SUM(#REF!) ->  | AP22: =+#REF!/SUM(#REF!) ->  | AQ22: =+#REF!/SUM(#REF!) ->  | AR22: =+#REF!/SUM(#REF!) -> 
B23: 6 | D23: Total Depreciation Expense | E23: =SUM(E19:E22) -> 44460790.79 | F23: =SUM(F19:F22) -> 3893068.66 | G23: =SUM(G19:G22) -> 46022437.32 | H23: =SUM(H19:H22) -> 2375652.15 | M23: 41 | Q23: Wyoming | AR23: =SUM(AG22:AR22) -> 
M24: 42 | Q24: Utah | R24: 0.0318 | S24: ='Rate Base'!BD55 -> 0 | T24: =$R24*S24 -> 0 | U24: ='Rate Base'!BE55 -> 0 | V24: =$R24*U24 -> 0 | W24: ='Rate Base'!AB55 -> 4573574.73 | X24: =$R24*W24 -> 145439.6764 | Y24: ='Rate Base'!AC55 -> 0 | Z24: =$R24*Y24 -> 0
B25: 1/ | D25: Historical 12 Months Ending December, 2011 used due to the seasonal nature of production. | M25: 43 | Q25: Total | S25: ='Rate Base'!BD56 -> 0 | T25: =SUM(T23:T24) -> 0 | U25: ='Rate Base'!BE56 -> 0 | V25: =SUM(V23:V24) -> 0 | W25: ='Rate Base'!AB56 -> 4573574.73 | X25: =SUM(X23:X24) -> 145439.6764 | Y25: ='Rate Base'!AC56 -> 0 | Z25: =SUM(Z23:Z24) -> 0 | AG25: =+#REF!/AG10 ->  | AH25: =+#REF!/AH10 ->  | AI25: =+#REF!/AI10 ->  | AJ25: =+#REF!/AJ10 ->  | AK25: =+#REF!/AK10 ->  | AL25: =+#REF!/AL10 ->  | AM25: =+#REF!/AM10 ->  | AN25: =+#REF!/AN10 ->  | AO25: =+#REF!/AO10 ->  | AP25: =+#REF!/AP10 ->  | AQ25: =+#REF!/AQ10 ->  | AR25: =+#REF!/AR10 ->  | AS25: =+#REF!/AS10 -> 
M26: 44
M27: 45 | O27: 378 | P27: Measuring & Regulation Station Equip
M28: 46 | Q28: Wyoming | R28: 0.0382 | S28: ='Rate Base'!BD59 -> 0 | T28: =$R28*S28 -> 0 | U28: ='Rate Base'!BE59 -> 0 | V28: =$R28*U28 -> 0 | W28: ='Rate Base'!AB59 -> 2477871.273 | X28: =$R28*W28 -> 94654.68263 | Y28: ='Rate Base'!AC59 -> -60973.69708 | Z28: =$R28*Y28 -> -2329.195229
M29: 47 | Q29: Utah | R29: 0.0382 | S29: ='Rate Base'!BD60 -> 0 | T29: =$R29*S29 -> 0 | U29: ='Rate Base'!BE60 -> 0 | V29: =$R29*U29 -> 0 | W29: ='Rate Base'!AB60 -> 41890036.57 | X29: =$R29*W29 -> 1600199.397 | Y29: ='Rate Base'!AC60 -> -3576626.197 | Z29: =$R29*Y29 -> -136627.1207
M30: 48 | Q30: Total | S30: ='Rate Base'!BD61 -> 0 | T30: =SUM(T28:T29) -> 0 | U30: ='Rate Base'!BE61 -> 0 | V30: =SUM(V28:V29) -> 0 | W30: ='Rate Base'!AB61 -> 44367907.85 | X30: =SUM(X28:X29) -> 1694854.08 | Y30: ='Rate Base'!AC61 -> -3637599.894 | Z30: =SUM(Z28:Z29) -> -138956.3159
M31: 49
M32: 50 | O32: 380 | P32: Services
M33: 51 | Q33: Wyoming | R33: 0.0347 | S33: ='Rate Base'!BD64 -> 0 | T33: =$R33*S33 -> 0 | U33: ='Rate Base'!BE64 -> 0 | V33: =$R33*U33 -> 0 | W33: ='Rate Base'!AB64 -> 12019646.2 | X33: =$R33*W33 -> 417081.7232 | Y33: ='Rate Base'!AC64 -> -2300840.438 | Z33: =$R33*Y33 -> -79839.16318
M34: 52 | Q34: Utah | R34: 0.0347 | S34: ='Rate Base'!BD65 -> 0 | T34: =$R34*S34 -> 0 | U34: ='Rate Base'!BE65 -> 0 | V34: =$R34*U34 -> 0 | W34: ='Rate Base'!AB65 -> 293405096.5 | X34: =$R34*W34 -> 10181156.85 | Y34: ='Rate Base'!AC65 -> -4211730.002 | Z34: =$R34*Y34 -> -146147.0311
M35: 53 | Q35: Total | S35: ='Rate Base'!BD66 -> 0 | T35: =SUM(T33:T34) -> 0 | U35: ='Rate Base'!BE66 -> 0 | V35: =SUM(V33:V34) -> 0 | W35: ='Rate Base'!AB66 -> 305424742.7 | X35: =SUM(X33:X34) -> 10598238.57 | Y35: ='Rate Base'!AC66 -> -6512570.44 | Z35: =SUM(Z33:Z34) -> -225986.1943
M36: 54
M37: 55 | O37: 381...2 | P37: Meters & Meter Installation
M38: 56 | Q38: Wyoming | R38: 0.04200822682 | S38: ='Rate Base'!BD69 -> 0 | T38: =$R38*S38 -> 0 | U38: ='Rate Base'!BE69 -> 0 | V38: =$R38*U38 -> 0 | W38: ='Rate Base'!AB69 -> 6901769.729 | X38: =$R38*W38 -> 289931.1082 | Y38: ='Rate Base'!AC69 -> -325188.3912 | Z38: =$R38*Y38 -> -13660.5877
M39: 57 | Q39: Utah | R39: 0.04200822682 | S39: ='Rate Base'!BD70 -> 0 | T39: =$R39*S39 -> 0 | U39: ='Rate Base'!BE70 -> 0 | V39: =$R39*U39 -> 0 | W39: ='Rate Base'!AB70 -> 236948554 | X39: =$R39*W39 -> 9953788.602 | Y39: ='Rate Base'!AC70 -> -10679910.82 | Z39: =$R39*Y39 -> -448644.116
M40: 58 | Q40: Total | S40: ='Rate Base'!BD71 -> 0 | T40: =SUM(T38:T39) -> 0 | U40: ='Rate Base'!BE71 -> 0 | V40: =SUM(V38:V39) -> 0 | W40: ='Rate Base'!AB71 -> 243850323.8 | X40: =SUM(X38:X39) -> 10243719.71 | Y40: ='Rate Base'!AC71 -> -11005099.21 | Z40: =SUM(Z38:Z39) -> -462304.7037
M41: 59
M42: 60 | O42: 383...4 | P42: House Regulators & Reg Installations
M43: 61 | Q43: Wyoming | R43: 0.03077446151 | S43: ='Rate Base'!BD74 -> 0 | T43: =$R43*S43 -> 0 | U43: ='Rate Base'!BE74 -> 0 | V43: =$R43*U43 -> 0 | W43: ='Rate Base'!AB74 -> 931110.43 | X43: =$R43*W43 -> 28654.42209 | Y43: ='Rate Base'!AC74 -> 8.74 | Z43: =$R43*Y43 -> 0.2689687936 | AD43: 12 Months Ending Dec 31, 2009
M44: 62 | Q44: Utah | R44: 0.03077446151 | S44: ='Rate Base'!BD75 -> 0 | T44: =$R44*S44 -> 0 | U44: ='Rate Base'!BE75 -> 0 | V44: =$R44*U44 -> 0 | W44: ='Rate Base'!AB75 -> 14181887.63 | X44: =$R44*W44 -> 436439.955 | Y44: ='Rate Base'!AC75 -> 11258.01208 | Z44: =$R44*Y44 -> 346.4592595
M45: 63 | Q45: Total | S45: ='Rate Base'!BD76 -> 0 | T45: =SUM(T43:T44) -> 0 | U45: ='Rate Base'!BE76 -> 0 | V45: =SUM(V43:V44) -> 0 | W45: ='Rate Base'!AB76 -> 15112998.06 | X45: =SUM(X43:X44) -> 465094.3771 | Y45: ='Rate Base'!AC76 -> 11266.75208 | Z45: =SUM(Z43:Z44) -> 346.7282283 | AG45: A | AJ45: B | AK45: C | AL45: D
M46: 64 | AL46: Column Cx12
M47: 65 | O47: 387 | P47: Other Equipment | AJ47: 12 Months | AK47: Monthly
M48: 66 | Q48: Wyoming | R48: 0.0821 | S48: ='Rate Base'!BD79 -> 0 | T48: =$R48*S48 -> 0 | U48: ='Rate Base'!BE79 -> 0 | V48: =$R48*U48 -> 0 | W48: ='Rate Base'!AB79 -> 57111.42 | X48: =$R48*W48 -> 4688.847582 | Y48: ='Rate Base'!AC79 -> 0 | Z48: =$R48*Y48 -> 0 | AJ48: Historical | AK48: Historical | AL48: Annualized
M49: 67 | Q49: Utah | R49: 0.0821 | S49: ='Rate Base'!BD80 -> 0 | T49: =$R49*S49 -> 0 | U49: ='Rate Base'!BE80 -> 0 | V49: =$R49*U49 -> 0 | W49: ='Rate Base'!AB80 -> 1329986.734 | X49: =$R49*W49 -> 109191.9109 | Y49: ='Rate Base'!AC80 -> -42948.21583 | Z49: =$R49*Y49 -> -3526.04852 | AE49: Account | AJ49: Dec 2009 | AK49: =+AJ49 -> Dec 2009 | AL49: =+AK49 -> Dec 2009
M50: 68 | Q50: Total | S50: ='Rate Base'!BD81 -> 0 | T50: =SUM(T48:T49) -> 0 | U50: ='Rate Base'!BE81 -> 0 | V50: =SUM(V48:V49) -> 0 | W50: ='Rate Base'!AB81 -> 1387098.154 | X50: =SUM(X48:X49) -> 113880.7585 | Y50: ='Rate Base'!AC81 -> -42948.21583 | Z50: =SUM(Z48:Z49) -> -3526.04852
M51: 69 | AD51: 1 | AE51: 403 | AG51: Depreciation Expense
M52: 70 | O52: 388 | P52: Other Equipment | AD52: 2 | AG52: Production | AJ52: =+#REF! ->  | AK52: =+#REF! -> 
M53: 71 | Q53: Wyoming | AD53: 3 | AG53: Distribution - Wyoming | AJ53: =+#REF! ->  | AK53: =+#REF! ->  | AL53: =+AK53*12 -> 
M54: 72 | Q54: Utah | R54: 0.0667 | S54: ='Rate Base'!BD85 -> 0 | T54: =$R54*S54 -> 0 | U54: ='Rate Base'!BE85 -> 0 | V54: =$R54*U54 -> 0 | W54: ='Rate Base'!AB85 -> 344170.6667 | X54: =$R54*W54 -> 22956.18347 | Y54: ='Rate Base'!AC85 -> 83198.66667 | Z54: =$R54*Y54 -> 5549.351067 | AD54: 4 | AG54: Distribution - Utah | AJ54: =+#REF! ->  | AK54: =+#REF! ->  | AL54: =+AK54*12 -> 
M55: 73 | Q55: Total | S55: ='Rate Base'!BD86 -> 0 | T55: =SUM(T53:T54) -> 0 | U55: ='Rate Base'!BE86 -> 0 | V55: =SUM(V53:V54) -> 0 | W55: ='Rate Base'!AB86 -> 344170.6667 | X55: =SUM(X53:X54) -> 22956.18347 | Y55: ='Rate Base'!AC86 -> 83198.66667 | Z55: =SUM(Z53:Z54) -> 5549.351067 | AD55: 5 | AG55: General | AJ55: =+#REF! ->  | AK55: =+#REF! ->  | AL55: =+AK55*12 -> 
M56: 74
M57: 75 | O57: Reserve Variance - Distribution | T57: -2296861 | V57: -2296861 | X57: -2296861 | Z57: -2296861
M58: 76
M59: 77 | AD59: 6 | AG59: Total Depreciation Expense | AJ59: =SUM(AJ52:AJ55) ->  | AK59: =SUM(AK53:AK55) ->  | AL59: =SUM(AL53:AL55) -> 
M60: 78 | P60: Total Distribution Plant | S60: =SUM(S55,S50,S45,S40,S35,S30,S25,S20,S9,S4) -> 0 | T60: =SUM(T4,T9,T20,T25,T30,T35,T40,T45,T50,T55,T57) -> -2281758.092 | U60: =SUM(U55,U50,U45,U40,U35,U30,U25,U20,U9,U4) -> 0 | V60: =SUM(V4,V9,V20,V25,V30,V35,V40,V45,V50,V55,V57) -> -2281758.092 | W60: =SUM(W55,W50,W45,W40,W35,W30,W25,W20,W9,W4) -> 1517509647 | X60: =SUM(X4,X9,X20,X25,X30,X35,X40,X45,X50,X55,X57) -> 39816298.83 | Y60: =SUM(Y55,Y50,Y45,Y40,Y35,Y30,Y25,Y20,Y9,Y4) -> -65592977.35 | Z60: =SUM(Z4,Z9,Z20,Z25,Z30,Z35,Z40,Z45,Z50,Z55,Z57) -> -4004274.818
M61: 79 | AD61: 1/ | AG61: Historical 12 Months Ending December 31, 2006 used due to the seasonal nature of production.
M62: 77 | N62: General Plant
M63: 78 | O63: 389 | P63: Land & Land Rights
M64: 79 | Q64: Distribution - Wyoming | S64: ='Rate Base'!BD92 -> 0 | T64: =$R64*S64 -> 0 | U64: ='Rate Base'!BE92 -> 0 | V64: =$R64*U64 -> 0 | W64: ='Rate Base'!AB92 -> 11584.02 | X64: =$R64*W64 -> 0 | Y64: ='Rate Base'!AC92 -> 0 | Z64: =$R64*Y64 -> 0
M65: 80 | Q65: Distribution - Utah | S65: ='Rate Base'!BD93 -> 0 | T65: =$R65*S65 -> 0 | U65: ='Rate Base'!BE93 -> 0 | V65: =$R65*U65 -> 0 | W65: ='Rate Base'!AB93 -> 688045.4775 | X65: =$R65*W65 -> 0 | Y65: ='Rate Base'!AC93 -> -42296.1825 | Z65: =$R65*Y65 -> 0 | AD65: Annualization Of Depreciation Expense
M66: 81 | Q66: Total | S66: ='Rate Base'!BD94 -> 0 | T66: =SUM(T64:T65) -> 0 | U66: ='Rate Base'!BE94 -> 0 | V66: =SUM(V64:V65) -> 0 | W66: ='Rate Base'!AB94 -> 699629.4975 | X66: =SUM(X64:X65) -> 0 | Y66: ='Rate Base'!AC94 -> -42296.1825 | Z66: =SUM(Z64:Z65) -> 0 | AD66: 12 Months Ending Dec 31, 2010
M67: 82
M68: 83 | O68: 390 | P68: Structures & Improvements | AG68: A | AJ68: B | AK68: C | AL68: D
M69: 84 | Q69: Distribution - Wyoming | R69: 0.02583065122 | S69: ='Rate Base'!BD97 -> 0 | T69: =$R69*S69 -> 0 | U69: ='Rate Base'!BE97 -> 0 | V69: =$R69*U69 -> 0 | W69: ='Rate Base'!AB97 -> 1395725.86 | X69: =$R69*W69 -> 36052.50788 | Y69: ='Rate Base'!AC97 -> 0 | Z69: =$R69*Y69 -> 0 | AL69: Column Cx12
M70: 85 | Q70: Distribution - Utah | R70: 0.02583065122 | S70: ='Rate Base'!BD98 -> 0 | T70: =$R70*S70 -> 0 | U70: ='Rate Base'!BE98 -> 0 | V70: =$R70*U70 -> 0 | W70: ='Rate Base'!AB98 -> 8272312.312 | X70: =$R70*W70 -> 213679.2141 | Y70: ='Rate Base'!AC98 -> -7370617.108 | Z70: =$R70*Y70 -> -190387.8398 | AJ70: 12 Months | AK70: Monthly
M71: 86 | Q71: General | R71: 0.02583065122 | S71: ='Rate Base'!BD99 -> 0 | T71: =$R71*S71 -> 0 | U71: ='Rate Base'!BE99 -> 0 | V71: =$R71*U71 -> 0 | W71: ='Rate Base'!AB99 -> 47943065.84 | X71: =$R71*W71 -> 1238400.612 | Y71: ='Rate Base'!AC99 -> 6436213.75 | Z71: =$R71*Y71 -> 166251.5925 | AJ71: Projected | AK71: Projected | AL71: Annualized
M72: 87 | Q72: Total | S72: ='Rate Base'!BD100 -> 0 | T72: =SUM(T69:T71) -> 0 | U72: ='Rate Base'!BE100 -> 0 | V72: =SUM(V69:V71) -> 0 | W72: ='Rate Base'!AB100 -> 57611104.01 | X72: =SUM(X69:X71) -> 1488132.334 | Y72: ='Rate Base'!AC100 -> -934403.3587 | Z72: =SUM(Z69:Z71) -> -24136.24726 | AE72: Account | AJ72: 2010-12-01 | AK72: =+AJ72 -> 2010-12-01 | AL72: =+AK72 -> 2010-12-01
M73: 88
M74: 89 | O74: 391 | P74: Office Furniture & Equipment | AD74: 1 | AE74: 403 | AG74: Depreciation Expense
M75: 90 | Q75: Distribution - Wyoming | R75: 0.1088868854 | S75: ='Rate Base'!BD103 -> 0 | T75: =$R75*S75 -> 0 | U75: ='Rate Base'!BE103 -> 0 | V75: =$R75*U75 -> 0 | W75: ='Rate Base'!AB103 -> 189857.2404 | X75: =$R75*W75 -> 20672.96358 | Y75: ='Rate Base'!AC103 -> -24587.56958 | Z75: =$R75*Y75 -> -2677.263871 | AD75: 2 | AG75: Production | AJ75: =+#REF! ->  | AK75: =+#REF! -> 
M76: 91 | Q76: Distribution - Utah | R76: 0.1088868854 | S76: ='Rate Base'!BD104 -> 0 | T76: =$R76*S76 -> 0 | U76: ='Rate Base'!BE104 -> 0 | V76: =$R76*U76 -> 0 | W76: ='Rate Base'!AB104 -> 17363076.53 | X76: =$R76*W76 -> 1890611.324 | Y76: ='Rate Base'!AC104 -> 2135422.006 | Z76: =$R76*Y76 -> 232519.4512 | AD76: 3 | AG76: Distribution - Wyoming | AJ76: =+#REF! ->  | AK76: =+#REF! ->  | AL76: =+AK76*12 -> 
M77: 92 | Q77: General | R77: 0.1088868854 | S77: ='Rate Base'!BD105 -> 0 | T77: =$R77*S77 -> 0 | U77: ='Rate Base'!BE105 -> 0 | V77: =$R77*U77 -> 0 | W77: ='Rate Base'!AB105 -> 42282343.2 | X77: =$R77*W77 -> 4603992.658 | Y77: ='Rate Base'!AC105 -> -1878477.476 | Z77: =$R77*Y77 -> -204541.5616 | AD77: 4 | AG77: Distribution - Utah | AJ77: =+#REF! ->  | AK77: =+#REF! ->  | AL77: =+AK77*12 -> 
M78: 93 | Q78: Total | S78: ='Rate Base'!BD106 -> 0 | T78: =SUM(T75:T77) -> 0 | U78: ='Rate Base'!BE106 -> 0 | V78: =SUM(V75:V77) -> 0 | W78: ='Rate Base'!AB106 -> 59835276.97 | X78: =SUM(X75:X77) -> 6515276.945 | Y78: ='Rate Base'!AC106 -> 232356.9604 | Z78: =SUM(Z75:Z77) -> 25300.62572 | AD78: 5 | AG78: General | AJ78: =+#REF! ->  | AK78: =+#REF! ->  | AL78: =+AK78*12 -> 
M79: 94 | AD79: 6 | AG79: Total Depreciation Expense | AJ79: =SUM(AJ75:AJ78) ->  | AK79: =SUM(AK76:AK78) ->  | AL79: =SUM(AL76:AL78) -> 
M80: 95 | O80: 392 | P80: Transportation Equipment
M81: 96 | Q81: Distribution - Wyoming | R81: 0.08224872328 | S81: ='Rate Base'!BD109 -> 0 | T81: =$R81*S81 -> 0 | U81: ='Rate Base'!BE109 -> 0 | V81: =$R81*U81 -> 0 | W81: ='Rate Base'!AB109 -> 1409374.743 | X81: =$R81*W81 -> 115919.2733 | Y81: ='Rate Base'!AC109 -> -10140.85667 | Z81: =$R81*Y81 -> -834.0725138 | AD81: 1/ | AG81: Historical 12 Months Ending December 31, 2006 used due to the seasonal nature of production.
M82: 97 | Q82: Distribution - Utah | R82: 0.08224872328 | S82: ='Rate Base'!BD110 -> 0 | T82: =$R82*S82 -> 0 | U82: ='Rate Base'!BE110 -> 0 | V82: =$R82*U82 -> 0 | W82: ='Rate Base'!AB110 -> 35283457.88 | X82: =$R82*W82 -> 2902019.364 | Y82: ='Rate Base'!AC110 -> -1992707.4 | Z82: =$R82*Y82 -> -163897.6395
M83: 98 | Q83: General
M84: 99 | Q84: Total | S84: ='Rate Base'!BD112 -> 0 | T84: =SUM(T81:T83) -> 0 | U84: ='Rate Base'!BE112 -> 0 | V84: =SUM(V81:V83) -> 0 | W84: ='Rate Base'!AB112 -> 36692832.62 | X84: =SUM(X81:X83) -> 3017938.637 | Y84: ='Rate Base'!AC112 -> -2002848.256 | Z84: =SUM(Z81:Z83) -> -164731.712
M85: 100
M86: 101 | O86: 393 | P86: Stores Equipment
M87: 102 | Q87: Distribution - Wyoming | R87: 0.05
M88: 103 | Q88: Distribution - Utah | R88: 0.05 | S88: ='Rate Base'!BD116 -> 0 | T88: =$R88*S88 -> 0 | U88: ='Rate Base'!BE116 -> 0 | V88: =$R88*U88 -> 0 | W88: ='Rate Base'!AB116 -> 12314.76333 | X88: =$R88*W88 -> 615.7381667 | Y88: ='Rate Base'!AC116 -> -11641.82667 | Z88: =$R88*Y88 -> -582.0913333
M89: 104 | Q89: Total | S89: ='Rate Base'!BD117 -> 0 | T89: =SUM(T87:T88) -> 0 | U89: ='Rate Base'!BE117 -> 0 | V89: =SUM(V87:V88) -> 0 | W89: ='Rate Base'!AB117 -> 15923.23125 | X89: =SUM(X87:X88) -> 615.7381667 | Y89: ='Rate Base'!AC117 -> -20405.24875 | Z89: =SUM(Z87:Z88) -> -582.0913333
M90: 105
M91: 106 | O91: 394 | P91: Tools, Shop & Garage Equipment
M92: 107 | Q92: Distribution - Wyoming | R92: 0.09308958454 | S92: ='Rate Base'!BD120 -> 0 | T92: =$R92*S92 -> 0 | U92: ='Rate Base'!BE120 -> 0 | V92: =$R92*U92 -> 0 | W92: ='Rate Base'!AB120 -> 660624.7512 | X92: =$R92*W92 -> 61497.28363 | Y92: ='Rate Base'!AC120 -> -67309.85875 | Z92: =$R92*Y92 -> -6265.846787
M93: 108 | Q93: Distribution - Utah | R93: 0.09308958454 | S93: ='Rate Base'!BD121 -> 0 | T93: =$R93*S93 -> 0 | U93: ='Rate Base'!BE121 -> 0 | V93: =$R93*U93 -> 0 | W93: ='Rate Base'!AB121 -> 18263507.53 | X93: =$R93*W93 -> 1700142.328 | Y93: ='Rate Base'!AC121 -> -3505970.159 | Z93: =$R93*Y93 -> -326369.3055
M94: 109 | Q94: General
M95: 110 | Q95: Total | S95: ='Rate Base'!BD123 -> 0 | T95: =SUM(T92:T94) -> 0 | U95: ='Rate Base'!BE123 -> 0 | V95: =SUM(V92:V94) -> 0 | W95: ='Rate Base'!AB123 -> 18924132.28 | X95: =SUM(X92:X94) -> 1761639.612 | Y95: ='Rate Base'!AC123 -> -3573280.018 | Z95: =SUM(Z92:Z94) -> -332635.1523
M96: 111
M97: 112 | O97: 395 | P97: Laboratory Equipment
M98: 113 | Q98: Distribution - Wyoming
M99: 114 | Q99: Distribution - Utah | R99: 0.0667 | S99: ='Rate Base'!BD127 -> 0 | T99: =$R99*S99 -> 0 | U99: ='Rate Base'!BE127 -> 0 | V99: =$R99*U99 -> 0 | W99: ='Rate Base'!AB127 -> 79185.19958 | X99: =$R99*W99 -> 5281.652812 | Y99: ='Rate Base'!AC127 -> 2939.839583 | Z99: =$R99*Y99 -> 196.0873002
M100: 115 | Q100: General
M101: 116 | Q101: Total | S101: ='Rate Base'!BD129 -> 0 | T101: =SUM(T98:T100) -> 0 | U101: ='Rate Base'!BE129 -> 0 | V101: =SUM(V98:V100) -> 0 | W101: ='Rate Base'!AB129 -> 79185.19958 | X101: =SUM(X98:X100) -> 5281.652812 | Y101: ='Rate Base'!AC129 -> 2939.839583 | Z101: =SUM(Z98:Z100) -> 196.0873002
M102: 117
M103: 118 | O103: 396 | P103: Power Operated Equipment
M104: 119 | Q104: Distribution - Wyoming | R104: 0.0744 | S104: ='Rate Base'!BD132 -> 0 | T104: =$R104*S104 -> 0 | U104: ='Rate Base'!BE132 -> 0 | V104: =$R104*U104 -> 0 | W104: ='Rate Base'!AB132 -> 521633.3963 | X104: =$R104*W104 -> 38809.52468 | Y104: ='Rate Base'!AC132 -> -10565.92375 | Z104: =$R104*Y104 -> -786.104727
M105: 120 | Q105: Distribution - Utah | R105: 0.0744 | S105: ='Rate Base'!BD133 -> 0 | T105: =$R105*S105 -> 0 | U105: ='Rate Base'!BE133 -> 0 | V105: =$R105*U105 -> 0 | W105: ='Rate Base'!AB133 -> 8558699.355 | X105: =$R105*W105 -> 636767.232 | Y105: ='Rate Base'!AC133 -> -1416276.415 | Z105: =$R105*Y105 -> -105370.9653
M106: 121 | Q106: General
M107: 122 | Q107: Total | S107: ='Rate Base'!BD135 -> 0 | T107: =SUM(T104:T106) -> 0 | U107: ='Rate Base'!BE135 -> 0 | V107: =SUM(V104:V106) -> 0 | W107: ='Rate Base'!AB135 -> 9080332.751 | X107: =SUM(X104:X106) -> 675576.7567 | Y107: ='Rate Base'!AC135 -> -1426842.339 | Z107: =SUM(Z104:Z106) -> -106157.07
M108: 123
M109: 124 | O109: 397 | P109: Communication Equipment
M110: 125 | Q110: Distribution - Wyoming | R110: 0.1888024467 | S110: ='Rate Base'!BD138 -> 0 | T110: =$R110*S110 -> 0 | U110: ='Rate Base'!BE138 -> 0 | V110: =$R110*U110 -> 0 | W110: ='Rate Base'!AB138 -> 2008779.425 | X110: =$R110*W110 -> 379262.4703 | Y110: ='Rate Base'!AC138 -> 95565.915 | Z110: =$R110*Y110 -> 18043.07857
M111: 126 | Q111: Distribution - Utah | R111: 0.1888024467 | S111: ='Rate Base'!BD139 -> 0 | T111: =$R111*S111 -> 0 | U111: ='Rate Base'!BE139 -> 0 | V111: =$R111*U111 -> 0 | W111: ='Rate Base'!AB139 -> 6813639.308 | X111: =$R111*W111 -> 1286431.772 | Y111: ='Rate Base'!AC139 -> -641913.0621 | Z111: =$R111*Y111 -> -121194.7567
M112: 127 | Q112: Total | S112: ='Rate Base'!BD140 -> 0 | T112: =SUM(T110:T111) -> 0 | U112: ='Rate Base'!BE140 -> 0 | V112: =SUM(V110:V111) -> 0 | W112: ='Rate Base'!AB140 -> 8822418.733 | X112: =SUM(X110:X111) -> 1665694.242 | Y112: ='Rate Base'!AC140 -> -546347.1471 | Z112: =SUM(Z110:Z111) -> -103151.6781
M113: 128
M114: 129 | O114: 398 | P114: Miscellaneous Equipment
M115: 130 | Q115: Distribution - Wyoming
M116: 131 | Q116: Distribution - Utah | R116: 0.0667 | S116: ='Rate Base'!BD144 -> 0 | T116: =$R116*S116 -> 0 | U116: ='Rate Base'!BE144 -> 0 | V116: =$R116*U116 -> 0 | W116: ='Rate Base'!AB144 -> 179937.3612 | X116: =$R116*W116 -> 12001.822 | Y116: ='Rate Base'!AC144 -> 53604.03125 | Z116: =$R116*Y116 -> 3575.388884
M117: 132 | Q117: General
M118: 133 | Q118: Total | S118: ='Rate Base'!BD146 -> 0 | T118: =SUM(T115:T117) -> 0 | U118: ='Rate Base'!BE146 -> 0 | V118: =SUM(V115:V117) -> 0 | W118: ='Rate Base'!AB146 -> 179937.3612 | X118: =SUM(X115:X117) -> 12001.822 | Y118: ='Rate Base'!AC146 -> 53604.03125 | Z118: =SUM(Z115:Z117) -> 3575.388884
M119: 134
M120: 135 | O120: 399 | P120: Communication Equipment
M121: 136 | Q121: Distribution - Wyoming
M122: 137 | Q122: Distribution - Utah | R122: 0.04 | S122: ='Rate Base'!BD150 -> 0 | T122: =$R122*S122 -> 0 | U122: ='Rate Base'!BE150 -> 0 | V122: =$R122*U122 -> 0 | W122: ='Rate Base'!AB150 -> 69328.875 | X122: =$R122*W122 -> 2773.155 | Y122: ='Rate Base'!AC150 -> 53684.875 | Z122: =$R122*Y122 -> 2147.395
M123: 138 | Q123: Total | S123: ='Rate Base'!BD151 -> 0 | T123: =SUM(T121:T122) -> 0 | U123: ='Rate Base'!BE151 -> 0 | V123: =SUM(V121:V122) -> 0 | W123: ='Rate Base'!AB151 -> 69328.875 | X123: =SUM(X121:X122) -> 2773.155 | Y123: ='Rate Base'!AC151 -> 53684.875 | Z123: =SUM(Z121:Z122) -> 2147.395
M124: 139
M125: 141 | O125: Reserve Variance - General | T125: -4380092 | V125: -4380092 | X125: -4380092 | Z125: -4380092
M126: 142 | O126: Clearing | T126: =-(T66+T72+T78+T84+T89+T95+T101+T107+T112+T118+T123+T125)*$AL$132 -> 1291117.488 | V126: =-(V66+V72+V78+V84+V89+V95+V101+V107+V112+V118+V123+V125)*$AL$132 -> 1291117.488 | X126: =-(X66+X72+X78+X84+X89+X95+X101+X107+X112+X118+X123+X125)*$AL$132 -> -3173146.078 | Z126: =-(Z66+Z72+Z78+Z84+Z89+Z95+Z101+Z107+Z112+Z118+Z123+Z125)*$AL$132 -> 1497507.555
M127: 143
M128: 144 | P128: Total General Plant | S128: =SUM(S123,S118,S112,S107,S101,S95,S89,S84,S78,S72,S66) -> 0 | T128: =SUM(T66,T72,T78,T84,T89,T95,T101,T107,T112,T118,T123,T126,T125) -> -3088974.512 | U128: =SUM(U123,U118,U112,U107,U101,U95,U89,U84,U78,U72,U66) -> 0 | V128: =SUM(V66,V72,V78,V84,V89,V95,V101,V107,V112,V118,V123,V126,V125) -> -3088974.512 | W128: =SUM(W123,W118,W112,W107,W101,W95,W89,W84,W78,W72,W66) -> 192010101.5 | X128: =SUM(X66,X72,X78,X84,X89,X95,X101,X107,X112,X118,X123,X126,X125) -> 7591692.817 | Y128: =SUM(Y123,Y118,Y112,Y107,Y101,Y95,Y89,Y84,Y78,Y72,Y66) -> -8203836.844 | Z128: =SUM(Z66,Z72,Z78,Z84,Z89,Z95,Z101,Z107,Z112,Z118,Z123,Z126,Z125) -> -3582758.899
M129: 145
M130: 146 | N130: 101 | O130: Gas Plant in Service | AH130: 2008 | AI130: 2007 | AJ130: 2006 | AK130: Average | AL130: Percentage
M131: 147 | P131: Production | S131: ='Rate Base'!BD156 -> 0 | T131: =#REF! ->  | U131: ='Rate Base'!BE156 -> 0 | V131: =#REF! ->  | W131: ='Rate Base'!AB156 -> 83069549.41 | X131: =#REF! ->  | Y131: ='Rate Base'!AC156 -> 141.075 | Z131: =#REF! ->  | AG131: Total General Depreciation | AH131: 9415891.34 | AI131: 9416078.56 | AJ131: 10297414.66 | AK131: =AVERAGE(AH131:AJ131) -> 9709794.853
M132: 148 | P132: Distribution - Wyoming | S132: ='Rate Base'!BD157 -> 0 | T132: =T2+T7+T15+T23+T28+T33+T38+T43+T48+T53+(T57*(S132/(S132+S133))) ->  | U132: ='Rate Base'!BE157 -> 0 | V132: =V2+V7+V15+V23+V28+V33+V38+V43+V48+V53+(V57*(U132/(U132+U133))) ->  | W132: ='Rate Base'!AB157 -> 50184730.14 | X132: =X2+X7+X15+X23+X28+X33+X38+X43+X48+X53+(X57*(W132/(W132+W133))) -> 1342113.595 | Y132: ='Rate Base'!AC157 -> -5667677.13 | Z132: =Z2+Z7+Z15+Z23+Z28+Z33+Z38+Z43+Z48+Z53+(Z57*(Y132/(Y132+Y133))) -> -350454.0177 | AG132: Clearing | AH132: 2835120.48 | AI132: 2822775.68 | AJ132: 2928557.69 | AK132: =AVERAGE(AH132:AJ132) -> 2862151.283 | AL132: =AK132/AK131 -> 0.2947694907
M133: 149 | P133: Distribution - Utah | S133: ='Rate Base'!BD158 -> 0 | T133: =T3+T8+T19+T24+T29+T34+T39+T44+T49+T54+(T57*(S133/(S132+S133))) ->  | U133: ='Rate Base'!BE158 -> 0 | V133: =V3+V8+V19+V24+V29+V34+V39+V44+V49+V54+(V57*(U133/(U132+U133))) ->  | W133: ='Rate Base'!AB158 -> 1467394543 | X133: =X3+X8+X19+X24+X29+X34+X39+X44+X49+X54+(X57*(W133/(W132+W133))) -> 38474185.24 | Y133: ='Rate Base'!AC158 -> -59925300.22 | Z133: =Z3+Z8+Z19+Z24+Z29+Z34+Z39+Z44+Z49+Z54+(Z57*(Y133/(Y132+Y133))) -> -3653820.8
M134: 150 | P134: General | S134: ='Rate Base'!BD159 -> 0 | T134: =T128 -> -3088974.512 | U134: ='Rate Base'!BE159 -> 0 | V134: =V128 -> -3088974.512 | W134: ='Rate Base'!AB159 -> 192010101.5 | X134: =X128 -> 7591692.817 | Y134: ='Rate Base'!AC159 -> -8203836.844 | Z134: =Z128 -> -3582758.899 | AG134: Total 403 Expense | AH134: =AH131-AH132 -> 6580770.86 | AI134: =AI131-AI132 -> 6593302.88 | AJ134: =AJ131-AJ132 -> 7368856.97
M135: 151 | P135: Total | S135: ='Rate Base'!BD160 -> 0 | T135: =SUM(T131:T134) ->  | U135: ='Rate Base'!BE160 -> 0 | V135: =SUM(V131:V134) ->  | W135: ='Rate Base'!AB160 -> 1792658924 | X135: =SUM(X131:X134) ->  | Y135: ='Rate Base'!AC160 -> -73796673.12 | Z135: =SUM(Z131:Z134) -> 
M136: 153
M137: 154 | O137: Total Depreciation Expense | T137: =T135 ->  | V137: =V135 ->  | X137: =X135 ->  | Z137: =Z135 -> 
A139: Annualization Of Depreciation Expense | S139: 2009 YE | U139: 2009 Average | W139: 2010 YE | Y139: 2010 Average | AG139: BOOKED | AH139: BOOKED | AI139: BOOKED | AJ139: BOOKED | AK139: BOOKED | AL139: BOOKED | AM139: BOOKED | AN139: BOOKED | AO139: BOOKED | AP139: BOOKED | AQ139: BOOKED | AR139: BOOKED | AS139: BOOKED | AT139: BOOKED | AU139: BOOKED | AV139: BOOKED | AW139: BOOKED | AX139: BOOKED | AY139: BOOKED | AZ139: BOOKED | BA139: BOOKED | BB139: PROJECTED | BC139: PROJECTED | BD139: PROJECTED | BE139: 12 month | BF139: 12 month | BH139: 12 month | BJ139: PROJECTED | BK139: PROJECTED | BL139: PROJECTED | BM139: PROJECTED | BN139: PROJECTED | BO139: PROJECTED | BP139: PROJECTED | BQ139: PROJECTED | BR139: PROJECTED | BS139: PROJECTED | BT139: PROJECTED | BU139: PROJECTED | BV139: PROJECTED | BW139: 12 month

Sheet Control Panel
A1: 2 | B1: Questar Gas Company | F1: DEFICIENCY
B2: =F11&" - "&F16 -> Utah - DEC 2011 Adjusted Avg Results | F2: =Report!K13 -> 3565665.307
B3: ="12 Months Ended"&" : "& TEXT(F12,"mmm-yyyy") -> 12 Months Ended : Dec-2011 | F3: ROE
B4: ="Capital Structure"&" : "&F44 -> Capital Structure : AVG CAP STR | F4: =+Report!J77 -> 0.09837374263 | G4: NGV DNG Rev | H4: 4060478 | I4: 1 | J4: Advertising | K4: 4063017.294 | L4: 1
H5: 3588610 | I5: 2 | K5: 3565665.307 | L5: 2
G6: Acct 106 | H6: 4063017.294 | I6: 1
H7: 3591149.264 | I7: 2
B9: REPORT CHECK: MUST BE (0) ======> | C9: =IF((SUM(Report!F13:H72)-SUM(Report!I13:I72))<1,"0","ERROR") -> 0 | H9: DEC 2011 Unadjusted Avg Results | J9: DEC 2011 Adjusted Avg Results | M9: Line #
E10: =F10&" - "&"A" -> 2 - A | F10: 2 | H10: 1 | I10: =H10&" - "&"A" -> 1 - A | J10: 2 | K10: =J10&" - "&"A" -> 2 - A | M10: 1
B11: Jurisdiction | F11: =HLOOKUP($F$10,Scenarios,M11,FALSE) -> Utah | H11: Utah | J11: Utah | M11: =M10+1 -> 2
B12: Scenario Title 1 | F12: =HLOOKUP($F$10,Scenarios,M12,FALSE) -> 2011-12-31 | H12: 2011-12-31 | J12: 2011-12-31 | K12: 2011-12-31 | M12: =M11+1 -> 3
M13: 4
F14: =HLOOKUP($F$10,Scenarios,M14,FALSE) -> Energy Efficiency Services Adjustment | H14: =+H29 -> Energy Efficiency Services Adjustment | J14: =+J29 -> Energy Efficiency Services Adjustment | M14: 5
M15: 6
B16: Scenario Title 2 | F16: =HLOOKUP($F$10,Scenarios,M16,FALSE) -> DEC 2011 Adjusted Avg Results | H16: =+H9 -> DEC 2011 Unadjusted Avg Results | J16: =+J9 -> DEC 2011 Adjusted Avg Results | M16: 7
B17: Required Inputs and Factors | M17: 8
M18: 9
B19: Return On Equity | F19: =HLOOKUP($F$10,Scenarios,M19,FALSE) -> 0.1035 | H19: 0.1035 | J19: 0.1035 | M19: 10
M20: 11
B21: Lead-Lag Factor | F21: =HLOOKUP($F$10,Scenarios,M21,FALSE) -> 2.681 | H21: 2.681 | J21: 2.681 | M21: 12
B22: Bad Debt Ratio | F22: =HLOOKUP($F$10,Scenarios,M22,FALSE) -> 0.003169755491 | H22: =+'Utah Bad Debt'!$E$17 -> 0.003169755491 | J22: =+'Utah Bad Debt'!$E$17 -> 0.003169755491 | M22: 13
M23: 14
M24: 15
B25: Adjustments | C25: Go To Adjustment | M25: 16
M26: 17
A27: 1 | B27: =+F27 -> AVG RB DEC 2011 | C27: RATE BASE | E27: =HLOOKUP($E$10,Scenarios,M27,FALSE) -> Y | F27: =HLOOKUP($F$10,Scenarios,M27,FALSE) -> AVG RB DEC 2011 | H27: AVG RB DEC 2011 | I27: Y | J27: AVG RB DEC 2011 | K27: Y | M27: 18
A28: =+A27+1 -> 2 | B28: =+F28 -> Deferred Income Taxes | C28: Deferred Income Taxes | E28: =HLOOKUP($E$10,Scenarios,M28,FALSE) -> y | F28: =HLOOKUP($F$10,Scenarios,M28,FALSE) -> Deferred Income Taxes | H28: Deferred Income Taxes | I28: Y | J28: Deferred Income Taxes | K28: y | M28: 19
A29: =+A28+1 -> 3 | B29: Energy Efficiency Services Adjustment | C29: Energy Efficiency Adj | E29: Y | F29: Energy Efficiency Services Adjustment | H29: Energy Efficiency Services Adjustment | I29: Y | J29: Energy Efficiency Services Adjustment | K29: Y | M29: 20
A30: 4 | B30: Underground Storage | C30: Underground Storage | E30: Y | F30: Underground Storage | H30: Underground Storage | I30: Y | J30: Underground Storage | K30: Y | M30: 21
A31: 5 | B31: Wexpro | C31: 3-Wexpro'!A1 | E31: Y | F31: Wexpro | H31: Wexpro | I31: Y | J31: Wexpro | K31: Y | M31: 22
A32: 6 | B32: Oak City RevenueQGC | C32: OakCity'!A1 | E32: Y | F32: Oak City RevenueQGC | H32: Oak City RevenueQGC | I32: Y | J32: Oak City RevenueQGC | K32: Y | M32: 23
A33: 7 | B33: UTAH Bad Debt | C33: Utah Bad Debt | E33: Y | F33: UTAH Bad Debt | H33: UTAH Bad Debt | I33: N | J33: UTAH Bad Debt | K33: Y | M33: 24
A34: 8 | B34: QGC Incentives | C34: Incentives | E34: Y | F34: QGC Incentives | H34: QGC Incentives | I34: N | J34: QGC Incentives | K34: Y | M34: 25
A35: 9 | B35: QGC Stock Incentives | C35: Stock Incentives | E35: Y | F35: QGC Stock Incentives | H35: QGC Stock Incentives | I35: N | J35: QGC Stock Incentives | K35: Y | M35: 26
A36: 10 | B36: QGC Sporting Events | C36: Sporting Events | E36: Y | F36: QGC Sporting Events | H36: QGC Sporting Events | I36: N | J36: QGC Sporting Events | K36: Y | M36: 27
A37: 11 | B37: QGC Advertising | C37: Advertising | E37: Y | F37: QGC Advertising | H37: QGC Advertising | I37: N | J37: QGC Advertising | K37: Y | M37: 28
A38: 12 | B38: QGC Don & Membership | C38: Donations | E38: Y | F38: QGC Don & Membership | H38: QGC Don & Membership | I38: N | J38: QGC Don & Membership | K38: Y | M38: 29
A39: 13 | B39: QGC Reserve accrual | C39: RESERVE ACCRUAL | E39: Y | F39: QGC Reserve accrual | H39: QGC Reserve accrual | I39: N | J39: QGC Reserve accrual | K39: Y | M39: 30
A40: 14 | B40: =+F40 -> QGC State Tax | C40: State Tax | E40: Y | F40: QGC State Tax | H40: QGC State Tax | I40: N | J40: QGC State Tax | K40: Y | M40: 31
A41: 15 | B41: =+F41 -> QGC Labor Adj | C41: Labor Adjustment | E41: Y | F41: QGC Labor Adj | H41: QGC Labor Adj | I41: N | J41: QGC Labor Adj | K41: Y | M41: 32
A42: 16 | B42: =+F42 -> Dist Gas Effective 2011 | C42: District Gas & Pretax | F42: Dist Gas Effective 2011 | H42: Dist Gas Effective 2011 | J42: Dist Gas Effective 2011 | M42: 33
M43: 34
A44: =+A42+1 -> 17 | B44: =+F44 -> AVG CAP STR | C44: Capital Structure | F44: =HLOOKUP($F$10,Scenarios,M44,FALSE) -> AVG CAP STR | H44: AVG CAP STR | J44: AVG CAP STR | M44: 35

Sheet Summaries
A1: =+'Control Panel'!$B$1 -> Questar Gas Company
A2: =+'Control Panel'!$B$2 -> Utah - DEC 2011 Adjusted Avg Results
A3: =+'Control Panel'!$B$3 -> 12 Months Ended : Dec-2011
G4: =+Adjustments!F6 -> 1 | H4: =+Adjustments!G6 -> 2 | I4: =+Adjustments!H6 -> 3 | J4: =+Adjustments!I6 -> 4 | K4: =+Adjustments!J6 -> 5 | L4: =+Adjustments!K6 -> 6 | M4: =+Adjustments!L6 -> 7 | N4: =+Adjustments!M6 -> 8 | O4: =+Adjustments!N6 -> 9 | P4: =+Adjustments!O6 -> 10 | Q4: =+Adjustments!P6 -> 11 | R4: =+Adjustments!Q6 -> 12 | S4: =+Adjustments!R6 -> 13 | T4: =+Adjustments!S6 -> 14 | U4: =+Adjustments!T6 -> 15
G5: =+Adjustments!F8 -> Y | H5: =+Adjustments!G8 -> y | I5: =+Adjustments!H8 -> Y | J5: =+Adjustments!I8 -> Y | K5: =+Adjustments!J8 -> Y | L5: =+Adjustments!K8 -> Y | M5: =+Adjustments!L8 -> Y | N5: =+Adjustments!M8 -> Y | O5: =+Adjustments!N8 -> Y | P5: =+Adjustments!O8 -> Y | Q5: =+Adjustments!P8 -> Y | R5: =+Adjustments!Q8 -> Y | S5: =+Adjustments!R8 -> Y | T5: =+Adjustments!S8 -> Y | U5: =+Adjustments!T8 -> Y
G6: =Adjustments!F9 -> AVG RB DEC 2011 | H6: =Adjustments!G9 -> Deferred Income Taxes | I6: =Adjustments!H9 -> Energy Efficiency Services Adjustment | J6: =Adjustments!I9 -> Underground Storage | K6: =Adjustments!J9 -> Wexpro | L6: =Adjustments!K9 -> Oak City RevenueQGC | M6: =Adjustments!L9 -> UTAH Bad Debt | N6: =Adjustments!M9 -> QGC Incentives | O6: =Adjustments!N9 -> QGC Stock Incentives | P6: =Adjustments!O9 -> QGC Sporting Events | Q6: =Adjustments!P9 -> QGC Advertising | R6: =Adjustments!Q9 -> QGC Don & Membership | S6: =Adjustments!R9 -> QGC Reserve accrual | T6: =Adjustments!S9 -> QGC State Tax | U6: =Adjustments!T9 -> QGC Labor Adj | X6: =Adjustments!V9 -> TOTAL QGC ADJUSTMENTS | Y6: =Adjustments!X9 -> RESULTING TOTAL | Z6: =Adjustments!Y9 -> CHECKS MUST BE (0)
A8: 1 | B8: NET INCOME SUMMARY
A10: =+A8+1 -> 2 | B10: Utility Operating Revenue
A11: =+A10+1 -> 3 | D11: System Distribution Non-Gas Revenue | G11: =Adjustments!F363+Adjustments!F365 -> 0 | H11: =Adjustments!G363+Adjustments!G365 -> 0 | I11: =Adjustments!H363+Adjustments!H365 -> -39860130.93 | J11: =Adjustments!I363+Adjustments!I365 -> 0 | K11: =Adjustments!J363+Adjustments!J365 -> 0 | L11: =Adjustments!K363+Adjustments!K365 -> 21330 | M11: =Adjustments!L363+Adjustments!L365 -> 0 | N11: =Adjustments!M363+Adjustments!M365 -> 0 | O11: =Adjustments!N363+Adjustments!N365 -> 0 | P11: =Adjustments!O363+Adjustments!O365 -> 0 | Q11: =Adjustments!P363+Adjustments!P365 -> 0 | R11: =Adjustments!Q363+Adjustments!Q365 -> 0 | S11: =Adjustments!R363+Adjustments!R365 -> 0 | T11: =Adjustments!S363+Adjustments!S365 -> 0 | U11: =Adjustments!T363+Adjustments!T365 -> 0 | X11: =Adjustments!V363+Adjustments!V365 -> -39838800.93 | Y11: =SUM(G11:V11) -> -39838800.93 | Z11: =+X11-Y11 -> 0
A12: 4 | D12: System Supplier Non-Gas Revenue | G12: =Adjustments!F364 -> 0 | H12: =Adjustments!G364 -> 0 | I12: =Adjustments!H364 -> 0 | J12: =Adjustments!I364 -> 0 | K12: =Adjustments!J364 -> 0 | L12: =Adjustments!K364 -> 0 | M12: =Adjustments!L364 -> 0 | N12: =Adjustments!M364 -> 0 | O12: =Adjustments!N364 -> 0 | P12: =Adjustments!O364 -> 0 | Q12: =Adjustments!P364 -> 0 | R12: =Adjustments!Q364 -> 0 | S12: =Adjustments!R364 -> 0 | T12: =Adjustments!S364 -> 0 | U12: =Adjustments!T364 -> 0 | X12: =Adjustments!V364 -> 0 | Y12: 0 | Z12: =+X12-Y12 -> 0
A13: 5 | D13: System Commodity Revenue | G13: =Adjustments!F366 -> 0 | H13: =Adjustments!G366 -> 0 | I13: =Adjustments!H366 -> 0 | J13: =Adjustments!I366 -> 0 | K13: =Adjustments!J366 -> 0 | L13: =Adjustments!K366 -> 0 | M13: =Adjustments!L366 -> 0 | N13: =Adjustments!M366 -> 0 | O13: =Adjustments!N366 -> 0 | P13: =Adjustments!O366 -> 0 | Q13: =Adjustments!P366 -> 0 | R13: =Adjustments!Q366 -> 0 | S13: =Adjustments!R366 -> 0 | T13: =Adjustments!S366 -> 0 | U13: =Adjustments!T366 -> 0 | X13: =Adjustments!V366 -> 0 | Y13: 0 | Z13: 0
A14: 6 | D14: Pass-Through Related Other Revenue | G14: =Adjustments!F501+Adjustments!F505 -> 0 | H14: =Adjustments!G501+Adjustments!G505 -> 0 | I14: =Adjustments!H501+Adjustments!H505 -> 0 | J14: =Adjustments!I501+Adjustments!I505 -> 0 | K14: =Adjustments!J501+Adjustments!J505 -> 0 | L14: =Adjustments!K501+Adjustments!K505 -> 0 | M14: =Adjustments!L501+Adjustments!L505 -> 0 | N14: =Adjustments!M501+Adjustments!M505 -> 0 | O14: =Adjustments!N501+Adjustments!N505 -> 0 | P14: =Adjustments!O501+Adjustments!O505 -> 0 | Q14: =Adjustments!P501+Adjustments!P505 -> 0 | R14: =Adjustments!Q501+Adjustments!Q505 -> 0 | S14: =Adjustments!R501+Adjustments!R505 -> 0 | T14: =Adjustments!S501+Adjustments!S505 -> 0 | U14: =Adjustments!T501+Adjustments!T505 -> 0 | X14: =Adjustments!V501+Adjustments!V505 -> 0 | Y14: 0 | Z14: 0
A15: 7 | D15: General Related Other Revenue | G15: =Adjustments!F502+Adjustments!F506 -> 0 | H15: =Adjustments!G502+Adjustments!G506 -> 0 | I15: =Adjustments!H502+Adjustments!H506 -> 0 | J15: =Adjustments!I502+Adjustments!I506 -> 0 | K15: =Adjustments!J502+Adjustments!J506 -> 0 | L15: =Adjustments!K502+Adjustments!K506 -> 0 | M15: =Adjustments!L502+Adjustments!L506 -> 0 | N15: =Adjustments!M502+Adjustments!M506 -> 0 | O15: =Adjustments!N502+Adjustments!N506 -> 0 | P15: =Adjustments!O502+Adjustments!O506 -> 0 | Q15: =Adjustments!P502+Adjustments!P506 -> 0 | R15: =Adjustments!Q502+Adjustments!Q506 -> 0 | S15: =Adjustments!R502+Adjustments!R506 -> 0 | T15: =Adjustments!S502+Adjustments!S506 -> 0 | U15: =Adjustments!T502+Adjustments!T506 -> 0 | X15: =Adjustments!V502+Adjustments!V506 -> 0 | Y15: 0 | Z15: 0
A16: 8 | C16: Total Utility Operating Revenue | G16: =SUM(G11:G15) -> 0 | H16: =SUM(H11:H15) -> 0 | I16: -39860130.93 | J16: 0 | K16: 0 | L16: 21330 | M16: 0 | N16: 0 | O16: 0 | P16: 0 | Q16: 0 | R16: 0 | S16: 0 | T16: 0 | U16: 0 | X16: =SUM(X11:X15) -> -39838800.93 | Y16: -39838800.93 | Z16: 0
Y17: 0 | Z17: 0
A18: =+A16+1 -> 9 | B18: Utility Operating Expenses | Y18: 0 | Z18: 0
A19: =+A18+1 -> 10 | C19: Gas Purchase Expenses | Y19: 0 | Z19: 0
A20: =+A19+1 -> 11 | D20: Utah Gas Purchase Exp | G20: =Adjustments!F632+Adjustments!F635 -> 0 | H20: =Adjustments!G632+Adjustments!G635 -> 0 | I20: =Adjustments!H632+Adjustments!H635 -> 0 | J20: =Adjustments!I632+Adjustments!I635 -> 0 | K20: =Adjustments!J632+Adjustments!J635 -> 0 | L20: =Adjustments!K632+Adjustments!K635 -> 0 | M20: =Adjustments!L632+Adjustments!L635 -> 0 | N20: =Adjustments!M632+Adjustments!M635 -> 0 | O20: =Adjustments!N632+Adjustments!N635 -> 0 | P20: =Adjustments!O632+Adjustments!O635 -> 0 | Q20: =Adjustments!P632+Adjustments!P635 -> 0 | R20: =Adjustments!Q632+Adjustments!Q635 -> 0 | S20: =Adjustments!R632+Adjustments!R635 -> 0 | T20: =Adjustments!S632+Adjustments!S635 -> 0 | U20: =Adjustments!T632+Adjustments!T635 -> 0 | X20: =Adjustments!V632+Adjustments!V635 -> 0 | Y20: 0 | Z20: 0
A21: =+A20+1 -> 12 | D21: Wyoming Gas Purchase Exp | G21: =Adjustments!F634+Adjustments!F636 -> 0 | H21: =Adjustments!G634+Adjustments!G636 -> 0 | I21: =Adjustments!H634+Adjustments!H636 -> 0 | J21: =Adjustments!I634+Adjustments!I636 -> 0 | K21: =Adjustments!J634+Adjustments!J636 -> 0 | L21: =Adjustments!K634+Adjustments!K636 -> 0 | M21: =Adjustments!L634+Adjustments!L636 -> 0 | N21: =Adjustments!M634+Adjustments!M636 -> 0 | O21: =Adjustments!N634+Adjustments!N636 -> 0 | P21: =Adjustments!O634+Adjustments!O636 -> 0 | Q21: =Adjustments!P634+Adjustments!P636 -> 0 | R21: =Adjustments!Q634+Adjustments!Q636 -> 0 | S21: =Adjustments!R634+Adjustments!R636 -> 0 | T21: =Adjustments!S634+Adjustments!S636 -> 0 | U21: =Adjustments!T634+Adjustments!T636 -> 0 | X21: =Adjustments!V634+Adjustments!V636 -> 0 | Y21: 0 | Z21: 0
A22: =+A21+1 -> 13 | D22: Total Gas Purchase Expenses | G22: =SUM(G20:G21) -> 0 | H22: =SUM(H20:H21) -> 0 | I22: 0 | J22: 0 | K22: 0 | L22: 0 | M22: 0 | N22: 0 | O22: 0 | P22: 0 | Q22: 0 | R22: 0 | S22: 0 | T22: 0 | U22: 0 | X22: =SUM(X20:X21) -> 0 | Y22: 0 | Z22: 0
Y23: 0 | Z23: 0
A24: =+A22+1 -> 14 | D24: Utah Gathering & CO2 | G24: =Adjustments!F631 -> 0 | H24: =Adjustments!G631 -> 0 | I24: =Adjustments!H631 -> 0 | J24: =Adjustments!I631 -> 0 | K24: =Adjustments!J631 -> 0 | L24: =Adjustments!K631 -> 0 | M24: =Adjustments!L631 -> 0 | N24: =Adjustments!M631 -> 0 | O24: =Adjustments!N631 -> 0 | P24: =Adjustments!O631 -> 0 | Q24: =Adjustments!P631 -> 0 | R24: =Adjustments!Q631 -> 0 | S24: =Adjustments!R631 -> 0 | T24: =Adjustments!S631 -> 0 | U24: =Adjustments!T631 -> 0 | X24: =Adjustments!V631 -> 0 | Y24: 0 | Z24: 0
A25: =+A24+1 -> 15 | D25: Wyoming Gathering & CO2 | G25: =Adjustments!F633 -> 0 | H25: =Adjustments!G633 -> 0 | I25: =Adjustments!H633 -> 0 | J25: =Adjustments!I633 -> 0 | K25: =Adjustments!J633 -> 0 | L25: =Adjustments!K633 -> 0 | M25: =Adjustments!L633 -> 0 | N25: =Adjustments!M633 -> 0 | O25: =Adjustments!N633 -> 0 | P25: =Adjustments!O633 -> 0 | Q25: =Adjustments!P633 -> 0 | R25: =Adjustments!Q633 -> 0 | S25: =Adjustments!R633 -> 0 | T25: =Adjustments!S633 -> 0 | U25: =Adjustments!T633 -> 0 | X25: =Adjustments!V633 -> 0 | Y25: 0 | Z25: 0
A26: =+A25+1 -> 16 | D26: Total Gathering & CO2 | G26: =SUM(G24:G25) -> 0 | H26: =SUM(H24:H25) -> 0 | I26: 0 | J26: 0 | K26: 0 | L26: 0 | M26: 0 | N26: 0 | O26: 0 | P26: 0 | Q26: 0 | R26: 0 | S26: 0 | T26: 0 | U26: 0 | X26: =SUM(X24:X25) -> 0 | Y26: 0 | Z26: 0
Y27: 0 | Z27: 0
A28: =+A26+1 -> 17 | C28: O&M Expenses | Y28: 0 | Z28: 0
A29: =+A28+1 -> 18 | D29: Production | G29: =Adjustments!F649 -> 0 | H29: =Adjustments!G649 -> 0 | I29: =Adjustments!H649 -> 0 | J29: =Adjustments!I649 -> 0 | K29: =Adjustments!J649 -> 0 | L29: =Adjustments!K649 -> 0 | M29: =Adjustments!L649 -> 0 | N29: =Adjustments!M649 -> 0 | O29: =Adjustments!N649 -> 0 | P29: =Adjustments!O649 -> 0 | Q29: =Adjustments!P649 -> 0 | R29: =Adjustments!Q649 -> 0 | S29: =Adjustments!R649 -> 0 | T29: =Adjustments!S649 -> 0 | U29: =Adjustments!T649 -> 0 | X29: =Adjustments!V649 -> 0 | Y29: 0 | Z29: 0
A30: 19 | D30: Distribution | G30: =Adjustments!F752 -> 0 | H30: =Adjustments!G752 -> 0 | I30: =Adjustments!H752 -> 0 | J30: =Adjustments!I752 -> 0 | K30: =Adjustments!J752 -> 0 | L30: =Adjustments!K752 -> 0 | M30: =Adjustments!L752 -> 0 | N30: =Adjustments!M752 -> 0 | O30: =Adjustments!N752 -> 0 | P30: =Adjustments!O752 -> 0 | Q30: =Adjustments!P752 -> 0 | R30: =Adjustments!Q752 -> 0 | S30: =Adjustments!R752 -> 0 | T30: =Adjustments!S752 -> 0 | U30: =Adjustments!T752 -> 0 | X30: =Adjustments!V752 -> 0 | Y30: 0 | Z30: 0
A31: 20 | D31: Customer Accounts | G31: =Adjustments!F805 -> 0 | H31: =Adjustments!G805 -> 0 | I31: =Adjustments!H805 -> 0 | J31: =Adjustments!I805 -> 0 | K31: =Adjustments!J805 -> 0 | L31: =Adjustments!K805 -> 0 | M31: =Adjustments!L805 -> -1554977.247 | N31: =Adjustments!M805 -> 0 | O31: =Adjustments!N805 -> 0 | P31: =Adjustments!O805 -> 0 | Q31: =Adjustments!P805 -> 0 | R31: =Adjustments!Q805 -> 0 | S31: =Adjustments!R805 -> 0 | T31: =Adjustments!S805 -> 0 | U31: =Adjustments!T805 -> 0 | X31: =Adjustments!V805 -> -1554977.247 | Y31: -1554977.247 | Z31: 0
A32: 21 | D32: Customer Service & Information | G32: =Adjustments!F833 -> 0 | H32: =Adjustments!G833 -> 0 | I32: =Adjustments!H833 -> -39860130.93 | J32: =Adjustments!I833 -> 0 | K32: =Adjustments!J833 -> 0 | L32: =Adjustments!K833 -> 0 | M32: =Adjustments!L833 -> 0 | N32: =Adjustments!M833 -> 0 | O32: =Adjustments!N833 -> 0 | P32: =Adjustments!O833 -> 0 | Q32: =Adjustments!P833 -> -44254.25892 | R32: =Adjustments!Q833 -> 0 | S32: =Adjustments!R833 -> 0 | T32: =Adjustments!S833 -> 0 | U32: =Adjustments!T833 -> 0 | X32: =Adjustments!V833 -> -39904385.19 | Y32: -39904385.19 | Z32: 0
A33: 22 | D33: Administrative & General | G33: =Adjustments!F889 -> 0 | H33: =Adjustments!G889 -> 0 | I33: =Adjustments!H889 -> 0 | J33: =Adjustments!I889 -> 0 | K33: =Adjustments!J889 -> 0 | L33: =Adjustments!K889 -> 0 | M33: =Adjustments!L889 -> 0 | N33: =Adjustments!M889 -> -3917042.752 | O33: =Adjustments!N889 -> -38467.99328 | P33: =Adjustments!O889 -> -25159.64031 | Q33: =Adjustments!P889 -> 0 | R33: =Adjustments!Q889 -> -210239.5833 | S33: =Adjustments!R889 -> -42163.044 | T33: =Adjustments!S889 -> -600986 | U33: =Adjustments!T889 -> 4239358.456 | X33: =Adjustments!V889 -> -594700.5561 | Y33: -594700.5561 | Z33: 0
A34: 23 | D34: Total O&M Expense | G34: =SUM(G29:G33) -> 0 | H34: =SUM(H29:H33) -> 0 | I34: -39860130.93 | J34: 0 | K34: 0 | L34: 0 | M34: -1554977.247 | N34: -3917042.752 | O34: -38467.99328 | P34: -25159.64031 | Q34: -44254.25892 | R34: -210239.5833 | S34: -42163.044 | T34: -600986 | U34: 4239358.456 | X34: =SUM(X29:X33) -> -42054062.99 | Y34: -42054062.99 | Z34: 0
Y35: 0 | Z35: 0
A36: =+A34+1 -> 24 | C36: Other Operating Expenses | Y36: 0 | Z36: 0
A37: =+A36+1 -> 25 | D37: Depreciation, Deplection, Amortization | G37: =Adjustments!F913 -> 0 | H37: =Adjustments!G913 -> 0 | I37: =Adjustments!H913 -> 0 | J37: =Adjustments!I913 -> 0 | K37: =Adjustments!J913 -> 0 | L37: =Adjustments!K913 -> 0 | M37: =Adjustments!L913 -> 0 | N37: =Adjustments!M913 -> 0 | O37: =Adjustments!N913 -> 0 | P37: =Adjustments!O913 -> 0 | Q37: =Adjustments!P913 -> 0 | R37: =Adjustments!Q913 -> 0 | S37: =Adjustments!R913 -> 0 | T37: =Adjustments!S913 -> 0 | U37: =Adjustments!T913 -> 0 | X37: =Adjustments!V913 -> 0 | Y37: 0 | Z37: 0
A38: =+A37+1 -> 26 | D38: Taxes Other Than Income Taxes | G38: =Adjustments!F921 -> 0 | H38: =Adjustments!G921 -> 0 | I38: =Adjustments!H921 -> 0 | J38: =Adjustments!I921 -> 0 | K38: =Adjustments!J921 -> 0 | L38: =Adjustments!K921 -> 0 | M38: =Adjustments!L921 -> 0 | N38: =Adjustments!M921 -> 0 | O38: =Adjustments!N921 -> 0 | P38: =Adjustments!O921 -> 0 | Q38: =Adjustments!P921 -> 0 | R38: =Adjustments!Q921 -> 0 | S38: =Adjustments!R921 -> 0 | T38: =Adjustments!S921 -> 0 | U38: =Adjustments!T921 -> 0 | X38: =Adjustments!V921 -> 0 | Y38: 0 | Z38: 0
A39: =+A38+1 -> 27 | D39: Income Taxes | G39: =Adjustments!F923+Adjustments!F925+Adjustments!F927+Adjustments!F929 -> 0 | H39: =Adjustments!G923+Adjustments!G925+Adjustments!G927+Adjustments!G929 -> 0 | I39: =Adjustments!H923+Adjustments!H925+Adjustments!H927+Adjustments!H929 -> 0 | J39: =Adjustments!I923+Adjustments!I925+Adjustments!I927+Adjustments!I929 -> 0 | K39: =Adjustments!J923+Adjustments!J925+Adjustments!J927+Adjustments!J929 -> 0 | L39: =Adjustments!K923+Adjustments!K925+Adjustments!K927+Adjustments!K929 -> 8121.498817 | M39: =Adjustments!L923+Adjustments!L925+Adjustments!L927+Adjustments!L929 -> 592064.9729 | N39: =Adjustments!M923+Adjustments!M925+Adjustments!M927+Adjustments!M929 -> 1491432.634 | O39: =Adjustments!N923+Adjustments!N925+Adjustments!N927+Adjustments!N929 -> 14646.87116 | P39: =Adjustments!O923+Adjustments!O925+Adjustments!O927+Adjustments!O929 -> 9579.652555 | Q39: =Adjustments!P923+Adjustments!P925+Adjustments!P927+Adjustments!P929 -> 16850.01929 | R39: =Adjustments!Q923+Adjustments!Q925+Adjustments!Q927+Adjustments!Q929 -> 80049.71999 | S39: =Adjustments!R923+Adjustments!R925+Adjustments!R927+Adjustments!R929 -> 16053.77928 | T39: =Adjustments!S923+Adjustments!S925+Adjustments!S927+Adjustments!S929 -> 228828.2742 | U39: =Adjustments!T923+Adjustments!T925+Adjustments!T927+Adjustments!T929 -> -1614155.869 | X39: =Adjustments!V923+Adjustments!V925+Adjustments!V927+Adjustments!V929 -> 843471.5525 | Y39: 843471.5525 | Z39: 0
A40: =+A39+1 -> 28 | D40: Total Other Operating Expenses | G40: =SUM(G37:G39) -> 0 | H40: =SUM(H37:H39) -> 0 | I40: 0 | J40: 0 | K40: 0 | L40: 8121.498817 | M40: 592064.9729 | N40: 1491432.634 | O40: 14646.87116 | P40: 9579.652555 | Q40: 16850.01929 | R40: 80049.71999 | S40: 16053.77928 | T40: 228828.2742 | U40: -1614155.869 | X40: =SUM(X37:X39) -> 843471.5525 | Y40: 843471.5525 | Z40: 0
Y41: 0 | Z41: 0
Y42: 0 | Z42: 0
A43: =+A40+1 -> 29 | C43: Total Utility Operating Expenses | G43: =+G22+G26+G34+G40 -> 0 | H43: =+H22+H26+H34+H40 -> 0 | I43: -39860130.93 | J43: 0 | K43: 0 | L43: 8121.498817 | M43: -962912.2739 | N43: -2425610.118 | O43: -23821.12212 | P43: -15579.98775 | Q43: -27404.23963 | R43: -130189.8633 | S43: -26109.26472 | T43: -372157.7258 | U43: 2625202.587 | X43: =+X22+X26+X34+X40 -> -41210591.44 | Y43: =SUM(G43:V43) -> -41210591.44 | Z43: 0
Y44: 0 | Z44: 0
Y45: 0 | Z45: 0
A46: =+A43+1 -> 30 | B46: NET OPERATING INCOME | G46: =+G16-G43 -> 0 | H46: =+H16-H43 -> 0 | I46: 0 | J46: 0 | K46: 0 | L46: 13208.50118 | M46: 962912.2739 | N46: 2425610.118 | O46: 23821.12212 | P46: 15579.98775 | Q46: 27404.23963 | R46: 130189.8633 | S46: 26109.26472 | T46: 372157.7258 | U46: -2625202.587 | X46: =+X16-X43 -> 1371790.509 | Y46: 1371790.509 | Z46: 6.98491931e-09
Y47: 0 | Z47: 0
Y48: 0 | Z48: 0
A49: =+A46+1 -> 31 | B49: RATE BASE SUMMARY | Y49: 0 | Z49: 0
Y50: 0 | Z50: 0
A51: =+A49+1 -> 32 | B51: Net Utility Plant | Y51: 0 | Z51: 0
A52: =+A51+1 -> 33 | C52: 101 | D52: Gas Plant In Service | G52: =Adjustments!F1095 -> -73796673.12 | H52: =Adjustments!G1095 -> 0 | I52: =Adjustments!H1095 -> 0 | J52: =Adjustments!I1095 -> 0 | K52: =Adjustments!J1095 -> -5233381.613 | L52: =Adjustments!K1095 -> 0 | M52: =Adjustments!L1095 -> 0 | N52: =Adjustments!M1095 -> 0 | O52: =Adjustments!N1095 -> 0 | P52: =Adjustments!O1095 -> 0 | Q52: =Adjustments!P1095 -> 0 | R52: =Adjustments!Q1095 -> 0 | S52: =Adjustments!R1095 -> 0 | T52: =Adjustments!S1095 -> 0 | U52: =Adjustments!T1095 -> 0 | X52: =Adjustments!V1095 -> -79030054.74 | Y52: -79030054.74 | Z52: 0
A53: 34 | C53: 105 | D53: Gas Plant Held For Future Use | G53: =Adjustments!F1099 -> 0 | H53: =Adjustments!G1099 -> 0 | I53: =Adjustments!H1099 -> 0 | J53: =Adjustments!I1099 -> 0 | K53: =Adjustments!J1099 -> 0 | L53: =Adjustments!K1099 -> 0 | M53: =Adjustments!L1099 -> 0 | N53: =Adjustments!M1099 -> 0 | O53: =Adjustments!N1099 -> 0 | P53: =Adjustments!O1099 -> 0 | Q53: =Adjustments!P1099 -> 0 | R53: =Adjustments!Q1099 -> 0 | S53: =Adjustments!R1099 -> 0 | T53: =Adjustments!S1099 -> 0 | U53: =Adjustments!T1099 -> 0 | X53: =Adjustments!V1099 -> 0 | Y53: 0 | Z53: 0
A54: 35 | C54: 106 | D54: Completed Construction Not Classified | G54: =Adjustments!F1106 -> -9954670.688 | H54: =Adjustments!G1106 -> 0 | I54: =Adjustments!H1106 -> 0 | J54: =Adjustments!I1106 -> 0 | K54: =Adjustments!J1106 -> 0 | L54: =Adjustments!K1106 -> 0 | M54: =Adjustments!L1106 -> 0 | N54: =Adjustments!M1106 -> 0 | O54: =Adjustments!N1106 -> 0 | P54: =Adjustments!O1106 -> 0 | Q54: =Adjustments!P1106 -> 0 | R54: =Adjustments!Q1106 -> 0 | S54: =Adjustments!R1106 -> 0 | T54: =Adjustments!S1106 -> 0 | U54: =Adjustments!T1106 -> 0 | X54: =Adjustments!V1106 -> -9954670.688 | Y54: -9954670.688 | Z54: 0
A55: 36 | C55: 108 | D55: Accumulated Depreciation | G55: =Adjustments!F1113 -> 13598602.6 | H55: =Adjustments!G1113 -> 0 | I55: =Adjustments!H1113 -> 0 | J55: =Adjustments!I1113 -> 0 | K55: =Adjustments!J1113 -> 4288077.574 | L55: =Adjustments!K1113 -> 0 | M55: =Adjustments!L1113 -> 0 | N55: =Adjustments!M1113 -> 0 | O55: =Adjustments!N1113 -> 0 | P55: =Adjustments!O1113 -> 0 | Q55: =Adjustments!P1113 -> 0 | R55: =Adjustments!Q1113 -> 0 | S55: =Adjustments!R1113 -> 0 | T55: =Adjustments!S1113 -> 0 | U55: =Adjustments!T1113 -> 0 | X55: =Adjustments!V1113 -> 17886680.17 | Y55: 17886680.17 | Z55: 0
A56: 37 | C56: 111 | D56: Accumulated Amort & Depletion | G56: =Adjustments!F1120 -> 9041.600833 | H56: =Adjustments!G1120 -> 0 | I56: =Adjustments!H1120 -> 0 | J56: =Adjustments!I1120 -> 0 | K56: =Adjustments!J1120 -> 380431.3665 | L56: =Adjustments!K1120 -> 0 | M56: =Adjustments!L1120 -> 0 | N56: =Adjustments!M1120 -> 0 | O56: =Adjustments!N1120 -> 0 | P56: =Adjustments!O1120 -> 0 | Q56: =Adjustments!P1120 -> 0 | R56: =Adjustments!Q1120 -> 0 | S56: =Adjustments!R1120 -> 0 | T56: =Adjustments!S1120 -> 0 | U56: =Adjustments!T1120 -> 0 | X56: =Adjustments!V1120 -> 389472.9673 | Y56: 389472.9673 | Z56: 0
A57: 38 | C57: Total Net Utility Plant | G57: =SUM(G52:G56) -> -70143699.61 | H57: =SUM(H52:H56) -> 0 | I57: 0 | J57: 0 | K57: -564872.6718 | L57: 0 | M57: 0 | N57: 0 | O57: 0 | P57: 0 | Q57: 0 | R57: 0 | S57: 0 | T57: 0 | U57: 0 | X57: =SUM(X52:X56) -> -70708572.29 | Y57: -70708572.29 | Z57: 0
Y58: 0 | Z58: 0
A59: =+A57+1 -> 39 | B59: Other Rate Base Accounts | Y59: 0 | Z59: 0
A60: =+A59+1 -> 40 | C60: 154 | D60: Materials & Supplies | G60: =Adjustments!F1138 -> -1629771.8 | H60: =Adjustments!G1138 -> 0 | I60: =Adjustments!H1138 -> 0 | J60: =Adjustments!I1138 -> 0 | K60: =Adjustments!J1138 -> 0 | L60: =Adjustments!K1138 -> 0 | M60: =Adjustments!L1138 -> 0 | N60: =Adjustments!M1138 -> 0 | O60: =Adjustments!N1138 -> 0 | P60: =Adjustments!O1138 -> 0 | Q60: =Adjustments!P1138 -> 0 | R60: =Adjustments!Q1138 -> 0 | S60: =Adjustments!R1138 -> 0 | T60: =Adjustments!S1138 -> 0 | U60: =Adjustments!T1138 -> 0 | X60: =Adjustments!V1138 -> -1629771.8 | Y60: -1629771.8 | Z60: 0
A61: 41 | C61: 164-1 | D61: Gas Stored Underground | G61: =Adjustments!F1142 -> -9354920.663 | H61: =Adjustments!G1142 -> 0 | I61: =Adjustments!H1142 -> 0 | J61: =Adjustments!I1142 -> -30912318.52 | K61: =Adjustments!J1142 -> 0 | L61: =Adjustments!K1142 -> 0 | M61: =Adjustments!L1142 -> 0 | N61: =Adjustments!M1142 -> 0 | O61: =Adjustments!N1142 -> 0 | P61: =Adjustments!O1142 -> 0 | Q61: =Adjustments!P1142 -> 0 | R61: =Adjustments!Q1142 -> 0 | S61: =Adjustments!R1142 -> 0 | T61: =Adjustments!S1142 -> 0 | U61: =Adjustments!T1142 -> 0 | X61: =Adjustments!V1142 -> -40267239.18 | Y61: -40267239.18 | Z61: 0
A62: 42 | C62: 165 | D62: Prepayments | G62: =Adjustments!F1146 -> -444138.7975 | H62: =Adjustments!G1146 -> 0 | I62: =Adjustments!H1146 -> 0 | J62: =Adjustments!I1146 -> 0 | K62: =Adjustments!J1146 -> 0 | L62: =Adjustments!K1146 -> 0 | M62: =Adjustments!L1146 -> 0 | N62: =Adjustments!M1146 -> 0 | O62: =Adjustments!N1146 -> 0 | P62: =Adjustments!O1146 -> 0 | Q62: =Adjustments!P1146 -> 0 | R62: =Adjustments!Q1146 -> 0 | S62: =Adjustments!R1146 -> 0 | T62: =Adjustments!S1146 -> 0 | U62: =Adjustments!T1146 -> 0 | X62: =Adjustments!V1146 -> -444138.7975 | Y62: -444138.7975 | Z62: 0
C63: 190 | D63: Accum Deferred Income Taxes | G63: =Adjustments!F1153+Adjustments!F1160 -> -1202195.084 | H63: =Adjustments!G1153+Adjustments!G1160 -> 0 | I63: =Adjustments!H1153+Adjustments!H1160 -> 0 | J63: =Adjustments!I1153+Adjustments!I1160 -> 0 | K63: =Adjustments!J1153+Adjustments!J1160 -> 0 | L63: =Adjustments!K1153+Adjustments!K1160 -> 0 | M63: =Adjustments!L1153+Adjustments!L1160 -> 0 | N63: =Adjustments!M1153+Adjustments!M1160 -> 0 | O63: =Adjustments!N1153+Adjustments!N1160 -> 0 | P63: =Adjustments!O1153+Adjustments!O1160 -> 0 | Q63: =Adjustments!P1153+Adjustments!P1160 -> 0 | R63: =Adjustments!Q1153+Adjustments!Q1160 -> 0 | S63: =Adjustments!R1153+Adjustments!R1160 -> 0 | T63: =Adjustments!S1153+Adjustments!S1160 -> 0 | U63: =Adjustments!T1153+Adjustments!T1160 -> 0 | X63: =Adjustments!V1153+Adjustments!V1160 -> -1202195.084 | Y63: -1202195.084 | Z63: 0
A64: =+A62+1 -> 43 | C64: 235-1 | D64: Customer Deposits | G64: =Adjustments!F1165 -> 1071156.781 | H64: =Adjustments!G1165 -> 0 | I64: =Adjustments!H1165 -> 0 | J64: =Adjustments!I1165 -> 0 | K64: =Adjustments!J1165 -> 0 | L64: =Adjustments!K1165 -> 0 | M64: =Adjustments!L1165 -> 0 | N64: =Adjustments!M1165 -> 0 | O64: =Adjustments!N1165 -> 0 | P64: =Adjustments!O1165 -> 0 | Q64: =Adjustments!P1165 -> 0 | R64: =Adjustments!Q1165 -> 0 | S64: =Adjustments!R1165 -> 0 | T64: =Adjustments!S1165 -> 0 | U64: =Adjustments!T1165 -> 0 | X64: =Adjustments!V1165 -> 1071156.781 | Y64: 1071156.781 | Z64: 0
A65: 44 | C65: 252 | D65: Misc Customer Credits | G65: =Adjustments!F1170 -> -12435107.45 | H65: =Adjustments!G1170 -> 0 | I65: =Adjustments!H1170 -> 0 | J65: =Adjustments!I1170 -> 0 | K65: =Adjustments!J1170 -> 0 | L65: =Adjustments!K1170 -> 0 | M65: =Adjustments!L1170 -> 0 | N65: =Adjustments!M1170 -> 0 | O65: =Adjustments!N1170 -> 0 | P65: =Adjustments!O1170 -> 0 | Q65: =Adjustments!P1170 -> 0 | R65: =Adjustments!Q1170 -> 0 | S65: =Adjustments!R1170 -> 0 | T65: =Adjustments!S1170 -> 0 | U65: =Adjustments!T1170 -> 0 | X65: =Adjustments!V1170 -> -12435107.45 | Y65: -12435107.45 | Z65: 0
A66: 45 | C66: 253-1 | D66: Unclaimed Customer Deposits | G66: =Adjustments!F1174 -> -37779.86375 | H66: =Adjustments!G1174 -> 0 | I66: =Adjustments!H1174 -> 0 | J66: =Adjustments!I1174 -> 0 | K66: =Adjustments!J1174 -> 0 | L66: =Adjustments!K1174 -> 0 | M66: =Adjustments!L1174 -> 0 | N66: =Adjustments!M1174 -> 0 | O66: =Adjustments!N1174 -> 0 | P66: =Adjustments!O1174 -> 0 | Q66: =Adjustments!P1174 -> 0 | R66: =Adjustments!Q1174 -> 0 | S66: =Adjustments!R1174 -> 0 | T66: =Adjustments!S1174 -> 0 | U66: =Adjustments!T1174 -> 0 | X66: =Adjustments!V1174 -> -37779.86375 | Y66: -37779.86375 | Z66: 0
A67: 46 | C67: 255 | D67: Deferred Investment Tax Credits | G67: =Adjustments!F1181 -> -175441.5 | H67: =Adjustments!G1181 -> 0 | I67: =Adjustments!H1181 -> 0 | J67: =Adjustments!I1181 -> 0 | K67: =Adjustments!J1181 -> 0 | L67: =Adjustments!K1181 -> 0 | M67: =Adjustments!L1181 -> 0 | N67: =Adjustments!M1181 -> 0 | O67: =Adjustments!N1181 -> 0 | P67: =Adjustments!O1181 -> 0 | Q67: =Adjustments!P1181 -> 0 | R67: =Adjustments!Q1181 -> 0 | S67: =Adjustments!R1181 -> 0 | T67: =Adjustments!S1181 -> 0 | U67: =Adjustments!T1181 -> 0 | X67: =Adjustments!V1181 -> -175441.5 | Y67: -175441.5 | Z67: 0
A68: 47 | C68: 282 | D68: Accum Deferred Income Taxes | G68: =(Adjustments!F1188+Adjustments!F1195+Adjustments!F1199) -> 11397986.31 | H68: =(Adjustments!G1188+Adjustments!G1195+Adjustments!G1199) -> 13637983.5 | I68: =(Adjustments!H1188+Adjustments!H1195+Adjustments!H1199) -> 0 | J68: =(Adjustments!I1188+Adjustments!I1195+Adjustments!I1199) -> 0 | K68: =(Adjustments!J1188+Adjustments!J1195+Adjustments!J1199) -> 0 | L68: =(Adjustments!K1188+Adjustments!K1195+Adjustments!K1199) -> 0 | M68: =(Adjustments!L1188+Adjustments!L1195+Adjustments!L1199) -> 0 | N68: =(Adjustments!M1188+Adjustments!M1195+Adjustments!M1199) -> 0 | O68: =(Adjustments!N1188+Adjustments!N1195+Adjustments!N1199) -> 0 | P68: =(Adjustments!O1188+Adjustments!O1195+Adjustments!O1199) -> 0 | Q68: =(Adjustments!P1188+Adjustments!P1195+Adjustments!P1199) -> 0 | R68: =(Adjustments!Q1188+Adjustments!Q1195+Adjustments!Q1199) -> 0 | S68: =(Adjustments!R1188+Adjustments!R1195+Adjustments!R1199) -> 0 | T68: =(Adjustments!S1188+Adjustments!S1195+Adjustments!S1199) -> 0 | U68: =(Adjustments!T1188+Adjustments!T1195+Adjustments!T1199) -> 0 | X68: =(Adjustments!V1188+Adjustments!V1195+Adjustments!V1199) -> 25035969.81 | Y68: 25035969.81 | Z68: 0
A69: 48 | D69: Working Capital - Cash | G69: =Adjustments!F1237 -> 0 | H69: =Adjustments!G1237 -> 0 | I69: =Adjustments!H1237 -> -292780.8521 | J69: =Adjustments!I1237 -> 0 | K69: =Adjustments!J1237 -> 0 | L69: =Adjustments!K1237 -> 59.65407762 | M69: =Adjustments!L1237 -> -7072.788511 | N69: =Adjustments!M1237 -> -17816.60473 | O69: =Adjustments!N1237 -> -174.9710367 | P69: =Adjustments!O1237 -> -114.4382114 | Q69: =Adjustments!P1237 -> -201.2897711 | R69: =Adjustments!Q1237 -> -956.2712975 | S69: =Adjustments!R1237 -> -191.7779143 | T69: =Adjustments!S1237 -> -2733.574967 | U69: =Adjustments!T1237 -> 19282.65243 | X69: =Adjustments!V1237 -> -302700.2621 | Y69: -302700.2621 | Z69: 0
A70: 49 | C70: Total Other Rate Base Accounts | G70: =SUM(G60:G69) -> -12810212.07 | H70: =SUM(H60:H69) -> 13637983.5 | I70: -292780.8521 | J70: -30912318.52 | K70: 0 | L70: 59.65407762 | M70: -7072.788511 | N70: -17816.60473 | O70: -174.9710367 | P70: -114.4382114 | Q70: -201.2897711 | R70: -956.2712975 | S70: -191.7779143 | T70: -2733.574967 | U70: 19282.65243 | X70: =SUM(X60:X69) -> -30387247.35 | Y70: -30387247.35 | Z70: 0
Y71: 0 | Z71: 0
Y72: 0 | Z72: 0
A73: =+A70+1 -> 50 | B73: TOTAL RATE BASE | G73: =+G57+G70 -> -82953911.68 | H73: =+H57+H70 -> 13637983.5 | I73: -292780.8521 | J73: -30912318.52 | K73: -564872.6718 | L73: 59.65407762 | M73: -7072.788511 | N73: -17816.60473 | O73: -174.9710367 | P73: -114.4382114 | Q73: -201.2897711 | R73: -956.2712975 | S73: -191.7779143 | T73: -2733.574967 | U73: 19282.65243 | X73: =+X57+X70 -> -101095819.6 | Y73: -101095819.6 | Z73: 0

Sheet Deferred Income Taxes
B1: Deferred Income Taxes Adjustment
B2: =+'Control Panel'!$B$1 -> Questar Gas Company
B3: =+'Control Panel'!$B$2 -> Utah - DEC 2011 Adjusted Avg Results
B4: =+'Control Panel'!$B$3 -> 12 Months Ended : Dec-2011
B6: ACCOUNT | C6: DESCRIPTION | F6: HISTORICAL | G6: HISTORICAL | H6: ADJUSTMENT
F7: 13 MONTHS AVG | G7: %
B8: 2820 | C8: Accum Deferred Income Taxes - Federal
C9: Production | F9: =+'Rate Base'!V249 -> -2486491.434 | G9: =+F9/$F$13 -> 0.0113250537 | H9: =+$H$61*G9 -> 154450.8955
C10: Distribution - Wyoming | F10: =+'Rate Base'!V250 -> -7044458.861 | G10: =+F10/$F$13 -> 0.03208491845 | H10: =+$H$61*G10 -> 437573.5884
C11: Distribution - Utah | F11: =+'Rate Base'!V251 -> -208264673.7 | G11: =+F11/$F$13 -> 0.9485689678 | H11: =+$H$61*G11 -> 12936567.93
C12: General | F12: =+'Rate Base'!V252 -> -1761077.481 | G12: =+F12/$F$13 -> 0.008021060025 | H12: =+$H$61*G12 -> 109391.0843
C13: Total | F13: =SUM(F9:F12) -> -219556701.5 | G13: =+F13/$F$13 -> 1 | H13: =SUM(H9:H12) -> 13637983.5
C15: A | E15: B | G15: C | H15: D
C16: Investment (101) | E16: DIT (282) | G16: Net (A - B) | H16: Weighted on Investment
C17: Ending Plant | E17: Ending DIT
B18: 2008-12-01 | C18: 1621808920 | E18: -153179974.8
B19: =EOMONTH(B18,1) -> 2009-01-31 | C19: 1619962604 | E19: -153001971
B20: =EOMONTH(B19,1) -> 2009-02-28 | C20: 1624507418 | E20: -156073461.9
B21: 2009-03-31 | C21: 1626827842 | E21: -157653578.7
B22: 2009-04-30 | C22: 1634626198 | E22: -159240569
B23: 2009-05-31 | C23: 1636115550 | E23: -160976077.4
B24: 2009-06-30 | C24: 1642020224 | E24: -163561970.3
B25: 2009-07-31 | C25: 1647424714 | E25: -165326474.7
B26: 2009-08-31 | C26: 1655335446 | E26: -178163840.1
B27: 2009-09-30 | C27: 1660922465 | E27: -181643439.8
B28: 2009-10-31 | C28: 1664760194 | E28: -183047169
B29: 2009-11-30 | C29: 1667543998 | E29: -190317896.5
B30: 2009-12-31 | C30: 1680561767 | E30: -172962428.7
B31: 2010-01-31 | C31: 1678344952 | E31: -173307234.6
B32: 2010-02-28 | C32: 1683689187 | E32: -173780651.2
B33: 2010-03-31 | C33: 1687684306 | E33: -174190209.4
B34: 2010-04-30 | C34: 1692873346 | E34: -174648514.2
B35: 2010-05-31 | C35: 1695176734 | E35: -175171606.2
B36: 2010-06-30 | C36: 1701352560 | E36: -176363764.2
B37: 2010-07-31 | C37: 1714182605 | E37: -177000459.6
B38: 2010-08-31 | C38: 1718802480 | E38: -179268073.8
B39: =EOMONTH(B38,1) -> 2010-09-30 | C39: 1723818766 | E39: -197388169.8
B40: 2010-10-31 | C40: 1730813068 | E40: -200007131.2
B41: 2010-11-30 | C41: 1751814277 | E41: -208598594.4
A42: 1 | B42: 2010-12-31 | C42: 1761511261 | E42: -214694220.2 | G42: =C42+E42 -> 1546817041 | H42: -214694220.2
A43: 2 | B43: 2011-01-31 | C43: 1761228190 | D43: =(C43-C42)/($C$54-$C$42) -> -0.00269734511 | E43: -218793682.6 | F43: =(E43-E42)/($E$54-$E$42) -> 0.1151437243 | G43: =C43+E43 -> 1542434508 | H43: =H42+($E$54-$E$42)*D43 -> -214598186.6 | I43: =(H43-H42)/($H$54-$H$42) -> -0.00269734511
A44: 3 | B44: 2011-02-28 | C44: 1767728865 | D44: =(C44-C43)/($C$54-$C$42) -> 0.06194402331 | E44: -222956900.7 | F44: 0.1169344619 | G44: 1544771964 | H44: -216803579.9 | I44: =(H44-H43)/($H$54-$H$42) -> 0.06194402331
A45: 4 | B45: 2011-03-31 | C45: 1769846232 | D45: =(C45-C44)/($C$54-$C$42) -> 0.02017610328 | E45: -227374884.4 | F45: 0.1240901975 | G45: 1542471348 | H45: -217521909.8 | I45: =(H45-H44)/($H$54-$H$42) -> 0.02017610328
A46: 5 | B46: 2011-04-30 | C46: 1766188633 | D46: -0.03485275518 | E46: -231761326.9 | F46: 0.1232042824 | G46: 1534427306 | H46: -216281047 | I46: -0.03485275518
A47: 6 | B47: 2011-05-31 | C47: 1769051693 | D47: 0.02728169671 | E47: -236319163.6 | F47: 0.1280183189 | G47: 1532732529 | H47: -217252357.4 | I47: 0.02728169671
A48: 7 | B48: 2011-06-30 | C48: 1777283743 | D48: 0.07844206595 | E48: -240864913.4 | F48: 0.1276788282 | G48: 1536418830 | H48: -220045130.5 | I48: 0.07844206595
A49: 8 | B49: 2011-07-31 | C49: 1790247195 | D49: 0.1235269291 | E49: -245401586.8 | F49: 0.1274238961 | G49: 1544845608 | H49: -224443060.2 | I49: 0.1235269291
A50: 9 | B50: 2011-08-31 | C50: 1826931826 | D50: 0.3495627548 | E50: -250726760.2 | F50: 0.1495709034 | G50: 1576205065 | H50: -236888544.2 | I50: 0.3495627548
A51: 10 | B51: 2011-09-30 | C51: 1812126689 | D51: -0.1410760918 | E51: -255666430.7 | F51: 0.1387430849 | G51: 1556460258 | H51: -231865811.6 | I51: -0.1410760918
A52: 11 | B52: 2011-10-31 | C52: 1819540715 | D52: 0.0706472257 | E52: -249884461.3 | F52: -0.1624011698 | G52: 1569656254 | H52: -234381065 | I52: 0.0706472257
A53: 12 | B53: 2011-11-30 | C53: 1837749874 | D53: 0.1735125494 | E53: -254545016.5 | F53: 0.1309034281 | G53: 1583204858 | H53: -240558632.9 | I53: 0.1735125494
A54: 13 | B54: 2011-12-31 | C54: 1866455597 | D54: 0.2735328439 | E54: -250297223.7 | F54: -0.1193099559 | G54: 1616158373 | H54: -250297223.7 | I54: 0.2735328439
A55: 14 | B55: Average 2011 | C55: =((C54/2)+(C42/2)+SUM(C43:C53))/12 -> 1792658924 | E55: =((E54/2)+(E42/2)+SUM(E43:E53))/12 -> -238899237.4 | G55: =((H54/2)+(H42/2)+SUM(H43:H53))/12 -> -225261253.9 | I55: =C55+E55 -> 1553759686
C58: 13 M Avg
C59: Ending | H59: =((E54/2)+(E42/2)+SUM(E43:E53))/12 -> -238899237.4
C60: Weighted on Investment | H60: =((H54/2)+(H42/2)+SUM(H43:H53))/12 -> -225261253.9
C61: Adjustment to 282 | H61: =+H60-H59 -> 13637983.5

Sheet Adjustments
A1: ='Control Panel'!$B$1 -> Questar Gas Company | F1: =IF(F8="Y",1,0) -> 1 | G1: =IF(G8="Y",1,0) -> 1 | H1: 1 | I1: 1 | J1: 1 | K1: 1 | L1: 1 | M1: 1 | N1: 1 | O1: 1 | P1: 1 | Q1: 1 | R1: 1 | S1: 1 | T1: 1
A2: ='Control Panel'!$B$2 -> Utah - DEC 2011 Adjusted Avg Results
A3: ='Control Panel'!$B$3 -> 12 Months Ended : Dec-2011
A4: FILLED AND EXTERNAL PARTY ADJUSTMENTS
F6: 1 | G6: =+F6+1 -> 2 | H6: =+G6+1 -> 3 | I6: 4 | J6: 5 | K6: 6 | L6: 7 | M6: 8 | N6: 9 | O6: 10 | P6: 11 | Q6: 12 | R6: 13 | S6: 14 | T6: 15
F8: =VLOOKUP(F$6,'Control Panel'!$A$8:$F$58,5) -> Y | G8: =VLOOKUP(G$6,'Control Panel'!$A$8:$F$58,5) -> y | H8: =VLOOKUP(H$6,'Control Panel'!$A$8:$F$58,5) -> Y | I8: =VLOOKUP(I$6,'Control Panel'!$A$8:$F$58,5) -> Y | J8: =VLOOKUP(J$6,'Control Panel'!$A$8:$F$58,5) -> Y | K8: =VLOOKUP(K$6,'Control Panel'!$A$8:$F$58,5) -> Y | L8: =VLOOKUP(L$6,'Control Panel'!$A$8:$F$58,5) -> Y | M8: =VLOOKUP(M$6,'Control Panel'!$A$8:$F$58,5) -> Y | N8: =VLOOKUP(N$6,'Control Panel'!$A$8:$F$58,5) -> Y | O8: =VLOOKUP(O$6,'Control Panel'!$A$8:$F$58,5) -> Y | P8: =VLOOKUP(P$6,'Control Panel'!$A$8:$F$58,5) -> Y | Q8: =VLOOKUP(Q$6,'Control Panel'!$A$8:$F$58,5) -> Y | R8: =VLOOKUP(R$6,'Control Panel'!$A$8:$F$58,5) -> Y | S8: =VLOOKUP(S$6,'Control Panel'!$A$8:$F$58,5) -> Y | T8: =VLOOKUP(T$6,'Control Panel'!$A$8:$F$58,5) -> Y
A9: FERC Acct | C9: Description | F9: =VLOOKUP(F$6,Adjustments,2) -> AVG RB DEC 2011 | G9: Deferred Income Taxes | H9: Energy Efficiency Services Adjustment | I9: Underground Storage | J9: Wexpro | K9: Oak City RevenueQGC | L9: UTAH Bad Debt | M9: QGC Incentives | N9: QGC Stock Incentives | O9: QGC Sporting Events | P9: QGC Advertising | Q9: QGC Don & Membership | R9: QGC Reserve accrual | S9: QGC State Tax | T9: QGC Labor Adj | V9: TOTAL QGC ADJUSTMENTS | X9: RESULTING TOTAL | Y9: CHECKS MUST BE (0)
A10: UTILITY OPERATING REVENUE
A11: TARIFF DTH SALES AND REVENUE
A15: Utah
B16: GS-R | C16: Distribution Non-Gas Rev | H16: =H1*Revenue!$K$15 -> 0 | K16: =OakCity!F23*K1 -> 21330 | V16: =SUM(F16:T16) -> 21330 | X16: =SUM(V16:V16) -> 21330 | Y16: =+X16-'ROR-Model'!G16 -> 0
Y17: =+X17-'ROR-Model'!G17 -> 0
C18: Supplier Non-Gas Revenue | H18: =H1*Revenue!$K$17 -> 0 | V18: =SUM(F18:T18) -> 0 | X18: =SUM(V18:V18) -> 0 | Y18: =+X18-'ROR-Model'!G18 -> 0
Y19: =+X19-'ROR-Model'!G19 -> 0
C20: Commodity Revenue | H20: =H1*Revenue!$K$19 -> 0 | V20: =SUM(F20:T20) -> 0 | X20: =SUM(V20:V20) -> 0 | Y20: =+X20-'ROR-Model'!G20 -> 0
C21: Total Revenue | F21: =SUM(F16:F20) -> 0 | G21: =SUM(G16:G20) -> 0 | H21: =H1*SUM(H16:H20) -> 0 | I21: =SUM(I16:I20) -> 0 | J21: =SUM(J16:J20) -> 0 | K21: 21330 | L21: 0 | M21: 0 | N21: 0 | O21: 0 | P21: 0 | Q21: 0 | R21: =SUM(R16:R20) -> 0 | S21: =SUM(S16:S20) -> 0 | T21: =SUM(T16:T20) -> 0 | V21: =SUM(F21:T21) -> 21330 | X21: =SUM(V21:V21) -> 21330 | Y21: =+X21-'ROR-Model'!G21 -> 0
Y22: =+X22-'ROR-Model'!G22 -> 0
C23: Total Dth | H23: =H1*Revenue!$K$22 -> 0 | V23: =SUM(F23:T23) -> 0 | X23: =SUM(V23:V23) -> 0 | Y23: =+X23-'ROR-Model'!G23 -> 0
Y24: =+X24-'ROR-Model'!G24 -> 0
B25: GS-C | C25: Distribution Non-Gas Rev | H25: =H1*Revenue!$K$24 -> 0 | V25: =SUM(F25:T25) -> 0 | X25: =SUM(V25:V25) -> 0 | Y25: =+X25-'ROR-Model'!G25 -> 0
Y26: =+X26-'ROR-Model'!G26 -> 0
C27: Supplier Non-Gas Revenue | H27: =H1*Revenue!$K$26 -> 0 | V27: =SUM(F27:T27) -> 0 | X27: =SUM(V27:V27) -> 0 | Y27: =+X27-'ROR-Model'!G27 -> 0
Y28: =+X28-'ROR-Model'!G28 -> 0
C29: Commodity Revenue | H29: =H1*Revenue!$K$28 -> 0 | V29: =SUM(F29:T29) -> 0 | X29: =SUM(V29:V29) -> 0 | Y29: =+X29-'ROR-Model'!G29 -> 0
C30: Total Revenue | F30: =SUM(F25:F29) -> 0 | G30: =SUM(G25:G29) -> 0 | H30: =H1*SUM(H25:H29) -> 0 | I30: =SUM(I25:I29) -> 0 | J30: =SUM(J25:J29) -> 0 | K30: 0 | L30: 0 | M30: 0 | N30: 0 | O30: 0 | P30: 0 | Q30: 0 | R30: =SUM(R25:R29) -> 0 | S30: =SUM(S25:S29) -> 0 | T30: =SUM(T25:T29) -> 0 | V30: =SUM(F30:T30) -> 0 | X30: =SUM(V30:V30) -> 0 | Y30: =+X30-'ROR-Model'!G30 -> 0
Y31: =+X31-'ROR-Model'!G31 -> 0
C32: Total Dth | H32: =H1*Revenue!$K$31 -> 0 | V32: =SUM(F32:T32) -> 0 | X32: =SUM(V32:V32) -> 0 | Y32: =+X32-'ROR-Model'!G32 -> 0
Y33: =+X33-'ROR-Model'!G33 -> 0
B34: GSS | C34: Distribution Non-Gas Rev | H34: =H1*Revenue!$K$33 -> 0 | V34: =SUM(F34:T34) -> 0 | X34: =SUM(V34:V34) -> 0 | Y34: =+X34-'ROR-Model'!G34 -> 0
Y35: =+X35-'ROR-Model'!G35 -> 0
C36: Supplier Non-Gas Revenue | H36: =H1*Revenue!$K$35 -> 0 | V36: =SUM(F36:T36) -> 0 | X36: =SUM(V36:V36) -> 0 | Y36: =+X36-'ROR-Model'!G36 -> 0
Y37: =+X37-'ROR-Model'!G37 -> 0
C38: Commodity Revenue | H38: =H1*Revenue!$K$37 -> 0 | V38: =SUM(F38:T38) -> 0 | X38: =SUM(V38:V38) -> 0 | Y38: =+X38-'ROR-Model'!G38 -> 0
C39: Total Revenue | F39: =SUM(F34:F38) -> 0 | G39: =SUM(G34:G38) -> 0 | H39: =H1*SUM(H34:H38) -> 0 | I39: =SUM(I34:I38) -> 0 | J39: =SUM(J34:J38) -> 0 | K39: 0 | L39: 0 | M39: 0 | N39: 0 | O39: 0 | P39: 0 | Q39: 0 | R39: =SUM(R34:R38) -> 0 | S39: =SUM(S34:S38) -> 0 | T39: =SUM(T34:T38) -> 0 | V39: =SUM(F39:T39) -> 0 | X39: =SUM(V39:V39) -> 0 | Y39: =+X39-'ROR-Model'!G39 -> 0
Y40: =+X40-'ROR-Model'!G40 -> 0
C41: Total Dth | H41: =H1*Revenue!$K$40 -> 0 | V41: =SUM(F41:T41) -> 0 | X41: =SUM(V41:V41) -> 0 | Y41: =+X41-'ROR-Model'!G41 -> 0
Y42: =+X42-'ROR-Model'!G42 -> 0
B43: F-1 | C43: Distribution Non-Gas Rev | H43: =H1*Revenue!$K$42 -> 0 | V43: =SUM(F43:T43) -> 0 | X43: =SUM(V43:V43) -> 0 | Y43: =+X43-'ROR-Model'!G43 -> 0
Y44: =+X44-'ROR-Model'!G44 -> 0
C45: Supplier Non-Gas Revenue | H45: =H1*Revenue!$K$44 -> 0 | V45: =SUM(F45:T45) -> 0 | X45: =SUM(V45:V45) -> 0 | Y45: =+X45-'ROR-Model'!G45 -> 0
Y46: =+X46-'ROR-Model'!G46 -> 0
C47: Commodity Revenue | H47: =H1*Revenue!$K$46 -> 0 | V47: =SUM(F47:T47) -> 0 | X47: =SUM(V47:V47) -> 0 | Y47: =+X47-'ROR-Model'!G47 -> 0
C48: Total Revenue | F48: =SUM(F43:F47) -> 0 | G48: =SUM(G43:G47) -> 0 | H48: =H1*SUM(H43:H47) -> 0 | I48: =SUM(I43:I47) -> 0 | J48: =SUM(J43:J47) -> 0 | K48: 0 | L48: 0 | M48: 0 | N48: 0 | O48: 0 | P48: 0 | Q48: 0 | R48: =SUM(R43:R47) -> 0 | S48: =SUM(S43:S47) -> 0 | T48: =SUM(T43:T47) -> 0 | V48: =SUM(V43:V47) -> 0 | X48: =SUM(X43:X47) -> 0 | Y48: =+X48-'ROR-Model'!G48 -> 0
Y49: =+X49-'ROR-Model'!G49 -> 0
C50: Total Dth | H50: =H1*Revenue!$K$49 -> 0 | V50: =SUM(F50:T50) -> 0 | X50: =SUM(V50:V50) -> 0 | Y50: =+X50-'ROR-Model'!G50 -> 0
Y51: =+X51-'ROR-Model'!G51 -> 0
B52: F-3 | C52: Distribution Non-Gas Rev | H52: =H1*Revenue!$K$51 -> 0 | V52: =SUM(F52:T52) -> 0 | X52: =SUM(V52:V52) -> 0 | Y52: =+X52-'ROR-Model'!G52 -> 0
C53: Supplier Non-Gas Revenue | V53: =SUM(F53:T53) -> 0 | X53: =SUM(V53:V53) -> 0 | Y53: =+X53-'ROR-Model'!G53 -> 0
C54: Supplier Non-Gas Demand Revenue | H54: =H1*Revenue!$K$53 -> 0 | V54: =SUM(F54:T54) -> 0 | X54: =SUM(V54:V54) -> 0 | Y54: =+X54-'ROR-Model'!G54 -> 0
C55: Commodity Tariff Revenue | V55: =SUM(F55:T55) -> 0 | X55: =SUM(V55:V55) -> 0 | Y55: =+X55-'ROR-Model'!G55 -> 0
C56: Commodity Demand Revenue | H56: =H1*Revenue!$K$55 -> 0 | V56: =SUM(F56:T56) -> 0 | X56: =SUM(V56:V56) -> 0 | Y56: =+X56-'ROR-Model'!G56 -> 0
C57: Total Revenue | F57: =SUM(F52:F56) -> 0 | G57: =SUM(G52:G56) -> 0 | H57: =H1*SUM(H52:H56) -> 0 | I57: =SUM(I52:I56) -> 0 | J57: =SUM(J52:J56) -> 0 | K57: 0 | L57: 0 | M57: 0 | N57: 0 | O57: 0 | P57: 0 | Q57: 0 | R57: =SUM(R52:R56) -> 0 | S57: =SUM(S52:S56) -> 0 | T57: =SUM(T52:T56) -> 0 | V57: =SUM(V52:V56) -> 0 | X57: =SUM(X52:X56) -> 0 | Y57: =+X57-'ROR-Model'!G57 -> 0
Y58: =+X58-'ROR-Model'!G58 -> 0
C59: Total Sales Dth | H59: =H1*Revenue!$K$58 -> 0 | V59: =SUM(F59:T59) -> 0 | X59: =SUM(V59:V59) -> 0 | Y59: =+X59-'ROR-Model'!G59 -> 0
Y60: =+X60-'ROR-Model'!G60 -> 0
B61: NGV | C61: Distribution Non-Gas Rev | H61: =H1*Revenue!$K$60 -> 0 | V61: =SUM(F61:T61) -> 0 | X61: =SUM(V61:V61) -> 0 | Y61: =+X61-'ROR-Model'!G61 -> 0
H62: =H1*Revenue!$K$61 -> 0 | Y62: =+X62-'ROR-Model'!G62 -> 0
C63: Supplier Non-Gas Revenue | H63: =H1*Revenue!$K$62 -> 0 | V63: =SUM(F63:T63) -> 0 | X63: =SUM(V63:V63) -> 0 | Y63: =+X63-'ROR-Model'!G63 -> 0
H64: =H1*Revenue!$K$63 -> 0 | Y64: =+X64-'ROR-Model'!G64 -> 0
C65: Commodity Revenue | H65: =H1*Revenue!$K$64 -> 0 | V65: =SUM(F65:T65) -> 0 | X65: =SUM(V65:V65) -> 0 | Y65: =+X65-'ROR-Model'!G65 -> 0
C66: Total Revenue | F66: =SUM(F61:F65) -> 0 | G66: =SUM(G61:G65) -> 0 | H66: =H1*SUM(H61:H65) -> 0 | I66: =SUM(I61:I65) -> 0 | J66: =SUM(J61:J65) -> 0 | K66: 0 | L66: 0 | M66: 0 | N66: 0 | O66: 0 | P66: 0 | Q66: 0 | R66: =SUM(R61:R65) -> 0 | S66: =SUM(S61:S65) -> 0 | T66: =SUM(T61:T65) -> 0 | V66: =SUM(V61:V65) -> 0 | X66: =SUM(X61:X65) -> 0 | Y66: =+X66-'ROR-Model'!G66 -> 0
Y67: =+X67-'ROR-Model'!G67 -> 0
C68: Total Dth | H68: =H1*Revenue!$K$67 -> 0 | V68: =SUM(F68:T68) -> 0 | X68: =SUM(V68:V68) -> 0 | Y68: =+X68-'ROR-Model'!G68 -> 0
Y69: =+X69-'ROR-Model'!G69 -> 0
B70: F-4 | C70: Distribution Non-Gas Rev | H70: =H1*Revenue!$K$69 -> 0 | V70: =SUM(F70:T70) -> 0 | X70: =SUM(V70:V70) -> 0 | Y70: =+X70-'ROR-Model'!G70 -> 0
Y71: =+X71-'ROR-Model'!G71 -> 0
C72: Supplier Non-Gas Revenue | H72: =H1*Revenue!$K$71 -> 0 | V72: =SUM(F72:T72) -> 0 | X72: =SUM(V72:V72) -> 0 | Y72: =+X72-'ROR-Model'!G72 -> 0
Y73: =+X73-'ROR-Model'!G73 -> 0
C74: Commodity Revenue | H74: =H1*Revenue!$K$73 -> 0 | V74: =SUM(F74:T74) -> 0 | X74: =SUM(V74:V74) -> 0 | Y74: =+X74-'ROR-Model'!G74 -> 0
C75: Total Revenue | F75: =SUM(F70:F74) -> 0 | G75: =SUM(G70:G74) -> 0 | H75: =H1*SUM(H70:H74) -> 0 | I75: =SUM(I70:I74) -> 0 | J75: =SUM(J70:J74) -> 0 | K75: 0 | L75: 0 | M75: 0 | N75: 0 | O75: 0 | P75: 0 | Q75: 0 | R75: =SUM(R70:R74) -> 0 | S75: =SUM(S70:S74) -> 0 | T75: =SUM(T70:T74) -> 0 | V75: =SUM(V70:V74) -> 0 | X75: =SUM(X70:X74) -> 0 | Y75: =+X75-'ROR-Model'!G75 -> 0
Y76: =+X76-'ROR-Model'!G76 -> 0
C77: Total Dth | H77: =H1*Revenue!$K$76 -> 0 | V77: =SUM(F77:T77) -> 0 | X77: =SUM(V77:V77) -> 0 | Y77: =+X77-'ROR-Model'!G77 -> 0
Y78: =+X78-'ROR-Model'!G78 -> 0
B79: I-2 | C79: Distribution Non-Gas Rev | H79: =H1*Revenue!$K$78 -> 0 | V79: =SUM(F79:T79) -> 0 | X79: =SUM(V79:V79) -> 0 | Y79: =+X79-'ROR-Model'!G79 -> 0
Y80: =+X80-'ROR-Model'!G80 -> 0
C81: Supplier Non-Gas Revenue | H81: =H1*Revenue!$K$80 -> 0 | V81: =SUM(F81:T81) -> 0 | X81: =SUM(V81:V81) -> 0 | Y81: =+X81-'ROR-Model'!G81 -> 0
Y82: =+X82-'ROR-Model'!G82 -> 0
C83: Commodity Revenue | H83: =H1*Revenue!$K$82 -> 0 | V83: =SUM(F83:T83) -> 0 | X83: =SUM(V83:V83) -> 0 | Y83: =+X83-'ROR-Model'!G83 -> 0
C84: Total Revenue | F84: =SUM(F79:F83) -> 0 | G84: =SUM(G79:G83) -> 0 | H84: =H1*SUM(H79:H83) -> 0 | I84: =SUM(I79:I83) -> 0 | J84: =SUM(J79:J83) -> 0 | K84: 0 | L84: 0 | M84: 0 | N84: 0 | O84: 0 | P84: 0 | Q84: 0 | R84: =SUM(R79:R83) -> 0 | S84: =SUM(S79:S83) -> 0 | T84: =SUM(T79:T83) -> 0 | V84: =SUM(V79:V83) -> 0 | X84: =SUM(X79:X83) -> 0 | Y84: =+X84-'ROR-Model'!G84 -> 0
Y85: =+X85-'ROR-Model'!G85 -> 0
C86: Total Dth | H86: =H1*Revenue!$K$85 -> 0 | V86: =SUM(F86:T86) -> 0 | X86: =SUM(V86:V86) -> 0 | Y86: =+X86-'ROR-Model'!G86 -> 0
Y87: =+X87-'ROR-Model'!G87 -> 0
B88: I-4 | C88: Distribution Non-Gas Rev | H88: =H1*Revenue!$K$87 -> 0 | V88: =SUM(F88:T88) -> 0 | X88: =SUM(V88:V88) -> 0 | Y88: =+X88-'ROR-Model'!G88 -> 0
Y89: =+X89-'ROR-Model'!G89 -> 0
C90: Supplier Non-Gas Revenue | H90: =H1*Revenue!$K$89 -> 0 | V90: =SUM(F90:T90) -> 0 | X90: =SUM(V90:V90) -> 0 | Y90: =+X90-'ROR-Model'!G90 -> 0
Y91: =+X91-'ROR-Model'!G91 -> 0
C92: Commodity Revenue | H92: =H1*Revenue!$K$91 -> 0 | V92: =SUM(F92:T92) -> 0 | X92: =SUM(V92:V92) -> 0 | Y92: =+X92-'ROR-Model'!G92 -> 0
C93: Total Revenue | F93: =SUM(F88:F92) -> 0 | G93: =SUM(G88:G92) -> 0 | H93: =H1*SUM(H88:H92) -> 0 | I93: =SUM(I88:I92) -> 0 | J93: =SUM(J88:J92) -> 0 | K93: 0 | L93: 0 | M93: 0 | N93: 0 | O93: 0 | P93: 0 | Q93: 0 | R93: =SUM(R88:R92) -> 0 | S93: =SUM(S88:S92) -> 0 | T93: =SUM(T88:T92) -> 0 | V93: =SUM(V88:V92) -> 0 | X93: =SUM(X88:X92) -> 0 | Y93: =+X93-'ROR-Model'!G93 -> 0
Y94: =+X94-'ROR-Model'!G94 -> 0
C95: Total Dth | H95: =H1*Revenue!$K$94 -> 0 | V95: =SUM(F95:T95) -> 0 | X95: =SUM(V95:V95) -> 0 | Y95: =+X95-'ROR-Model'!G95 -> 0
Y96: =+X96-'ROR-Model'!G96 -> 0
B97: IS-2 | C97: Distribution Non-Gas Rev | H97: =H1*Revenue!$K$96 -> 0 | V97: =SUM(F97:T97) -> 0 | X97: =SUM(V97:V97) -> 0 | Y97: =+X97-'ROR-Model'!G97 -> 0
Y98: =+X98-'ROR-Model'!G98 -> 0
C99: Supplier Non-Gas Revenue | H99: =H1*Revenue!$K$98 -> 0 | V99: =SUM(F99:T99) -> 0 | X99: =SUM(V99:V99) -> 0 | Y99: =+X99-'ROR-Model'!G99 -> 0
Y100: =+X100-'ROR-Model'!G100 -> 0
C101: Commodity Revenue | H101: =H1*Revenue!$K$100 -> 0 | V101: =SUM(F101:T101) -> 0 | X101: =SUM(V101:V101) -> 0 | Y101: =+X101-'ROR-Model'!G101 -> 0
C102: Total Revenue | F102: =SUM(F97:F101) -> 0 | G102: =SUM(G97:G101) -> 0 | H102: =H1*SUM(H97:H101) -> 0 | I102: =SUM(I97:I101) -> 0 | J102: =SUM(J97:J101) -> 0 | K102: 0 | L102: 0 | M102: 0 | N102: 0 | O102: 0 | P102: 0 | Q102: 0 | R102: =SUM(R97:R101) -> 0 | S102: =SUM(S97:S101) -> 0 | T102: =SUM(T97:T101) -> 0 | V102: =SUM(V97:V101) -> 0 | X102: =SUM(X97:X101) -> 0 | Y102: =+X102-'ROR-Model'!G102 -> 0
Y103: =+X103-'ROR-Model'!G103 -> 0
C104: Total Dth | H104: =H1*Revenue!$K$103 -> 0 | V104: =SUM(F104:T104) -> 0 | X104: =SUM(V104:V104) -> 0 | Y104: =+X104-'ROR-Model'!G104 -> 0
Y105: =+X105-'ROR-Model'!G105 -> 0
B106: IS-4 | C106: Distribution Non-Gas Rev | H106: =H1*Revenue!$K$105 -> 0 | V106: =SUM(F106:T106) -> 0 | X106: =SUM(V106:V106) -> 0 | Y106: =+X106-'ROR-Model'!G106 -> 0
Y107: =+X107-'ROR-Model'!G107 -> 0
C108: Supplier Non-Gas Revenue | H108: =H1*Revenue!$K$107 -> 0 | V108: =SUM(F108:T108) -> 0 | X108: =SUM(V108:V108) -> 0 | Y108: =+X108-'ROR-Model'!G108 -> 0
Y109: =+X109-'ROR-Model'!G109 -> 0
C110: Commodity Revenue | H110: =H1*Revenue!$K$109 -> 0 | V110: =SUM(F110:T110) -> 0 | X110: =SUM(V110:V110) -> 0 | Y110: =+X110-'ROR-Model'!G110 -> 0
C111: Total Revenue | F111: =SUM(F106:F110) -> 0 | G111: =SUM(G106:G110) -> 0 | H111: =H1*SUM(H106:H110) -> 0 | I111: =SUM(I106:I110) -> 0 | J111: =SUM(J106:J110) -> 0 | K111: 0 | L111: 0 | M111: 0 | N111: 0 | O111: 0 | P111: 0 | Q111: 0 | R111: =SUM(R106:R110) -> 0 | S111: =SUM(S106:S110) -> 0 | T111: =SUM(T106:T110) -> 0 | V111: =SUM(V106:V110) -> 0 | X111: =SUM(X106:X110) -> 0 | Y111: =+X111-'ROR-Model'!G111 -> 0
Y112: =+X112-'ROR-Model'!G112 -> 0
C113: Total Dth | H113: =H1*Revenue!$K$112 -> 0 | V113: =SUM(F113:T113) -> 0 | X113: =SUM(V113:V113) -> 0 | Y113: =+X113-'ROR-Model'!G113 -> 0
Y114: =+X114-'ROR-Model'!G114 -> 0
B115: FT1-L | C115: Distribution Non-Gas Rev | H115: =H1*Revenue!$K$114 -> 0 | V115: =SUM(F115:T115) -> 0 | X115: =SUM(V115:V115) -> 0 | Y115: =+X115-'ROR-Model'!G115 -> 0
Y116: =+X116-'ROR-Model'!G116 -> 0
C117: Supplier Non-Gas Revenue | H117: =H1*Revenue!$K$116 -> 0 | V117: =SUM(F117:T117) -> 0 | X117: =SUM(V117:V117) -> 0 | Y117: =+X117-'ROR-Model'!G117 -> 0
Y118: =+X118-'ROR-Model'!G118 -> 0
C119: Commodity Revenue | H119: =H1*Revenue!$K$118 -> 0 | V119: =SUM(F119:T119) -> 0 | X119: =SUM(V119:V119) -> 0 | Y119: =+X119-'ROR-Model'!G119 -> 0
C120: Total Revenue | F120: =SUM(F115:F119) -> 0 | G120: =SUM(G115:G119) -> 0 | H120: =H1*SUM(H115:H119) -> 0 | I120: =SUM(I115:I119) -> 0 | J120: =SUM(J115:J119) -> 0 | K120: 0 | L120: 0 | M120: 0 | N120: 0 | O120: 0 | P120: 0 | Q120: 0 | R120: =SUM(R115:R119) -> 0 | S120: =SUM(S115:S119) -> 0 | T120: =SUM(T115:T119) -> 0 | V120: =SUM(V115:V119) -> 0 | X120: =SUM(X115:X119) -> 0 | Y120: =+X120-'ROR-Model'!G120 -> 0
Y121: =+X121-'ROR-Model'!G121 -> 0
C122: Total Dth | H122: =H1*Revenue!$K$121 -> 0 | V122: =SUM(F122:T122) -> 0 | X122: =SUM(V122:V122) -> 0 | Y122: =+X122-'ROR-Model'!G122 -> 0
Y123: =+X123-'ROR-Model'!G123 -> 0
B124: FT-1 | C124: Distribution Non-Gas Rev | H124: =H1*Revenue!$K$123 -> 0 | V124: =SUM(F124:T124) -> 0 | X124: =SUM(V124:V124) -> 0 | Y124: =+X124-'ROR-Model'!G124 -> 0
Y125: =+X125-'ROR-Model'!G125 -> 0
C126: Supplier Non-Gas Revenue | H126: =H1*Revenue!$K$125 -> 0 | V126: =SUM(F126:T126) -> 0 | X126: =SUM(V126:V126) -> 0 | Y126: =+X126-'ROR-Model'!G126 -> 0
Y127: =+X127-'ROR-Model'!G127 -> 0
C128: Commodity Revenue | H128: =H1*Revenue!$K$127 -> 0 | V128: =SUM(F128:T128) -> 0 | X128: =SUM(V128:V128) -> 0 | Y128: =+X128-'ROR-Model'!G128 -> 0
C129: Total Revenue | F129: =SUM(F124:F128) -> 0 | G129: =SUM(G124:G128) -> 0 | H129: =H1*SUM(H124:H128) -> 0 | I129: =SUM(I124:I128) -> 0 | J129: =SUM(J124:J128) -> 0 | K129: 0 | L129: 0 | M129: 0 | N129: 0 | O129: 0 | P129: 0 | Q129: 0 | R129: =SUM(R124:R128) -> 0 | S129: =SUM(S124:S128) -> 0 | T129: =SUM(T124:T128) -> 0 | V129: =SUM(V124:V128) -> 0 | X129: =SUM(X124:X128) -> 0 | Y129: =+X129-'ROR-Model'!G129 -> 0
Y130: =+X130-'ROR-Model'!G130 -> 0
C131: Total Dth | H131: =H1*Revenue!$K$130 -> 0 | V131: =SUM(F131:T131) -> 0 | X131: =SUM(V131:V131) -> 0 | Y131: =+X131-'ROR-Model'!G131 -> 0
Y132: =+X132-'ROR-Model'!G132 -> 0
B133: FT-2 | C133: Distribution Non-Gas Rev | H133: =H1*Revenue!$K$132 -> 0 | V133: =SUM(F133:T133) -> 0 | X133: =SUM(V133:V133) -> 0 | Y133: =+X133-'ROR-Model'!G133 -> 0
Y134: =+X134-'ROR-Model'!G134 -> 0
C135: Supplier Non-Gas Revenue | H135: =H1*Revenue!$K$134 -> 0 | V135: =SUM(F135:T135) -> 0 | X135: =SUM(V135:V135) -> 0 | Y135: =+X135-'ROR-Model'!G135 -> 0
Y136: =+X136-'ROR-Model'!G136 -> 0
C137: Commodity Revenue | H137: =H1*Revenue!$K$136 -> 0 | V137: =SUM(F137:T137) -> 0 | X137: =SUM(V137:V137) -> 0 | Y137: =+X137-'ROR-Model'!G137 -> 0
C138: Total Revenue | F138: =SUM(F133:F137) -> 0 | G138: =SUM(G133:G137) -> 0 | H138: =H1*SUM(H133:H137) -> 0 | I138: =SUM(I133:I137) -> 0 | J138: =SUM(J133:J137) -> 0 | K138: 0 | L138: 0 | M138: 0 | N138: 0 | O138: 0 | P138: 0 | Q138: 0 | R138: =SUM(R133:R137) -> 0 | S138: =SUM(S133:S137) -> 0 | T138: =SUM(T133:T137) -> 0 | V138: =SUM(V133:V137) -> 0 | X138: =SUM(X133:X137) -> 0 | Y138: =+X138-'ROR-Model'!G138 -> 0
Y139: =+X139-'ROR-Model'!G139 -> 0
C140: Total Dth | H140: =H1*Revenue!$K$139 -> 0 | V140: =SUM(F140:T140) -> 0 | X140: =SUM(V140:V140) -> 0 | Y140: =+X140-'ROR-Model'!G140 -> 0
Y141: =+X141-'ROR-Model'!G141 -> 0
B142: MT | C142: Distribution Non-Gas Rev | H142: =H1*Revenue!$K$141 -> 0 | V142: =SUM(F142:T142) -> 0 | X142: =SUM(V142:V142) -> 0 | Y142: =+X142-'ROR-Model'!G142 -> 0
Y143: =+X143-'ROR-Model'!G143 -> 0
C144: Supplier Non-Gas Revenue | H144: =H1*Revenue!$K$143 -> 0 | V144: =SUM(F144:T144) -> 0 | X144: =SUM(V144:V144) -> 0 | Y144: =+X144-'ROR-Model'!G144 -> 0
Y145: =+X145-'ROR-Model'!G145 -> 0
C146: Commodity Revenue | H146: =H1*Revenue!$K$145 -> 0 | V146: =SUM(F146:T146) -> 0 | X146: =SUM(V146:V146) -> 0 | Y146: =+X146-'ROR-Model'!G146 -> 0
C147: Total Revenue | F147: =SUM(F142:F146) -> 0 | G147: =SUM(G142:G146) -> 0 | H147: =H1*SUM(H142:H146) -> 0 | I147: =SUM(I142:I146) -> 0 | J147: =SUM(J142:J146) -> 0 | K147: 0 | L147: 0 | M147: 0 | N147: 0 | O147: 0 | P147: 0 | Q147: 0 | R147: =SUM(R142:R146) -> 0 | S147: =SUM(S142:S146) -> 0 | T147: =SUM(T142:T146) -> 0 | V147: =SUM(V142:V146) -> 0 | X147: =SUM(X142:X146) -> 0 | Y147: =+X147-'ROR-Model'!G147 -> 0
Y148: =+X148-'ROR-Model'!G148 -> 0
C149: Total Dth | H149: =H1*Revenue!$K$148 -> 0 | V149: =SUM(F149:T149) -> 0 | X149: =SUM(V149:V149) -> 0 | Y149: =+X149-'ROR-Model'!G149 -> 0
Y150: =+X150-'ROR-Model'!G150 -> 0
B151: FT-E | C151: Distribution Non-Gas Rev | H151: =H1*Revenue!$K$150 -> 0 | V151: =SUM(F151:T151) -> 0 | X151: =SUM(V151:V151) -> 0 | Y151: =+X151-'ROR-Model'!G151 -> 0
Y152: =+X152-'ROR-Model'!G152 -> 0
C153: Supplier Non-Gas Revenue | H153: =H1*Revenue!$K$152 -> 0 | V153: =SUM(F153:T153) -> 0 | X153: =SUM(V153:V153) -> 0 | Y153: =+X153-'ROR-Model'!G153 -> 0
Y154: =+X154-'ROR-Model'!G154 -> 0
C155: Commodity Revenue | H155: =H1*Revenue!$K$154 -> 0 | V155: =SUM(F155:T155) -> 0 | X155: =SUM(V155:V155) -> 0 | Y155: =+X155-'ROR-Model'!G155 -> 0
C156: Total Revenue | F156: =SUM(F151:F155) -> 0 | G156: =SUM(G151:G155) -> 0 | H156: =H1*SUM(H151:H155) -> 0 | I156: =SUM(I151:I155) -> 0 | J156: =SUM(J151:J155) -> 0 | K156: 0 | L156: 0 | M156: 0 | N156: 0 | O156: 0 | P156: 0 | Q156: 0 | R156: =SUM(R151:R155) -> 0 | S156: =SUM(S151:S155) -> 0 | T156: =SUM(T151:T155) -> 0 | V156: =SUM(V151:V155) -> 0 | X156: =SUM(X151:X155) -> 0 | Y156: =+X156-'ROR-Model'!G156 -> 0
Y157: =+X157-'ROR-Model'!G157 -> 0
C158: Total Dth | H158: =H1*Revenue!$K$157 -> 0 | V158: =SUM(F158:T158) -> 0 | X158: =SUM(V158:V158) -> 0 | Y158: =+X158-'ROR-Model'!G158 -> 0
Y159: =+X159-'ROR-Model'!G159 -> 0
B160: IT | C160: Distribution Non-Gas Rev | H160: =H1*Revenue!$K$159 -> 0 | V160: =SUM(F160:T160) -> 0 | X160: =SUM(V160:V160) -> 0 | Y160: =+X160-'ROR-Model'!G160 -> 0
Y161: =+X161-'ROR-Model'!G161 -> 0
C162: Supplier Non-Gas Revenue | H162: =H1*Revenue!$K$161 -> 0 | V162: =SUM(F162:T162) -> 0 | X162: =SUM(V162:V162) -> 0 | Y162: =+X162-'ROR-Model'!G162 -> 0
Y163: =+X163-'ROR-Model'!G163 -> 0
C164: Commodity Revenue | H164: =H1*Revenue!$K$163 -> 0 | V164: =SUM(F164:T164) -> 0 | X164: =SUM(V164:V164) -> 0 | Y164: =+X164-'ROR-Model'!G164 -> 0
C165: Total Revenue | F165: =SUM(F160:F164) -> 0 | G165: =SUM(G160:G164) -> 0 | H165: =H1*SUM(H160:H164) -> 0 | I165: =SUM(I160:I164) -> 0 | J165: =SUM(J160:J164) -> 0 | K165: 0 | L165: 0 | M165: 0 | N165: 0 | O165: 0 | P165: 0 | Q165: 0 | R165: =SUM(R160:R164) -> 0 | S165: =SUM(S160:S164) -> 0 | T165: =SUM(T160:T164) -> 0 | V165: =SUM(V160:V164) -> 0 | X165: =SUM(X160:X164) -> 0 | Y165: =+X165-'ROR-Model'!G165 -> 0
Y166: =+X166-'ROR-Model'!G166 -> 0
C167: Total Dth | H167: =H1*Revenue!$K$166 -> 0 | V167: =SUM(F167:T167) -> 0 | X167: =SUM(V167:V167) -> 0 | Y167: =+X167-'ROR-Model'!G167 -> 0
Y168: =+X168-'ROR-Model'!G168 -> 0
B169: IT-S | C169: Distribution Non-Gas Rev | H169: =H1*Revenue!$K$168 -> 0 | V169: =SUM(F169:T169) -> 0 | X169: =SUM(V169:V169) -> 0 | Y169: =+X169-'ROR-Model'!G169 -> 0
Y170: =+X170-'ROR-Model'!G170 -> 0
C171: Supplier Non-Gas Revenue | H171: =H1*Revenue!$K$170 -> 0 | V171: =SUM(F171:T171) -> 0 | X171: =SUM(V171:V171) -> 0 | Y171: =+X171-'ROR-Model'!G171 -> 0
Y172: =+X172-'ROR-Model'!G172 -> 0
C173: Commodity Revenue | H173: =H1*Revenue!$K$172 -> 0 | V173: =SUM(F173:T173) -> 0 | X173: =SUM(V173:V173) -> 0 | Y173: =+X173-'ROR-Model'!G173 -> 0
C174: Total Revenue | F174: =SUM(F169:F173) -> 0 | G174: =SUM(G169:G173) -> 0 | H174: =H1*SUM(H169:H173) -> 0 | I174: =SUM(I169:I173) -> 0 | J174: =SUM(J169:J173) -> 0 | K174: 0 | L174: 0 | M174: 0 | N174: 0 | O174: 0 | P174: 0 | Q174: 0 | R174: =SUM(R169:R173) -> 0 | S174: =SUM(S169:S173) -> 0 | T174: =SUM(T169:T173) -> 0 | V174: =SUM(V169:V173) -> 0 | X174: =SUM(X169:X173) -> 0 | Y174: =+X174-'ROR-Model'!G174 -> 0
Y175: =+X175-'ROR-Model'!G175 -> 0
C176: Total Dth | H176: =H1*Revenue!$K$175 -> 0 | V176: =SUM(F176:T176) -> 0 | X176: =SUM(V176:V176) -> 0 | Y176: =+X176-'ROR-Model'!G176 -> 0
Y177: =+X177-'ROR-Model'!G177 -> 0
B178: FT-2C | C178: Distribution Non-Gas Rev | H178: =H1*Revenue!$K$177 -> 0 | V178: =SUM(F178:T178) -> 0 | X178: =SUM(V178:V178) -> 0 | Y178: =+X178-'ROR-Model'!G178 -> 0
Y179: =+X179-'ROR-Model'!G179 -> 0
C180: Supplier Non-Gas Revenue | H180: =H1*Revenue!$K$179 -> 0 | V180: =SUM(F180:T180) -> 0 | X180: =SUM(V180:V180) -> 0 | Y180: =+X180-'ROR-Model'!G180 -> 0
Y181: =+X181-'ROR-Model'!G181 -> 0
C182: Commodity Revenue | H182: =H1*Revenue!$K$181 -> 0 | V182: =SUM(F182:T182) -> 0 | X182: =SUM(V182:V182) -> 0 | Y182: =+X182-'ROR-Model'!G182 -> 0
C183: Total Revenue | F183: =SUM(F178:F182) -> 0 | G183: =SUM(G178:G182) -> 0 | H183: =H1*SUM(H178:H182) -> 0 | I183: =SUM(I178:I182) -> 0 | J183: =SUM(J178:J182) -> 0 | K183: 0 | L183: 0 | M183: 0 | N183: 0 | O183: 0 | P183: 0 | Q183: 0 | R183: =SUM(R178:R182) -> 0 | S183: =SUM(S178:S182) -> 0 | T183: =SUM(T178:T182) -> 0 | V183: =SUM(V178:V182) -> 0 | X183: =SUM(X178:X182) -> 0 | Y183: =+X183-'ROR-Model'!G183 -> 0
Y184: =+X184-'ROR-Model'!G184 -> 0
C185: Total Dth | H185: =H1*Revenue!$K$184 -> 0 | V185: =SUM(F185:T185) -> 0 | X185: =SUM(V185:V185) -> 0 | Y185: =+X185-'ROR-Model'!G185 -> 0
Y186: =+X186-'ROR-Model'!G186 -> 0
B187: E-1 | C187: Distribution Non-Gas Rev | H187: =H1*Revenue!$K$186 -> 0 | V187: =SUM(F187:T187) -> 0 | X187: =SUM(V187:V187) -> 0 | Y187: =+X187-'ROR-Model'!G187 -> 0
Y188: =+X188-'ROR-Model'!G188 -> 0
C189: Supplier Non-Gas Revenue | H189: =H1*Revenue!$K$188 -> 0 | V189: =SUM(F189:T189) -> 0 | X189: =SUM(V189:V189) -> 0 | Y189: =+X189-'ROR-Model'!G189 -> 0
Y190: =+X190-'ROR-Model'!G190 -> 0
C191: Commodity Revenue | H191: =H1*Revenue!$K$190 -> 0 | V191: =SUM(F191:T191) -> 0 | X191: =SUM(V191:V191) -> 0 | Y191: =+X191-'ROR-Model'!G191 -> 0
C192: Total Revenue | F192: =SUM(F187:F191) -> 0 | G192: =SUM(G187:G191) -> 0 | H192: =H1*SUM(H187:H191) -> 0 | I192: =SUM(I187:I191) -> 0 | J192: =SUM(J187:J191) -> 0 | K192: 0 | L192: 0 | M192: 0 | N192: 0 | O192: 0 | P192: 0 | Q192: 0 | R192: =SUM(R187:R191) -> 0 | S192: =SUM(S187:S191) -> 0 | T192: =SUM(T187:T191) -> 0 | V192: =SUM(V187:V191) -> 0 | X192: =SUM(X187:X191) -> 0 | Y192: =+X192-'ROR-Model'!G192 -> 0
Y193: =+X193-'ROR-Model'!G193 -> 0
C194: Total Dth | H194: =H1*Revenue!$K$193 -> 0 | V194: =SUM(F194:T194) -> 0 | X194: =SUM(V194:V194) -> 0 | Y194: =+X194-'ROR-Model'!G194 -> 0
Y195: =+X195-'ROR-Model'!G195 -> 0
B196: CET | C196: Distribution Non-Gas Revenue | F196: 0 | G196: 0 | H196: =H1*Revenue!$K$195 -> 0 | I196: 0 | J196: 0 | K196: 0 | L196: 0 | M196: 0 | N196: 0 | O196: 0 | P196: 0 | Q196: 0 | R196: 0 | S196: 0 | T196: 0 | V196: =SUM(F196:T196) -> 0 | X196: =SUM(V196:V196) -> 0 | Y196: =+X196-'ROR-Model'!G196 -> 0
B197: DSM | C197: Distribution Non-Gas Revenue | F197: 0 | G197: 0 | H197: =H1*Revenue!$K$196 -> -39595454 | I197: 0 | J197: 0 | K197: 0 | L197: 0 | M197: 0 | N197: 0 | O197: 0 | P197: 0 | Q197: 0 | R197: 0 | S197: 0 | T197: 0 | V197: =SUM(F197:T197) -> -39595454 | X197: =SUM(V197:V197) -> -39595454 | Y197: =+X197-'ROR-Model'!G197 -> 0
B198: Utah Totals | Y198: =+X198-'ROR-Model'!G198 -> 0
Y199: =+X199-'ROR-Model'!G199 -> 0
C200: Distribution Non-Gas Rev | F200: =+F16+F34+F43+F52+F61+F70+F79+F88+F97+F106+F115+F124+F133+F142+F151+F160+F169+F178+F187+F25+F196+F197 -> 0 | G200: 0 | H200: =+H16+H34+H43+H52+H61+H70+H79+H88+H97+H106+H115+H124+H133+H142+H151+H160+H169+H178+H187+H25+H196+H197 -> -39595454 | I200: =+I16+I34+I43+I52+I61+I70+I79+I88+I97+I106+I115+I124+I133+I142+I151+I160+I169+I178+I187+I25+I196+I197 -> 0 | J200: 0 | K200: 21330 | L200: 0 | M200: 0 | N200: 0 | O200: 0 | P200: 0 | Q200: 0 | R200: 0 | S200: 0 | T200: 0 | V200: =+V16+V34+V43+V52+V61+V70+V79+V88+V97+V106+V115+V124+V133+V142+V151+V160+V169+V178+V187+V25+V196+V197 -> -39574124 | X200: =+X16+X34+X43+X52+X61+X70+X79+X88+X97+X106+X115+X124+X133+X142+X151+X160+X169+X178+X187+X25+X196+X197 -> -39574124 | Y200: =+X200-'ROR-Model'!G200 -> 0
C201: Supplier Non-Gas Revenue | F201: =F1*+F18+F36+F45+F54+F62+F63+F72+F81+F90+F99+F108+F117+F126+F135+F144+F153+F162+F171+F180+F189+F27 -> 0 | G201: =G1*+G18+G36+G45+G54+G62+G63+G72+G81+G90+G99+G108+G117+G126+G135+G144+G153+G162+G171+G180+G189+G27 -> 0 | H201: =H1*+H18+H36+H45+H54+H62+H63+H72+H81+H90+H99+H108+H117+H126+H135+H144+H153+H162+H171+H180+H189+H27 -> 0 | I201: =I1*+I18+I36+I45+I54+I62+I63+I72+I81+I90+I99+I108+I117+I126+I135+I144+I153+I162+I171+I180+I189+I27 -> 0 | J201: =J1*+J18+J36+J45+J54+J62+J63+J72+J81+J90+J99+J108+J117+J126+J135+J144+J153+J162+J171+J180+J189+J27 -> 0 | K201: 0 | L201: 0 | M201: 0 | N201: 0 | O201: 0 | P201: 0 | Q201: 0 | R201: 0 | S201: =S1*+S18+S36+S45+S54+S62+S63+S72+S81+S90+S99+S108+S117+S126+S135+S144+S153+S162+S171+S180+S189+S27 -> 0 | T201: =T1*+T18+T36+T45+T54+T62+T63+T72+T81+T90+T99+T108+T117+T126+T135+T144+T153+T162+T171+T180+T189+T27 -> 0 | V201: =+V18+V36+V45+V54+V62+V63+V72+V81+V90+V99+V108+V117+V126+V135+V144+V153+V162+V171+V180+V189+V27 -> 0 | X201: =+X18+X36+X45+X54+X62+X63+X72+X81+X90+X99+X108+X117+X126+X135+X144+X153+X162+X171+X180+X189+X27 -> 0 | Y201: =+X201-'ROR-Model'!G201 -> 0
C202: Commodity Revenue | F202: =F1*+F20+F38+F47+F56+F64+F65+F74+F83+F92+F101+F110+F119+F128+F137+F146+F155+F164+F173+F182+F191+F29 -> 0 | G202: =G1*+G20+G38+G47+G56+G64+G65+G74+G83+G92+G101+G110+G119+G128+G137+G146+G155+G164+G173+G182+G191+G29 -> 0 | H202: =H1*+H20+H38+H47+H56+H64+H65+H74+H83+H92+H101+H110+H119+H128+H137+H146+H155+H164+H173+H182+H191+H29 -> 0 | I202: =I1*+I20+I38+I47+I56+I64+I65+I74+I83+I92+I101+I110+I119+I128+I137+I146+I155+I164+I173+I182+I191+I29 -> 0 | J202: =J1*+J20+J38+J47+J56+J64+J65+J74+J83+J92+J101+J110+J119+J128+J137+J146+J155+J164+J173+J182+J191+J29 -> 0 | K202: 0 | L202: 0 | M202: 0 | N202: 0 | O202: 0 | P202: 0 | Q202: 0 | R202: 0 | S202: =S1*+S20+S38+S47+S56+S64+S65+S74+S83+S92+S101+S110+S119+S128+S137+S146+S155+S164+S173+S182+S191+S29 -> 0 | T202: =T1*+T20+T38+T47+T56+T64+T65+T74+T83+T92+T101+T110+T119+T128+T137+T146+T155+T164+T173+T182+T191+T29 -> 0 | V202: =+V20+V38+V47+V56+V64+V65+V74+V83+V92+V101+V110+V119+V128+V137+V146+V155+V164+V173+V182+V191+V29 -> 0 | X202: =+X20+X38+X47+X56+X64+X65+X74+X83+X92+X101+X110+X119+X128+X137+X146+X155+X164+X173+X182+X191+X29 -> 0 | Y202: =+X202-'ROR-Model'!G202 -> 0
C203: Total Utah Revenue | F203: =+F21+F39+F48+F57+F66+F75+F84+F93+F102+F111+F120+F129+F138+F147+F156+F165+F174+F183+F192+F30+F196+F197 -> 0 | G203: =+G21+G39+G48+G57+G66+G75+G84+G93+G102+G111+G120+G129+G138+G147+G156+G165+G174+G183+G192+G30+G196+G197 -> 0 | H203: =+H21+H39+H48+H57+H66+H75+H84+H93+H102+H111+H120+H129+H138+H147+H156+H165+H174+H183+H192+H30+H196+H197 -> -39595454 | I203: =+I21+I39+I48+I57+I66+I75+I84+I93+I102+I111+I120+I129+I138+I147+I156+I165+I174+I183+I192+I30+I196+I197 -> 0 | J203: 0 | K203: 21330 | L203: 0 | M203: 0 | N203: 0 | O203: 0 | P203: =+P21+P39+P48+P57+P66+P75+P84+P93+P102+P111+P120+P129+P138+P147+P156+P165+P174+P183+P192+P30+P196+P197 -> 0 | Q203: =+Q21+Q39+Q48+Q57+Q66+Q75+Q84+Q93+Q102+Q111+Q120+Q129+Q138+Q147+Q156+Q165+Q174+Q183+Q192+Q30+Q196+Q197 -> 0 | R203: 0 | S203: 0 | T203: 0 | V203: -39574124 | X203: -39574124
Y204: =+X204-'ROR-Model'!G204 -> 0
C205: Sales Dth | F205: =F1*F23+F41+F50+F59+F68+F77+F86+F95+F104+F113+F194+F32 -> 0 | G205: =G1*G23+G41+G50+G59+G68+G77+G86+G95+G104+G113+G194+G32 -> 0 | H205: =H1*H23+H41+H50+H59+H68+H77+H86+H95+H104+H113+H194+H32 -> 0 | I205: =I1*I23+I41+I50+I59+I68+I77+I86+I95+I104+I113+I194+I32 -> 0 | J205: =J1*J23+J41+J50+J59+J68+J77+J86+J95+J104+J113+J194+J32 -> 0 | K205: 0 | L205: 0 | M205: 0 | N205: 0 | O205: 0 | P205: 0 | Q205: 0 | R205: 0 | S205: =S1*S23+S41+S50+S59+S68+S77+S86+S95+S104+S113+S194+S32 -> 0 | T205: =T1*T23+T41+T50+T59+T68+T77+T86+T95+T104+T113+T194+T32 -> 0 | V205: =V23+V32+V41+V50+V59+V68+V77+V86+V95+V104+V113+V194 -> 0 | X205: =X23+X32+X41+X50+X59+X68+X77+X86+X95+X104+X113+X194 -> 0 | Y205: =+X205-'ROR-Model'!G205 -> 0
... 1025 more rows

Sheet UT 2010 VS 2011 RESULTS
E3: 12 Months Ended : Jun-2010 | M3: =+'Control Panel'!B3 -> 12 Months Ended : Dec-2011 | V3: Change
E5: (B) | F5: (C) | G5: (D) | H5: (E) | I5: (F) | J5: (G) | K5: (H) | M5: (B) | N5: (C) | O5: (D) | P5: (E) | Q5: (F) | R5: (G) | S5: (H | V5: (B) | W5: (C) | X5: (D) | Y5: (E) | Z5: (F) | AA5: (G) | AB5: (H
E6: Historical | G6: Imputed | H6: Adjusted | I6: Utah | K6: Utah | M6: =+'ROR-Model'!F7 -> Historical | O6: =+'ROR-Model'!H7 -> Imputed | P6: =+'ROR-Model'!I7 -> Adjusted | Q6: =+'ROR-Model'!W9 -> Utah | S6: =+Q6 -> Utah | V6: Historical | X6: Imputed | Y6: Adjusted | Z6: Utah | AB6: Utah
E7: 12 Months | F7: Adjustments | G7: Tax | H7: System | I7: Jurisdiction | K7: Jurisdiction | M7: =+'ROR-Model'!F8 -> 12 Months | N7: Adjustments | O7: =+'ROR-Model'!H8 -> Tax | P7: =+'ROR-Model'!I8 -> System | Q7: Jurisdiction | S7: Jurisdiction | V7: 12 Months | W7: Adjustments | X7: Tax | Y7: System | Z7: Jurisdiction | AB7: Jurisdiction
B8: Description | E8: 2010-06-30 | F8: Total | G8: Adjustment | H8: Total | I8: DNG Related | J8: Deficiency | K8: Total | M8: =+'Control Panel'!F12 -> 2011-12-31 | N8: Total | O8: =+'ROR-Model'!H9 -> Adjustment | P8: =+'ROR-Model'!I9 -> Total | Q8: DNG Related | R8: Deficiency | S8: Total | W8: Total | X8: Adjustment | Y8: Total | Z8: DNG Related | AA8: Deficiency | AB8: Total
A10: 1 | B10: NET INCOME SUMMARY
A11: 2
A12: 3 | B12: Utility Operating Revenue
A13: 4 | D13: System Distribution Non-Gas Revenue | E13: 304775207 | F13: -39074710.26 | G13: 0 | H13: 265700496.8 | I13: 255393635 | J13: 7171123.109 | K13: 262564758.1 | M13: =+'ROR-Model'!F363+'ROR-Model'!F365 -> 316586800.7 | N13: =+'ROR-Model'!G363+'ROR-Model'!G365 -> -39838800.93 | O13: =+'ROR-Model'!H363+'ROR-Model'!H365 -> 0 | P13: =+'ROR-Model'!I363+'ROR-Model'!I365 -> 276747999.8 | Q13: ='ROR-Model'!W368 -> 266298262.9 | R13: =+R44*Taxes!L29 -> 3565665.307 | S13: =SUM(Q13:R13) -> 269863928.2 | V13: =+M13-E13 -> 11811593.7 | W13: -764090.67 | X13: 0 | Y13: 11047503.03 | Z13: 10904627.86 | AA13: -3605457.802 | AB13: 7299170.055
A14: 5 | D14: System Supplier Non-Gas Revenue | E14: 97806294.3 | F14: 0 | G14: 0 | H14: 97806294.3 | K14: 0 | M14: =+'ROR-Model'!F364 -> 93063268.92 | N14: =+'ROR-Model'!G364 -> 0 | O14: =+'ROR-Model'!H364 -> 0 | P14: =+'ROR-Model'!I364 -> 93063268.92 | S14: =SUM(Q14:R14) -> 0 | V14: -4743025.38 | W14: 0 | X14: 0 | Y14: -4743025.38 | Z14: 0 | AA14: 0 | AB14: 0
A15: 6 | D15: System Commodity Revenue | E15: 466811454.7 | F15: 0 | G15: 0 | H15: 466811454.7 | K15: 0 | M15: =+'ROR-Model'!F366 -> 524322942.5 | N15: =+'ROR-Model'!G366 -> 0 | O15: =+'ROR-Model'!H366 -> 0 | P15: =+'ROR-Model'!I366 -> 524322942.5 | S15: =SUM(Q15:R15) -> 0 | V15: 57511487.87 | W15: 0 | X15: 0 | Y15: 57511487.87 | Z15: 0 | AA15: 0 | AB15: 0
A16: 7 | D16: Pass-Through Related Other Revenue | E16: 28726153.15 | F16: 0 | G16: 0 | H16: 28726153.15 | K16: 0 | M16: ='ROR-Model'!F501+'ROR-Model'!F505 -> 29752145.07 | N16: ='ROR-Model'!G501+'ROR-Model'!G505 -> 0 | O16: ='ROR-Model'!H501+'ROR-Model'!H505 -> 0 | P16: ='ROR-Model'!I501+'ROR-Model'!I505 -> 29752145.07 | S16: =SUM(Q16:R16) -> 0 | V16: 1025991.914 | W16: 0 | X16: 0 | Y16: 1025991.914 | Z16: 0 | AA16: 0 | AB16: 0
A17: 8 | D17: General Related Other Revenue | E17: 4786175.228 | F17: 0 | G17: 0 | H17: 4786175.228 | I17: 4669650.5 | K17: 4669650.5 | M17: ='ROR-Model'!F502+'ROR-Model'!F506 -> 5102520.534 | N17: ='ROR-Model'!G502+'ROR-Model'!G506 -> 0 | O17: ='ROR-Model'!H502+'ROR-Model'!H506 -> 0 | P17: ='ROR-Model'!I502+'ROR-Model'!I506 -> 5102520.534 | Q17: ='ROR-Model'!W509 -> 4980754.36 | S17: =SUM(Q17:R17) -> 4980754.36 | V17: 316345.306 | W17: 0 | X17: 0 | Y17: 316345.306 | Z17: 311103.86 | AA17: 0 | AB17: 311103.86
A18: 9 | C18: Total Utility Operating Revenue | E18: 902905284.4 | F18: -39074710.26 | G18: 0 | H18: 863830574.1 | I18: 260063285.5 | J18: 7171123.109 | K18: 267234408.6 | M18: =SUM(M13:M17) -> 968827677.8 | N18: -39838800.93 | O18: 0 | P18: 928988876.8 | Q18: 271279017.2 | R18: 3565665.307 | S18: 274844682.5 | V18: 65922393.41 | W18: -764090.67 | X18: 0 | Y18: 65158302.74 | Z18: 11215731.72 | AA18: -3605457.802 | AB18: 7610273.915
A19: 10
A20: 11 | B20: Utility Operating Expenses
A21: 12 | C21: Gas Purchase Expenses
A22: 13 | D22: Utah | E22: 571860147.8 | F22: 0 | G22: 0 | H22: 571860147.8 | K22: 0 | M22: ='ROR-Model'!F633+'ROR-Model'!F636 -> 624829837.5 | N22: ='ROR-Model'!G633+'ROR-Model'!G636 -> 0 | O22: ='ROR-Model'!H633+'ROR-Model'!H636 -> 0 | P22: ='ROR-Model'!I633+'ROR-Model'!I636 -> 624829837.5 | S22: =SUM(Q22:R22) -> 0 | V22: =+M22-E22 -> 52969689.69 | W22: =+N22-F22 -> 0 | X22: 0 | Y22: 52969689.69 | Z22: 0 | AA22: 0 | AB22: 0
A23: 14 | D23: Wyoming | E23: 21483754.33 | F23: 0 | G23: 0 | H23: 21483754.33 | K23: 0 | M23: ='ROR-Model'!F635+'ROR-Model'!F637 -> 22308519.04 | N23: ='ROR-Model'!G635+'ROR-Model'!G637 -> 0 | O23: ='ROR-Model'!H635+'ROR-Model'!H637 -> 0 | P23: ='ROR-Model'!I635+'ROR-Model'!I637 -> 22308519.04 | S23: =SUM(Q23:R23) -> 0 | V23: =+M23-E23 -> 824764.7095 | W23: 0 | X23: 0 | Y23: 824764.7095 | Z23: 0 | AA23: 0 | AB23: 0
A24: 15 | D24: Total | E24: 593343902.1 | F24: 0 | G24: 0 | H24: 593343902.1 | I24: 0 | J24: 0 | K24: 0 | M24: =SUM(M22:M23) -> 647138356.5 | N24: 0 | O24: 0 | P24: 647138356.5 | Q24: 0 | R24: 0 | S24: 0 | V24: =+M24-E24 -> 53794454.4 | W24: 0 | X24: 0 | Y24: 53794454.4 | Z24: 0 | AA24: 0 | AB24: 0
A25: 16
A26: 17 | C26: O&M Expenses
A27: 18 | D27: Production | E27: -1251350.01 | F27: 0 | G27: 0 | H27: -1251350.01 | I27: -1206294.907 | K27: -1206294.907 | M27: ='ROR-Model'!F650 -> -1248287.03 | N27: ='ROR-Model'!G650 -> 0 | O27: ='ROR-Model'!H650 -> 0 | P27: ='ROR-Model'!I650 -> -1248287.03 | Q27: ='ROR-Model'!W650 -> -1204990.818 | S27: =SUM(Q27:R27) -> -1204990.818 | V27: =+M27-E27 -> 3062.98 | W27: 0 | X27: 0 | Y27: 3062.98 | Z27: 1304.089604 | AA27: 0 | AB27: 1304.089604
A28: 19 | D28: Distribution | E28: 48250764.03 | F28: 0 | G28: 0 | H28: 48250764.03 | I28: 45866725.04 | K28: 45866725.04 | M28: ='ROR-Model'!F753 -> 49456106.27 | N28: ='ROR-Model'!G753 -> 0 | O28: ='ROR-Model'!H753 -> 0 | P28: ='ROR-Model'!I753 -> 49456106.27 | Q28: ='ROR-Model'!W753 -> 47217591.86 | S28: =SUM(Q28:R28) -> 47217591.86 | V28: 1205342.24 | W28: 0 | X28: 0 | Y28: 1205342.24 | Z28: 1350866.82 | AA28: 0 | AB28: 1350866.82
A29: 20 | D29: Customer Accounts | E29: 23185355.79 | F29: 498021.5264 | G29: 0 | H29: 23683377.32 | I29: 22772733.98 | J29: 26384.8615 | K29: 22799118.84 | M29: ='ROR-Model'!F806 -> 25254585.16 | N29: ='ROR-Model'!G806 -> -1554977.247 | O29: ='ROR-Model'!H806 -> 0 | P29: ='ROR-Model'!I806 -> 23699607.91 | Q29: ='ROR-Model'!W806 -> 22759528.17 | R29: =+R13*'Control Panel'!F22 -> 11302.28719 | S29: =SUM(Q29:R29) -> 22770830.46 | V29: 2069229.37 | W29: -2052998.773 | X29: 0 | Y29: 16230.59683 | Z29: -13205.8099 | AA29: -15082.57431 | AB29: -28288.38421
A30: 21 | D30: Customer Service & Information | E30: 44227250.07 | F30: -39161757.56 | G30: 0 | H30: 5065492.512 | I30: 4900690.741 | K30: 4900690.741 | M30: ='ROR-Model'!F834 -> 45030509.95 | N30: ='ROR-Model'!G834 -> -39904385.19 | O30: ='ROR-Model'!H834 -> 0 | P30: ='ROR-Model'!I834 -> 5126124.761 | Q30: ='ROR-Model'!W834 -> 4966770.256 | S30: =SUM(Q30:R30) -> 4966770.256 | V30: 803259.88 | W30: -742627.6309 | X30: 0 | Y30: 60632.24911 | Z30: 66079.51553 | AA30: 0 | AB30: 66079.51553
A31: 22 | D31: Administrative & General | E31: 49928138.82 | F31: -1403111.356 | G31: 0 | H31: 48525027.46 | I31: 46382090.69 | K31: 46382090.69 | M31: ='ROR-Model'!F902 -> 51029724.15 | N31: ='ROR-Model'!G902 -> -594700.5561 | O31: ='ROR-Model'!H902 -> 0 | P31: ='ROR-Model'!I902 -> 50435023.59 | Q31: ='ROR-Model'!W902 -> 48188126.49 | S31: =SUM(Q31:R31) -> 48188126.49 | V31: 1101585.33 | W31: 808410.8004 | X31: 0 | Y31: 1909996.13 | Z31: 1806035.798 | AA31: 0 | AB31: 1806035.798
A32: 23 | D32: Total O&M Expense | E32: 164340158.7 | F32: -40066847.39 | G32: 0 | H32: 124273311.3 | I32: 118715945.5 | J32: 26384.8615 | K32: 118742330.4 | M32: =SUM(M27:M31) -> 169522638.5 | N32: -42054062.99 | O32: 0 | P32: 127468575.5 | Q32: 121927026 | R32: 11302.28719 | S32: 121938328.2 | V32: 5182479.8 | W32: -1987215.604 | X32: 0 | Y32: 3195264.196 | Z32: 3211080.413 | AA32: -15082.57431 | AB32: 3195997.839
A33: 24
A34: 25 | C34: Other Operating Expenses
A35: 26 | D35: Depreciation, Depletion, Amortization | E35: 43692315.25 | F35: 0 | G35: 0 | H35: 43692315.25 | I35: 42179815.09 | K35: 42179815.09 | M35: ='ROR-Model'!F926 -> 44478662.69 | N35: ='ROR-Model'!G926 -> 0 | O35: ='ROR-Model'!H926 -> 0 | P35: ='ROR-Model'!I926 -> 44478662.69 | Q35: ='ROR-Model'!W926 -> 42855351.78 | S35: =SUM(Q35:R35) -> 42855351.78 | V35: =+M35-E35 -> 786347.44 | W35: =+N35-F35 -> 0 | X35: 0 | Y35: 786347.44 | Z35: 675536.6907 | AA35: 0 | AB35: 675536.6907
A36: 27 | D36: Taxes Other Than Income Taxes | E36: 13971498.41 | F36: 0 | G36: 0 | H36: 13971498.41 | I36: 13596089.73 | K36: 13596089.73 | M36: ='ROR-Model'!F934 -> 15029093.52 | N36: ='ROR-Model'!G934 -> 0 | O36: ='ROR-Model'!H934 -> 0 | P36: ='ROR-Model'!I934 -> 15029093.52 | Q36: ='ROR-Model'!W934 -> 14239925.92 | S36: =SUM(Q36:R36) -> 14239925.92 | V36: =+M36-E36 -> 1057595.11 | W36: 0 | X36: 0 | Y36: 1057595.11 | Z36: 643836.1875 | AA36: 0 | AB36: 643836.1875
A37: 28 | D37: Income Taxes | E37: 23740002.89 | F37: 377860.2371 | G37: 142665.3053 | H37: 24260528.43 | I37: 23419788.05 | J37: 2721108.214 | K37: 26140896.27 | M37: ='ROR-Model'!F936+'ROR-Model'!F938+'ROR-Model'!F940+'ROR-Model'!F942 -> 25873159.8 | N37: ='ROR-Model'!G936+'ROR-Model'!G938+'ROR-Model'!G940+'ROR-Model'!G942 -> 843471.5525 | O37: ='ROR-Model'!H936+'ROR-Model'!H938+'ROR-Model'!H940+'ROR-Model'!H942 -> -43983.03554 | P37: ='ROR-Model'!I936+'ROR-Model'!I938+'ROR-Model'!I940+'ROR-Model'!I942 -> 26672648.32 | Q37: ='ROR-Model'!W936 -> 25970834.17 | R37: =(R13-R29)*Taxes!L23 -> 1353340.603 | S37: =SUM(Q37:R37) -> 27324174.77 | V37: =+M37-E37 -> 2133156.91 | W37: 465611.3154 | X37: -186648.3409 | Y37: 2412119.885 | Z37: 2551046.118 | AA37: -1367767.611 | AB37: 1183278.507
A38: 29 | D38: Total Other Operating Expenses | E38: 81403816.55 | F38: 377860.2371 | G38: 142665.3053 | H38: 81924342.09 | I38: 79195692.88 | J38: 2721108.214 | K38: 81916801.09 | M38: =SUM(M35:M37) -> 85380916.01 | N38: 843471.5525 | O38: -43983.03554 | P38: 86180404.53 | Q38: 83066111.87 | R38: 1353340.603 | S38: 84419452.48 | V38: =+M38-E38 -> 3977099.46 | W38: 465611.3154 | X38: -186648.3409 | Y38: 4256062.435 | Z38: 3870418.996 | AA38: -1367767.611 | AB38: 2502651.385
A39: 30
A40: 31
A41: 32 | C41: Total Utility Operating Expenses | E41: 839087877.4 | F41: -39688987.15 | G41: 142665.3053 | H41: 799541555.5 | I41: 197911638.4 | J41: 2747493.075 | K41: 200659131.5 | M41: =+M24+M32+M38 -> 902041911 | N41: -41210591.44 | O41: -43983.03554 | P41: 860787336.6 | Q41: 204993137.8 | R41: 1364642.89 | S41: 206357780.7 | V41: =+M41-E41 -> 62954033.66 | W41: =+N41-F41 -> -1521604.288 | X41: -186648.3409 | Y41: 61245781.03 | Z41: 7081499.409 | AA41: -1382850.185 | AB41: 5698649.224
A42: 33
A43: 34
A44: 35 | B44: NET OPERATING INCOME | E44: 63817407 | F44: 614276.891 | G44: -142665.3053 | H44: 64289018.59 | I44: 62151647.09 | J44: 4423630.034 | K44: 66575277.12 | M44: =+M18-M41 -> 66785766.75 | N44: =+N18-N41 -> 1371790.509 | O44: =+O18-O41 -> 43983.03554 | P44: =+P18-P41 -> 68201540.29 | Q44: =+Q18-Q41 -> 66285879.4 | R44: =+S44-Q44 -> 2201022.417 | S44: =S72*S75 -> 68486901.81 | V44: =+M44-E44 -> 2968359.748 | W44: =+N44-F44 -> 757513.6182 | X44: 186648.3409 | Y44: 3912521.707 | Z44: 4134232.308 | AA44: -2222607.617 | AB44: 1911624.691
A45: 36 | V45: =+M45-E45 -> 0 | W45: 0 | X45: 0 | Y45: 0 | Z45: 0 | AA45: 0 | AB45: 0
A46: 37
A47: 38 | B47: RATE BASE SUMMARY
A48: 39
A49: 40 | B49: Net Utility Plant
A50: 41 | C50: 101 | D50: Gas Plant In Service | E50: 1761511261 | F50: -58457533.43 | G50: 0 | H50: 1703053728 | I50: 1643824010 | K50: 1643824010 | M50: ='ROR-Model'!F1113 -> 1866455597 | N50: ='ROR-Model'!G1113 -> -79030054.74 | O50: ='ROR-Model'!H1113 -> 0 | P50: ='ROR-Model'!I1113 -> 1787425542 | Q50: ='ROR-Model'!W1113 -> 1725332701 | S50: =SUM(Q50:R50) -> 1725332701 | V50: =+M50-E50 -> 104944335.4 | W50: -20572521.3 | X50: 0 | Y50: 84371814.12 | Z50: 81508691.29 | AA50: 0 | AB50: 81508691.29
A51: 42 | C51: 105 | D51: Gas Plant Held For Future Use | E51: 5036.83 | F51: 0 | G51: 0 | H51: 5036.83 | I51: 5036.83 | K51: 5036.83 | M51: ='ROR-Model'!F1117 -> 5036.83 | N51: ='ROR-Model'!G1117 -> 0 | O51: ='ROR-Model'!H1117 -> 0 | P51: ='ROR-Model'!I1117 -> 5036.83 | Q51: ='ROR-Model'!W1117 -> 5036.83 | S51: =SUM(Q51:R51) -> 5036.83 | V51: 0 | W51: 0 | X51: 0 | Y51: 0 | Z51: 0 | AA51: 0 | AB51: 0
A52: 43 | C52: 106 | D52: Completed Construction Not Classified | E52: 6794533.78 | F52: 2873764.722 | G52: 0 | H52: 9668298.502 | I52: 9303429.118 | K52: 9303429.118 | M52: ='ROR-Model'!F1124 -> 17136519.61 | N52: ='ROR-Model'!G1124 -> -9954670.688 | O52: ='ROR-Model'!H1124 -> 0 | P52: ='ROR-Model'!I1124 -> 7181848.922 | Q52: ='ROR-Model'!W1124 -> 6651699.876 | S52: =SUM(Q52:R52) -> 6651699.876 | V52: 10341985.83 | W52: -12828435.41 | X52: 0 | Y52: -2486449.58 | Z52: -2651729.241 | AA52: 0 | AB52: -2651729.241
A53: 44 | C53: 108 | D53: Accumulated Depreciation | E53: -714279259.7 | F53: 21640430.31 | G53: 0 | H53: -692638829.3 | I53: -664580150.4 | K53: -664580150.4 | M53: ='ROR-Model'!F1131 -> -742441035.2 | N53: ='ROR-Model'!G1131 -> 17886680.17 | O53: ='ROR-Model'!H1131 -> 0 | P53: ='ROR-Model'!I1131 -> -724554355 | Q53: ='ROR-Model'!W1131 -> -695372995.5 | S53: =SUM(Q53:R53) -> -695372995.5 | V53: -28161775.51 | W53: -3753750.136 | X53: 0 | Y53: -31915525.65 | Z53: -30792845.11 | AA53: 0 | AB53: -30792845.11
A54: 45 | C54: 111 | D54: Accumulated Amort & Depletion | E54: -6099388.79 | F54: 388715.8112 | G54: 0 | H54: -5710672.979 | I54: -5507265.974 | K54: -5507265.974 | M54: ='ROR-Model'!F1138 -> -6117260.69 | N54: ='ROR-Model'!G1138 -> 389472.9673 | O54: ='ROR-Model'!H1138 -> 0 | P54: ='ROR-Model'!I1138 -> -5727787.723 | Q54: ='ROR-Model'!W1138 -> -5531237.207 | S54: =SUM(Q54:R54) -> -5531237.207 | V54: -17871.9 | W54: 757.1561717 | X54: 0 | Y54: -17114.74383 | Z54: -23971.2335 | AA54: 0 | AB54: -23971.2335
A55: 46 | C55: Total Net Utility Plant | E55: 1047932184 | F55: -33554622.59 | G55: 0 | H55: 1014377561 | I55: 983045059.7 | J55: 0 | K55: 983045059.7 | M55: =SUM(M50:M54) -> 1135038857 | N55: -70708572.29 | O55: 0 | P55: 1064330285 | Q55: 1031085205 | R55: 0 | S55: 1031085205 | V55: 87106673.84 | W55: -37153949.69 | X55: 0 | Y55: 49952724.15 | Z55: 48040145.71 | AA55: 0 | AB55: 48040145.71
A56: 47
A57: 48 | B57: Other Rate Base Accounts
A58: 49 | C58: 154 | D58: Materials & Supplies | E58: 7990792.78 | F58: 2531920.947 | G58: 0 | H58: 10522713.73 | I58: 10175107.85 | K58: 10175107.85 | M58: ='ROR-Model'!F1156 -> 13607014.17 | N58: ='ROR-Model'!G1156 -> -1629771.8 | O58: ='ROR-Model'!H1156 -> 0 | P58: ='ROR-Model'!I1156 -> 11977242.37 | Q58: ='ROR-Model'!W1156 -> 11578040.73 | S58: =SUM(Q58:R58) -> 11578040.73 | V58: =+M58-E58 -> 5616221.39 | W58: -4161692.748 | X58: 0 | Y58: 1454528.643 | Z58: 1402932.88 | AA58: 0 | AB58: 1402932.88
A59: 50 | C59: 164-1 | D59: Gas Stored Underground | E59: 43289915.13 | F59: -43289915.13 | G59: 0 | H59: 0 | I59: 0 | K59: 0 | M59: ='ROR-Model'!F1160 -> 40267239.18 | N59: ='ROR-Model'!G1160 -> -40267239.18 | O59: ='ROR-Model'!H1160 -> 0 | P59: ='ROR-Model'!I1160 -> 0 | Q59: ='ROR-Model'!W1160 -> 0 | S59: 0 | V59: -3022675.95 | W59: 3022675.95 | X59: 0 | Y59: 0 | Z59: 0 | AA59: 0 | AB59: 0
A60: 51 | C60: 165 | D60: Prepayments | E60: 3195673.08 | F60: 5701.023333 | G60: 0 | H60: 3201374.103 | I60: 3095620.352 | K60: 3095620.352 | M60: ='ROR-Model'!F1164 -> 3172035.78 | N60: ='ROR-Model'!G1164 -> -444138.7975 | O60: ='ROR-Model'!H1164 -> 0 | P60: ='ROR-Model'!I1164 -> 2727896.982 | Q60: ='ROR-Model'!W1164 -> 2636976.142 | S60: 2636976.142 | V60: -23637.3 | W60: -449839.8208 | X60: 0 | Y60: -473477.1208 | Z60: -458644.2103 | AA60: 0 | AB60: -458644.2103
A61: 52 | C61: 190008 | D61: Accum Deferred Income Tax Federal | E61: 3940402.75 | F61: -600743.3604 | G61: 0 | H61: 3339659.39 | I61: 3230842.626 | K61: 3230842.626 | M61: =+'ROR-Model'!F1171 -> 5142421.81 | N61: =+'ROR-Model'!G1171 -> -1107285.374 | O61: ='ROR-Model'!H1171 -> 0 | P61: =+'ROR-Model'!I1171 -> 4035136.436 | Q61: =+'ROR-Model'!W1171 -> 3903029.757 | S61: 3903029.757 | V61: 1202019.06 | W61: -506542.0137 | X61: 0 | Y61: 695477.0462 | Z61: 672187.131 | AA61: 0 | AB61: 672187.131
A62: 53 | C62: 190008 | D62: Accum Deferred Income Tax State | E62: 337748.35 | F62: -51734.10708 | G62: 0 | H62: 286014.2429 | I62: 286014.2429 | K62: 286014.2429 | M62: =+'ROR-Model'!F1178 -> 440778.07 | N62: =+'ROR-Model'!G1178 -> -94909.71 | O62: ='ROR-Model'!H1178 -> 0 | P62: =+'ROR-Model'!I1178 -> 345868.36 | Q62: =+'ROR-Model'!W1178 -> 345868.36 | S62: 345868.36 | V62: 103029.72 | W62: -43175.60292 | X62: 0 | Y62: 59854.11708 | Z62: 59854.11708 | AA62: 0 | AB62: 59854.11708
A63: 54 | C63: 235-1 | D63: Customer Deposits | E63: -6776565.88 | F63: 715541.7412 | G63: 0 | H63: -6061024.139 | I63: -5857072.472 | K63: -5857072.472 | M63: ='ROR-Model'!F1183 -> -8832709.36 | N63: ='ROR-Model'!G1183 -> 1071156.781 | O63: ='ROR-Model'!H1183 -> 0 | P63: ='ROR-Model'!I1183 -> -7761552.579 | Q63: ='ROR-Model'!W1183 -> -7497428.728 | S63: -7497428.728 | V63: -2056143.48 | W63: 355615.0396 | X63: 0 | Y63: -1700528.44 | Z63: -1640356.257 | AA63: 0 | AB63: -1640356.257
A64: 55 | C64: 252 | D64: Contributions in Aid of Construction | E64: -47729691.4 | F64: -3441316.672 | G64: 0 | H64: -51171008.07 | I64: -49520675.91 | K64: -49520675.91 | M64: =+'ROR-Model'!F1188 -> -27867003.87 | N64: ='ROR-Model'!G1188 -> -12435107.45 | O64: ='ROR-Model'!H1188 -> 0 | P64: ='ROR-Model'!I1188 -> -40302111.32 | Q64: ='ROR-Model'!W1188 -> -38729946.65 | S64: -38729946.65 | V64: 19862687.53 | W64: -8993790.775 | X64: 0 | Y64: 10868896.76 | Z64: 10790729.26 | AA64: 0 | AB64: 10790729.26
A65: 56 | C65: 253-1 | D65: Unclaimed Customer Deposits | E65: -108383.42 | F65: -45180.08292 | G65: 0 | H65: -153563.5029 | I65: -148490.7073 | K65: -148490.7073 | M65: ='ROR-Model'!F1192 -> -73287.15 | N65: ='ROR-Model'!G1192 -> -37779.86375 | O65: ='ROR-Model'!H1192 -> 0 | P65: ='ROR-Model'!I1192 -> -111067.0137 | Q65: ='ROR-Model'!W1192 -> -107365.1488 | S65: -107365.1488 | V65: 35096.27 | W65: 7400.219167 | X65: 0 | Y65: 42496.48917 | Z65: 41125.55852 | AA65: 0 | AB65: 41125.55852
A66: 57 | C66: 255 | D66: Deferred Investment Tax Credits | E66: -1465177.68 | F66: -188622.24 | G66: 0 | H66: -1653799.92 | I66: -1599424.461 | K66: -1599424.461 | M66: ='ROR-Model'!F1199 -> -1114294.68 | N66: ='ROR-Model'!G1199 -> -175441.5 | O66: ='ROR-Model'!H1199 -> 0 | P66: ='ROR-Model'!I1199 -> -1289736.18 | Q66: ='ROR-Model'!W1199 -> -1247432.433 | S66: -1247432.433 | V66: 350883 | W66: 13180.74 | X66: 0 | Y66: 364063.74 | Z66: 351992.0278 | AA66: 0 | AB66: 351992.0278
A67: 58 | C67: 282 | D67: Accum Deferred Income Taxes | E67: -214694220.2 | F67: 31064825.8 | G67: 0 | H67: -183629394.4 | I67: -178082555.9 | K67: -178082555.9 | M67: ='ROR-Model'!F1206+'ROR-Model'!F1213+'ROR-Model'!F1217 -> -250297223.7 | N67: ='ROR-Model'!G1206+'ROR-Model'!G1213+'ROR-Model'!G1217 -> 25035969.81 | O67: ='ROR-Model'!H1206+'ROR-Model'!H1213+'ROR-Model'!H1217 -> 0 | P67: ='ROR-Model'!I1206+'ROR-Model'!I1213+'ROR-Model'!I1217 -> -225261253.9 | Q67: ='ROR-Model'!W1206+'ROR-Model'!W1213+'ROR-Model'!W1217 -> -218472571.8 | S67: -218472571.8 | V67: -35603003.52 | W67: -6028855.988 | X67: 0 | Y67: -41631859.51 | Z67: -40390015.83 | AA67: 0 | AB67: -40390015.83
A68: 59 | D68: Working Capital - Cash | E68: 5842343.841 | F68: -291523.7659 | G68: 1047.905983 | H68: 5551867.981 | I68: 5344312.533 | K68: 5344312.533 | M68: ='ROR-Model'!F1257 -> 6298978.271 | N68: ='ROR-Model'!G1257 -> -302700.2621 | O68: ='ROR-Model'!H1257 -> -323.0644337 | P68: ='ROR-Model'!I1257 -> 5995954.944 | Q68: ='ROR-Model'!W1257 -> 5780438.9 | S68: 5780438.9 | V68: 456634.4295 | W68: -11176.49616 | X68: -1370.970416 | Y68: 444086.9629 | Z68: 436126.3674 | AA68: 0 | AB68: 436126.3674
A69: 60 | C69: Total Other Rate Base Accounts | E69: -206177162.7 | F69: -13591045.85 | G69: 1047.905983 | H69: -219767160.6 | I69: -213076321.9 | J69: 0 | K69: -213076321.9 | M69: =SUM(M58:M68) -> -219256051.5 | N69: -30387247.35 | O69: -323.0644337 | P69: -249643621.9 | Q69: -241810390.8 | R69: 0 | S69: -241810390.8 | V69: -13078888.85 | W69: -16796201.5 | X69: -1370.970416 | Y69: -29876461.32 | Z69: -28734068.96 | AA69: 0 | AB69: -28734068.96
A70: 61
A71: 62
A72: 63 | B72: TOTAL RATE BASE | E72: 841755020.9 | F72: -47145668.44 | G72: 1047.905983 | H72: 794610400.4 | I72: 769968737.8 | K72: 769968737.8 | M72: =+M55+M69 -> 915782805.9 | N72: =+N55+N69 -> -101095819.6 | O72: =+O55+O69 -> -323.0644337 | P72: =+P55+P69 -> 814686663.2 | Q72: =+Q55+Q69 -> 789274814.6 | S72: =+S55+S69 -> 789274814.6 | V72: =+M72-E72 -> 74027784.99 | W72: =+N72-F72 -> -53950151.19 | X72: -1370.970416 | Y72: 20076262.83 | Z72: 19306076.75 | AA72: 0 | AB72: 19306076.75
A73: 64
A74: 65
A75: 66 | B75: RETURN ON RATE BASE | E75: 0.07581470311 | H75: 0.0809063392 | I75: 0.08071970203 | K75: 0.08646490936 | M75: =M44/M72 -> 0.07292751766 | P75: =P44/P72 -> 0.08371505681 | Q75: =Q44/Q72 -> 0.08398326942 | S75: ='Capital Str'!F10 -> 0.08677193361 | V75: =+M75-E75 -> -0.002887185451 | W75: =+N75-F75 -> 0 | X75: 0 | Y75: 0.002808717608 | Z75: 0.003263567389 | AA75: 0 | AB75: 0.0003070242587
A76: 67
A77: 68 | B77: RETURN ON EQUITY | E77: 0.08352816351 | H77: 0.09307627189 | I77: 0.09272627988 | K77: 0.1035 | M77: =(M75-'Capital Str'!$F$7)/'Capital Str'!$D$9 -> 0.07805052514 | P77: =(P75-'Capital Str'!$F$7)/'Capital Str'!$D$9 -> 0.09788070124 | Q77: =(Q75-'Capital Str'!$F$7)/'Capital Str'!$D$9 -> 0.09837374263 | S77: ='Capital Str'!E9 -> 0.1035 | V77: =+M77-E77 -> -0.005477638372 | W77: =+N77-F77 -> 0 | X77: 0 | Y77: 0.004804429352 | Z77: 0.005647462748 | AA77: 0 | AB77: 0

Sheet Report
A1: ='Control Panel'!$B$1 -> Questar Gas Company
A2: ='Control Panel'!$B$2 -> Utah - DEC 2011 Adjusted Avg Results
A3: ='Control Panel'!$B$3 -> 12 Months Ended : Dec-2011 | F3: =+'Control Panel'!$B$3 -> 12 Months Ended : Dec-2011
E4: =IF((SUM(Report!F13:H72)-SUM(Report!I13:I72))<1,"0","ERROR") -> 0
B5: (A) | F5: (B) | G5: (C) | H5: (D) | I5: (E) | J5: (F) | K5: (G) | L5: (H)
F6: =+'ROR-Model'!F7 -> Historical | H6: =+'ROR-Model'!H7 -> Imputed | I6: =+'ROR-Model'!I7 -> Adjusted | J6: =+'ROR-Model'!W9 -> Utah | L6: =+J6 -> Utah
E7: CHECKS MUST BE (0) | F7: =+'ROR-Model'!F8 -> 12 Months | G7: Adjustments | H7: =+'ROR-Model'!H8 -> Tax | I7: =+'ROR-Model'!I8 -> System | J7: Jurisdiction | L7: Jurisdiction | M7: CHECKS MUST BE (0)
B8: Description | F8: =+'ROR-Model'!F9 -> 2011-12-31 | G8: Total | H8: =+'ROR-Model'!H9 -> Adjustment | I8: =+'ROR-Model'!I9 -> Total | J8: DNG Related | K8: Deficiency | L8: Total
A10: 1 | B10: NET INCOME SUMMARY
A12: =+A10+1 -> 2 | B12: Utility Operating Revenue
A13: =+A12+1 -> 3 | D13: System Distribution Non-Gas Revenue | E13: =+F13+G13+H13-I13 -> 0 | F13: =+'ROR-Model'!F363+'ROR-Model'!F365 -> 316586800.7 | G13: =+'ROR-Model'!G363+'ROR-Model'!G365 -> -39838800.93 | H13: =+'ROR-Model'!H363+'ROR-Model'!H365 -> 0 | I13: =+'ROR-Model'!I363+'ROR-Model'!I365 -> 276747999.8 | J13: ='ROR-Model'!W368 -> 266298262.9 | K13: =+K44*Taxes!L29 -> 3565665.307 | L13: =SUM(J13:K13) -> 269863928.2 | M13: =+N13-I13 -> 0 | N13: =SUM(F13:H13) -> 276747999.8
A14: 4 | D14: System Supplier Non-Gas Revenue | E14: 0 | F14: =+'ROR-Model'!F364 -> 93063268.92 | G14: =+'ROR-Model'!G364 -> 0 | H14: =+'ROR-Model'!H364 -> 0 | I14: =+'ROR-Model'!I364 -> 93063268.92 | L14: =SUM(J14:K14) -> 0 | M14: =+N14-I14 -> 0 | N14: =SUM(F14:H14) -> 93063268.92
A15: 5 | D15: System Commodity Revenue | E15: 0 | F15: =+'ROR-Model'!F366 -> 524322942.5 | G15: =+'ROR-Model'!G366 -> 0 | H15: =+'ROR-Model'!H366 -> 0 | I15: =+'ROR-Model'!I366 -> 524322942.5 | L15: =SUM(J15:K15) -> 0 | M15: 0 | N15: 524322942.5
A16: 6 | D16: Pass-Through Related Other Revenue | E16: 0 | F16: ='ROR-Model'!F501+'ROR-Model'!F505 -> 29752145.07 | G16: ='ROR-Model'!G501+'ROR-Model'!G505 -> 0 | H16: ='ROR-Model'!H501+'ROR-Model'!H505 -> 0 | I16: ='ROR-Model'!I501+'ROR-Model'!I505 -> 29752145.07 | L16: =SUM(J16:K16) -> 0 | M16: 0 | N16: 29752145.07
A17: 7 | D17: General Related Other Revenue | E17: 0 | F17: ='ROR-Model'!F502+'ROR-Model'!F506 -> 5102520.534 | G17: ='ROR-Model'!G502+'ROR-Model'!G506 -> 0 | H17: ='ROR-Model'!H502+'ROR-Model'!H506 -> 0 | I17: ='ROR-Model'!I502+'ROR-Model'!I506 -> 5102520.534 | J17: ='ROR-Model'!W509 -> 4980754.36 | L17: =SUM(J17:K17) -> 4980754.36 | M17: 0 | N17: 5102520.534
A18: 8 | C18: Total Utility Operating Revenue | E18: 0 | F18: =SUM(F13:F17) -> 968827677.8 | G18: -39838800.93 | H18: 0 | I18: 928988876.8 | J18: 271279017.2 | K18: 3565665.307 | L18: 274844682.5 | M18: 0 | N18: 928988876.9
M19: 0 | N19: 0
A20: =+A18+1 -> 9 | B20: Utility Operating Expenses | M20: 0 | N20: 0
A21: =+A20+1 -> 10 | C21: Gas Purchase Expenses | M21: 0 | N21: 0
A22: =+A21+1 -> 11 | D22: Utah | E22: =+F22+G22+H22-I22 -> 0 | F22: ='ROR-Model'!F633+'ROR-Model'!F636 -> 624829837.5 | G22: ='ROR-Model'!G633+'ROR-Model'!G636 -> 0 | H22: ='ROR-Model'!H633+'ROR-Model'!H636 -> 0 | I22: ='ROR-Model'!I633+'ROR-Model'!I636 -> 624829837.5 | L22: =SUM(J22:K22) -> 0 | M22: 0 | N22: 624829837.5
A23: =+A22+1 -> 12 | D23: Wyoming | E23: =+F23+G23+H23-I23 -> 0 | F23: ='ROR-Model'!F635+'ROR-Model'!F637 -> 22308519.04 | G23: ='ROR-Model'!G635+'ROR-Model'!G637 -> 0 | H23: ='ROR-Model'!H635+'ROR-Model'!H637 -> 0 | I23: ='ROR-Model'!I635+'ROR-Model'!I637 -> 22308519.04 | L23: =SUM(J23:K23) -> 0 | M23: 0 | N23: 22308519.04
A24: =+A23+1 -> 13 | D24: Total | E24: =+F24+G24+H24-I24 -> 0 | F24: =SUM(F22:F23) -> 647138356.5 | G24: 0 | H24: 0 | I24: 647138356.5 | J24: 0 | K24: 0 | L24: 0 | M24: 0 | N24: 647138356.5
E25: =+F25+G25+H25-I25 -> 0 | M25: 0 | N25: =SUM(F25:H25) -> 0
A26: =A24+1 -> 14 | C26: O&M Expenses | M26: 0 | N26: 0
A27: =+A26+1 -> 15 | D27: Production | E27: =+F27+G27+H27-I27 -> 0 | F27: ='ROR-Model'!F650 -> -1248287.03 | G27: ='ROR-Model'!G650 -> 0 | H27: ='ROR-Model'!H650 -> 0 | I27: ='ROR-Model'!I650 -> -1248287.03 | J27: ='ROR-Model'!W650 -> -1204990.818 | L27: =SUM(J27:K27) -> -1204990.818 | M27: 0 | N27: -1248287.03
A28: 16 | D28: Distribution | E28: 0 | F28: ='ROR-Model'!F753 -> 49456106.27 | G28: ='ROR-Model'!G753 -> 0 | H28: ='ROR-Model'!H753 -> 0 | I28: ='ROR-Model'!I753 -> 49456106.27 | J28: ='ROR-Model'!W753 -> 47217591.86 | L28: =SUM(J28:K28) -> 47217591.86 | M28: 0 | N28: 49456106.27
A29: 17 | D29: Customer Accounts | E29: 0 | F29: ='ROR-Model'!F806 -> 25254585.16 | G29: ='ROR-Model'!G806 -> -1554977.247 | H29: ='ROR-Model'!H806 -> 0 | I29: ='ROR-Model'!I806 -> 23699607.91 | J29: ='ROR-Model'!W806 -> 22759528.17 | K29: =+K13*'Control Panel'!F22 -> 11302.28719 | L29: =SUM(J29:K29) -> 22770830.46 | M29: 0 | N29: 23699607.91
A30: 18 | D30: Customer Service & Information | E30: 0 | F30: ='ROR-Model'!F834 -> 45030509.95 | G30: ='ROR-Model'!G834 -> -39904385.19 | H30: ='ROR-Model'!H834 -> 0 | I30: ='ROR-Model'!I834 -> 5126124.761 | J30: ='ROR-Model'!W834 -> 4966770.256 | L30: =SUM(J30:K30) -> 4966770.256 | M30: 0 | N30: 5126124.761
A31: 19 | D31: Administrative & General | E31: 0 | F31: ='ROR-Model'!F902 -> 51029724.15 | G31: ='ROR-Model'!G902 -> -594700.5561 | H31: ='ROR-Model'!H902 -> 0 | I31: ='ROR-Model'!I902 -> 50435023.59 | J31: ='ROR-Model'!W902 -> 48188126.49 | L31: =SUM(J31:K31) -> 48188126.49 | M31: 0 | N31: 50435023.59
A32: 20 | D32: Total O&M Expense | E32: 0 | F32: =SUM(F27:F31) -> 169522638.5 | G32: -42054062.99 | H32: 0 | I32: 127468575.5 | J32: 121927026 | K32: 11302.28719 | L32: 121938328.2 | M32: 0 | N32: 127468575.5
M33: 0 | N33: 0
A34: =+A32+1 -> 21 | C34: Other Operating Expenses | M34: 0 | N34: 0
A35: =+A34+1 -> 22 | D35: Depreciation, Depletion, Amortization | E35: =+F35+G35+H35-I35 -> 0 | F35: ='ROR-Model'!F926 -> 44478662.69 | G35: ='ROR-Model'!G926 -> 0 | H35: ='ROR-Model'!H926 -> 0 | I35: ='ROR-Model'!I926 -> 44478662.69 | J35: ='ROR-Model'!W926 -> 42855351.78 | L35: =SUM(J35:K35) -> 42855351.78 | M35: 0 | N35: 44478662.69
A36: =+A35+1 -> 23 | D36: Taxes Other Than Income Taxes | E36: =+F36+G36+H36-I36 -> 0 | F36: ='ROR-Model'!F934 -> 15029093.52 | G36: ='ROR-Model'!G934 -> 0 | H36: ='ROR-Model'!H934 -> 0 | I36: ='ROR-Model'!I934 -> 15029093.52 | J36: ='ROR-Model'!W934 -> 14239925.92 | L36: =SUM(J36:K36) -> 14239925.92 | M36: 0 | N36: 15029093.52
A37: =+A36+1 -> 24 | D37: Income Taxes | E37: =+F37+G37+H37-I37 -> 0 | F37: ='ROR-Model'!F936+'ROR-Model'!F938+'ROR-Model'!F940+'ROR-Model'!F942 -> 25873159.8 | G37: ='ROR-Model'!G936+'ROR-Model'!G938+'ROR-Model'!G940+'ROR-Model'!G942 -> 843471.5525 | H37: ='ROR-Model'!H936+'ROR-Model'!H938+'ROR-Model'!H940+'ROR-Model'!H942 -> -43983.03554 | I37: ='ROR-Model'!I936+'ROR-Model'!I938+'ROR-Model'!I940+'ROR-Model'!I942 -> 26672648.32 | J37: ='ROR-Model'!W936 -> 25970834.17 | K37: =(K13-K29)*Taxes!L23 -> 1353340.603 | L37: =SUM(J37:K37) -> 27324174.77 | M37: 0 | N37: 26672648.32
A38: =+A37+1 -> 25 | D38: Total Other Operating Expenses | E38: =+F38+G38+H38-I38 -> 0 | F38: =SUM(F35:F37) -> 85380916.01 | G38: 843471.5525 | H38: -43983.03554 | I38: 86180404.53 | J38: 83066111.87 | K38: 1353340.603 | L38: 84419452.48 | M38: 0 | N38: 86180404.53
M39: 0 | N39: 0
M40: 0 | N40: 0
A41: =+A38+1 -> 26 | C41: Total Utility Operating Expenses | E41: =+F41+G41+H41-I41 -> 0 | F41: =+F24+F32+F38 -> 902041911 | G41: =+G24+G32+G38 -> -41210591.44 | H41: -43983.03554 | I41: 860787336.6 | J41: 204993137.8 | K41: 1364642.89 | L41: 206357780.7 | M41: 0 | N41: 860787336.6
M42: 0 | N42: 0
M43: 0 | N43: 0
A44: =+A41+1 -> 27 | B44: NET OPERATING INCOME | E44: =+F44+G44+H44-I44 -> 1.341104507e-07 | F44: =+F18-F41 -> 66785766.75 | G44: =+G18-G41 -> 1371790.509 | H44: =+H18-H41 -> 43983.03554 | I44: =+I18-I41 -> 68201540.29 | J44: =+J18-J41 -> 66285879.4 | K44: =+L44-J44 -> 2201022.417 | L44: =L72*L75 -> 68486901.81 | M44: 1.341104507e-07 | N44: 68201540.29
M45: 0
A47: =+A44+1 -> 28 | B47: RATE BASE SUMMARY
A49: =+A47+1 -> 29 | B49: Net Utility Plant
A50: =+A49+1 -> 30 | C50: 101 | D50: Gas Plant In Service | E50: =+F50+G50+H50-I50 -> 0 | F50: ='ROR-Model'!F1113 -> 1866455597 | G50: ='ROR-Model'!G1113 -> -79030054.74 | H50: ='ROR-Model'!H1113 -> 0 | I50: ='ROR-Model'!I1113 -> 1787425542 | J50: ='ROR-Model'!W1113 -> 1725332701 | L50: =SUM(J50:K50) -> 1725332701 | M50: =+N50-I50 -> 0 | N50: =SUM(F50:H50) -> 1787425542
A51: 31 | C51: 105 | D51: Gas Plant Held For Future Use | E51: 0 | F51: ='ROR-Model'!F1117 -> 5036.83 | G51: ='ROR-Model'!G1117 -> 0 | H51: ='ROR-Model'!H1117 -> 0 | I51: ='ROR-Model'!I1117 -> 5036.83 | J51: ='ROR-Model'!W1117 -> 5036.83 | L51: =SUM(J51:K51) -> 5036.83 | M51: 0 | N51: 5036.83
A52: 32 | C52: 106 | D52: Completed Construction Not Classified | E52: 0 | F52: ='ROR-Model'!F1124 -> 17136519.61 | G52: ='ROR-Model'!G1124 -> -9954670.688 | H52: ='ROR-Model'!H1124 -> 0 | I52: ='ROR-Model'!I1124 -> 7181848.922 | J52: ='ROR-Model'!W1124 -> 6651699.876 | L52: =SUM(J52:K52) -> 6651699.876 | M52: 0 | N52: 7181848.922
A53: 33 | C53: 108 | D53: Accumulated Depreciation | E53: 0 | F53: ='ROR-Model'!F1131 -> -742441035.2 | G53: ='ROR-Model'!G1131 -> 17886680.17 | H53: ='ROR-Model'!H1131 -> 0 | I53: ='ROR-Model'!I1131 -> -724554355 | J53: ='ROR-Model'!W1131 -> -695372995.5 | L53: =SUM(J53:K53) -> -695372995.5 | M53: 0 | N53: -724554355
A54: 34 | C54: 111 | D54: Accumulated Amort & Depletion | E54: 0 | F54: ='ROR-Model'!F1138 -> -6117260.69 | G54: ='ROR-Model'!G1138 -> 389472.9673 | H54: ='ROR-Model'!H1138 -> 0 | I54: ='ROR-Model'!I1138 -> -5727787.723 | J54: ='ROR-Model'!W1138 -> -5531237.207 | L54: =SUM(J54:K54) -> -5531237.207 | M54: 0 | N54: -5727787.723
A55: 35 | C55: Total Net Utility Plant | E55: 0 | F55: =SUM(F50:F54) -> 1135038857 | G55: =SUM(G50:G54) -> -70708572.29 | H55: 0 | I55: 1064330285 | J55: 1031085205 | K55: 0 | L55: 1031085205 | M55: 0 | N55: 1064330285
M56: 0
A57: =+A55+1 -> 36 | B57: Other Rate Base Accounts | M57: 0
A58: =+A57+1 -> 37 | C58: 154 | D58: Materials & Supplies | E58: =+F58+G58+H58-I58 -> 0 | F58: ='ROR-Model'!F1156 -> 13607014.17 | G58: ='ROR-Model'!G1156 -> -1629771.8 | H58: ='ROR-Model'!H1156 -> 0 | I58: ='ROR-Model'!I1156 -> 11977242.37 | J58: ='ROR-Model'!W1156 -> 11578040.73 | L58: =SUM(J58:K58) -> 11578040.73 | M58: 0 | N58: =SUM(F58:H58) -> 11977242.37
A59: 38 | C59: 164-1 | D59: Gas Stored Underground | E59: 0 | F59: ='ROR-Model'!F1160 -> 40267239.18 | G59: ='ROR-Model'!G1160 -> -40267239.18 | H59: ='ROR-Model'!H1160 -> 0 | I59: ='ROR-Model'!I1160 -> 0 | J59: ='ROR-Model'!W1160 -> 0 | L59: 0 | M59: 0 | N59: 0
A60: 39 | C60: 165 | D60: Prepayments | E60: 0 | F60: ='ROR-Model'!F1164 -> 3172035.78 | G60: ='ROR-Model'!G1164 -> -444138.7975 | H60: ='ROR-Model'!H1164 -> 0 | I60: ='ROR-Model'!I1164 -> 2727896.982 | J60: ='ROR-Model'!W1164 -> 2636976.142 | L60: 2636976.142 | M60: 0 | N60: 2727896.982
A61: 40 | C61: 190008 | D61: Accum Deferred Income Tax Federal | E61: 0 | F61: =+'ROR-Model'!F1171 -> 5142421.81 | G61: =+'ROR-Model'!G1171 -> -1107285.374 | H61: ='ROR-Model'!H1171 -> 0 | I61: =+'ROR-Model'!I1171 -> 4035136.436 | J61: =+'ROR-Model'!W1171 -> 3903029.757 | L61: 3903029.757 | M61: 0 | N61: 4035136.436
A62: 41 | C62: 190008 | D62: Accum Deferred Income Tax State | E62: 0 | F62: =+'ROR-Model'!F1178 -> 440778.07 | G62: =+'ROR-Model'!G1178 -> -94909.71 | H62: ='ROR-Model'!H1178 -> 0 | I62: =+'ROR-Model'!I1178 -> 345868.36 | J62: =+'ROR-Model'!W1178 -> 345868.36 | L62: 345868.36 | M62: 0 | N62: 345868.36
A63: 42 | C63: 235-1 | D63: Customer Deposits | E63: 0 | F63: ='ROR-Model'!F1183 -> -8832709.36 | G63: ='ROR-Model'!G1183 -> 1071156.781 | H63: ='ROR-Model'!H1183 -> 0 | I63: ='ROR-Model'!I1183 -> -7761552.579 | J63: ='ROR-Model'!W1183 -> -7497428.728 | L63: -7497428.728 | M63: 0 | N63: -7761552.579
A64: 43 | C64: 252 | D64: Contributions in Aid of Construction | E64: 0 | F64: =+'ROR-Model'!F1188 -> -27867003.87 | G64: ='ROR-Model'!G1188 -> -12435107.45 | H64: ='ROR-Model'!H1188 -> 0 | I64: ='ROR-Model'!I1188 -> -40302111.32 | J64: ='ROR-Model'!W1188 -> -38729946.65 | L64: -38729946.65 | M64: 0 | N64: -40302111.32
A65: 44 | C65: 253-1 | D65: Unclaimed Customer Deposits | E65: 0 | F65: ='ROR-Model'!F1192 -> -73287.15 | G65: ='ROR-Model'!G1192 -> -37779.86375 | H65: ='ROR-Model'!H1192 -> 0 | I65: ='ROR-Model'!I1192 -> -111067.0137 | J65: ='ROR-Model'!W1192 -> -107365.1488 | L65: -107365.1488 | M65: 0 | N65: -111067.0137
A66: 45 | C66: 255 | D66: Deferred Investment Tax Credits | E66: 0 | F66: ='ROR-Model'!F1199 -> -1114294.68 | G66: ='ROR-Model'!G1199 -> -175441.5 | H66: ='ROR-Model'!H1199 -> 0 | I66: ='ROR-Model'!I1199 -> -1289736.18 | J66: ='ROR-Model'!W1199 -> -1247432.433 | L66: -1247432.433 | M66: 0 | N66: -1289736.18
A67: 46 | C67: 282 | D67: Accum Deferred Income Taxes | E67: 0 | F67: ='ROR-Model'!F1206+'ROR-Model'!F1213+'ROR-Model'!F1217 -> -250297223.7 | G67: ='ROR-Model'!G1206+'ROR-Model'!G1213+'ROR-Model'!G1217 -> 25035969.81 | H67: ='ROR-Model'!H1206+'ROR-Model'!H1213+'ROR-Model'!H1217 -> 0 | I67: ='ROR-Model'!I1206+'ROR-Model'!I1213+'ROR-Model'!I1217 -> -225261253.9 | J67: ='ROR-Model'!W1206+'ROR-Model'!W1213+'ROR-Model'!W1217 -> -218472571.8 | L67: -218472571.8 | M67: 0 | N67: -225261253.9
A68: 47 | D68: Working Capital - Cash | F68: ='ROR-Model'!F1257 -> 6298978.271 | G68: ='ROR-Model'!G1257 -> -302700.2621 | H68: ='ROR-Model'!H1257 -> -323.0644337 | I68: ='ROR-Model'!I1257 -> 5995954.944 | J68: ='ROR-Model'!W1257 -> 5780438.9 | L68: =SUM(J68:K68) -> 5780438.9 | M68: 0 | N68: 5995954.944
A69: 48 | C69: Total Other Rate Base Accounts | F69: =SUM(F58:F68) -> -219256051.5 | G69: -30387247.35 | H69: -323.0644337 | I69: =SUM(I58:I68) -> -249643621.9 | J69: =SUM(J58:J68) -> -241810390.8 | K69: 0 | L69: -241810390.8 | M69: 0 | N69: -249643621.9
M70: 0 | N70: 0
M71: 0 | N71: 0
A72: =+A69+1 -> 49 | B72: TOTAL RATE BASE | F72: =+F55+F69 -> 915782805.9 | G72: =+G55+G69 -> -101095819.6 | H72: =+H55+H69 -> -323.0644337 | I72: =+I55+I69 -> 814686663.2 | J72: =+J55+J69 -> 789274814.6 | L72: =+L55+L69 -> 789274814.6 | M72: 0 | N72: 814686663.2
M73: 0
E74: =SUM(E13:E72) -> 1.341104507e-07 | M74: 0 | N74: =SUM(F74:H74) -> 0
A75: =+A72+1 -> 50 | B75: RETURN ON RATE BASE | F75: =F44/F72 -> 0.07292751766 | I75: =I44/I72 -> 0.08371505681 | J75: =J44/J72 -> 0.08398326942 | L75: ='Capital Str'!F10 -> 0.08677193361 | M75: =+N75-I75 -> -0.01078753915 | N75: =SUM(F75:H75) -> 0.07292751766
N76: =SUM(F76:H76) -> 0
A77: =+A75+1 -> 51 | B77: RETURN ON EQUITY | F77: =(F75-'Capital Str'!$F$7)/'Capital Str'!$D$9 -> 0.07805052514 | I77: =(I75-'Capital Str'!$F$7)/'Capital Str'!$D$9 -> 0.09788070124 | J77: =(J75-'Capital Str'!$F$7)/'Capital Str'!$D$9 -> 0.09837374263 | L77: ='Capital Str'!E9 -> 0.1035 | M77: =+N77-I77 -> -0.01983017611 | N77: =SUM(F77:H77) -> 0.07805052514

Sheet ROR-Model
A1: ='Control Panel'!$B$1 -> Questar Gas Company | L1: Jurisdictional Allocation Base Summary
A2: ='Control Panel'!$B$2 -> Utah - DEC 2011 Adjusted Avg Results | K2: #1 | L2: Gross Plant | M2: ='Utah Allocation'!D18 -> 0.9666699874 | N2: ='Utah Allocation'!E18 -> 0.03333001257
A3: ='Control Panel'!$B$3 -> 12 Months Ended : Dec-2011 | K3: #2 | L3: Rate Base | M3: ='Utah Allocation'!D35 -> 0.969115733 | N3: ='Utah Allocation'!E35 -> 0.03088426701
K4: #3 | L4: Sales | M4: ='Utah Allocation'!D46 -> 0.9653154992 | N4: ='Utah Allocation'!E46 -> 0.03468450076
K5: #4 | L5: Utah | M5: 1 | N5: 0 | P5: PT = Pass Through Item
K6: #5 | L6: Wyoming | M6: 0 | N6: 1
F7: Historical | G7: CASE | H7: Imputed | I7: Adjusted | Q7: Utah | T7: Wyoming | W7: HOT
A8: FERC | F8: 12 Months | G8: Adjustments | H8: Tax | I8: System | P8: Utah Method & Allocations | S8: Wyoming Method & Allocations | W8: This Scenario
A9: Account | C9: Description | F9: =+'Control Panel'!F12 -> 2011-12-31 | G9: Total | H9: Adjustment | I9: Total | L9: Alloc Base | M9: Utah | N9: Wyoming | Q9: General | R9: PT | T9: General | U9: PT | W9: =+'Control Panel'!F11 -> Utah
Q10: Utah | T10: Wyoming | Y10: 1
A11: UTILITY OPERATING REVENUE | Y11: =Y10+1 -> 2
Y12: =Y11+1 -> 3
A13: TARIFF DTH SALES AND REVENUE | Y13: 4
Y14: 5
A15: Utah | Y15: 6
B16: GSR | C16: Distribution Non-Gas Rev | E16: =+G16-Adjustments!H16 -> 21330 | F16: =Revenue!$F$15 -> 249069692 | G16: =+Adjustments!X16 -> 21330 | I16: =SUM($F$16:$H$16) -> 249091022 | J16: =+I16-'ROR-Model'!I16 -> 0 | L16: Utah | M16: =VLOOKUP($L16,$L$2:$N$7,2,FALSE)*I16 -> 249091022 | N16: =VLOOKUP($L16,$L$2:$N$7,3,FALSE)*I16 -> 0 | O16: =SUM(M16:N16)-I16 -> 0 | P16: G | Q16: =IF(P16="G",M16,IF(P16="PT",0,ERR)) -> 249091022 | R16: =IF(P16="PT",M16,IF(P16="G",0,ERR)) -> 0 | S16: G | T16: =IF(S16="G",N16,IF(S16="PT",0,ERR)) -> 0 | U16: =IF(S16="PT",N16,IF(S16="G",0,ERR)) -> 0 | W16: =HLOOKUP($W$9,'ROR-Model'!$Q$10:$U$1267,Y16) -> 249091022 | Y16: 7
E17: =+G17-Adjustments!H17 -> 0 | J17: =+I17-'ROR-Model'!I17 -> 0 | Y17: 8
C18: Supplier Non-Gas Revenue | E18: =+G18-Adjustments!H18 -> 0 | F18: =Revenue!$F$17 -> 86515399 | G18: =+Adjustments!X18 -> 0 | I18: =SUM($F$18:$H$18) -> 86515399 | J18: =+I18-'ROR-Model'!I18 -> 0 | L18: Utah | M18: =VLOOKUP($L18,$L$2:$N$7,2,FALSE)*I18 -> 86515399 | N18: =VLOOKUP($L18,$L$2:$N$7,3,FALSE)*I18 -> 0 | P18: PT | Q18: =IF(P18="G",M18,IF(P18="PT",0,ERR)) -> 0 | R18: =IF(P18="PT",M18,IF(P18="G",0,ERR)) -> 86515399 | S18: PT | T18: =IF(S18="G",N18,IF(S18="PT",0,ERR)) -> 0 | U18: =IF(S18="PT",N18,IF(S18="G",0,ERR)) -> 0 | W18: =HLOOKUP($W$9,'ROR-Model'!$Q$10:$U$1267,Y18) -> 0 | Y18: 9
E19: =+G19-Adjustments!H19 -> 0 | J19: =+I19-'ROR-Model'!I19 -> 0 | Y19: 10
C20: Commodity Revenue | E20: =+G20-Adjustments!H20 -> 0 | F20: =Revenue!$F$19 -> 457175694 | G20: =+Adjustments!X20 -> 0 | I20: =SUM($F$20:$H$20) -> 457175694 | J20: =+I20-'ROR-Model'!I20 -> 0 | L20: Utah | M20: =VLOOKUP($L20,$L$2:$N$7,2,FALSE)*I20 -> 457175694 | N20: =VLOOKUP($L20,$L$2:$N$7,3,FALSE)*I20 -> 0 | P20: PT | Q20: =IF(P20="G",M20,IF(P20="PT",0,ERR)) -> 0 | R20: =IF(P20="PT",M20,IF(P20="G",0,ERR)) -> 457175694 | S20: PT | T20: =IF(S20="G",N20,IF(S20="PT",0,ERR)) -> 0 | U20: =IF(S20="PT",N20,IF(S20="G",0,ERR)) -> 0 | W20: =HLOOKUP($W$9,'ROR-Model'!$Q$10:$U$1267,Y20) -> 0 | Y20: 11
C21: Total Revenue | E21: =+G21-Adjustments!H21 -> 21330 | F21: =SUM(F16:F20) -> 792760785 | G21: =SUM(G16:G20) -> 21330 | H21: =SUM(H16:H20) -> 0 | I21: =SUM(I16:I20) -> 792782115 | J21: =+I21-'ROR-Model'!I21 -> 0 | M21: =SUM(M16:M20) -> 792782115 | N21: =SUM(N16:N20) -> 0 | Q21: =SUM(Q16:Q20) -> 249091022 | R21: =SUM(R16:R20) -> 543691093 | T21: =SUM(T16:T20) -> 0 | U21: =SUM(U16:U20) -> 0 | W21: =HLOOKUP($W$9,'ROR-Model'!$Q$10:$U$1267,Y21) -> 249091022 | Y21: 12
E22: =+G22-Adjustments!H22 -> 0 | J22: =+I22-'ROR-Model'!I22 -> 0 | Y22: 13
C23: Total Dth | E23: =+G23-Adjustments!H23 -> 0 | F23: =Revenue!$F$22 -> 103469715 | G23: =+Adjustments!X23 -> 0 | I23: =SUM($F$23:$H$23) -> 103469715 | J23: =+I23-'ROR-Model'!I23 -> 0 | L23: Utah | M23: =VLOOKUP($L23,$L$2:$N$7,2,FALSE)*I23 -> 103469715 | N23: =VLOOKUP($L23,$L$2:$N$7,3,FALSE)*I23 -> 0 | P23: G | Q23: =IF(P23="G",M23,IF(P23="PT",0,ERR)) -> 103469715 | R23: =IF(P23="PT",M23,IF(P23="G",0,ERR)) -> 0 | S23: G | T23: =IF(S23="G",N23,IF(S23="PT",0,ERR)) -> 0 | U23: =IF(S23="PT",N23,IF(S23="G",0,ERR)) -> 0 | W23: =HLOOKUP($W$9,'ROR-Model'!$Q$10:$U$1267,Y23) -> 103469715 | Y23: 14
E24: =+G24-Adjustments!H24 -> 0 | J24: =+I24-'ROR-Model'!I24 -> 0 | Y24: 15
B25: GSC | C25: Distribution Non-Gas Rev | E25: =+G25-Adjustments!H25 -> 0 | F25: =Revenue!$F$24 -> 0 | G25: =+Adjustments!X25 -> 0 | I25: =SUM($F$25:$H$25) -> 0 | J25: =+I25-'ROR-Model'!I25 -> 0 | L25: Utah | M25: =VLOOKUP($L25,$L$2:$N$7,2,FALSE)*I25 -> 0 | N25: =VLOOKUP($L25,$L$2:$N$7,3,FALSE)*I25 -> 0 | P25: G | Q25: =IF(P25="G",M25,IF(P25="PT",0,ERR)) -> 0 | R25: =IF(P25="PT",M25,IF(P25="G",0,ERR)) -> 0 | S25: G | T25: =IF(S25="G",N25,IF(S25="PT",0,ERR)) -> 0 | U25: =IF(S25="PT",N25,IF(S25="G",0,ERR)) -> 0 | W25: =HLOOKUP($W$9,'ROR-Model'!$Q$10:$U$1267,Y25) -> 0 | Y25: 16
E26: =+G26-Adjustments!H26 -> 0 | J26: =+I26-'ROR-Model'!I26 -> 0 | Y26: 17
C27: Supplier Non-Gas Revenue | E27: =+G27-Adjustments!H27 -> 0 | F27: =Revenue!$F$26 -> 0 | G27: =+Adjustments!X27 -> 0 | I27: =SUM($F$27:$H$27) -> 0 | J27: =+I27-'ROR-Model'!I27 -> 0 | L27: Utah | M27: =VLOOKUP($L27,$L$2:$N$7,2,FALSE)*I27 -> 0 | N27: =VLOOKUP($L27,$L$2:$N$7,3,FALSE)*I27 -> 0 | P27: PT | Q27: =IF(P27="G",M27,IF(P27="PT",0,ERR)) -> 0 | R27: =IF(P27="PT",M27,IF(P27="G",0,ERR)) -> 0 | S27: PT | T27: =IF(S27="G",N27,IF(S27="PT",0,ERR)) -> 0 | U27: =IF(S27="PT",N27,IF(S27="G",0,ERR)) -> 0 | W27: =HLOOKUP($W$9,'ROR-Model'!$Q$10:$U$1267,Y27) -> 0 | Y27: 18
E28: =+G28-Adjustments!H28 -> 0 | J28: =+I28-'ROR-Model'!I28 -> 0 | Y28: 19
C29: Commodity Revenue | E29: =+G29-Adjustments!H29 -> 0 | F29: =Revenue!$F$28 -> 0 | G29: =+Adjustments!X29 -> 0 | I29: =SUM($F$29:$H$29) -> 0 | J29: =+I29-'ROR-Model'!I29 -> 0 | L29: Utah | M29: =VLOOKUP($L29,$L$2:$N$7,2,FALSE)*I29 -> 0 | N29: =VLOOKUP($L29,$L$2:$N$7,3,FALSE)*I29 -> 0 | P29: PT | Q29: =IF(P29="G",M29,IF(P29="PT",0,ERR)) -> 0 | R29: =IF(P29="PT",M29,IF(P29="G",0,ERR)) -> 0 | S29: PT | T29: =IF(S29="G",N29,IF(S29="PT",0,ERR)) -> 0 | U29: =IF(S29="PT",N29,IF(S29="G",0,ERR)) -> 0 | W29: =HLOOKUP($W$9,'ROR-Model'!$Q$10:$U$1267,Y29) -> 0 | Y29: 20
C30: Total Revenue | E30: =+G30-Adjustments!H30 -> 0 | F30: =SUM(F25:F29) -> 0 | G30: =SUM(G25:G29) -> 0 | H30: =SUM(H25:H29) -> 0 | I30: =SUM(I25:I29) -> 0 | J30: =+I30-'ROR-Model'!I30 -> 0 | M30: =SUM(M25:M29) -> 0 | N30: =SUM(N25:N29) -> 0 | Q30: =SUM(Q25:Q29) -> 0 | R30: =SUM(R25:R29) -> 0 | T30: =SUM(T25:T29) -> 0 | U30: =SUM(U25:U29) -> 0 | W30: =HLOOKUP($W$9,'ROR-Model'!$Q$10:$U$1267,Y30) -> 0 | Y30: 21
E31: =+G31-Adjustments!H31 -> 0 | J31: =+I31-'ROR-Model'!I31 -> 0 | Y31: 22
C32: Total Dth | E32: =+G32-Adjustments!H32 -> 0 | F32: =Revenue!$F$31 -> 0 | G32: =+Adjustments!X32 -> 0 | I32: =SUM(F32:H32) -> 0 | J32: =+I32-'ROR-Model'!I32 -> 0 | L32: Utah | M32: =VLOOKUP($L32,$L$2:$N$7,2,FALSE)*I32 -> 0 | N32: =VLOOKUP($L32,$L$2:$N$7,3,FALSE)*I32 -> 0 | P32: G | Q32: =IF(P32="G",M32,IF(P32="PT",0,ERR)) -> 0 | R32: =IF(P32="PT",M32,IF(P32="G",0,ERR)) -> 0 | S32: G | T32: =IF(S32="G",N32,IF(S32="PT",0,ERR)) -> 0 | U32: =IF(S32="PT",N32,IF(S32="G",0,ERR)) -> 0 | W32: =HLOOKUP($W$9,'ROR-Model'!$Q$10:$U$1267,Y32) -> 0 | Y32: 23
E33: =+G33-Adjustments!H33 -> 0 | J33: =+I33-'ROR-Model'!I33 -> 0 | Y33: 24
B34: GSS | C34: Distribution Non-Gas Rev | E34: =+G34-Adjustments!H34 -> 0 | F34: =Revenue!$F$33 -> 0 | G34: =+Adjustments!X34 -> 0 | I34: =SUM(F34:H34) -> 0 | J34: =+I34-'ROR-Model'!I34 -> 0 | L34: Utah | M34: =VLOOKUP($L34,$L$2:$N$7,2,FALSE)*I34 -> 0 | N34: =VLOOKUP($L34,$L$2:$N$7,3,FALSE)*I34 -> 0 | P34: G | Q34: =IF(P34="G",M34,IF(P34="PT",0,ERR)) -> 0 | R34: =IF(P34="PT",M34,IF(P34="G",0,ERR)) -> 0 | S34: G | T34: =IF(S34="G",N34,IF(S34="PT",0,ERR)) -> 0 | U34: =IF(S34="PT",N34,IF(S34="G",0,ERR)) -> 0 | W34: =HLOOKUP($W$9,'ROR-Model'!$Q$10:$U$1267,Y34) -> 0 | Y34: 25
E35: =+G35-Adjustments!H35 -> 0 | J35: =+I35-'ROR-Model'!I35 -> 0 | Y35: 26
C36: Supplier Non-Gas Revenue | E36: =+G36-Adjustments!H36 -> 0 | F36: =Revenue!$F$35 -> 0 | G36: =+Adjustments!X36 -> 0 | I36: =SUM($F$36:$H$36) -> 0 | J36: =+I36-'ROR-Model'!I36 -> 0 | L36: Utah | M36: =VLOOKUP($L36,$L$2:$N$7,2,FALSE)*I36 -> 0 | N36: =VLOOKUP($L36,$L$2:$N$7,3,FALSE)*I36 -> 0 | P36: PT | Q36: =IF(P36="G",M36,IF(P36="PT",0,ERR)) -> 0 | R36: =IF(P36="PT",M36,IF(P36="G",0,ERR)) -> 0 | S36: PT | T36: =IF(S36="G",N36,IF(S36="PT",0,ERR)) -> 0 | U36: =IF(S36="PT",N36,IF(S36="G",0,ERR)) -> 0 | W36: =HLOOKUP($W$9,'ROR-Model'!$Q$10:$U$1267,Y36) -> 0 | Y36: 27
E37: =+G37-Adjustments!H37 -> 0 | J37: =+I37-'ROR-Model'!I37 -> 0 | Y37: 28
C38: Commodity Revenue | E38: =+G38-Adjustments!H38 -> 0 | F38: =Revenue!$F$37 -> 0 | G38: =+Adjustments!X38 -> 0 | I38: =SUM($F$38:$H$38) -> 0 | J38: =+I38-'ROR-Model'!I38 -> 0 | L38: Utah | M38: =VLOOKUP($L38,$L$2:$N$7,2,FALSE)*I38 -> 0 | N38: =VLOOKUP($L38,$L$2:$N$7,3,FALSE)*I38 -> 0 | P38: PT | Q38: =IF(P38="G",M38,IF(P38="PT",0,ERR)) -> 0 | R38: =IF(P38="PT",M38,IF(P38="G",0,ERR)) -> 0 | S38: PT | T38: =IF(S38="G",N38,IF(S38="PT",0,ERR)) -> 0 | U38: =IF(S38="PT",N38,IF(S38="G",0,ERR)) -> 0 | W38: =HLOOKUP($W$9,'ROR-Model'!$Q$10:$U$1267,Y38) -> 0 | Y38: 29
C39: Total Revenue | E39: =+G39-Adjustments!H39 -> 0 | F39: =SUM(F34:F38) -> 0 | G39: =SUM(G34:G38) -> 0 | H39: =SUM(H34:H38) -> 0 | I39: =SUM(I34:I38) -> 0 | J39: =+I39-'ROR-Model'!I39 -> 0 | M39: =SUM(M34:M38) -> 0 | N39: =SUM(N34:N38) -> 0 | Q39: =SUM(Q34:Q38) -> 0 | R39: =SUM(R34:R38) -> 0 | T39: =SUM(T34:T38) -> 0 | U39: =SUM(U34:U38) -> 0 | W39: =HLOOKUP($W$9,'ROR-Model'!$Q$10:$U$1267,Y39) -> 0 | Y39: 30
E40: =+G40-Adjustments!H40 -> 0 | J40: =+I40-'ROR-Model'!I40 -> 0 | Y40: 31
C41: Total Dth | E41: =+G41-Adjustments!H41 -> 0 | F41: =Revenue!$F$40 -> 0 | G41: =+Adjustments!X41 -> 0 | I41: =SUM($F$41:$H$41) -> 0 | J41: =+I41-'ROR-Model'!I41 -> 0 | L41: Utah | M41: =VLOOKUP($L41,$L$2:$N$7,2,FALSE)*I41 -> 0 | N41: =VLOOKUP($L41,$L$2:$N$7,3,FALSE)*I41 -> 0 | P41: G | Q41: =IF(P41="G",M41,IF(P41="PT",0,ERR)) -> 0 | R41: =IF(P41="PT",M41,IF(P41="G",0,ERR)) -> 0 | S41: G | T41: =IF(S41="G",N41,IF(S41="PT",0,ERR)) -> 0 | U41: =IF(S41="PT",N41,IF(S41="G",0,ERR)) -> 0 | W41: =HLOOKUP($W$9,'ROR-Model'!$Q$10:$U$1267,Y41) -> 0 | Y41: 32
E42: =+G42-Adjustments!H42 -> 0 | J42: =+I42-'ROR-Model'!I42 -> 0 | Y42: 33
B43: F-1 | C43: Distribution Non-Gas Rev | E43: =+G43-Adjustments!H43 -> 0 | F43: =Revenue!$F$42 -> 4910618 | G43: =+Adjustments!X43 -> 0 | I43: =SUM($F$43:$H$43) -> 4910618 | J43: =+I43-'ROR-Model'!I43 -> 0 | L43: Utah | M43: =VLOOKUP($L43,$L$2:$N$7,2,FALSE)*I43 -> 4910618 | N43: =VLOOKUP($L43,$L$2:$N$7,3,FALSE)*I43 -> 0 | P43: G | Q43: =IF(P43="G",M43,IF(P43="PT",0,ERR)) -> 4910618 | R43: =IF(P43="PT",M43,IF(P43="G",0,ERR)) -> 0 | S43: G | T43: =IF(S43="G",N43,IF(S43="PT",0,ERR)) -> 0 | U43: =IF(S43="PT",N43,IF(S43="G",0,ERR)) -> 0 | W43: =HLOOKUP($W$9,'ROR-Model'!$Q$10:$U$1267,Y43) -> 4910618 | Y43: 34
E44: =+G44-Adjustments!H44 -> 0 | J44: =+I44-'ROR-Model'!I44 -> 0 | Y44: 35
C45: Supplier Non-Gas Revenue | E45: =+G45-Adjustments!H45 -> 0 | F45: =Revenue!$F$44 -> 5614176 | G45: =+Adjustments!X45 -> 0 | I45: =SUM($F$45:$H$45) -> 5614176 | J45: =+I45-'ROR-Model'!I45 -> 0 | L45: Utah | M45: =VLOOKUP($L45,$L$2:$N$7,2,FALSE)*I45 -> 5614176 | N45: =VLOOKUP($L45,$L$2:$N$7,3,FALSE)*I45 -> 0 | P45: PT | Q45: =IF(P45="G",M45,IF(P45="PT",0,ERR)) -> 0 | R45: =IF(P45="PT",M45,IF(P45="G",0,ERR)) -> 5614176 | S45: PT | T45: =IF(S45="G",N45,IF(S45="PT",0,ERR)) -> 0 | U45: =IF(S45="PT",N45,IF(S45="G",0,ERR)) -> 0 | W45: =HLOOKUP($W$9,'ROR-Model'!$Q$10:$U$1267,Y45) -> 0 | Y45: 36
E46: =+G46-Adjustments!H46 -> 0 | J46: =+I46-'ROR-Model'!I46 -> 0 | Y46: 37
C47: Commodity Revenue | E47: =+G47-Adjustments!H47 -> 0 | F47: =Revenue!$F$46 -> 33088973 | G47: =+Adjustments!X47 -> 0 | I47: =SUM($F$47:$H$47) -> 33088973 | J47: =+I47-'ROR-Model'!I47 -> 0 | L47: Utah | M47: =VLOOKUP($L47,$L$2:$N$7,2,FALSE)*I47 -> 33088973 | N47: =VLOOKUP($L47,$L$2:$N$7,3,FALSE)*I47 -> 0 | P47: PT | Q47: =IF(P47="G",M47,IF(P47="PT",0,ERR)) -> 0 | R47: =IF(P47="PT",M47,IF(P47="G",0,ERR)) -> 33088973 | S47: PT | T47: =IF(S47="G",N47,IF(S47="PT",0,ERR)) -> 0 | U47: =IF(S47="PT",N47,IF(S47="G",0,ERR)) -> 0 | W47: =HLOOKUP($W$9,'ROR-Model'!$Q$10:$U$1267,Y47) -> 0 | Y47: 38
C48: Total Revenue | E48: =+G48-Adjustments!H48 -> 0 | F48: =SUM(F43:F47) -> 43613767 | G48: =SUM(G43:G47) -> 0 | H48: =SUM(H43:H47) -> 0 | I48: =SUM(I43:I47) -> 43613767 | J48: =+I48-'ROR-Model'!I48 -> 0 | M48: =SUM(M43:M47) -> 43613767 | N48: =SUM(N43:N47) -> 0 | Q48: =SUM(Q43:Q47) -> 4910618 | R48: =SUM(R43:R47) -> 38703149 | T48: =SUM(T43:T47) -> 0 | U48: =SUM(U43:U47) -> 0 | W48: =HLOOKUP($W$9,'ROR-Model'!$Q$10:$U$1267,Y48) -> 4910618 | Y48: 39
E49: =+G49-Adjustments!H49 -> 0 | J49: =+I49-'ROR-Model'!I49 -> 0 | Y49: 40
C50: Total Dth | E50: =+G50-Adjustments!H50 -> 0 | F50: =Revenue!$F$49 -> 7512495 | G50: =+Adjustments!X50 -> 0 | I50: =SUM($F$50:$H$50) -> 7512495 | J50: =+I50-'ROR-Model'!I50 -> 0 | L50: Utah | M50: =VLOOKUP($L50,$L$2:$N$7,2,FALSE)*I50 -> 7512495 | N50: =VLOOKUP($L50,$L$2:$N$7,3,FALSE)*I50 -> 0 | P50: G | Q50: =IF(P50="G",M50,IF(P50="PT",0,ERR)) -> 7512495 | R50: =IF(P50="PT",M50,IF(P50="G",0,ERR)) -> 0 | S50: G | T50: =IF(S50="G",N50,IF(S50="PT",0,ERR)) -> 0 | U50: =IF(S50="PT",N50,IF(S50="G",0,ERR)) -> 0 | W50: =HLOOKUP($W$9,'ROR-Model'!$Q$10:$U$1267,Y50) -> 7512495 | Y50: 41
E51: =+G51-Adjustments!H51 -> 0 | J51: =+I51-'ROR-Model'!I51 -> 0 | Y51: 42
B52: F-3 | C52: Distribution Non-Gas Rev | E52: =+G52-Adjustments!H52 -> 0 | F52: =Revenue!$F$51 -> 0 | G52: =+Adjustments!X52 -> 0 | I52: =SUM($F$52:$H$52) -> 0 | J52: =+I52-'ROR-Model'!I52 -> 0 | L52: Utah | M52: =VLOOKUP($L52,$L$2:$N$7,2,FALSE)*I52 -> 0 | N52: =VLOOKUP($L52,$L$2:$N$7,3,FALSE)*I52 -> 0 | P52: G | Q52: =IF(P52="G",M52,IF(P52="PT",0,ERR)) -> 0 | R52: =IF(P52="PT",M52,IF(P52="G",0,ERR)) -> 0 | S52: G | T52: =IF(S52="G",N52,IF(S52="PT",0,ERR)) -> 0 | U52: =IF(S52="PT",N52,IF(S52="G",0,ERR)) -> 0 | W52: =HLOOKUP($W$9,'ROR-Model'!$Q$10:$U$1267,Y52) -> 0 | Y52: 43
C53: Supplier Non-Gas Revenue | E53: =+G53-Adjustments!H53 -> 0 | I53: =SUM($F$53:$H$53) -> 0 | J53: =+I53-'ROR-Model'!I53 -> 0 | L53: Utah | M53: =VLOOKUP($L53,$L$2:$N$7,2,FALSE)*I53 -> 0 | N53: =VLOOKUP($L53,$L$2:$N$7,3,FALSE)*I53 -> 0 | P53: PT | Q53: =IF(P53="G",M53,IF(P53="PT",0,ERR)) -> 0 | R53: =IF(P53="PT",M53,IF(P53="G",0,ERR)) -> 0 | S53: PT | T53: =IF(S53="G",N53,IF(S53="PT",0,ERR)) -> 0 | U53: =IF(S53="PT",N53,IF(S53="G",0,ERR)) -> 0 | W53: =HLOOKUP($W$9,'ROR-Model'!$Q$10:$U$1267,Y53) -> 0 | Y53: 44
C54: Supplier Non-Gas Demand Revenue | E54: =+G54-Adjustments!H54 -> 0 | F54: =Revenue!$F$53 -> 0 | G54: =+Adjustments!X54 -> 0 | I54: =SUM($F$54:$H$54) -> 0 | J54: =+I54-'ROR-Model'!I54 -> 0 | L54: Utah | M54: =VLOOKUP($L54,$L$2:$N$7,2,FALSE)*I54 -> 0 | N54: =VLOOKUP($L54,$L$2:$N$7,3,FALSE)*I54 -> 0 | P54: PT | Q54: =IF(P54="G",M54,IF(P54="PT",0,ERR)) -> 0 | R54: =IF(P54="PT",M54,IF(P54="G",0,ERR)) -> 0 | S54: PT | T54: =IF(S54="G",N54,IF(S54="PT",0,ERR)) -> 0 | U54: =IF(S54="PT",N54,IF(S54="G",0,ERR)) -> 0 | W54: =HLOOKUP($W$9,'ROR-Model'!$Q$10:$U$1267,Y54) -> 0 | Y54: 45
C55: Commodity Tariff Revenue | E55: =+G55-Adjustments!H55 -> 0 | I55: =SUM($F$55:$H$55) -> 0 | J55: =+I55-'ROR-Model'!I55 -> 0 | L55: Utah | M55: =VLOOKUP($L55,$L$2:$N$7,2,FALSE)*I55 -> 0 | N55: =VLOOKUP($L55,$L$2:$N$7,3,FALSE)*I55 -> 0 | P55: PT | Q55: =IF(P55="G",M55,IF(P55="PT",0,ERR)) -> 0 | R55: =IF(P55="PT",M55,IF(P55="G",0,ERR)) -> 0 | S55: PT | T55: =IF(S55="G",N55,IF(S55="PT",0,ERR)) -> 0 | U55: =IF(S55="PT",N55,IF(S55="G",0,ERR)) -> 0 | W55: =HLOOKUP($W$9,'ROR-Model'!$Q$10:$U$1267,Y55) -> 0 | Y55: 46
C56: Commodity Demand Revenue | E56: =+G56-Adjustments!H56 -> 0 | F56: =Revenue!$F$55 -> 0 | G56: =+Adjustments!X56 -> 0 | I56: =SUM($F$56:$H$56) -> 0 | J56: =+I56-'ROR-Model'!I56 -> 0 | L56: Utah | M56: =VLOOKUP($L56,$L$2:$N$7,2,FALSE)*I56 -> 0 | N56: =VLOOKUP($L56,$L$2:$N$7,3,FALSE)*I56 -> 0 | P56: PT | Q56: =IF(P56="G",M56,IF(P56="PT",0,ERR)) -> 0 | R56: =IF(P56="PT",M56,IF(P56="G",0,ERR)) -> 0 | S56: PT | T56: =IF(S56="G",N56,IF(S56="PT",0,ERR)) -> 0 | U56: =IF(S56="PT",N56,IF(S56="G",0,ERR)) -> 0 | W56: =HLOOKUP($W$9,'ROR-Model'!$Q$10:$U$1267,Y56) -> 0 | Y56: 47
C57: Total Revenue | E57: =+G57-Adjustments!H57 -> 0 | F57: =SUM(F52:F56) -> 0 | G57: =SUM(G52:G56) -> 0 | H57: =SUM(H52:H56) -> 0 | I57: =SUM(I52:I56) -> 0 | J57: =+I57-'ROR-Model'!I57 -> 0 | M57: =SUM(M52:M56) -> 0 | N57: =SUM(N52:N56) -> 0 | Q57: =SUM(Q52:Q56) -> 0 | R57: =SUM(R52:R56) -> 0 | T57: =SUM(T52:T56) -> 0 | U57: =SUM(U52:U56) -> 0 | W57: =HLOOKUP($W$9,'ROR-Model'!$Q$10:$U$1267,Y57) -> 0 | Y57: 48
E58: =+G58-Adjustments!H58 -> 0 | J58: =+I58-'ROR-Model'!I58 -> 0 | Y58: 49
C59: Total Sales Dth | E59: =+G59-Adjustments!H59 -> 0 | F59: =Revenue!$F$58 -> 0 | G59: =+Adjustments!X59 -> 0 | I59: =SUM($F$59:$H$59) -> 0 | J59: =+I59-'ROR-Model'!I59 -> 0 | L59: Utah | M59: =VLOOKUP($L59,$L$2:$N$7,2,FALSE)*I59 -> 0 | N59: =VLOOKUP($L59,$L$2:$N$7,3,FALSE)*I59 -> 0 | P59: G | Q59: =IF(P59="G",M59,IF(P59="PT",0,ERR)) -> 0 | R59: =IF(P59="PT",M59,IF(P59="G",0,ERR)) -> 0 | S59: G | T59: =IF(S59="G",N59,IF(S59="PT",0,ERR)) -> 0 | U59: =IF(S59="PT",N59,IF(S59="G",0,ERR)) -> 0 | W59: =HLOOKUP($W$9,'ROR-Model'!$Q$10:$U$1267,Y59) -> 0 | Y59: 50
E60: =+G60-Adjustments!H60 -> 0 | J60: =+I60-'ROR-Model'!I60 -> 0 | W60: =HLOOKUP($W$9,'ROR-Model'!$Q$10:$U$1267,Y60) -> 0 | Y60: 51
B61: NGV | C61: Distribution Non-Gas Rev | E61: =+G61-Adjustments!H61 -> 0 | F61: =Revenue!$F$60 -> 3847157.869 | G61: =+Adjustments!X61 -> 0 | I61: =SUM($F$61:$H$61) -> 3847157.869 | J61: =+I61-'ROR-Model'!I61 -> 0 | L61: Utah | M61: =VLOOKUP($L61,$L$2:$N$7,2,FALSE)*I61 -> 3847157.869 | N61: =VLOOKUP($L61,$L$2:$N$7,3,FALSE)*I61 -> 0 | P61: G | Q61: =IF(P61="G",M61,IF(P61="PT",0,ERR)) -> 3847157.869 | R61: =IF(P61="PT",M61,IF(P61="G",0,ERR)) -> 0 | S61: G | T61: =IF(S61="G",N61,IF(S61="PT",0,ERR)) -> 0 | U61: =IF(S61="PT",N61,IF(S61="G",0,ERR)) -> 0 | W61: =HLOOKUP($W$9,'ROR-Model'!$Q$10:$U$1267,Y61) -> 3847157.869 | Y61: 52
E62: =+G62-Adjustments!H62 -> 0 | F62: =Revenue!$F$61 -> 0 | J62: =+I62-'ROR-Model'!I62 -> 0 | W62: =HLOOKUP($W$9,'ROR-Model'!$Q$10:$U$1267,Y62) -> 0 | Y62: 53
C63: Supplier Non-Gas Revenue | E63: =+G63-Adjustments!H63 -> 0 | F63: =Revenue!$F$62 -> 458306.9183 | G63: =+Adjustments!X63 -> 0 | I63: =SUM($F$63:$H$63) -> 458306.9183 | J63: =+I63-'ROR-Model'!I63 -> 0 | L63: Utah | M63: =VLOOKUP($L63,$L$2:$N$7,2,FALSE)*I63 -> 458306.9183 | N63: =VLOOKUP($L63,$L$2:$N$7,3,FALSE)*I63 -> 0 | P63: PT | Q63: =IF(P63="G",M63,IF(P63="PT",0,ERR)) -> 0 | R63: =IF(P63="PT",M63,IF(P63="G",0,ERR)) -> 458306.9183 | S63: PT | T63: =IF(S63="G",N63,IF(S63="PT",0,ERR)) -> 0 | U63: =IF(S63="PT",N63,IF(S63="G",0,ERR)) -> 0 | W63: =HLOOKUP($W$9,'ROR-Model'!$Q$10:$U$1267,Y63) -> 0 | Y63: 54
E64: =+G64-Adjustments!H64 -> 0 | F64: =Revenue!$F$63 -> 0 | J64: =+I64-'ROR-Model'!I64 -> 0 | W64: =HLOOKUP($W$9,'ROR-Model'!$Q$10:$U$1267,Y64) -> 0 | Y64: 55
C65: Commodity Revenue | E65: =+G65-Adjustments!H65 -> 0 | F65: =Revenue!$F$64 -> 2328793.922 | G65: =+Adjustments!X65 -> 0 | I65: =SUM($F$65:$H$65) -> 2328793.922 | J65: =+I65-'ROR-Model'!I65 -> 0 | L65: Utah | M65: =VLOOKUP($L65,$L$2:$N$7,2,FALSE)*I65 -> 2328793.922 | N65: =VLOOKUP($L65,$L$2:$N$7,3,FALSE)*I65 -> 0 | P65: PT | Q65: =IF(P65="G",M65,IF(P65="PT",0,ERR)) -> 0 | R65: =IF(P65="PT",M65,IF(P65="G",0,ERR)) -> 2328793.922 | S65: PT | T65: =IF(S65="G",N65,IF(S65="PT",0,ERR)) -> 0 | U65: =IF(S65="PT",N65,IF(S65="G",0,ERR)) -> 0 | W65: =HLOOKUP($W$9,'ROR-Model'!$Q$10:$U$1267,Y65) -> 0 | Y65: 56
C66: Total Revenue | E66: =+G66-Adjustments!H66 -> 0 | F66: =SUM(F61:F65) -> 6634258.71 | G66: =SUM(G61:G65) -> 0 | H66: =SUM(H61:H65) -> 0 | I66: =SUM(I61:I65) -> 6634258.71 | J66: =+I66-'ROR-Model'!I66 -> 0 | M66: =SUM(M61:M65) -> 6634258.71 | N66: =SUM(N61:N65) -> 0 | Q66: =SUM(Q61:Q65) -> 3847157.869 | R66: =SUM(R61:R65) -> 2787100.841 | T66: =SUM(T61:T65) -> 0 | U66: =SUM(U61:U65) -> 0 | W66: =HLOOKUP($W$9,'ROR-Model'!$Q$10:$U$1267,Y66) -> 3847157.869 | Y66: 57
E67: =+G67-Adjustments!H67 -> 0 | J67: =+I67-'ROR-Model'!I67 -> 0 | Y67: 58
C68: Total Dth | E68: =+G68-Adjustments!H68 -> 0 | F68: =Revenue!$F$67 -> 530145.71 | G68: =+Adjustments!X68 -> 0 | I68: =SUM($F$68:$H$68) -> 530145.71 | J68: =+I68-'ROR-Model'!I68 -> 0 | L68: Utah | M68: =VLOOKUP($L68,$L$2:$N$7,2,FALSE)*I68 -> 530145.71 | N68: =VLOOKUP($L68,$L$2:$N$7,3,FALSE)*I68 -> 0 | P68: G | Q68: =IF(P68="G",M68,IF(P68="PT",0,ERR)) -> 530145.71 | R68: =IF(P68="PT",M68,IF(P68="G",0,ERR)) -> 0 | S68: G | T68: =IF(S68="G",N68,IF(S68="PT",0,ERR)) -> 0 | U68: =IF(S68="PT",N68,IF(S68="G",0,ERR)) -> 0 | W68: =HLOOKUP($W$9,'ROR-Model'!$Q$10:$U$1267,Y68) -> 530145.71 | Y68: 59
E69: =+G69-Adjustments!H69 -> 0 | J69: =+I69-'ROR-Model'!I69 -> 0 | Y69: 60
B70: F-4 | C70: Distribution Non-Gas Rev | E70: =+G70-Adjustments!H70 -> 0 | F70: =Revenue!$F$69 -> 0 | G70: =+Adjustments!X70 -> 0 | I70: =SUM($F$70:$H$70) -> 0 | J70: =+I70-'ROR-Model'!I70 -> 0 | L70: Utah | M70: =VLOOKUP($L70,$L$2:$N$7,2,FALSE)*I70 -> 0 | N70: =VLOOKUP($L70,$L$2:$N$7,3,FALSE)*I70 -> 0 | P70: G | Q70: =IF(P70="G",M70,IF(P70="PT",0,ERR)) -> 0 | R70: =IF(P70="PT",M70,IF(P70="G",0,ERR)) -> 0 | S70: G | T70: =IF(S70="G",N70,IF(S70="PT",0,ERR)) -> 0 | U70: =IF(S70="PT",N70,IF(S70="G",0,ERR)) -> 0 | W70: =HLOOKUP($W$9,'ROR-Model'!$Q$10:$U$1267,Y70) -> 0 | Y70: 61
E71: =+G71-Adjustments!H71 -> 0 | J71: =+I71-'ROR-Model'!I71 -> 0 | Y71: 62
C72: Supplier Non-Gas Revenue | E72: =+G72-Adjustments!H72 -> 0 | F72: =Revenue!$F$71 -> 0 | G72: =+Adjustments!X72 -> 0 | I72: =SUM($F$72:$H$72) -> 0 | J72: =+I72-'ROR-Model'!I72 -> 0 | L72: Utah | M72: =VLOOKUP($L72,$L$2:$N$7,2,FALSE)*I72 -> 0 | N72: =VLOOKUP($L72,$L$2:$N$7,3,FALSE)*I72 -> 0 | P72: PT | Q72: =IF(P72="G",M72,IF(P72="PT",0,ERR)) -> 0 | R72: =IF(P72="PT",M72,IF(P72="G",0,ERR)) -> 0 | S72: PT | T72: =IF(S72="G",N72,IF(S72="PT",0,ERR)) -> 0 | U72: =IF(S72="PT",N72,IF(S72="G",0,ERR)) -> 0 | W72: =HLOOKUP($W$9,'ROR-Model'!$Q$10:$U$1267,Y72) -> 0 | Y72: 63
E73: =+G73-Adjustments!H73 -> 0 | J73: =+I73-'ROR-Model'!I73 -> 0 | Y73: 64
C74: Commodity Revenue | E74: =+G74-Adjustments!H74 -> 0 | F74: =Revenue!$F$73 -> 0 | G74: =+Adjustments!X74 -> 0 | I74: =SUM($F$74:$H$74) -> 0 | J74: =+I74-'ROR-Model'!I74 -> 0 | L74: Utah | M74: =VLOOKUP($L74,$L$2:$N$7,2,FALSE)*I74 -> 0 | N74: =VLOOKUP($L74,$L$2:$N$7,3,FALSE)*I74 -> 0 | P74: PT | Q74: =IF(P74="G",M74,IF(P74="PT",0,ERR)) -> 0 | R74: =IF(P74="PT",M74,IF(P74="G",0,ERR)) -> 0 | S74: PT | T74: =IF(S74="G",N74,IF(S74="PT",0,ERR)) -> 0 | U74: =IF(S74="PT",N74,IF(S74="G",0,ERR)) -> 0 | W74: =HLOOKUP($W$9,'ROR-Model'!$Q$10:$U$1267,Y74) -> 0 | Y74: 65
C75: Total Revenue | E75: =+G75-Adjustments!H75 -> 0 | F75: =SUM(F70:F74) -> 0 | G75: =SUM(G70:G74) -> 0 | H75: =SUM(H70:H74) -> 0 | I75: =SUM(I70:I74) -> 0 | J75: =+I75-'ROR-Model'!I75 -> 0 | M75: =SUM(M70:M74) -> 0 | N75: =SUM(N70:N74) -> 0 | Q75: =SUM(Q70:Q74) -> 0 | R75: =SUM(R70:R74) -> 0 | T75: =SUM(T70:T74) -> 0 | U75: =SUM(U70:U74) -> 0 | W75: =HLOOKUP($W$9,'ROR-Model'!$Q$10:$U$1267,Y75) -> 0 | Y75: 66
E76: =+G76-Adjustments!H76 -> 0 | J76: =+I76-'ROR-Model'!I76 -> 0 | Y76: =Y75+1 -> 67
C77: Total Dth | E77: =+G77-Adjustments!H77 -> 0 | F77: =Revenue!$F$76 -> 0 | G77: =+Adjustments!X77 -> 0 | I77: =SUM($F$77:$H$77) -> 0 | J77: =+I77-'ROR-Model'!I77 -> 0 | L77: Utah | M77: =VLOOKUP($L77,$L$2:$N$7,2,FALSE)*I77 -> 0 | N77: =VLOOKUP($L77,$L$2:$N$7,3,FALSE)*I77 -> 0 | P77: G | Q77: =IF(P77="G",M77,IF(P77="PT",0,ERR)) -> 0 | R77: =IF(P77="PT",M77,IF(P77="G",0,ERR)) -> 0 | S77: G | T77: =IF(S77="G",N77,IF(S77="PT",0,ERR)) -> 0 | U77: =IF(S77="PT",N77,IF(S77="G",0,ERR)) -> 0 | W77: =HLOOKUP($W$9,'ROR-Model'!$Q$10:$U$1267,Y77) -> 0 | Y77: 68
E78: =+G78-Adjustments!H78 -> 0 | J78: =+I78-'ROR-Model'!I78 -> 0 | Y78: 69
B79: Blank | C79: Distribution Non-Gas Rev | E79: =+G79-Adjustments!H79 -> 0 | F79: =Revenue!$F$78 -> 0 | G79: =+Adjustments!X79 -> 0 | I79: =SUM($F$79:$H$79) -> 0 | J79: =+I79-'ROR-Model'!I79 -> 0 | L79: Utah | M79: =VLOOKUP($L79,$L$2:$N$7,2,FALSE)*I79 -> 0 | N79: =VLOOKUP($L79,$L$2:$N$7,3,FALSE)*I79 -> 0 | P79: G | Q79: =IF(P79="G",M79,IF(P79="PT",0,ERR)) -> 0 | R79: =IF(P79="PT",M79,IF(P79="G",0,ERR)) -> 0 | S79: G | T79: =IF(S79="G",N79,IF(S79="PT",0,ERR)) -> 0 | U79: =IF(S79="PT",N79,IF(S79="G",0,ERR)) -> 0 | W79: =HLOOKUP($W$9,'ROR-Model'!$Q$10:$U$1267,Y79) -> 0 | Y79: 70
E80: =+G80-Adjustments!H80 -> 0 | J80: =+I80-'ROR-Model'!I80 -> 0 | Y80: 71
C81: Supplier Non-Gas Revenue | E81: =+G81-Adjustments!H81 -> 0 | F81: =Revenue!$F$80 -> 0 | G81: =+Adjustments!X81 -> 0 | I81: =SUM($F$81:$H$81) -> 0 | J81: =+I81-'ROR-Model'!I81 -> 0 | L81: Utah | M81: =VLOOKUP($L81,$L$2:$N$7,2,FALSE)*I81 -> 0 | N81: =VLOOKUP($L81,$L$2:$N$7,3,FALSE)*I81 -> 0 | P81: PT | Q81: =IF(P81="G",M81,IF(P81="PT",0,ERR)) -> 0 | R81: =IF(P81="PT",M81,IF(P81="G",0,ERR)) -> 0 | S81: PT | T81: =IF(S81="G",N81,IF(S81="PT",0,ERR)) -> 0 | U81: =IF(S81="PT",N81,IF(S81="G",0,ERR)) -> 0 | W81: =HLOOKUP($W$9,'ROR-Model'!$Q$10:$U$1267,Y81) -> 0 | Y81: 72
E82: =+G82-Adjustments!H82 -> 0 | J82: =+I82-'ROR-Model'!I82 -> 0 | Y82: 73
C83: Commodity Revenue | E83: =+G83-Adjustments!H83 -> 0 | F83: =Revenue!$F$82 -> 0 | G83: =+Adjustments!X83 -> 0 | I83: =SUM($F$83:$H$83) -> 0 | J83: =+I83-'ROR-Model'!I83 -> 0 | L83: Utah | M83: =VLOOKUP($L83,$L$2:$N$7,2,FALSE)*I83 -> 0 | N83: =VLOOKUP($L83,$L$2:$N$7,3,FALSE)*I83 -> 0 | P83: PT | Q83: =IF(P83="G",M83,IF(P83="PT",0,ERR)) -> 0 | R83: =IF(P83="PT",M83,IF(P83="G",0,ERR)) -> 0 | S83: PT | T83: =IF(S83="G",N83,IF(S83="PT",0,ERR)) -> 0 | U83: =IF(S83="PT",N83,IF(S83="G",0,ERR)) -> 0 | W83: =HLOOKUP($W$9,'ROR-Model'!$Q$10:$U$1267,Y83) -> 0 | Y83: 74
C84: Total Revenue | E84: =+G84-Adjustments!H84 -> 0 | F84: =SUM(F79:F83) -> 0 | G84: =SUM(G79:G83) -> 0 | H84: =SUM(H79:H83) -> 0 | I84: =SUM(I79:I83) -> 0 | J84: =+I84-'ROR-Model'!I84 -> 0 | M84: =SUM(M79:M83) -> 0 | N84: =SUM(N79:N83) -> 0 | Q84: =SUM(Q79:Q83) -> 0 | R84: =SUM(R79:R83) -> 0 | T84: =SUM(T79:T83) -> 0 | U84: =SUM(U79:U83) -> 0 | W84: =HLOOKUP($W$9,'ROR-Model'!$Q$10:$U$1267,Y84) -> 0 | Y84: 75
E85: =+G85-Adjustments!H85 -> 0 | J85: =+I85-'ROR-Model'!I85 -> 0 | Y85: 76
C86: Total Dth | E86: =+G86-Adjustments!H86 -> 0 | F86: =Revenue!$F$85 -> 0 | G86: =+Adjustments!X86 -> 0 | I86: =SUM($F$86:$H$86) -> 0 | J86: =+I86-'ROR-Model'!I86 -> 0 | L86: Utah | M86: =VLOOKUP($L86,$L$2:$N$7,2,FALSE)*I86 -> 0 | N86: =VLOOKUP($L86,$L$2:$N$7,3,FALSE)*I86 -> 0 | P86: G | Q86: =IF(P86="G",M86,IF(P86="PT",0,ERR)) -> 0 | R86: =IF(P86="PT",M86,IF(P86="G",0,ERR)) -> 0 | S86: G | T86: =IF(S86="G",N86,IF(S86="PT",0,ERR)) -> 0 | U86: =IF(S86="PT",N86,IF(S86="G",0,ERR)) -> 0 | W86: =HLOOKUP($W$9,'ROR-Model'!$Q$10:$U$1267,Y86) -> 0 | Y86: 77
E87: =+G87-Adjustments!H87 -> 0 | J87: =+I87-'ROR-Model'!I87 -> 0 | Y87: 78
B88: I-4 | C88: Distribution Non-Gas Rev | E88: =+G88-Adjustments!H88 -> 0 | F88: =Revenue!$F$87 -> 0 | G88: =+Adjustments!X88 -> 0 | I88: =SUM($F$88:$H$88) -> 0 | J88: =+I88-'ROR-Model'!I88 -> 0 | L88: Utah | M88: =VLOOKUP($L88,$L$2:$N$7,2,FALSE)*I88 -> 0 | N88: =VLOOKUP($L88,$L$2:$N$7,3,FALSE)*I88 -> 0 | P88: G | Q88: =IF(P88="G",M88,IF(P88="PT",0,ERR)) -> 0 | R88: =IF(P88="PT",M88,IF(P88="G",0,ERR)) -> 0 | S88: G | T88: =IF(S88="G",N88,IF(S88="PT",0,ERR)) -> 0 | U88: =IF(S88="PT",N88,IF(S88="G",0,ERR)) -> 0 | W88: =HLOOKUP($W$9,'ROR-Model'!$Q$10:$U$1267,Y88) -> 0 | Y88: 79
E89: =+G89-Adjustments!H89 -> 0 | J89: =+I89-'ROR-Model'!I89 -> 0 | Y89: 80
C90: Supplier Non-Gas Revenue | E90: =+G90-Adjustments!H90 -> 0 | F90: =Revenue!$F$89 -> 0 | G90: =+Adjustments!X90 -> 0 | I90: =SUM($F$90:$H$90) -> 0 | J90: =+I90-'ROR-Model'!I90 -> 0 | L90: Utah | M90: =VLOOKUP($L90,$L$2:$N$7,2,FALSE)*I90 -> 0 | N90: =VLOOKUP($L90,$L$2:$N$7,3,FALSE)*I90 -> 0 | P90: PT | Q90: =IF(P90="G",M90,IF(P90="PT",0,ERR)) -> 0 | R90: =IF(P90="PT",M90,IF(P90="G",0,ERR)) -> 0 | S90: PT | T90: =IF(S90="G",N90,IF(S90="PT",0,ERR)) -> 0 | U90: =IF(S90="PT",N90,IF(S90="G",0,ERR)) -> 0 | W90: =HLOOKUP($W$9,'ROR-Model'!$Q$10:$U$1267,Y90) -> 0 | Y90: 81
E91: =+G91-Adjustments!H91 -> 0 | J91: =+I91-'ROR-Model'!I91 -> 0 | Y91: 82
C92: Commodity Revenue | E92: =+G92-Adjustments!H92 -> 0 | F92: =Revenue!$F$91 -> 0 | G92: =+Adjustments!X92 -> 0 | I92: =SUM($F$92:$H$92) -> 0 | J92: =+I92-'ROR-Model'!I92 -> 0 | L92: Utah | M92: =VLOOKUP($L92,$L$2:$N$7,2,FALSE)*I92 -> 0 | N92: =VLOOKUP($L92,$L$2:$N$7,3,FALSE)*I92 -> 0 | P92: PT | Q92: =IF(P92="G",M92,IF(P92="PT",0,ERR)) -> 0 | R92: =IF(P92="PT",M92,IF(P92="G",0,ERR)) -> 0 | S92: PT | T92: =IF(S92="G",N92,IF(S92="PT",0,ERR)) -> 0 | U92: =IF(S92="PT",N92,IF(S92="G",0,ERR)) -> 0 | W92: =HLOOKUP($W$9,'ROR-Model'!$Q$10:$U$1267,Y92) -> 0 | Y92: 83
C93: Total Revenue | E93: =+G93-Adjustments!H93 -> 0 | F93: =SUM(F88:F92) -> 0 | G93: =SUM(G88:G92) -> 0 | H93: =SUM(H88:H92) -> 0 | I93: =SUM(I88:I92) -> 0 | J93: =+I93-'ROR-Model'!I93 -> 0 | M93: =SUM(M88:M92) -> 0 | N93: =SUM(N88:N92) -> 0 | Q93: =SUM(Q88:Q92) -> 0 | R93: =SUM(R88:R92) -> 0 | T93: =SUM(T88:T92) -> 0 | U93: =SUM(U88:U92) -> 0 | W93: =HLOOKUP($W$9,'ROR-Model'!$Q$10:$U$1267,Y93) -> 0 | Y93: 84
E94: =+G94-Adjustments!H94 -> 0 | J94: =+I94-'ROR-Model'!I94 -> 0 | Y94: 85
C95: Total Dth | E95: =+G95-Adjustments!H95 -> 0 | F95: =Revenue!$F$94 -> 0 | G95: =+Adjustments!X95 -> 0 | I95: =SUM($F$95:$H$95) -> 0 | J95: =+I95-'ROR-Model'!I95 -> 0 | L95: Utah | M95: =VLOOKUP($L95,$L$2:$N$7,2,FALSE)*I95 -> 0 | N95: =VLOOKUP($L95,$L$2:$N$7,3,FALSE)*I95 -> 0 | P95: G | Q95: =IF(P95="G",M95,IF(P95="PT",0,ERR)) -> 0 | R95: =IF(P95="PT",M95,IF(P95="G",0,ERR)) -> 0 | S95: G | T95: =IF(S95="G",N95,IF(S95="PT",0,ERR)) -> 0 | U95: =IF(S95="PT",N95,IF(S95="G",0,ERR)) -> 0 | W95: =HLOOKUP($W$9,'ROR-Model'!$Q$10:$U$1267,Y95) -> 0 | Y95: 86
E96: =+G96-Adjustments!H96 -> 0 | J96: =+I96-'ROR-Model'!I96 -> 0 | Y96: 87
B97: Blank | C97: Distribution Non-Gas Rev | E97: =+G97-Adjustments!H97 -> 0 | F97: =Revenue!$F$96 -> 782555 | G97: =+Adjustments!X97 -> 0 | I97: =SUM($F$97:$H$97) -> 782555 | J97: =+I97-'ROR-Model'!I97 -> 0 | L97: Utah | M97: =VLOOKUP($L97,$L$2:$N$7,2,FALSE)*I97 -> 782555 | N97: =VLOOKUP($L97,$L$2:$N$7,3,FALSE)*I97 -> 0 | P97: G | Q97: =IF(P97="G",M97,IF(P97="PT",0,ERR)) -> 782555 | R97: =IF(P97="PT",M97,IF(P97="G",0,ERR)) -> 0 | S97: G | T97: =IF(S97="G",N97,IF(S97="PT",0,ERR)) -> 0 | U97: =IF(S97="PT",N97,IF(S97="G",0,ERR)) -> 0 | W97: =HLOOKUP($W$9,'ROR-Model'!$Q$10:$U$1267,Y97) -> 782555 | Y97: 88
E98: =+G98-Adjustments!H98 -> 0 | J98: =+I98-'ROR-Model'!I98 -> 0 | Y98: 89
C99: Supplier Non-Gas Revenue | E99: =+G99-Adjustments!H99 -> 0 | F99: =Revenue!$F$98 -> 473689 | G99: =+Adjustments!X99 -> 0 | I99: =SUM($F$99:$H$99) -> 473689 | J99: =+I99-'ROR-Model'!I99 -> 0 | L99: Utah | M99: =VLOOKUP($L99,$L$2:$N$7,2,FALSE)*I99 -> 473689 | N99: =VLOOKUP($L99,$L$2:$N$7,3,FALSE)*I99 -> 0 | P99: PT | Q99: =IF(P99="G",M99,IF(P99="PT",0,ERR)) -> 0 | R99: =IF(P99="PT",M99,IF(P99="G",0,ERR)) -> 473689 | S99: PT | T99: =IF(S99="G",N99,IF(S99="PT",0,ERR)) -> 0 | U99: =IF(S99="PT",N99,IF(S99="G",0,ERR)) -> 0 | W99: =HLOOKUP($W$9,'ROR-Model'!$Q$10:$U$1267,Y99) -> 0 | Y99: 90
E100: =+G100-Adjustments!H100 -> 0 | J100: =+I100-'ROR-Model'!I100 -> 0 | Y100: 91
C101: Commodity Revenue | E101: =+G101-Adjustments!H101 -> 0 | F101: =Revenue!$F$100 -> 10442002 | G101: =+Adjustments!X101 -> 0 | I101: =SUM($F$101:$H$101) -> 10442002 | J101: =+I101-'ROR-Model'!I101 -> 0 | L101: Utah | M101: =VLOOKUP($L101,$L$2:$N$7,2,FALSE)*I101 -> 10442002 | N101: =VLOOKUP($L101,$L$2:$N$7,3,FALSE)*I101 -> 0 | P101: PT | Q101: =IF(P101="G",M101,IF(P101="PT",0,ERR)) -> 0 | R101: =IF(P101="PT",M101,IF(P101="G",0,ERR)) -> 10442002 | S101: PT | T101: =IF(S101="G",N101,IF(S101="PT",0,ERR)) -> 0 | U101: =IF(S101="PT",N101,IF(S101="G",0,ERR)) -> 0 | W101: =HLOOKUP($W$9,'ROR-Model'!$Q$10:$U$1267,Y101) -> 0 | Y101: 92
C102: Total Revenue | E102: =+G102-Adjustments!H102 -> 0 | F102: =SUM(F97:F101) -> 11698246 | G102: =SUM(G97:G101) -> 0 | H102: =SUM(H97:H101) -> 0 | I102: =SUM(I97:I101) -> 11698246 | J102: =+I102-'ROR-Model'!I102 -> 0 | M102: =SUM(M97:M101) -> 11698246 | N102: =SUM(N97:N101) -> 0 | Q102: =SUM(Q97:Q101) -> 782555 | R102: =SUM(R97:R101) -> 10915691 | T102: =SUM(T97:T101) -> 0 | U102: =SUM(U97:U101) -> 0 | W102: =HLOOKUP($W$9,'ROR-Model'!$Q$10:$U$1267,Y102) -> 782555 | Y102: 93
E103: =+G103-Adjustments!H103 -> 0 | J103: =+I103-'ROR-Model'!I103 -> 0 | Y103: 94
C104: Total Dth | E104: =+G104-Adjustments!H104 -> 0 | F104: =Revenue!$F$103 -> 2628324 | G104: =+Adjustments!X104 -> 0 | I104: =SUM($F$104:$H$104) -> 2628324 | J104: =+I104-'ROR-Model'!I104 -> 0 | L104: Utah | M104: =VLOOKUP($L104,$L$2:$N$7,2,FALSE)*I104 -> 2628324 | N104: =VLOOKUP($L104,$L$2:$N$7,3,FALSE)*I104 -> 0 | P104: G | Q104: =IF(P104="G",M104,IF(P104="PT",0,ERR)) -> 2628324 | R104: =IF(P104="PT",M104,IF(P104="G",0,ERR)) -> 0 | S104: G | T104: =IF(S104="G",N104,IF(S104="PT",0,ERR)) -> 0 | U104: =IF(S104="PT",N104,IF(S104="G",0,ERR)) -> 0 | W104: =HLOOKUP($W$9,'ROR-Model'!$Q$10:$U$1267,Y104) -> 2628324 | Y104: 95
E105: =+G105-Adjustments!H105 -> 0 | J105: =+I105-'ROR-Model'!I105 -> 0 | Y105: 96
B106: IS-4 | C106: Distribution Non-Gas Rev | E106: =+G106-Adjustments!H106 -> 0 | F106: =Revenue!$F$105 -> 0 | G106: =+Adjustments!X106 -> 0 | I106: =SUM($F$106:$H$106) -> 0 | J106: =+I106-'ROR-Model'!I106 -> 0 | L106: Utah | M106: =VLOOKUP($L106,$L$2:$N$7,2,FALSE)*I106 -> 0 | N106: =VLOOKUP($L106,$L$2:$N$7,3,FALSE)*I106 -> 0 | P106: G | Q106: =IF(P106="G",M106,IF(P106="PT",0,ERR)) -> 0 | R106: =IF(P106="PT",M106,IF(P106="G",0,ERR)) -> 0 | S106: G | T106: =IF(S106="G",N106,IF(S106="PT",0,ERR)) -> 0 | U106: =IF(S106="PT",N106,IF(S106="G",0,ERR)) -> 0 | W106: =HLOOKUP($W$9,'ROR-Model'!$Q$10:$U$1267,Y106) -> 0 | Y106: 97
E107: =+G107-Adjustments!H107 -> 0 | J107: =+I107-'ROR-Model'!I107 -> 0 | Y107: 98
C108: Supplier Non-Gas Revenue | E108: =+G108-Adjustments!H108 -> 0 | F108: =Revenue!$F$107 -> 0 | G108: =+Adjustments!X108 -> 0 | I108: =SUM($F$108:$H$108) -> 0 | J108: =+I108-'ROR-Model'!I108 -> 0 | L108: Utah | M108: =VLOOKUP($L108,$L$2:$N$7,2,FALSE)*I108 -> 0 | N108: =VLOOKUP($L108,$L$2:$N$7,3,FALSE)*I108 -> 0 | P108: PT | Q108: =IF(P108="G",M108,IF(P108="PT",0,ERR)) -> 0 | R108: =IF(P108="PT",M108,IF(P108="G",0,ERR)) -> 0 | S108: PT | T108: =IF(S108="G",N108,IF(S108="PT",0,ERR)) -> 0 | U108: =IF(S108="PT",N108,IF(S108="G",0,ERR)) -> 0 | W108: =HLOOKUP($W$9,'ROR-Model'!$Q$10:$U$1267,Y108) -> 0 | Y108: 99
E109: =+G109-Adjustments!H109 -> 0 | J109: =+I109-'ROR-Model'!I109 -> 0 | Y109: 100
C110: Commodity Revenue | E110: =+G110-Adjustments!H110 -> 0 | F110: =Revenue!$F$109 -> 0 | G110: =+Adjustments!X110 -> 0 | I110: =SUM($F$110:$H$110) -> 0 | J110: =+I110-'ROR-Model'!I110 -> 0 | L110: Utah | M110: =VLOOKUP($L110,$L$2:$N$7,2,FALSE)*I110 -> 0 | N110: =VLOOKUP($L110,$L$2:$N$7,3,FALSE)*I110 -> 0 | P110: PT | Q110: =IF(P110="G",M110,IF(P110="PT",0,ERR)) -> 0 | R110: =IF(P110="PT",M110,IF(P110="G",0,ERR)) -> 0 | S110: PT | T110: =IF(S110="G",N110,IF(S110="PT",0,ERR)) -> 0 | U110: =IF(S110="PT",N110,IF(S110="G",0,ERR)) -> 0 | W110: =HLOOKUP($W$9,'ROR-Model'!$Q$10:$U$1267,Y110) -> 0 | Y110: 101
C111: Total Revenue | E111: =+G111-Adjustments!H111 -> 0 | F111: =SUM(F106:F110) -> 0 | G111: =SUM(G106:G110) -> 0 | H111: =SUM(H106:H110) -> 0 | I111: =SUM(I106:I110) -> 0 | J111: =+I111-'ROR-Model'!I111 -> 0 | M111: =SUM(M106:M110) -> 0 | N111: =SUM(N106:N110) -> 0 | Q111: =SUM(Q106:Q110) -> 0 | R111: =SUM(R106:R110) -> 0 | T111: =SUM(T106:T110) -> 0 | U111: =SUM(U106:U110) -> 0 | W111: =HLOOKUP($W$9,'ROR-Model'!$Q$10:$U$1267,Y111) -> 0 | Y111: 102
E112: =+G112-Adjustments!H112 -> 0 | J112: =+I112-'ROR-Model'!I112 -> 0 | Y112: 103
C113: Total Dth | E113: =+G113-Adjustments!H113 -> 0 | F113: =Revenue!$F$112 -> 0 | G113: =+Adjustments!X113 -> 0 | I113: =SUM($F$113:$H$113) -> 0 | J113: =+I113-'ROR-Model'!I113 -> 0 | L113: Utah | M113: =VLOOKUP($L113,$L$2:$N$7,2,FALSE)*I113 -> 0 | N113: =VLOOKUP($L113,$L$2:$N$7,3,FALSE)*I113 -> 0 | P113: G | Q113: =IF(P113="G",M113,IF(P113="PT",0,ERR)) -> 0 | R113: =IF(P113="PT",M113,IF(P113="G",0,ERR)) -> 0 | S113: G | T113: =IF(S113="G",N113,IF(S113="PT",0,ERR)) -> 0 | U113: =IF(S113="PT",N113,IF(S113="G",0,ERR)) -> 0 | W113: =HLOOKUP($W$9,'ROR-Model'!$Q$10:$U$1267,Y113) -> 0 | Y113: 104
E114: =+G114-Adjustments!H114 -> 0 | J114: =+I114-'ROR-Model'!I114 -> 0 | Y114: 105
B115: FT1-L | C115: Distribution Non-Gas Rev | E115: =+G115-Adjustments!H115 -> 0 | F115: =Revenue!$F$114 -> 0 | G115: =+Adjustments!X115 -> 0 | I115: =SUM($F$115:$H$115) -> 0 | J115: =+I115-'ROR-Model'!I115 -> 0 | L115: Utah | M115: =VLOOKUP($L115,$L$2:$N$7,2,FALSE)*I115 -> 0 | N115: =VLOOKUP($L115,$L$2:$N$7,3,FALSE)*I115 -> 0 | P115: G | Q115: =IF(P115="G",M115,IF(P115="PT",0,ERR)) -> 0 | R115: =IF(P115="PT",M115,IF(P115="G",0,ERR)) -> 0 | S115: G | T115: =IF(S115="G",N115,IF(S115="PT",0,ERR)) -> 0 | U115: =IF(S115="PT",N115,IF(S115="G",0,ERR)) -> 0 | W115: =HLOOKUP($W$9,'ROR-Model'!$Q$10:$U$1267,Y115) -> 0 | Y115: 106
E116: =+G116-Adjustments!H116 -> 0 | J116: =+I116-'ROR-Model'!I116 -> 0 | Y116: 107
C117: Supplier Non-Gas Revenue | E117: =+G117-Adjustments!H117 -> 0 | F117: =Revenue!$F$116 -> 0 | G117: =+Adjustments!X117 -> 0 | I117: =SUM($F$117:$H$117) -> 0 | J117: =+I117-'ROR-Model'!I117 -> 0 | L117: Utah | M117: =VLOOKUP($L117,$L$2:$N$7,2,FALSE)*I117 -> 0 | N117: =VLOOKUP($L117,$L$2:$N$7,3,FALSE)*I117 -> 0 | P117: PT | Q117: =IF(P117="G",M117,IF(P117="PT",0,ERR)) -> 0 | R117: =IF(P117="PT",M117,IF(P117="G",0,ERR)) -> 0 | S117: PT | T117: =IF(S117="G",N117,IF(S117="PT",0,ERR)) -> 0 | U117: =IF(S117="PT",N117,IF(S117="G",0,ERR)) -> 0 | W117: =HLOOKUP($W$9,'ROR-Model'!$Q$10:$U$1267,Y117) -> 0 | Y117: 108
E118: =+G118-Adjustments!H118 -> 0 | J118: =+I118-'ROR-Model'!I118 -> 0 | Y118: 109
C119: Commodity Revenue | E119: =+G119-Adjustments!H119 -> 0 | F119: =Revenue!$F$118 -> 0 | G119: =+Adjustments!X119 -> 0 | I119: =SUM($F$119:$H$119) -> 0 | J119: =+I119-'ROR-Model'!I119 -> 0 | L119: Utah | M119: =VLOOKUP($L119,$L$2:$N$7,2,FALSE)*I119 -> 0 | N119: =VLOOKUP($L119,$L$2:$N$7,3,FALSE)*I119 -> 0 | P119: PT | Q119: =IF(P119="G",M119,IF(P119="PT",0,ERR)) -> 0 | R119: =IF(P119="PT",M119,IF(P119="G",0,ERR)) -> 0 | S119: PT | T119: =IF(S119="G",N119,IF(S119="PT",0,ERR)) -> 0 | U119: =IF(S119="PT",N119,IF(S119="G",0,ERR)) -> 0 | W119: =HLOOKUP($W$9,'ROR-Model'!$Q$10:$U$1267,Y119) -> 0 | Y119: 110
C120: Total Revenue | E120: =+G120-Adjustments!H120 -> 0 | F120: =SUM(F115:F119) -> 0 | G120: =SUM(G115:G119) -> 0 | H120: =SUM(H115:H119) -> 0 | I120: =SUM(I115:I119) -> 0 | J120: =+I120-'ROR-Model'!I120 -> 0 | M120: =SUM(M115:M119) -> 0 | N120: =SUM(N115:N119) -> 0 | Q120: =SUM(Q115:Q119) -> 0 | R120: =SUM(R115:R119) -> 0 | T120: =SUM(T115:T119) -> 0 | U120: =SUM(U115:U119) -> 0 | W120: =HLOOKUP($W$9,'ROR-Model'!$Q$10:$U$1267,Y120) -> 0 | Y120: 111
E121: =+G121-Adjustments!H121 -> 0 | J121: =+I121-'ROR-Model'!I121 -> 0 | Y121: 112
C122: Total Dth | E122: =+G122-Adjustments!H122 -> 0 | F122: =Revenue!$F$121 -> 0 | G122: =+Adjustments!X122 -> 0 | I122: =SUM($F$122:$H$122) -> 0 | J122: =+I122-'ROR-Model'!I122 -> 0 | L122: Utah | M122: =VLOOKUP($L122,$L$2:$N$7,2,FALSE)*I122 -> 0 | N122: =VLOOKUP($L122,$L$2:$N$7,3,FALSE)*I122 -> 0 | P122: G | Q122: =IF(P122="G",M122,IF(P122="PT",0,ERR)) -> 0 | R122: =IF(P122="PT",M122,IF(P122="G",0,ERR)) -> 0 | S122: G | T122: =IF(S122="G",N122,IF(S122="PT",0,ERR)) -> 0 | U122: =IF(S122="PT",N122,IF(S122="G",0,ERR)) -> 0 | W122: =HLOOKUP($W$9,'ROR-Model'!$Q$10:$U$1267,Y122) -> 0 | Y122: 113
E123: =+G123-Adjustments!H123 -> 0 | J123: =+I123-'ROR-Model'!I123 -> 0 | Y123: 114
B124: FT-1 | C124: Distribution Non-Gas Rev | E124: =+G124-Adjustments!H124 -> 0 | F124: =Revenue!$F$123 -> 4058852 | G124: =+Adjustments!X124 -> 0 | I124: =SUM($F$124:$H$124) -> 4058852 | J124: =+I124-'ROR-Model'!I124 -> 0 | L124: Utah | M124: =VLOOKUP($L124,$L$2:$N$7,2,FALSE)*I124 -> 4058852 | N124: =VLOOKUP($L124,$L$2:$N$7,3,FALSE)*I124 -> 0 | P124: G | Q124: =IF(P124="G",M124,IF(P124="PT",0,ERR)) -> 4058852 | R124: =IF(P124="PT",M124,IF(P124="G",0,ERR)) -> 0 | S124: G | T124: =IF(S124="G",N124,IF(S124="PT",0,ERR)) -> 0 | U124: =IF(S124="PT",N124,IF(S124="G",0,ERR)) -> 0 | W124: =HLOOKUP($W$9,'ROR-Model'!$Q$10:$U$1267,Y124) -> 4058852 | Y124: 115
E125: =+G125-Adjustments!H125 -> 0 | J125: =+I125-'ROR-Model'!I125 -> 0 | Y125: 116
C126: Supplier Non-Gas Revenue | E126: =+G126-Adjustments!H126 -> 0 | F126: =Revenue!$F$125 -> 0 | G126: =+Adjustments!X126 -> 0 | I126: =SUM($F$126:$H$126) -> 0 | J126: =+I126-'ROR-Model'!I126 -> 0 | L126: Utah | M126: =VLOOKUP($L126,$L$2:$N$7,2,FALSE)*I126 -> 0 | N126: =VLOOKUP($L126,$L$2:$N$7,3,FALSE)*I126 -> 0 | P126: PT | Q126: =IF(P126="G",M126,IF(P126="PT",0,ERR)) -> 0 | R126: =IF(P126="PT",M126,IF(P126="G",0,ERR)) -> 0 | S126: PT | T126: =IF(S126="G",N126,IF(S126="PT",0,ERR)) -> 0 | U126: =IF(S126="PT",N126,IF(S126="G",0,ERR)) -> 0 | W126: =HLOOKUP($W$9,'ROR-Model'!$Q$10:$U$1267,Y126) -> 0 | Y126: 117
E127: =+G127-Adjustments!H127 -> 0 | J127: =+I127-'ROR-Model'!I127 -> 0 | Y127: 118
C128: Commodity Revenue | E128: =+G128-Adjustments!H128 -> 0 | F128: =Revenue!$F$127 -> 0 | G128: =+Adjustments!X128 -> 0 | I128: =SUM($F$128:$H$128) -> 0 | J128: =+I128-'ROR-Model'!I128 -> 0 | L128: Utah | M128: =VLOOKUP($L128,$L$2:$N$7,2,FALSE)*I128 -> 0 | N128: =VLOOKUP($L128,$L$2:$N$7,3,FALSE)*I128 -> 0 | P128: PT | Q128: =IF(P128="G",M128,IF(P128="PT",0,ERR)) -> 0 | R128: =IF(P128="PT",M128,IF(P128="G",0,ERR)) -> 0 | S128: PT | T128: =IF(S128="G",N128,IF(S128="PT",0,ERR)) -> 0 | U128: =IF(S128="PT",N128,IF(S128="G",0,ERR)) -> 0 | W128: =HLOOKUP($W$9,'ROR-Model'!$Q$10:$U$1267,Y128) -> 0 | Y128: 119
C129: Total Revenue | E129: =+G129-Adjustments!H129 -> 0 | F129: =SUM(F124:F128) -> 4058852 | G129: =SUM(G124:G128) -> 0 | H129: =SUM(H124:H128) -> 0 | I129: =SUM(I124:I128) -> 4058852 | J129: =+I129-'ROR-Model'!I129 -> 0 | M129: =SUM(M124:M128) -> 4058852 | N129: =SUM(N124:N128) -> 0 | Q129: =SUM(Q124:Q128) -> 4058852 | R129: =SUM(R124:R128) -> 0 | T129: =SUM(T124:T128) -> 0 | U129: =SUM(U124:U128) -> 0 | W129: =HLOOKUP($W$9,'ROR-Model'!$Q$10:$U$1267,Y129) -> 4058852 | Y129: 120
E130: =+G130-Adjustments!H130 -> 0 | J130: =+I130-'ROR-Model'!I130 -> 0 | Y130: 121
C131: Total Dth | E131: =+G131-Adjustments!H131 -> 0 | F131: =Revenue!$F$130 -> 21996479 | G131: =+Adjustments!X131 -> 0 | I131: =SUM($F$131:$H$131) -> 21996479 | J131: =+I131-'ROR-Model'!I131 -> 0 | L131: Utah | M131: =VLOOKUP($L131,$L$2:$N$7,2,FALSE)*I131 -> 21996479 | N131: =VLOOKUP($L131,$L$2:$N$7,3,FALSE)*I131 -> 0 | P131: G | Q131: =IF(P131="G",M131,IF(P131="PT",0,ERR)) -> 21996479 | R131: =IF(P131="PT",M131,IF(P131="G",0,ERR)) -> 0 | S131: G | T131: =IF(S131="G",N131,IF(S131="PT",0,ERR)) -> 0 | U131: =IF(S131="PT",N131,IF(S131="G",0,ERR)) -> 0 | W131: =HLOOKUP($W$9,'ROR-Model'!$Q$10:$U$1267,Y131) -> 21996479 | Y131: 122
E132: =+G132-Adjustments!H132 -> 0 | J132: =+I132-'ROR-Model'!I132 -> 0 | Y132: 123
B133: FT-2 | C133: Distribution Non-Gas Rev | E133: =+G133-Adjustments!H133 -> 0 | F133: =Revenue!$F$132 -> 0 | G133: =+Adjustments!X133 -> 0 | I133: =SUM($F$133:$H$133) -> 0 | J133: =+I133-'ROR-Model'!I133 -> 0 | L133: Utah | M133: =VLOOKUP($L133,$L$2:$N$7,2,FALSE)*I133 -> 0 | N133: =VLOOKUP($L133,$L$2:$N$7,3,FALSE)*I133 -> 0 | P133: G | Q133: =IF(P133="G",M133,IF(P133="PT",0,ERR)) -> 0 | R133: =IF(P133="PT",M133,IF(P133="G",0,ERR)) -> 0 | S133: G | T133: =IF(S133="G",N133,IF(S133="PT",0,ERR)) -> 0 | U133: =IF(S133="PT",N133,IF(S133="G",0,ERR)) -> 0 | W133: =HLOOKUP($W$9,'ROR-Model'!$Q$10:$U$1267,Y133) -> 0 | Y133: 124
E134: =+G134-Adjustments!H134 -> 0 | J134: =+I134-'ROR-Model'!I134 -> 0 | Y134: 125
C135: Supplier Non-Gas Revenue | E135: =+G135-Adjustments!H135 -> 0 | F135: =Revenue!$F$134 -> 0 | G135: =+Adjustments!X135 -> 0 | I135: =SUM($F$135:$H$135) -> 0 | J135: =+I135-'ROR-Model'!I135 -> 0 | L135: Utah | M135: =VLOOKUP($L135,$L$2:$N$7,2,FALSE)*I135 -> 0 | N135: =VLOOKUP($L135,$L$2:$N$7,3,FALSE)*I135 -> 0 | P135: PT | Q135: =IF(P135="G",M135,IF(P135="PT",0,ERR)) -> 0 | R135: =IF(P135="PT",M135,IF(P135="G",0,ERR)) -> 0 | S135: PT | T135: =IF(S135="G",N135,IF(S135="PT",0,ERR)) -> 0 | U135: =IF(S135="PT",N135,IF(S135="G",0,ERR)) -> 0 | W135: =HLOOKUP($W$9,'ROR-Model'!$Q$10:$U$1267,Y135) -> 0 | Y135: 126
E136: =+G136-Adjustments!H136 -> 0 | J136: =+I136-'ROR-Model'!I136 -> 0 | Y136: 127
C137: Commodity Revenue | E137: =+G137-Adjustments!H137 -> 0 | F137: =Revenue!$F$136 -> 0 | G137: =+Adjustments!X137 -> 0 | I137: =SUM($F$137:$H$137) -> 0 | J137: =+I137-'ROR-Model'!I137 -> 0 | L137: Utah | M137: =VLOOKUP($L137,$L$2:$N$7,2,FALSE)*I137 -> 0 | N137: =VLOOKUP($L137,$L$2:$N$7,3,FALSE)*I137 -> 0 | P137: PT | Q137: =IF(P137="G",M137,IF(P137="PT",0,ERR)) -> 0 | R137: =IF(P137="PT",M137,IF(P137="G",0,ERR)) -> 0 | S137: PT | T137: =IF(S137="G",N137,IF(S137="PT",0,ERR)) -> 0 | U137: =IF(S137="PT",N137,IF(S137="G",0,ERR)) -> 0 | W137: =HLOOKUP($W$9,'ROR-Model'!$Q$10:$U$1267,Y137) -> 0 | Y137: 128
C138: Total Revenue | E138: =+G138-Adjustments!H138 -> 0 | F138: =SUM(F133:F137) -> 0 | G138: =SUM(G133:G137) -> 0 | H138: =SUM(H133:H137) -> 0 | I138: =SUM(I133:I137) -> 0 | J138: =+I138-'ROR-Model'!I138 -> 0 | M138: =SUM(M133:M137) -> 0 | N138: =SUM(N133:N137) -> 0 | Q138: =SUM(Q133:Q137) -> 0 | R138: =SUM(R133:R137) -> 0 | T138: =SUM(T133:T137) -> 0 | U138: =SUM(U133:U137) -> 0 | W138: =HLOOKUP($W$9,'ROR-Model'!$Q$10:$U$1267,Y138) -> 0 | Y138: 129
E139: =+G139-Adjustments!H139 -> 0 | J139: =+I139-'ROR-Model'!I139 -> 0 | Y139: 130
C140: Total Dth | E140: =+G140-Adjustments!H140 -> 0 | F140: =Revenue!$F$139 -> 0 | G140: =+Adjustments!X140 -> 0 | I140: =SUM($F$140:$H$140) -> 0 | J140: =+I140-'ROR-Model'!I140 -> 0 | L140: Utah | M140: =VLOOKUP($L140,$L$2:$N$7,2,FALSE)*I140 -> 0 | N140: =VLOOKUP($L140,$L$2:$N$7,3,FALSE)*I140 -> 0 | P140: G | Q140: =IF(P140="G",M140,IF(P140="PT",0,ERR)) -> 0 | R140: =IF(P140="PT",M140,IF(P140="G",0,ERR)) -> 0 | S140: G | T140: =IF(S140="G",N140,IF(S140="PT",0,ERR)) -> 0 | U140: =IF(S140="PT",N140,IF(S140="G",0,ERR)) -> 0 | W140: =HLOOKUP($W$9,'ROR-Model'!$Q$10:$U$1267,Y140) -> 0 | Y140: =Y139+1 -> 131
E141: =+G141-Adjustments!H141 -> 0 | J141: =+I141-'ROR-Model'!I141 -> 0 | Y141: 132
B142: MT | C142: Distribution Non-Gas Rev | E142: =+G142-Adjustments!H142 -> 0 | F142: =Revenue!$F$141 -> 28862 | G142: =+Adjustments!X142 -> 0 | I142: =SUM($F$142:$H$142) -> 28862 | J142: =+I142-'ROR-Model'!I142 -> 0 | L142: Utah | M142: =VLOOKUP($L142,$L$2:$N$7,2,FALSE)*I142 -> 28862 | N142: =VLOOKUP($L142,$L$2:$N$7,3,FALSE)*I142 -> 0 | P142: G | Q142: =IF(P142="G",M142,IF(P142="PT",0,ERR)) -> 28862 | R142: =IF(P142="PT",M142,IF(P142="G",0,ERR)) -> 0 | S142: G | T142: =IF(S142="G",N142,IF(S142="PT",0,ERR)) -> 0 | U142: =IF(S142="PT",N142,IF(S142="G",0,ERR)) -> 0 | W142: =HLOOKUP($W$9,'ROR-Model'!$Q$10:$U$1267,Y142) -> 28862 | Y142: 133
E143: =+G143-Adjustments!H143 -> 0 | J143: =+I143-'ROR-Model'!I143 -> 0 | Y143: 134
C144: Supplier Non-Gas Revenue | E144: =+G144-Adjustments!H144 -> 0 | F144: =Revenue!$F$143 -> 1936 | G144: =+Adjustments!X144 -> 0 | I144: =SUM($F$144:$H$144) -> 1936 | J144: =+I144-'ROR-Model'!I144 -> 0 | L144: Utah | M144: =VLOOKUP($L144,$L$2:$N$7,2,FALSE)*I144 -> 1936 | N144: =VLOOKUP($L144,$L$2:$N$7,3,FALSE)*I144 -> 0 | P144: PT | Q144: =IF(P144="G",M144,IF(P144="PT",0,ERR)) -> 0 | R144: =IF(P144="PT",M144,IF(P144="G",0,ERR)) -> 1936 | S144: PT | T144: =IF(S144="G",N144,IF(S144="PT",0,ERR)) -> 0 | U144: =IF(S144="PT",N144,IF(S144="G",0,ERR)) -> 0 | W144: =HLOOKUP($W$9,'ROR-Model'!$Q$10:$U$1267,Y144) -> 0 | Y144: 135
E145: =+G145-Adjustments!H145 -> 0 | J145: =+I145-'ROR-Model'!I145 -> 0 | Y145: 136
C146: Commodity Revenue | E146: =+G146-Adjustments!H146 -> 0 | F146: =Revenue!$F$145 -> 0 | G146: =+Adjustments!X146 -> 0 | I146: =SUM($F$146:$H$146) -> 0 | J146: =+I146-'ROR-Model'!I146 -> 0 | L146: Utah | M146: =VLOOKUP($L146,$L$2:$N$7,2,FALSE)*I146 -> 0 | N146: =VLOOKUP($L146,$L$2:$N$7,3,FALSE)*I146 -> 0 | P146: PT | Q146: =IF(P146="G",M146,IF(P146="PT",0,ERR)) -> 0 | R146: =IF(P146="PT",M146,IF(P146="G",0,ERR)) -> 0 | S146: PT | T146: =IF(S146="G",N146,IF(S146="PT",0,ERR)) -> 0 | U146: =IF(S146="PT",N146,IF(S146="G",0,ERR)) -> 0 | W146: =HLOOKUP($W$9,'ROR-Model'!$Q$10:$U$1267,Y146) -> 0 | Y146: 137
C147: Total Revenue | E147: =+G147-Adjustments!H147 -> 0 | F147: =SUM(F142:F146) -> 30798 | G147: =SUM(G142:G146) -> 0 | H147: =SUM(H142:H146) -> 0 | I147: =SUM(I142:I146) -> 30798 | J147: =+I147-'ROR-Model'!I147 -> 0 | M147: =SUM(M142:M146) -> 30798 | N147: =SUM(N142:N146) -> 0 | Q147: =SUM(Q142:Q146) -> 28862 | R147: =SUM(R142:R146) -> 1936 | T147: =SUM(T142:T146) -> 0 | U147: =SUM(U142:U146) -> 0 | W147: =HLOOKUP($W$9,'ROR-Model'!$Q$10:$U$1267,Y147) -> 28862 | Y147: 138
E148: =+G148-Adjustments!H148 -> 0 | J148: =+I148-'ROR-Model'!I148 -> 0 | Y148: 139
C149: Total Dth | E149: =+G149-Adjustments!H149 -> 0 | F149: =Revenue!$F$148 -> 32262 | G149: =+Adjustments!X149 -> 0 | I149: =SUM($F$149:$H$149) -> 32262 | J149: =+I149-'ROR-Model'!I149 -> 0 | L149: Utah | M149: =VLOOKUP($L149,$L$2:$N$7,2,FALSE)*I149 -> 32262 | N149: =VLOOKUP($L149,$L$2:$N$7,3,FALSE)*I149 -> 0 | P149: G | Q149: =IF(P149="G",M149,IF(P149="PT",0,ERR)) -> 32262 | R149: =IF(P149="PT",M149,IF(P149="G",0,ERR)) -> 0 | S149: G | T149: =IF(S149="G",N149,IF(S149="PT",0,ERR)) -> 0 | U149: =IF(S149="PT",N149,IF(S149="G",0,ERR)) -> 0 | W149: =HLOOKUP($W$9,'ROR-Model'!$Q$10:$U$1267,Y149) -> 32262 | Y149: 140
E150: =+G150-Adjustments!H150 -> 0 | J150: =+I150-'ROR-Model'!I150 -> 0 | Y150: 141
B151: Blank | C151: Distribution Non-Gas Rev | E151: =+G151-Adjustments!H151 -> 0 | F151: =Revenue!$F$150 -> 0 | G151: =+Adjustments!X151 -> 0 | I151: =SUM($F$151:$H$151) -> 0 | J151: =+I151-'ROR-Model'!I151 -> 0 | L151: Utah | M151: =VLOOKUP($L151,$L$2:$N$7,2,FALSE)*I151 -> 0 | N151: =VLOOKUP($L151,$L$2:$N$7,3,FALSE)*I151 -> 0 | P151: G | Q151: =IF(P151="G",M151,IF(P151="PT",0,ERR)) -> 0 | R151: =IF(P151="PT",M151,IF(P151="G",0,ERR)) -> 0 | S151: G | T151: =IF(S151="G",N151,IF(S151="PT",0,ERR)) -> 0 | U151: =IF(S151="PT",N151,IF(S151="G",0,ERR)) -> 0 | W151: =HLOOKUP($W$9,'ROR-Model'!$Q$10:$U$1267,Y151) -> 0 | Y151: 142
E152: =+G152-Adjustments!H152 -> 0 | J152: =+I152-'ROR-Model'!I152 -> 0 | Y152: 143
C153: Supplier Non-Gas Revenue | E153: =+G153-Adjustments!H153 -> 0 | F153: =Revenue!$F$152 -> 0 | G153: =+Adjustments!X153 -> 0 | I153: =SUM($F$153:$H$153) -> 0 | J153: =+I153-'ROR-Model'!I153 -> 0 | L153: Utah | M153: =VLOOKUP($L153,$L$2:$N$7,2,FALSE)*I153 -> 0 | N153: =VLOOKUP($L153,$L$2:$N$7,3,FALSE)*I153 -> 0 | P153: PT | Q153: =IF(P153="G",M153,IF(P153="PT",0,ERR)) -> 0 | R153: =IF(P153="PT",M153,IF(P153="G",0,ERR)) -> 0 | S153: PT | T153: =IF(S153="G",N153,IF(S153="PT",0,ERR)) -> 0 | U153: =IF(S153="PT",N153,IF(S153="G",0,ERR)) -> 0 | W153: =HLOOKUP($W$9,'ROR-Model'!$Q$10:$U$1267,Y153) -> 0 | Y153: 144
E154: =+G154-Adjustments!H154 -> 0 | J154: =+I154-'ROR-Model'!I154 -> 0 | Y154: 145
C155: Commodity Revenue | E155: =+G155-Adjustments!H155 -> 0 | F155: =Revenue!$F$154 -> 0 | G155: =+Adjustments!X155 -> 0 | I155: =SUM($F$155:$H$155) -> 0 | J155: =+I155-'ROR-Model'!I155 -> 0 | L155: Utah | M155: =VLOOKUP($L155,$L$2:$N$7,2,FALSE)*I155 -> 0 | N155: =VLOOKUP($L155,$L$2:$N$7,3,FALSE)*I155 -> 0 | P155: PT | Q155: =IF(P155="G",M155,IF(P155="PT",0,ERR)) -> 0 | R155: =IF(P155="PT",M155,IF(P155="G",0,ERR)) -> 0 | S155: PT | T155: =IF(S155="G",N155,IF(S155="PT",0,ERR)) -> 0 | U155: =IF(S155="PT",N155,IF(S155="G",0,ERR)) -> 0 | W155: =HLOOKUP($W$9,'ROR-Model'!$Q$10:$U$1267,Y155) -> 0 | Y155: 146
C156: Total Revenue | E156: =+G156-Adjustments!H156 -> 0 | F156: =SUM(F151:F155) -> 0 | G156: =SUM(G151:G155) -> 0 | H156: =SUM(H151:H155) -> 0 | I156: =SUM(I151:I155) -> 0 | J156: =+I156-'ROR-Model'!I156 -> 0 | M156: =SUM(M151:M155) -> 0 | N156: =SUM(N151:N155) -> 0 | Q156: =SUM(Q151:Q155) -> 0 | R156: =SUM(R151:R155) -> 0 | T156: =SUM(T151:T155) -> 0 | U156: =SUM(U151:U155) -> 0 | W156: =HLOOKUP($W$9,'ROR-Model'!$Q$10:$U$1267,Y156) -> 0 | Y156: 147
E157: =+G157-Adjustments!H157 -> 0 | J157: =+I157-'ROR-Model'!I157 -> 0 | Y157: 148
C158: Total Dth | E158: =+G158-Adjustments!H158 -> 0 | F158: =Revenue!$F$157 -> 0 | G158: =+Adjustments!X158 -> 0 | I158: =SUM($F$158:$H$158) -> 0 | J158: =+I158-'ROR-Model'!I158 -> 0 | L158: Utah | M158: =VLOOKUP($L158,$L$2:$N$7,2,FALSE)*I158 -> 0 | N158: =VLOOKUP($L158,$L$2:$N$7,3,FALSE)*I158 -> 0 | P158: G | Q158: =IF(P158="G",M158,IF(P158="PT",0,ERR)) -> 0 | R158: =IF(P158="PT",M158,IF(P158="G",0,ERR)) -> 0 | S158: G | T158: =IF(S158="G",N158,IF(S158="PT",0,ERR)) -> 0 | U158: =IF(S158="PT",N158,IF(S158="G",0,ERR)) -> 0 | W158: =HLOOKUP($W$9,'ROR-Model'!$Q$10:$U$1267,Y158) -> 0 | Y158: 149
E159: =+G159-Adjustments!H159 -> 0 | J159: =+I159-'ROR-Model'!I159 -> 0 | Y159: 150
B160: IT | C160: Distribution Non-Gas Rev | E160: =+G160-Adjustments!H160 -> 0 | F160: =Revenue!$F$159 -> 7099977 | G160: =+Adjustments!X160 -> 0 | I160: =SUM($F$160:$H$160) -> 7099977 | J160: =+I160-'ROR-Model'!I160 -> 0 | L160: Utah | M160: =VLOOKUP($L160,$L$2:$N$7,2,FALSE)*I160 -> 7099977 | N160: =VLOOKUP($L160,$L$2:$N$7,3,FALSE)*I160 -> 0 | P160: G | Q160: =IF(P160="G",M160,IF(P160="PT",0,ERR)) -> 7099977 | R160: =IF(P160="PT",M160,IF(P160="G",0,ERR)) -> 0 | S160: G | T160: =IF(S160="G",N160,IF(S160="PT",0,ERR)) -> 0 | U160: =IF(S160="PT",N160,IF(S160="G",0,ERR)) -> 0 | W160: =HLOOKUP($W$9,'ROR-Model'!$Q$10:$U$1267,Y160) -> 7099977 | Y160: 151
E161: =+G161-Adjustments!H161 -> 0 | J161: =+I161-'ROR-Model'!I161 -> 0 | Y161: 152
C162: Supplier Non-Gas Revenue | E162: =+G162-Adjustments!H162 -> 0 | F162: =Revenue!$F$161 -> 0 | G162: =+Adjustments!X162 -> 0 | I162: =SUM($F$162:$H$162) -> 0 | J162: =+I162-'ROR-Model'!I162 -> 0 | L162: Utah | M162: =VLOOKUP($L162,$L$2:$N$7,2,FALSE)*I162 -> 0 | N162: =VLOOKUP($L162,$L$2:$N$7,3,FALSE)*I162 -> 0 | P162: PT | Q162: =IF(P162="G",M162,IF(P162="PT",0,ERR)) -> 0 | R162: =IF(P162="PT",M162,IF(P162="G",0,ERR)) -> 0 | S162: PT | T162: =IF(S162="G",N162,IF(S162="PT",0,ERR)) -> 0 | U162: =IF(S162="PT",N162,IF(S162="G",0,ERR)) -> 0 | W162: =HLOOKUP($W$9,'ROR-Model'!$Q$10:$U$1267,Y162) -> 0 | Y162: 153
E163: =+G163-Adjustments!H163 -> 0 | J163: =+I163-'ROR-Model'!I163 -> 0 | Y163: 154
C164: Commodity Revenue | E164: =+G164-Adjustments!H164 -> 0 | F164: =Revenue!$F$163 -> 0 | G164: =+Adjustments!X164 -> 0 | I164: =SUM($F$164:$H$164) -> 0 | J164: =+I164-'ROR-Model'!I164 -> 0 | L164: Utah | M164: =VLOOKUP($L164,$L$2:$N$7,2,FALSE)*I164 -> 0 | N164: =VLOOKUP($L164,$L$2:$N$7,3,FALSE)*I164 -> 0 | P164: PT | Q164: =IF(P164="G",M164,IF(P164="PT",0,ERR)) -> 0 | R164: =IF(P164="PT",M164,IF(P164="G",0,ERR)) -> 0 | S164: PT | T164: =IF(S164="G",N164,IF(S164="PT",0,ERR)) -> 0 | U164: =IF(S164="PT",N164,IF(S164="G",0,ERR)) -> 0 | W164: =HLOOKUP($W$9,'ROR-Model'!$Q$10:$U$1267,Y164) -> 0 | Y164: 155
C165: Total Revenue | E165: =+G165-Adjustments!H165 -> 0 | F165: =SUM(F160:F164) -> 7099977 | G165: =SUM(G160:G164) -> 0 | H165: =SUM(H160:H164) -> 0 | I165: =SUM(I160:I164) -> 7099977 | J165: =+I165-'ROR-Model'!I165 -> 0 | M165: =SUM(M160:M164) -> 7099977 | N165: =SUM(N160:N164) -> 0 | Q165: =SUM(Q160:Q164) -> 7099977 | R165: =SUM(R160:R164) -> 0 | T165: =SUM(T160:T164) -> 0 | U165: =SUM(U160:U164) -> 0 | W165: =HLOOKUP($W$9,'ROR-Model'!$Q$10:$U$1267,Y165) -> 7099977 | Y165: 156
E166: =+G166-Adjustments!H166 -> 0 | J166: =+I166-'ROR-Model'!I166 -> 0 | Y166: 157
C167: Total Dth | E167: =+G167-Adjustments!H167 -> 0 | F167: =Revenue!$F$166 -> 29978657 | G167: =+Adjustments!X167 -> 0 | I167: =SUM($F$167:$H$167) -> 29978657 | J167: =+I167-'ROR-Model'!I167 -> 0 | L167: Utah | M167: =VLOOKUP($L167,$L$2:$N$7,2,FALSE)*I167 -> 29978657 | N167: =VLOOKUP($L167,$L$2:$N$7,3,FALSE)*I167 -> 0 | P167: G | Q167: =IF(P167="G",M167,IF(P167="PT",0,ERR)) -> 29978657 | R167: =IF(P167="PT",M167,IF(P167="G",0,ERR)) -> 0 | S167: G | T167: =IF(S167="G",N167,IF(S167="PT",0,ERR)) -> 0 | U167: =IF(S167="PT",N167,IF(S167="G",0,ERR)) -> 0 | W167: =HLOOKUP($W$9,'ROR-Model'!$Q$10:$U$1267,Y167) -> 29978657 | Y167: 158
E168: =+G168-Adjustments!H168 -> 0 | J168: =+I168-'ROR-Model'!I168 -> 0 | Y168: 159
B169: IT-S | C169: Distribution Non-Gas Rev | E169: =+G169-Adjustments!H169 -> 0 | F169: =Revenue!$F$168 -> 0 | G169: =+Adjustments!X169 -> 0 | I169: =SUM($F$169:$H$169) -> 0 | J169: =+I169-'ROR-Model'!I169 -> 0 | L169: Utah | M169: =VLOOKUP($L169,$L$2:$N$7,2,FALSE)*I169 -> 0 | N169: =VLOOKUP($L169,$L$2:$N$7,3,FALSE)*I169 -> 0 | P169: G | Q169: =IF(P169="G",M169,IF(P169="PT",0,ERR)) -> 0 | R169: =IF(P169="PT",M169,IF(P169="G",0,ERR)) -> 0 | S169: G | T169: =IF(S169="G",N169,IF(S169="PT",0,ERR)) -> 0 | U169: =IF(S169="PT",N169,IF(S169="G",0,ERR)) -> 0 | W169: =HLOOKUP($W$9,'ROR-Model'!$Q$10:$U$1267,Y169) -> 0 | Y169: 160
E170: =+G170-Adjustments!H170 -> 0 | J170: =+I170-'ROR-Model'!I170 -> 0 | Y170: 161
C171: Supplier Non-Gas Revenue | E171: =+G171-Adjustments!H171 -> 0 | F171: =Revenue!$F$170 -> 0 | G171: =+Adjustments!X171 -> 0 | I171: =SUM($F$171:$H$171) -> 0 | J171: =+I171-'ROR-Model'!I171 -> 0 | L171: Utah | M171: =VLOOKUP($L171,$L$2:$N$7,2,FALSE)*I171 -> 0 | N171: =VLOOKUP($L171,$L$2:$N$7,3,FALSE)*I171 -> 0 | P171: PT | Q171: =IF(P171="G",M171,IF(P171="PT",0,ERR)) -> 0 | R171: =IF(P171="PT",M171,IF(P171="G",0,ERR)) -> 0 | S171: PT | T171: =IF(S171="G",N171,IF(S171="PT",0,ERR)) -> 0 | U171: =IF(S171="PT",N171,IF(S171="G",0,ERR)) -> 0 | W171: =HLOOKUP($W$9,'ROR-Model'!$Q$10:$U$1267,Y171) -> 0 | Y171: 162
E172: =+G172-Adjustments!H172 -> 0 | J172: =+I172-'ROR-Model'!I172 -> 0 | Y172: 163
C173: Commodity Revenue | E173: =+G173-Adjustments!H173 -> 0 | F173: =Revenue!$F$172 -> 0 | G173: =+Adjustments!X173 -> 0 | I173: =SUM($F$173:$H$173) -> 0 | J173: =+I173-'ROR-Model'!I173 -> 0 | L173: Utah | M173: =VLOOKUP($L173,$L$2:$N$7,2,FALSE)*I173 -> 0 | N173: =VLOOKUP($L173,$L$2:$N$7,3,FALSE)*I173 -> 0 | P173: PT | Q173: =IF(P173="G",M173,IF(P173="PT",0,ERR)) -> 0 | R173: =IF(P173="PT",M173,IF(P173="G",0,ERR)) -> 0 | S173: PT | T173: =IF(S173="G",N173,IF(S173="PT",0,ERR)) -> 0 | U173: =IF(S173="PT",N173,IF(S173="G",0,ERR)) -> 0 | W173: =HLOOKUP($W$9,'ROR-Model'!$Q$10:$U$1267,Y173) -> 0 | Y173: 164
C174: Total Revenue | E174: =+G174-Adjustments!H174 -> 0 | F174: =SUM(F169:F173) -> 0 | G174: =SUM(G169:G173) -> 0 | H174: =SUM(H169:H173) -> 0 | I174: =SUM(I169:I173) -> 0 | J174: =+I174-'ROR-Model'!I174 -> 0 | M174: =SUM(M169:M173) -> 0 | N174: =SUM(N169:N173) -> 0 | Q174: =SUM(Q169:Q173) -> 0 | R174: =SUM(R169:R173) -> 0 | T174: =SUM(T169:T173) -> 0 | U174: =SUM(U169:U173) -> 0 | W174: =HLOOKUP($W$9,'ROR-Model'!$Q$10:$U$1267,Y174) -> 0 | Y174: 165
E175: =+G175-Adjustments!H175 -> 0 | J175: =+I175-'ROR-Model'!I175 -> 0 | Y175: 166
C176: Total Dth | E176: =+G176-Adjustments!H176 -> 0 | F176: =Revenue!$F$175 -> 0 | G176: =+Adjustments!X176 -> 0 | I176: =SUM($F$176:$H$176) -> 0 | J176: =+I176-'ROR-Model'!I176 -> 0 | L176: Utah | M176: =VLOOKUP($L176,$L$2:$N$7,2,FALSE)*I176 -> 0 | N176: =VLOOKUP($L176,$L$2:$N$7,3,FALSE)*I176 -> 0 | P176: G | Q176: =IF(P176="G",M176,IF(P176="PT",0,ERR)) -> 0 | R176: =IF(P176="PT",M176,IF(P176="G",0,ERR)) -> 0 | S176: G | T176: =IF(S176="G",N176,IF(S176="PT",0,ERR)) -> 0 | U176: =IF(S176="PT",N176,IF(S176="G",0,ERR)) -> 0 | W176: =HLOOKUP($W$9,'ROR-Model'!$Q$10:$U$1267,Y176) -> 0 | Y176: 167
E177: =+G177-Adjustments!H177 -> 0 | J177: =+I177-'ROR-Model'!I177 -> 0 | Y177: 168
B178: FT-2C | C178: Distribution Non-Gas Rev | E178: =+G178-Adjustments!H178 -> 0 | F178: =Revenue!$F$177 -> 0 | G178: =+Adjustments!X178 -> 0 | I178: =SUM($F$178:$H$178) -> 0 | J178: =+I178-'ROR-Model'!I178 -> 0 | L178: Utah | M178: =VLOOKUP($L178,$L$2:$N$7,2,FALSE)*I178 -> 0 | N178: =VLOOKUP($L178,$L$2:$N$7,3,FALSE)*I178 -> 0 | P178: G | Q178: =IF(P178="G",M178,IF(P178="PT",0,ERR)) -> 0 | R178: =IF(P178="PT",M178,IF(P178="G",0,ERR)) -> 0 | S178: G | T178: =IF(S178="G",N178,IF(S178="PT",0,ERR)) -> 0 | U178: =IF(S178="PT",N178,IF(S178="G",0,ERR)) -> 0 | W178: =HLOOKUP($W$9,'ROR-Model'!$Q$10:$U$1267,Y178) -> 0 | Y178: 169
E179: =+G179-Adjustments!H179 -> 0 | J179: =+I179-'ROR-Model'!I179 -> 0 | Y179: 170
C180: Supplier Non-Gas Revenue | E180: =+G180-Adjustments!H180 -> 0 | F180: =Revenue!$F$179 -> 0 | G180: =+Adjustments!X180 -> 0 | I180: =SUM($F$180:$H$180) -> 0 | J180: =+I180-'ROR-Model'!I180 -> 0 | L180: Utah | M180: =VLOOKUP($L180,$L$2:$N$7,2,FALSE)*I180 -> 0 | N180: =VLOOKUP($L180,$L$2:$N$7,3,FALSE)*I180 -> 0 | P180: PT | Q180: =IF(P180="G",M180,IF(P180="PT",0,ERR)) -> 0 | R180: =IF(P180="PT",M180,IF(P180="G",0,ERR)) -> 0 | S180: PT | T180: =IF(S180="G",N180,IF(S180="PT",0,ERR)) -> 0 | U180: =IF(S180="PT",N180,IF(S180="G",0,ERR)) -> 0 | W180: =HLOOKUP($W$9,'ROR-Model'!$Q$10:$U$1267,Y180) -> 0 | Y180: 171
E181: =+G181-Adjustments!H181 -> 0 | J181: =+I181-'ROR-Model'!I181 -> 0 | Y181: 172
C182: Commodity Revenue | E182: =+G182-Adjustments!H182 -> 0 | F182: =Revenue!$F$181 -> 0 | G182: =+Adjustments!X182 -> 0 | I182: =SUM($F$182:$H$182) -> 0 | J182: =+I182-'ROR-Model'!I182 -> 0 | L182: Utah | M182: =VLOOKUP($L182,$L$2:$N$7,2,FALSE)*I182 -> 0 | N182: =VLOOKUP($L182,$L$2:$N$7,3,FALSE)*I182 -> 0 | P182: PT | Q182: =IF(P182="G",M182,IF(P182="PT",0,ERR)) -> 0 | R182: =IF(P182="PT",M182,IF(P182="G",0,ERR)) -> 0 | S182: PT | T182: =IF(S182="G",N182,IF(S182="PT",0,ERR)) -> 0 | U182: =IF(S182="PT",N182,IF(S182="G",0,ERR)) -> 0 | W182: =HLOOKUP($W$9,'ROR-Model'!$Q$10:$U$1267,Y182) -> 0 | Y182: 173
C183: Total Revenue | E183: =+G183-Adjustments!H183 -> 0 | F183: =SUM(F178:F182) -> 0 | G183: =SUM(G178:G182) -> 0 | H183: =SUM(H178:H182) -> 0 | I183: =SUM(I178:I182) -> 0 | J183: =+I183-'ROR-Model'!I183 -> 0 | M183: =SUM(M178:M182) -> 0 | N183: =SUM(N178:N182) -> 0 | Q183: =SUM(Q178:Q182) -> 0 | R183: =SUM(R178:R182) -> 0 | T183: =SUM(T178:T182) -> 0 | U183: =SUM(U178:U182) -> 0 | W183: =HLOOKUP($W$9,'ROR-Model'!$Q$10:$U$1267,Y183) -> 0 | Y183: 174
E184: =+G184-Adjustments!H184 -> 0 | J184: =+I184-'ROR-Model'!I184 -> 0 | Y184: 175
C185: Total Dth | E185: =+G185-Adjustments!H185 -> 0 | F185: =Revenue!$F$184 -> 0 | G185: =+Adjustments!X185 -> 0 | I185: =SUM($F$185:$H$185) -> 0 | J185: =+I185-'ROR-Model'!I185 -> 0 | L185: Utah | M185: =VLOOKUP($L185,$L$2:$N$7,2,FALSE)*I185 -> 0 | N185: =VLOOKUP($L185,$L$2:$N$7,3,FALSE)*I185 -> 0 | P185: G | Q185: =IF(P185="G",M185,IF(P185="PT",0,ERR)) -> 0 | R185: =IF(P185="PT",M185,IF(P185="G",0,ERR)) -> 0 | S185: G | T185: =IF(S185="G",N185,IF(S185="PT",0,ERR)) -> 0 | U185: =IF(S185="PT",N185,IF(S185="G",0,ERR)) -> 0 | W185: =HLOOKUP($W$9,'ROR-Model'!$Q$10:$U$1267,Y185) -> 0 | Y185: 176
E186: =+G186-Adjustments!H186 -> 0 | J186: =+I186-'ROR-Model'!I186 -> 0 | Y186: 177
B187: Blank | C187: Distribution Non-Gas Rev | E187: =+G187-Adjustments!H187 -> 0 | F187: =Revenue!$F$186 -> 0 | G187: =+Adjustments!X187 -> 0 | I187: =SUM($F$187:$H$187) -> 0 | J187: =+I187-'ROR-Model'!I187 -> 0 | L187: Utah | M187: =VLOOKUP($L187,$L$2:$N$7,2,FALSE)*I187 -> 0 | N187: =VLOOKUP($L187,$L$2:$N$7,3,FALSE)*I187 -> 0 | P187: G | Q187: =IF(P187="G",M187,IF(P187="PT",0,ERR)) -> 0 | R187: =IF(P187="PT",M187,IF(P187="G",0,ERR)) -> 0 | S187: G | T187: =IF(S187="G",N187,IF(S187="PT",0,ERR)) -> 0 | U187: =IF(S187="PT",N187,IF(S187="G",0,ERR)) -> 0 | W187: =HLOOKUP($W$9,'ROR-Model'!$Q$10:$U$1267,Y187) -> 0 | Y187: 178
E188: =+G188-Adjustments!H188 -> 0 | J188: =+I188-'ROR-Model'!I188 -> 0 | Y188: 179
C189: Supplier Non-Gas Revenue | E189: =+G189-Adjustments!H189 -> 0 | F189: =Revenue!$F$188 -> 0 | G189: =+Adjustments!X189 -> 0 | I189: =SUM($F$189:$H$189) -> 0 | J189: =+I189-'ROR-Model'!I189 -> 0 | L189: Utah | M189: =VLOOKUP($L189,$L$2:$N$7,2,FALSE)*I189 -> 0 | N189: =VLOOKUP($L189,$L$2:$N$7,3,FALSE)*I189 -> 0 | P189: PT | Q189: =IF(P189="G",M189,IF(P189="PT",0,ERR)) -> 0 | R189: =IF(P189="PT",M189,IF(P189="G",0,ERR)) -> 0 | S189: PT | T189: =IF(S189="G",N189,IF(S189="PT",0,ERR)) -> 0 | U189: =IF(S189="PT",N189,IF(S189="G",0,ERR)) -> 0 | W189: =HLOOKUP($W$9,'ROR-Model'!$Q$10:$U$1267,Y189) -> 0 | Y189: 180
E190: =+G190-Adjustments!H190 -> 0 | J190: =+I190-'ROR-Model'!I190 -> 0 | Y190: 181
C191: Commodity Revenue | E191: =+G191-Adjustments!H191 -> 0 | F191: =Revenue!$F$190 -> 0 | G191: =+Adjustments!X191 -> 0 | I191: =SUM($F$191:$H$191) -> 0 | J191: =+I191-'ROR-Model'!I191 -> 0 | L191: Utah | M191: =VLOOKUP($L191,$L$2:$N$7,2,FALSE)*I191 -> 0 | N191: =VLOOKUP($L191,$L$2:$N$7,3,FALSE)*I191 -> 0 | P191: PT | Q191: =IF(P191="G",M191,IF(P191="PT",0,ERR)) -> 0 | R191: =IF(P191="PT",M191,IF(P191="G",0,ERR)) -> 0 | S191: PT | T191: =IF(S191="G",N191,IF(S191="PT",0,ERR)) -> 0 | U191: =IF(S191="PT",N191,IF(S191="G",0,ERR)) -> 0 | W191: =HLOOKUP($W$9,'ROR-Model'!$Q$10:$U$1267,Y191) -> 0 | Y191: 182
C192: Total Revenue | E192: =+G192-Adjustments!H192 -> 0 | F192: =SUM(F187:F191) -> 0 | G192: =SUM(G187:G191) -> 0 | H192: =SUM(H187:H191) -> 0 | I192: =SUM(I187:I191) -> 0 | J192: =+I192-'ROR-Model'!I192 -> 0 | M192: =SUM(M187:M191) -> 0 | N192: =SUM(N187:N191) -> 0 | Q192: =SUM(Q187:Q191) -> 0 | R192: =SUM(R187:R191) -> 0 | T192: =SUM(T187:T191) -> 0 | U192: =SUM(U187:U191) -> 0 | W192: =HLOOKUP($W$9,'ROR-Model'!$Q$10:$U$1267,Y192) -> 0 | Y192: 183
E193: =+G193-Adjustments!H193 -> 0 | J193: =+I193-'ROR-Model'!I193 -> 0 | Y193: 184
C194: Total Dth | E194: =+G194-Adjustments!H194 -> 0 | F194: =Revenue!$F$193 -> 0 | G194: =+Adjustments!X194 -> 0 | I194: =SUM($F$194:$H$194) -> 0 | J194: =+I194-'ROR-Model'!I194 -> 0 | L194: Utah | M194: =VLOOKUP($L194,$L$2:$N$7,2,FALSE)*I194 -> 0 | N194: =VLOOKUP($L194,$L$2:$N$7,3,FALSE)*I194 -> 0 | P194: G | Q194: =IF(P194="G",M194,IF(P194="PT",0,ERR)) -> 0 | R194: =IF(P194="PT",M194,IF(P194="G",0,ERR)) -> 0 | S194: G | T194: =IF(S194="G",N194,IF(S194="PT",0,ERR)) -> 0 | U194: =IF(S194="PT",N194,IF(S194="G",0,ERR)) -> 0 | W194: =HLOOKUP($W$9,'ROR-Model'!$Q$10:$U$1267,Y194) -> 0 | Y194: 185
E195: =+G195-Adjustments!H195 -> 0 | J195: =+I195-'ROR-Model'!I195 -> 0 | Y195: 186
B196: CET | C196: Distribution Non-Gas Revenue | E196: =+G196-Adjustments!H196 -> 0 | F196: =Revenue!$F$195 -> -3520781 | G196: =+Adjustments!X196 -> 0 | I196: =SUM($F$196:$H$196) -> -3520781 | J196: =+I196-'ROR-Model'!I196 -> 0 | L196: Utah | M196: =VLOOKUP($L196,$L$2:$N$7,2,FALSE)*I196 -> -3520781 | N196: =VLOOKUP($L196,$L$2:$N$7,3,FALSE)*I196 -> 0 | P196: G | Q196: =IF(P196="G",M196,IF(P196="PT",0,ERR)) -> -3520781 | R196: =IF(P196="PT",M196,IF(P196="G",0,ERR)) -> 0 | S196: G | T196: =IF(S196="G",N196,IF(S196="PT",0,ERR)) -> 0 | U196: =IF(S196="PT",N196,IF(S196="G",0,ERR)) -> 0 | W196: =HLOOKUP($W$9,'ROR-Model'!$Q$10:$U$1267,Y196) -> -3520781 | Y196: 187
B197: DSM | C197: Distribution Non-Gas Revenue | E197: =+G197-Adjustments!H197 -> 0 | F197: =Revenue!$F$196 -> 39595454 | G197: =+Adjustments!X197 -> -39595454 | I197: =SUM($F$197:$H$197) -> 0 | J197: =+I197-'ROR-Model'!I197 -> 0 | L197: Utah | M197: =VLOOKUP($L197,$L$2:$N$7,2,FALSE)*I197 -> 0 | N197: =VLOOKUP($L197,$L$2:$N$7,3,FALSE)*I197 -> 0 | P197: G | Q197: =IF(P197="G",M197,IF(P197="PT",0,ERR)) -> 0 | R197: =IF(P197="PT",M197,IF(P197="G",0,ERR)) -> 0 | S197: G | T197: =IF(S197="G",N197,IF(S197="PT",0,ERR)) -> 0 | U197: =IF(S197="PT",N197,IF(S197="G",0,ERR)) -> 0 | W197: =HLOOKUP($W$9,'ROR-Model'!$Q$10:$U$1267,Y197) -> 0 | Y197: 188
B198: Utah Totals | E198: =+G198-Adjustments!H198 -> 0 | J198: =+I198-'ROR-Model'!I198 -> 0 | Y198: 189
E199: =+G199-Adjustments!H199 -> 0 | J199: =+I199-'ROR-Model'!I199 -> 0 | Y199: 190
C200: Distribution Non-Gas Rev | E200: =+G200-Adjustments!H200 -> 21330 | F200: =+F16+F34+F43+F52+F61+F70+F79+F88+F97+F106+F115+F124+F133+F142+F151+F160+F169+F178+F187+F25+F196+F197 -> 305872386.9 | G200: =+G16+G34+G43+G52+G61+G70+G79+G88+G97+G106+G115+G124+G133+G142+G151+G160+G169+G178+G187+G25+G196+G197 -> -39574124 | H200: =+H16+H34+H43+H52+H61+H70+H79+H88+H97+H106+H115+H124+H133+H142+H151+H160+H169+H178+H187+H25+H196+H197 -> 0 | I200: =+I16+I34+I43+I52+I61+I70+I79+I88+I97+I106+I115+I124+I133+I142+I151+I160+I169+I178+I187+I25+I196+I197 -> 266298262.9 | J200: =+I200-'ROR-Model'!I200 -> 0 | M200: =+M16+M34+M43+M52+M61+M70+M79+M88+M97+M106+M115+M124+M133+M142+M151+M160+M169+M178+M187+M25+M196+M197 -> 266298262.9 | N200: =+N16+N34+N43+N52+N61+N70+N79+N88+N97+N106+N115+N124+N133+N142+N151+N160+N169+N178+N187+N25+N196+N197 -> 0 | Q200: =+Q16+Q34+Q43+Q52+Q61+Q70+Q79+Q88+Q97+Q106+Q115+Q124+Q133+Q142+Q151+Q160+Q169+Q178+Q187+Q25+Q196+Q197 -> 266298262.9 | R200: =+R16+R34+R43+R52+R61+R70+R79+R88+R97+R106+R115+R124+R133+R142+R151+R160+R169+R178+R187+R25+R196 -> 0 | T200: =+T16+T34+T43+T52+T61+T70+T79+T88+T97+T106+T115+T124+T133+T142+T151+T160+T169+T178+T187+T25+T196 -> 0 | U200: =+U16+U34+U43+U52+U61+U70+U79+U88+U97+U106+U115+U124+U133+U142+U151+U160+U169+U178+U187+U25+U196 -> 0 | W200: =HLOOKUP($W$9,'ROR-Model'!$Q$10:$U$1267,Y200) -> 266298262.9 | Y200: 191
... 1067 more rows

Sheet Taxes
B1: ='Control Panel'!$B$2 -> Utah - DEC 2011 Adjusted Avg Results
B2: ='Control Panel'!$B$3 -> 12 Months Ended : Dec-2011
B3: ='Control Panel'!$B$4 -> Capital Structure : AVG CAP STR
C7: Imputed Tax Adjustment | J7: Calculation of Effective Income Tax Rate and Gross-Up Factors
C8: A | D8: B | E8: C | J8: 3 Factor | K8: 3 Factor | L8: A | N8: B | O8: C | P8: D | Q8: E | R8: F | S8: G | T8: H
C9: System | D9: Utah | E9: Wyoming | F9: ='Control Panel'!F11 -> Utah | J9: Combined
C10: Total | D10: Jurisdiction | E10: Jurisdiction | F10: Jurisdiction | J10: (Updated Oct 2011) | L10: Total | N10: Colorado | O10: Idaho | P10: Montana | Q10: Nevada | R10: New Mexico | S10: Utah | T10: Wyoming
B11: ALGEBRAIC METHOD - SOLVING FOR TWO UNKNOWNS | I11: 1 | J11: State Tax Rates | N11: 0.0463 | O11: 0.076 | P11: 0.0675 | Q11: 0 | R11: 0.076 | S11: 0.05 | T11: 0
B12: Federal Income Tax Rate | C12: =$L$20 -> 0.35 | D12: =$L$20 -> 0.35 | E12: =$L$20 -> 0.35 | F12: =HLOOKUP($F$9,Taxes,4) -> 0.35 | G12: tF | I12: 2 | J12: Weighting of states
B13: State Income Tax Rate | C13: =$L$18 -> 0.047315 | D13: =$L$18 -> 0.047315 | E13: =$L$18 -> 0.047315 | F13: =HLOOKUP($F$9,Taxes,5) -> 0.047315 | G13: tS | I13: 3 | K13: Ave Investment | L13: =SUM(N13:T13) -> 1768926531 | N13: 22235378 | O13: 5360115 | P13: 122837 | Q13: 0 | R13: 250626 | S13: 1623836109 | T13: 117121466
B14: Weight of Debt in Capital Structure | C14: ='Capital Str'!$D$7 -> 0.4560038653 | D14: ='Capital Str'!$D$7 -> 0.4560038653 | E14: ='Capital Str'!$D$7 -> 0.4560038653 | F14: =HLOOKUP($F$9,Taxes,6) -> 0.4560038653 | G14: wD | I14: 4 | K14: Gross Receipts | L14: =SUM(N14:T14) -> 910210111 | N14: 6392473 | O14: 1636056 | P14: 137002 | Q14: 0 | R14: 61429 | S14: 848697972 | T14: 53285179
B15: Cost of Debt | C15: ='Capital Str'!$E$7 -> 0.06681595484 | D15: ='Capital Str'!$E$7 -> 0.06681595484 | E15: ='Capital Str'!$E$7 -> 0.06681595484 | F15: =HLOOKUP($F$9,Taxes,7) -> 0.06681595484 | G15: rD | I15: 5 | K15: Wages | L15: =SUM(N15:T15) -> 89591975 | N15: 0 | O15: 0 | P15: 0 | Q15: 0 | R15: 0 | S15: 86208516 | T15: 3383459
B16: Net Lead Lag Days | C16: ='Control Panel'!$F$21 -> 2.681 | D16: ='Control Panel'!$F$21 -> 2.681 | E16: ='Control Panel'!$F$21 -> 2.681 | F16: =HLOOKUP($F$9,Taxes,8) -> 2.681 | G16: NLD | I16: 6 | K16: % Average | L16: =SUM(N16:T16) -> 1.000046 | N16: 0.006531 | O16: 0.001656 | P16: 7.3e-05 | Q16: 0 | R16: 7e-05 | S16: 0.937544 | T16: 0.054172
B17: Revenues | C17: ='ROR-Model'!I512 -> 928988876.9 | D17: ='ROR-Model'!M512 -> 896108854.7 | E17: ='ROR-Model'!N512-'ROR-Model'!N325 -> 32786236.14 | F17: =HLOOKUP($F$9,Taxes,9) -> 896108854.7 | G17: R
B18: Gas Expenses | C18: ='ROR-Model'!I640 -> 647138356.5 | D18: ='ROR-Model'!M640 -> 624829837.5 | E18: ='ROR-Model'!N640 -> 22308519.04 | F18: =HLOOKUP($F$9,Taxes,10) -> 624829837.5 | G18: GAS | I18: 7 | K18: Ave State Rate | L18: =SUM(N18:T18) -> 0.047315 | N18: =ROUND(N16*N$11,6) -> 0.000302 | O18: 0.000126 | P18: 5e-06 | Q18: 0 | R18: 5e-06 | S18: 0.046877 | T18: 0
B19: O&M Expenses | C19: ='ROR-Model'!I905 -> 127468575.5 | D19: ='ROR-Model'!Q905 -> 121927026 | E19: ='ROR-Model'!N905 -> 5541549.548 | F19: =HLOOKUP($F$9,Taxes,11) -> 121927026 | G19: O&M
B20: Depreciation | C20: ='ROR-Model'!I917 -> 44460790.79 | D20: ='ROR-Model'!Q917 -> 42838099.76 | E20: ='ROR-Model'!W917 -> 42838099.76 | F20: =HLOOKUP($F$9,Taxes,12) -> 42838099.76 | G20: DEPR | I20: 8 | J20: Federal Tax Rate | L20: 0.35
B21: Amortization | C21: ='ROR-Model'!I924 -> 17871.9 | D21: ='ROR-Model'!Q924 -> 17252.02207 | E21: ='ROR-Model'!W924 -> 17252.02207 | F21: =HLOOKUP($F$9,Taxes,13) -> 17252.02207 | G21: AMORT
B22: Non-Income Taxes | C22: ='ROR-Model'!I934 -> 15029093.52 | D22: ='ROR-Model'!Q934 -> 14239925.92 | E22: ='ROR-Model'!W934 -> 14239925.92 | F22: =HLOOKUP($F$9,Taxes,14) -> 14239925.92 | G22: NIT
B23: Rate Base excluding CWC | C23: ='ROR-Model'!I1235 -> 808690708.3 | D23: ='ROR-Model'!Q1235 -> 783494375.7 | E23: ='ROR-Model'!W1235 -> 783494375.7 | F23: =HLOOKUP($F$9,Taxes,15) -> 783494375.7 | G23: RB* | I23: 9 | J23: Combined Federal & State Tax Rate | L23: =L20*(1-L18)+L18 -> 0.38075475 | N23: Combined Rate = Average State Rate + (Federal Rate * (1 - Average State Rate))
B24: Deferred Income Taxes | C24: 0 | D24: ='ROR-Model'!W958 -> 0 | E24: ='ROR-Model'!X958 -> 0 | F24: =HLOOKUP($F$9,Taxes,16) -> 0 | G24: DIT | J24: (Updated Oct 2011)
B25: Deferred Income Taxes - Credit | C25: ='ROR-Model'!I960 -> 0 | D25: ='ROR-Model'!W960 -> 0 | E25: ='ROR-Model'!X960 -> 0 | F25: =HLOOKUP($F$9,Taxes,17) -> 0 | G25: DITCr
B26: CWC = CWC* + (NLD/365)∙IT | C26: CWC is a function of IT, and | I26: 10 | J26: Gross-Up Factors | L26: UT | N26: WY
B27: IT = IT* - (tS+tF∙(1-tS))∙rD∙wD∙CWC | C27: IT is a function of CWC | I27: 11 | K27: Tax Factor | L27: =(Taxes!$L$23/(1-Taxes!$L$23)) -> 0.6148690684 | N27: =(Taxes!$L$20/(1-Taxes!$L$20)) -> 0.5384615385 | O27: Tax Factor = (Tax Rate/(1 - Tax Rate))
B28: where IT = SIT + FIT + DIT + DITCr, and | I28: 12 | K28: Gross-Up Factor | L28: =1/(1-Taxes!$L$23) -> 1.614869068 | N28: =1/(1-Taxes!$L$20) -> 1.538461538 | O28: Gross-Up Factor = 1 / (1 - Tax Rate))
B29: CWC* = | C29: =($C16/365)*(C18+C19+C22) -> 5800038.862 | D29: =($D16/365)*(D18+D19+D22) -> 5589677.787 | E29: =($D16/365)*(E18+E19+E22) -> 309159.6583 | F29: =HLOOKUP($F$9,Taxes,21) -> 5589677.787 | I29: 13 | K29: Tax & Bad Debt Gross-Up Factor | L29: =1/(1-(Taxes!$L$23+('Control Panel'!$F$22*(1-Taxes!$L$23)))) -> 1.620004085 | N29: =1/(1-(Taxes!$L$20+('Control Panel'!$F$22*(1-Taxes!$L$20)))) -> 1.543353592 | O29: Tax & Bad Debt Gross-Up Factor = 1 / (1 - (Tax Rate + (Bad Debt Rate * (1 - Tax Rate))))
B30: IT* = | C30: =($C13+$C12*(1-$C13))*(C17-SUM(C18:C22)-$C15*$C14*C23) -> 26742207.17 | D30: =($C13+$C12*(1-$C13))*(D17-SUM(D18:D22)-$C15*$C14*D23) -> 26037892.83 | E30: =($C13+$C12*(1-$C13))*(E17-SUM(E18:E22)-$C15*$C14*E23) -> -28949118.03 | F30: =HLOOKUP($F$9,Taxes,22) -> 26037892.83 | I30: 14 | K30: Tax & Bad Debt Factor | L30: =L29-1 -> 0.6200040853 | N30: =N29-1 -> 0.543353592
B31: Solution:
B32: CWC = | C32: =(C29+($C16/365)*C30)/(1+($C16/365)*($C13+$C12*(1-$C13))*$C15*$C14) -> 5995954.944 | D32: =(D29+($C16/365)*D30)/(1+($C16/365)*($C13+$C12*(1-$C13))*$C15*$C14) -> 5780438.9 | E32: =(E29+($C16/365)*E30)/(1+($C16/365)*($C13+$C12*(1-$C13))*$C15*$C14) -> 96514.21382 | F32: =HLOOKUP($F$9,Taxes,24) -> 5780438.9
B33: SIT = | C33: =$C13*(C17-SUM(C18:C22)-$C15*$C14*(C23+C32)) -> 3314512.439 | D33: =$C13*(D17-SUM(D18:D22)-$C15*$C14*(D23+D32)) -> 3227300.562 | E33: =$C13*(E17-SUM(E18:E22)-$C15*$C14*(E23+E32)) -> -3597540.139 | F33: =HLOOKUP($F$9,Taxes,25) -> 3227300.562
B34: FIT = | C34: =$C12*(C17-SUM(C18:C22)-$C15*$C14*(C23+C32)-C33)-C24-C25 -> 23358135.88 | D34: =$C12*(D17-SUM(D18:D22)-$C15*$C14*(D23+D32)-D33)-D24-D25 -> 22743533.61 | E34: =$C12*(E17-SUM(E18:E22)-$C15*$C14*(E23+E32)-E33)-E24-E25 -> -25352697.55 | F34: =HLOOKUP($F$9,Taxes,26) -> 22743533.61
B35: IT = | C35: =C34+C33+C25+C24 -> 26672648.32 | D35: =D34+D33+D25+D24 -> 25970834.17 | E35: =E34+E33+E25+E24 -> -28950237.69 | F35: =HLOOKUP($F$9,Taxes,27) -> 25970834.17
B38: Historically Adjusted Income Taxes | C38: =SUM('ROR-Model'!F936:G945) -> 26716631.35
B39: Tax Adjustment | C39: =C35-C38 -> -43983.03554
B40: RATE BASE METHOD
B41: System Average Rate Base | C41: ='ROR-Model'!I1267 -> 814686663.2 | D41: ='ROR-Model'!Q1267 -> 789274814.6 | E41: ='ROR-Model'!T1267 -> 25027953.5 | F41: =HLOOKUP($F$9,Taxes,33) -> 789274814.6
B42: Adj System Return On Rate Base | C42: =Report!I75 -> 0.08371505681 | D42: =D43/D41 -> 0.08398326942 | E42: =E43/E41 -> 1.25732897 | F42: =HLOOKUP($F$9,Taxes,34) -> 0.08398326942
B43: Allowed Return | C43: =+C41*C42 -> 68201540.29 | D43: ='ROR-Model'!W512-'ROR-Model'!W956 -> 66285879.4 | E43: ='ROR-Model'!T512-'ROR-Model'!T956 -> 31468370.98 | F43: =HLOOKUP($F$9,Taxes,35) -> 66285879.4
B45: System Average Rate Base | C45: =C41 -> 814686663.2 | D45: =D41 -> 789274814.6 | E45: =E41 -> 25027953.5 | F45: =HLOOKUP($F$9,Taxes,37) -> 789274814.6
B46: System Weighted Cost Of Debt | C46: =+'Capital Str'!$F$12 -> 0.03046833367 | D46: =+'Capital Str'!$F$12 -> 0.03046833367 | E46: =+'Capital Str'!$F$12 -> 0.03046833367 | F46: =HLOOKUP($F$9,Taxes,38) -> 0.03046833367
B47: Imputed Interest Cost | C47: =+C45*C46 -> 24822145.09 | D47: =+D45*D46 -> 24047888.41 | E47: =+E45*E46 -> 762560.0383 | F47: =HLOOKUP($F$9,Taxes,39) -> 24047888.41
B49: Taxable Return | C49: =+C43-C47 -> 43379395.2 | D49: =+D43-D47 -> 42237990.99 | E49: =+E43-E47 -> 30705810.95 | F49: =HLOOKUP($F$9,Taxes,41) -> 42237990.99
B50: Tax Factor (Tax Rate/(1-Tax Rate)) | C50: =$L$27 -> 0.6148690684 | D50: =$L$27 -> 0.6148690684 | E50: =$L$27 -> 0.6148690684 | F50: =HLOOKUP($F$9,Taxes,42) -> 0.6148690684
B51: Income Tax on Return | C51: =+C49*C50 -> 26672648.32 | D51: =+D49*D50 -> 25970834.17 | E51: =+E49*E50 -> 18880053.37 | F51: =HLOOKUP($F$9,Taxes,43) -> 25970834.17
B52: OPERATING INCOME METHOD
B53: Total Utility Operating Revenue | C53: =C17 -> 928988876.9 | D53: =D17 -> 896108854.7 | E53: 32786236.14 | F53: =HLOOKUP($F$9,Taxes,45) -> 896108854.7
B54: Gas Purchase Expenses | C54: 647138356.5 | D54: 624829837.5 | E54: 22308519.04 | F54: =HLOOKUP($F$9,Taxes,46) -> 624829837.5
B55: O&M Expenses | C55: 127468575.5 | D55: =D19 -> 121927026 | E55: 5541549.548 | F55: =HLOOKUP($F$9,Taxes,47) -> 121927026
B56: Depreciation | C56: 44460790.79 | D56: 42838099.76 | E56: 42838099.76 | F56: =HLOOKUP($F$9,Taxes,48) -> 42838099.76
B57: Amortization | C57: 17871.9 | D57: 17252.02207 | E57: 17252.02207 | F57: =HLOOKUP($F$9,Taxes,49) -> 17252.02207
B58: Taxes Other Than Income | C58: 15029093.52 | D58: 14239925.92 | E58: 14239925.92 | F58: =HLOOKUP($F$9,Taxes,50) -> 14239925.92
B59: Net Utility Income Before Tax | C59: =C53-SUM(C54:C58) -> 94874188.61 | D59: =D53-SUM(D54:D58) -> 92256713.57 | E59: =E53-SUM(E54:E58) -> -52159110.15 | F59: =HLOOKUP($F$9,Taxes,51) -> 92256713.57
B61: Rate Base | C61: ='ROR-Model'!I1267 -> 814686663.2 | D61: ='ROR-Model'!M1267 -> 789274814.6 | E61: ='ROR-Model'!T1267 -> 25027953.5 | F61: =HLOOKUP($F$9,Taxes,53) -> 789274814.6
B62: Proposed Weighted Cost of Debt | C62: =C46 -> 0.03046833367 | D62: =D46 -> 0.03046833367 | E62: =E46 -> 0.03046833367 | F62: =HLOOKUP($F$9,Taxes,54) -> 0.03046833367
B63: Imputed Interest | C63: =C61*C62 -> 24822145.09 | D63: =D61*D62 -> 24047888.41 | E63: =E61*E62 -> 762560.0383 | F63: =HLOOKUP($F$9,Taxes,55) -> 24047888.41
B65: State Taxable Income | C65: =C59-C63 -> 70052043.52 | D65: =D59-D63 -> 68208825.16 | E65: =E59-E63 -> -52921670.19 | F65: =HLOOKUP($F$9,Taxes,57) -> 68208825.16
B66: State Income Tax Rate | C66: =$L$18 -> 0.047315 | D66: =$L$18 -> 0.047315 | E66: =$L$18 -> 0.047315 | F66: =HLOOKUP($F$9,Taxes,58) -> 0.047315
B67: State Income Tax | C67: =C65*C66 -> 3314512.439 | D67: =D65*D66 -> 3227300.562 | E67: =E65*E66 -> -2503988.825 | F67: =HLOOKUP($F$9,Taxes,59) -> 3227300.562
B69: Federal Taxable Income | C69: =C65-C67-(C24+C25)/C12 -> 66737531.08 | D69: =D65-D67-(D24+D25)/D12 -> 64981524.6 | E69: =E65-E67-(E24+E25)/E12 -> -50417681.36 | F69: =HLOOKUP($F$9,Taxes,61) -> 64981524.6
B70: Federal Income Tax Rate | C70: =$L$20 -> 0.35 | D70: =$L$20 -> 0.35 | E70: =$L$20 -> 0.35 | F70: =HLOOKUP($F$9,Taxes,62) -> 0.35
B71: Federal Income Tax | C71: =C69*C70 -> 23358135.88 | D71: =D69*D70 -> 22743533.61 | E71: =E69*E70 -> -17646188.48 | F71: =HLOOKUP($F$9,Taxes,63) -> 22743533.61
B73: Deferred Income Taxes | C73: =C24 -> 0 | D73: 0 | E73: 0 | F73: =HLOOKUP($F$9,Taxes,65) -> 0
B74: Deferred Income Taxes - Credit | C74: 0 | D74: 0 | E74: 0 | F74: =HLOOKUP($F$9,Taxes,66) -> 0
B75: Total Income Tax | C75: =C74+C73+C71+C67 -> 26672648.32 | D75: =D74+D73+D71+D67 -> 25970834.17 | E75: =E74+E73+E71+E67 -> -20150177.3 | F75: =HLOOKUP($F$9,Taxes,67) -> 25970834.17

Sheet Rate Base
B1: Rate Base
B2: ='Control Panel'!$B$1 -> Questar Gas Company | AG2: Rate Base | AK2: A | AL2: B | AM2: (A - B) | AZ2: cut and pasted
B3: ='Control Panel'!$B$2 -> Utah - DEC 2011 Adjusted Avg Results | AG3: ='Control Panel'!$B$1 -> Questar Gas Company
B4: ='Control Panel'!$B$3 -> 12 Months Ended : Dec-2011 | AC4: ADJ From Avg | AG4: ='Control Panel'!$B$2 -> Utah - DEC 2011 Adjusted Avg Results
V5: 13 Month | AC5: to Vear End | AG5: ='Control Panel'!$B$3 -> 12 Months Ended : Dec-2011 | AS5: 13 Month
V6: Average | AL6: 13 Month | AS6: Average
V7: All Accounts | AB7: HOT | AC7: HOT | AL7: Average | AM7: 13 Month | AS7: All Accounts | AZ7: PROJECTED | BA7: PROJECTED
V8: =+T9 -> 2011-12-16 | Y8: YE RB DEC 2011 | Z8: AVG RB DEC 2011 | AA8: WY RB DEC 2011 | AB8: =+'Control Panel'!B27 -> AVG RB DEC 2011 | AD8: 1 | AE8: 1 | AK8: Balance | AL8: All Accounts | AM8: Average | AS8: QGC Rate Base Dec 09 | AZ8: YE RB DEC 2009 | BA8: AVG RB DEC 2009
B9: FERC Acct | D9: Description | H9: 2010-12-21 | I9: 2011-01-20 | J9: 2011-02-19 | K9: 2011-03-21 | L9: 2011-04-20 | M9: 2011-05-20 | N9: 2011-06-19 | O9: 2011-07-19 | P9: 2011-08-18 | Q9: 2011-09-17 | R9: 2011-10-17 | S9: 2011-11-16 | T9: 2011-12-16 | AC9: Adjustment | AD9: =+AD8+1 -> 2 | AE9: =+AE8+1 -> 2 | AG9: FERC Acct | AI9: Description | AK9: 2011-12-31 | AL9: =+'Control Panel'!B27 -> AVG RB DEC 2011 | AM9: Adjustment
A10: 939 | B10: UTILITV RATE BASE | AD10: 3 | AE10: 3 | AG10: UTILITY RATE BASE
A11: =+A10+1 -> 940 | B11: NET UTILITV PLANT | AD11: =+AD10+1 -> 4 | AE11: 4 | AG11: NET UTILITY PLANT
A12: =+A11+1 -> 941 | B12: Gas Plant In Service | AD12: 5 | AE12: 5 | AG12: Gas Plant In Seryice
A13: 942 | C13: Intangible Plant | AD13: 6 | AE13: 6 | AH13: Intangible Plant
A14: 943 | B14: 302 | C14: Franchises & Consents | AD14: 7 | AE14: 7 | AG14: 302 | AH14: Franchises & Consents
A15: 944 | C15: Distribution - WVoming | H15: 10883.08 | I15: 10883.08 | J15: 10883.08 | K15: 10883.08 | L15: 10883.08 | M15: 10883.08 | N15: 10883.08 | O15: 10883.08 | P15: 10883.08 | Q15: 10883.08 | R15: 10883.08 | S15: 10883.08 | T15: 10883.08 | V15: =(SUM(I15:S15)+(0.5*T15)+(0.5*H15))/12 -> 10883.08 | Y15: =T15 -> 10883.08 | Z15: =V15 -> 10883.08 | AA15: =T15 -> 10883.08 | AB15: =HLOOKUP($AB$8,RateBaseScenarios,AD15,FALSE) -> 10883.08 | AC15: =AB15-T15 -> 0 | AD15: 8 | AE15: 3 | AF15: 0 | AH15: Distribution - Wyoming | AK15: =+T15 -> 10883.08 | AL15: =AB15 -> 10883.08 | AM15: =AL15-AK15 -> 0 | AS15: 10883.08 | AZ15: =#REF! ->  | BA15: =#REF! -> 
A16: 945 | C16: Distribution - Utah | H16: 58742.88 | I16: 58742.88 | J16: 58742.88 | K16: 58742.88 | L16: 58742.88 | M16: 58742.88 | N16: 58742.88 | O16: 58742.88 | P16: 58742.88 | Q16: 58742.88 | R16: 58742.88 | S16: 58742.88 | T16: 58742.88 | V16: =(SUM(I16:S16)+(0.5*T16)+(0.5*H16))/12 -> 58742.88 | Y16: =T16 -> 58742.88 | Z16: 58742.88 | AA16: =T16 -> 58742.88 | AB16: 58742.88 | AC16: =AB16-T16 -> 0 | AD16: 9 | AE16: 4 | AF16: 0 | AH16: Distribution - Utah | AK16: =+T16 -> 58742.88 | AL16: =AB16 -> 58742.88 | AM16: =AL16-AK16 -> 0 | AS16: 58742.88 | AZ16: =#REF! ->  | BA16: =#REF! -> 
A17: 946 | AB17: 0 | AD17: 10 | AE17: 5 | AF17: 0
A18: 947 | C18: Total Intangible Plant | H18: =SUM(H15:H17) -> 69625.96 | I18: =SUM(I15:I17) -> 69625.96 | J18: 69625.96 | K18: 69625.96 | L18: 69625.96 | M18: 69625.96 | N18: 69625.96 | O18: 69625.96 | P18: 69625.96 | Q18: 69625.96 | R18: 69625.96 | S18: 69625.96 | T18: 69625.96 | V18: =SUM(V15:V16) -> 69625.96 | Y18: =T18 -> 69625.96 | Z18: 69625.96 | AA18: =T18 -> 69625.96 | AB18: 69625.96 | AC18: =SUM(AC15:AC17) -> 0 | AD18: 11 | AE18: 6 | AF18: 0 | AH18: Total Intangible Plant | AS18: 69625.96 | AZ18: =#REF! ->  | BA18: =#REF! -> 
A19: 948 | AB19: 0 | AD19: 12 | AE19: 7 | AF19: 0
A20: 949 | C20: Production & Gathering Plant | AB20: 0 | AD20: 13 | AE20: 8 | AF20: 0 | AH20: Production & Gathering Plant
A21: 950 | B21: 325 | C21: Land & Land Rights | H21: 6266900.69 | I21: 6266900.69 | J21: 6266900.69 | K21: 6266900.69 | L21: 6266900.69 | M21: 6266900.69 | N21: 6266900.69 | O21: 6266900.69 | P21: 6266900.69 | Q21: 6266900.69 | R21: 6266900.69 | S21: 6266900.69 | T21: 6266900.69 | V21: =(SUM(I21:S21)+(0.5*T21)+(0.5*H21))/12 -> 6266900.69 | Y21: =T21 -> 6266900.69 | Z21: 6266900.69 | AA21: =T21 -> 6266900.69 | AB21: 6266900.69 | AC21: =AB21-T21 -> 0 | AD21: 14 | AE21: 9 | AF21: 0 | AG21: 325 | AH21: Land & Land Rights | AK21: =+T21 -> 6266900.69 | AL21: =AB21 -> 6266900.69 | AM21: =AL21-AK21 -> 0 | AS21: 6267322.57 | AZ21: =#REF! ->  | BA21: =#REF! -> 
A22: 951 | B22: 326...9 | C22: Structures | H22: 1452352.57 | I22: 1452352.57 | J22: 1452352.57 | K22: 1452352.57 | L22: 1452352.57 | M22: 1452352.57 | N22: 1452352.57 | O22: 1452352.57 | P22: 1452352.57 | Q22: 1452352.57 | R22: 1452352.57 | S22: 1452352.57 | T22: 1452352.57 | V22: =(SUM(I22:S22)+(0.5*T22)+(0.5*H22))/12 -> 1452352.57 | Y22: 1452352.57 | Z22: 1452352.57 | AA22: 1452352.57 | AB22: 1452352.57 | AC22: 0 | AD22: 15 | AE22: 10 | AF22: 0 | AG22: 326...9 | AH22: Structures | AK22: 1452352.57 | AL22: 1452352.57 | AM22: 0 | AS22: 1723783.755 | AZ22: =#REF! ->  | BA22: =#REF! -> 
A23: 952 | B23: 330 | C23: Gas Wells - Construction | H23: 54425108.09 | I23: 54425108.09 | J23: 54425108.09 | K23: 54425108.09 | L23: 54425108.09 | M23: 54425108.09 | N23: 54425108.09 | O23: 54425108.09 | P23: 54425108.09 | Q23: 54425108.09 | R23: 54425108.09 | S23: 54425108.09 | T23: 54425108.09 | V23: =(SUM(I23:S23)+(0.5*T23)+(0.5*H23))/12 -> 54425108.09 | Y23: 54425108.09 | Z23: 54425108.09 | AA23: 54425108.09 | AB23: 54425108.09 | AC23: 0 | AD23: 16 | AE23: 11 | AF23: 0 | AG23: 330 | AH23: Gas Wells - Construction | AK23: 54425108.09 | AL23: 54425108.09 | AM23: 0 | AS23: 55396767.44 | AZ23: =#REF! ->  | BA23: =#REF! -> 
A24: 953 | B24: 331 | C24: Gas Wells - Equipment | H24: 17866905.97 | I24: 17866905.97 | J24: 17866905.97 | K24: 17866905.97 | L24: 17866905.97 | M24: 17866905.97 | N24: 17866905.97 | O24: 17866905.97 | P24: 17866680.25 | Q24: 17866680.25 | R24: 17866680.25 | S24: 17866680.25 | T24: 17866680.25 | V24: 17866821.32 | Y24: 17866680.25 | Z24: 17866821.32 | AA24: 17866680.25 | AB24: 17866821.32 | AC24: 141.075 | AD24: 17 | AE24: 12 | AF24: 141.075 | AG24: 331 | AH24: Gas Wells - Equipment | AK24: 17866680.25 | AL24: 17866821.32 | AM24: 141.075 | AS24: 18086555.83 | AZ24: =#REF! ->  | BA24: =#REF! -> 
A25: 954 | B25: 332...4 | C25: Field Lines & Comp, Meas & Reg St Eqpt | H25: 2880165.39 | I25: 2880165.39 | J25: 2880165.39 | K25: 2880165.39 | L25: 2880165.39 | M25: 2880165.39 | N25: 2880165.39 | O25: 2880165.39 | P25: 2880165.39 | Q25: 2880165.39 | R25: 2880165.39 | S25: 2880165.39 | T25: 2880165.39 | V25: 2880165.39 | Y25: 2880165.39 | Z25: 2880165.39 | AA25: 2880165.39 | AB25: 2880165.39 | AC25: 0 | AD25: 18 | AE25: 13 | AF25: 0 | AG25: 332...4 | AH25: Field Lines & Comp, Meas & Reg St Eqpt | AK25: 2880165.39 | AL25: 2880165.39 | AM25: 0 | AS25: 3160749.613 | AZ25: =#REF! ->  | BA25: =#REF! -> 
A26: 955 | B26: 336 | C26: Purification Equipment | H26: 57014.71 | I26: 57014.71 | J26: 57014.71 | K26: 57014.71 | L26: 57014.71 | M26: 57014.71 | N26: 57014.71 | O26: 57014.71 | P26: 57014.71 | Q26: 57014.71 | R26: 57014.71 | S26: 57014.71 | T26: 57014.71 | V26: 57014.71 | Y26: 57014.71 | Z26: 57014.71 | AA26: 57014.71 | AB26: 57014.71 | AC26: 0 | AD26: 19 | AE26: 14 | AF26: 0 | AG26: 336 | AH26: Purification Equipment | AK26: 57014.71 | AL26: 57014.71 | AM26: 0 | AS26: 589320.77 | AZ26: =#REF! ->  | BA26: =#REF! -> 
A27: 956 | B27: 337 | C27: Other Equipment | H27: 121186.63 | I27: 121186.63 | J27: 121186.63 | K27: 121186.63 | L27: 121186.63 | M27: 121186.63 | N27: 121186.63 | O27: 121186.63 | P27: 121186.63 | Q27: 121186.63 | R27: 121186.63 | S27: 121186.63 | T27: 121186.63 | V27: 121186.63 | Y27: 121186.63 | Z27: 121186.63 | AA27: 121186.63 | AB27: 121186.63 | AC27: 0 | AD27: 20 | AE27: 15 | AF27: 0 | AG27: 337 | AH27: Other Equipment | AK27: 121186.63 | AL27: 121186.63 | AM27: 0 | AS27: 174182.21 | AZ27: =#REF! ->  | BA27: =#REF! -> 
A28: 957 | AB28: 0 | AD28: 21 | AE28: 16 | AF28: 0
A29: 958 | C29: Total Production & Gathering Plant | H29: =SUM(H21:H27) -> 83069634.05 | I29: =SUM(I21:I27) -> 83069634.05 | J29: 83069634.05 | K29: 83069634.05 | L29: 83069634.05 | M29: 83069634.05 | N29: 83069634.05 | O29: 83069634.05 | P29: 83069408.33 | Q29: 83069408.33 | R29: 83069408.33 | S29: 83069408.33 | T29: 83069408.33 | V29: =SUM(V21:V27) -> 83069549.41 | Y29: =T29 -> 83069408.33 | Z29: 83069549.41 | AA29: =T29 -> 83069408.33 | AB29: 83069549.41 | AC29: =SUM(AC21:AC27) -> 141.075 | AD29: 22 | AE29: 17 | AF29: 141.075 | AH29: Total Production & Gathering Plant | AS29: 85398682.19 | AZ29: =#REF! ->  | BA29: =#REF! -> 
A30: 959 | AB30: 0 | AD30: 23 | AE30: 18 | AF30: 0
A31: 960 | C31: Distribution Plant | AB31: 0 | AD31: 24 | AE31: 19 | AF31: 0 | AH31: Distribution Plant
A32: 961 | B32: 374 | C32: Land & Land Rights | AB32: 0 | AD32: 25 | AE32: 20 | AF32: 0 | AG32: 374 | AH32: Land & Land Rights
A33: 962 | D33: WVoming | H33: 29639.23 | I33: 29639.23 | J33: 29639.23 | K33: 29639.23 | L33: 29639.23 | M33: 29639.23 | N33: 29639.23 | O33: 29639.23 | P33: 29639.23 | Q33: 29639.23 | R33: 29639.23 | S33: 29639.23 | T33: 361464.44 | V33: =(SUM(I33:S33)+(0.5*T33)+(0.5*H33))/12 -> 43465.28042 | Y33: =T33 -> 361464.44 | Z33: 43465.28042 | AA33: =T33 -> 361464.44 | AB33: 43465.28042 | AC33: =AB33-T33 -> -317999.1596 | AD33: 26 | AE33: 21 | AF33: -317999.1596 | AI33: Wyoming | AK33: =+T33 -> 361464.44 | AL33: =AB33 -> 43465.28042 | AM33: =AL33-AK33 -> -317999.1596 | AS33: 28148.8625 | AZ33: =#REF! ->  | BA33: =#REF! -> 
A34: 963 | D34: Utah | H34: 6465243.87 | I34: 6465243.87 | J34: 6465243.87 | K34: 6772374.08 | L34: 6781847.58 | M34: 6781847.58 | N34: 7455486.92 | O34: 7455486.92 | P34: 7448592.57 | Q34: 7448592.57 | R34: 7448592.57 | S34: 7567345.91 | T34: 8583647.59 | V34: =(SUM(I34:S34)+(0.5*T34)+(0.5*H34))/12 -> 7134591.681 | Y34: =T34 -> 8583647.59 | Z34: 7134591.681 | AA34: =T34 -> 8583647.59 | AB34: 7134591.681 | AC34: =AB34-T34 -> -1449055.909 | AD34: 27 | AE34: 22 | AF34: -1449055.909 | AI34: Utah | AK34: =+T34 -> 8583647.59 | AL34: =AB34 -> 7134591.681 | AM34: =AL34-AK34 -> -1449055.909 | AS34: 5109138.773 | AZ34: =#REF! ->  | BA34: =#REF! -> 
A35: 964 | D35: Total | H35: =SUM(H33:H34) -> 6494883.1 | I35: =SUM(I33:I34) -> 6494883.1 | J35: 6494883.1 | K35: 6802013.31 | L35: 6811486.81 | M35: 6811486.81 | N35: 7485126.15 | O35: 7485126.15 | P35: 7478231.8 | Q35: 7478231.8 | R35: 7478231.8 | S35: 7596985.14 | T35: 8945112.03 | V35: =SUM(V33:V34) -> 7178056.961 | Y35: =T35 -> 8945112.03 | Z35: 7178056.961 | AA35: =T35 -> 8945112.03 | AB35: 7178056.961 | AC35: =SUM(AC33:AC34) -> -1767055.069 | AD35: 28 | AE35: 23 | AF35: -1767055.069 | AI35: Total | AS35: 5137287.636 | AZ35: =#REF! ->  | BA35: =#REF! -> 
A36: 965 | AB36: 0 | AD36: 29 | AE36: 24 | AF36: 0
A37: 966 | B37: 375 | C37: Structures & Improvements | AB37: 0 | AD37: 30 | AE37: 25 | AF37: 0 | AG37: 375 | AH37: Structures & Improyements
A38: 967 | D38: WVoming | H38: 251049.39 | I38: 251049.39 | J38: 251049.39 | K38: 251049.39 | L38: 246821.02 | M38: 246821.02 | N38: 246821.02 | O38: 246821.02 | P38: 246821.02 | Q38: 246821.02 | R38: 246821.02 | S38: 246821.02 | T38: 389927.46 | V38: =(SUM(I38:S38)+(0.5*T38)+(0.5*H38))/12 -> 254017.0629 | Y38: =T38 -> 389927.46 | Z38: 254017.0629 | AA38: =T38 -> 389927.46 | AB38: 254017.0629 | AC38: =AB38-T38 -> -135910.3971 | AD38: 31 | AE38: 26 | AF38: -135910.3971 | AI38: Wyoming | AK38: =+T38 -> 389927.46 | AL38: =AB38 -> 254017.0629 | AM38: =AL38-AK38 -> -135910.3971 | AS38: 550509.0375 | AZ38: =#REF! ->  | BA38: =#REF! -> 
A39: 968 | D39: Utah | H39: 6603827.12 | I39: 6603840.72 | J39: 6603840.72 | K39: 7393183.15 | L39: 7206987.74 | M39: 7206987.74 | N39: 7152542.09 | O39: 7152542.09 | P39: 7152542.09 | Q39: 7152542.09 | R39: 7152542.09 | S39: 7187930.95 | T39: 7199677.92 | V39: =(SUM(I39:S39)+(0.5*T39)+(0.5*H39))/12 -> 7072269.499 | Y39: =T39 -> 7199677.92 | Z39: 7072269.499 | AA39: =T39 -> 7199677.92 | AB39: 7072269.499 | AC39: =AB39-T39 -> -127408.4208 | AD39: 32 | AE39: 27 | AF39: -127408.4208 | AI39: Utah | AK39: =+T39 -> 7199677.92 | AL39: =AB39 -> 7072269.499 | AM39: =AL39-AK39 -> -127408.4208 | AS39: 53631794.53 | AZ39: =#REF! ->  | BA39: =#REF! -> 
A40: 969 | D40: Total | H40: =SUM(H38:H39) -> 6854876.51 | I40: =SUM(I38:I39) -> 6854890.11 | J40: 6854890.11 | K40: 7644232.54 | L40: 7453808.76 | M40: 7453808.76 | N40: 7399363.11 | O40: 7399363.11 | P40: 7399363.11 | Q40: 7399363.11 | R40: 7399363.11 | S40: 7434751.97 | T40: 7589605.38 | V40: =SUM(V38:V39) -> 7326286.562 | Y40: =T40 -> 7589605.38 | Z40: 7326286.562 | AA40: =T40 -> 7589605.38 | AB40: 7326286.562 | AC40: =SUM(AC38:AC39) -> -263318.8179 | AD40: 33 | AE40: 28 | AF40: -263318.8179 | AI40: Total | AS40: 54182303.57 | AZ40: =#REF! ->  | BA40: =#REF! -> 
A41: 970 | AB41: 0 | AD41: 34 | AE41: 29 | AF41: 0
A42: 971 | B42: 376 | C42: Mains | AB42: 0 | AD42: 35 | AE42: 30 | AF42: 0 | AG42: 376 | AH42: Mains
A43: 972 | D43: Dist - WV - Mains - SD | AB43: 0 | AD43: 36 | AE43: 31 | AF43: 0 | AH43: Dist - Wy - Mains - SD
A44: 973 | D44: Dist - WV - Mains - LD | AB44: 0 | AD44: 37 | AE44: 32 | AF44: 0 | AH44: Dist - Wy - Mains - LD
A45: 974 | D45: Dist - WV - Mains - Feeders | AB45: 0 | AD45: 38 | AE45: 33 | AF45: 0 | AH45: Dist - Wy - Mains - Feeders
A46: 975 | D46: Total WVoming | H46: 26311594.95 | I46: 26311594.95 | J46: 26878770.62 | K46: 26839636.55 | L46: 26836435.72 | M46: 26871376.97 | N46: 26888882.82 | O46: 28745227.62 | P46: 28658318.64 | Q46: 27482210.37 | R46: 27923122.54 | S46: 28267078.95 | T46: 30015629.45 | V46: =(SUM(I46:S46)+(0.5*T46)+(0.5*H46))/12 -> 27488855.66 | Y46: =T46 -> 30015629.45 | Z46: 27488855.66 | AA46: =T46 -> 30015629.45 | AB46: 27488855.66 | AC46: =AB46-T46 -> -2526773.787 | AD46: 39 | AE46: 34 | AF46: -2526773.787 | AH46: Total Wyoming | AI46: Wyoming | AK46: =+T46 -> 30015629.45 | AL46: =AB46 -> 27488855.66 | AM46: =AL46-AK46 -> -2526773.787 | AS46: 21592313.26 | AZ46: =#REF! ->  | BA46: =#REF! -> 
A47: =+A46+1 -> 976 | D47: Dist - Ut - Mains - SD | AB47: 0 | AD47: =+AD46+1 -> 40 | AE47: =+AE46+1 -> 35 | AF47: 0 | AH47: Dist - Ut - Mains - SD
A48: 977 | D48: Dist - Ut - Mains - LD | AB48: 0 | AD48: 41 | AE48: 36 | AF48: 0 | AH48: Dist - Ut - Mains - LD
A49: 978 | D49: Dist - Ut - Mains - Feeders | AB49: 0 | AD49: 42 | AE49: 37 | AF49: 0 | AH49: Dist - Ut - Mains - Feeders
A50: 979 | D50: Total Utah | H50: 848587233.5 | I50: 847408441.9 | J50: 847707109.4 | K50: 848369689.9 | L50: 846174760.7 | M50: 847878721.4 | N50: 849103905.6 | O50: 853301520.1 | P50: 884221240.2 | Q50: 869898803.7 | R50: 871555085.6 | S50: 885360830.4 | T50: 900387709 | V50: =(SUM(I50:S50)+(0.5*T50)+(0.5*H50))/12 -> 860455631.7 | Y50: =T50 -> 900387709 | Z50: 860455631.7 | AA50: =T50 -> 900387709 | AB50: 860455631.7 | AC50: =AB50-T50 -> -39932077.34 | AD50: 43 | AE50: 38 | AF50: -39932077.34 | AH50: Total Utah | AK50: =+T50 -> 900387709 | AL50: =AB50 -> 860455631.7 | AM50: =AL50-AK50 -> -39932077.34 | AS50: 659146962.7 | AZ50: =#REF! ->  | BA50: =#REF! -> 
A51: =+A50+1 -> 980 | D51: Total | H51: =SUM(H46:H50) -> 874898828.4 | I51: =SUM(I46:I50) -> 873720036.9 | J51: 874585880 | K51: 875209326.4 | L51: 873011196.4 | M51: 874750098.4 | N51: 875992788.4 | O51: 882046747.8 | P51: 912879558.9 | Q51: 897381014.1 | R51: 899478208.1 | S51: 913627909.3 | T51: 930403338.5 | V51: =SUM(V46:V50) -> 887944487.3 | Y51: =T51 -> 930403338.5 | Z51: 887944487.3 | AA51: =T51 -> 930403338.5 | AB51: 887944487.3 | AC51: =AC50+AC46 -> -42458851.13 | AD51: 44 | AE51: 39 | AF51: -42458851.13 | AI51: Total | AS51: 680739275.9 | AZ51: =#REF! ->  | BA51: =#REF! -> 
A52: =+A51+1 -> 981 | AB52: 0 | AD52: 45 | AE52: 40 | AF52: 0
A53: 982 | B53: 377 | C53: Compressor Station Equipment | AB53: 0 | AD53: 46 | AE53: 41 | AF53: 0 | AG53: 377 | AH53: Compressor Station Equipment
A54: 983 | D54: WVoming | H54: 0 | I54: 0 | J54: 0 | K54: 0 | L54: 0 | M54: 0 | N54: 0 | O54: 0 | P54: 0 | Q54: 0 | R54: 0 | S54: 0 | T54: 0 | V54: =(SUM(I54:S54)+(0.5*T54)+(0.5*H54))/12 -> 0 | AB54: 0 | AD54: 47 | AE54: 42 | AF54: 0 | AI54: Wyoming | AK54: =+T54 -> 0 | AL54: =AB54 -> 0 | AM54: =AL54-AK54 -> 0 | AS54: 0
A55: 984 | D55: Utah | H55: 4573574.73 | I55: 4573574.73 | J55: 4573574.73 | K55: 4573574.73 | L55: 4573574.73 | M55: 4573574.73 | N55: 4573574.73 | O55: 4573574.73 | P55: 4573574.73 | Q55: 4573574.73 | R55: 4573574.73 | S55: 4573574.73 | T55: 4573574.73 | V55: =(SUM(I55:S55)+(0.5*T55)+(0.5*H55))/12 -> 4573574.73 | Y55: =T55 -> 4573574.73 | Z55: 4573574.73 | AA55: =T55 -> 4573574.73 | AB55: 4573574.73 | AC55: =AB55-T55 -> 0 | AD55: 48 | AE55: 43 | AF55: 0 | AI55: Utah | AK55: =+T55 -> 4573574.73 | AL55: =AB55 -> 4573574.73 | AM55: =AL55-AK55 -> 0 | AS55: 4303517.114 | AZ55: =#REF! ->  | BA55: =#REF! -> 
A56: 985 | D56: Total | H56: =SUM(H54:H55) -> 4573574.73 | I56: =SUM(I54:I55) -> 4573574.73 | J56: 4573574.73 | K56: 4573574.73 | L56: 4573574.73 | M56: 4573574.73 | N56: 4573574.73 | O56: 4573574.73 | P56: 4573574.73 | Q56: 4573574.73 | R56: 4573574.73 | S56: 4573574.73 | T56: 4573574.73 | V56: =SUM(V54:V55) -> 4573574.73 | Y56: =T56 -> 4573574.73 | Z56: 4573574.73 | AA56: =T56 -> 4573574.73 | AB56: 4573574.73 | AC56: =SUM(AC54:AC55) -> 0 | AD56: 49 | AE56: 44 | AF56: 0 | AI56: Total | AS56: 4303517.114 | AZ56: =#REF! ->  | BA56: =#REF! -> 
A57: 986 | AB57: 0 | AD57: 50 | AE57: 45 | AF57: 0
A58: 987 | B58: 378 | C58: Measuring & Regulation Station Equip | AB58: 0 | AD58: 51 | AE58: 46 | AF58: 0 | AG58: 378 | AH58: Measuring & Regulation Station Equip
A59: 988 | D59: WVoming | H59: 2461534.16 | I59: 2461534.16 | J59: 2461534.16 | K59: 2461534.16 | L59: 2474358.84 | M59: 2474358.84 | N59: 2474358.84 | O59: 2474358.84 | P59: 2474358.84 | Q59: 2478014.48 | R59: 2478014.48 | S59: 2521840.07 | T59: 2538844.97 | V59: =(SUM(I59:S59)+(0.5*T59)+(0.5*H59))/12 -> 2477871.273 | Y59: =T59 -> 2538844.97 | Z59: 2477871.273 | AA59: =T59 -> 2538844.97 | AB59: 2477871.273 | AC59: =AB59-T59 -> -60973.69708 | AD59: 52 | AE59: 47 | AF59: -60973.69708 | AI59: Wyoming | AK59: =+T59 -> 2538844.97 | AL59: =AB59 -> 2477871.273 | AM59: =AL59-AK59 -> -60973.69708 | AS59: 1876046.61 | AZ59: =#REF! ->  | BA59: =#REF! -> 
A60: 989 | D60: Utah | H60: 41370616.53 | I60: 41374755.02 | J60: 41461457.74 | K60: 41768043.92 | L60: 41591937.52 | M60: 41599778.82 | N60: 41626543.55 | O60: 41651193.24 | P60: 41659453.52 | Q60: 41708683 | R60: 41649808.44 | S60: 43170144.46 | T60: 45466662.77 | V60: =(SUM(I60:S60)+(0.5*T60)+(0.5*H60))/12 -> 41890036.57 | Y60: =T60 -> 45466662.77 | Z60: 41890036.57 | AA60: =T60 -> 45466662.77 | AB60: 41890036.57 | AC60: =AB60-T60 -> -3576626.197 | AD60: 53 | AE60: 48 | AF60: -3576626.197 | AI60: Utah | AK60: =+T60 -> 45466662.77 | AL60: =AB60 -> 41890036.57 | AM60: =AL60-AK60 -> -3576626.197 | AS60: 35346062.87 | AZ60: =#REF! ->  | BA60: =#REF! -> 
A61: 990 | D61: Total | H61: =SUM(H59:H60) -> 43832150.69 | I61: =SUM(I59:I60) -> 43836289.18 | J61: 43922991.9 | K61: 44229578.08 | L61: 44066296.36 | M61: 44074137.66 | N61: 44100902.39 | O61: 44125552.08 | P61: 44133812.36 | Q61: 44186697.48 | R61: 44127822.92 | S61: 45691984.53 | T61: 48005507.74 | V61: =SUM(V59:V60) -> 44367907.85 | Y61: =T61 -> 48005507.74 | Z61: 44367907.85 | AA61: =T61 -> 48005507.74 | AB61: 44367907.85 | AC61: =SUM(AC59:AC60) -> -3637599.894 | AD61: 54 | AE61: 49 | AF61: -3637599.894 | AI61: Total | AS61: 37222109.48 | AZ61: =#REF! ->  | BA61: =#REF! -> 
A62: 991 | AB62: 0 | AD62: 55 | AE62: 50 | AF62: 0
A63: 992 | B63: 380 | C63: Services | AB63: 0 | AD63: 56 | AE63: 51 | AF63: 0 | AG63: 380 | AH63: Seryices
A64: 993 | D64: WVoming | H64: 11350407.82 | I64: 11350407.82 | J64: 11394544.54 | K64: 11410647.49 | L64: 11464308.33 | M64: 11469944.76 | N64: 11484581.71 | O64: 11504858.74 | P64: 11530494.49 | Q64: 11530494.49 | R64: 14015982.68 | S64: 14244042.15 | T64: 14320486.64 | V64: =(SUM(I64:S64)+(0.5*T64)+(0.5*H64))/12 -> 12019646.2 | Y64: =T64 -> 14320486.64 | Z64: 12019646.2 | AA64: =T64 -> 14320486.64 | AB64: 12019646.2 | AC64: =AB64-T64 -> -2300840.438 | AD64: 57 | AE64: 52 | AF64: -2300840.438 | AI64: Wyoming | AK64: =+T64 -> 14320486.64 | AL64: =AB64 -> 12019646.2 | AM64: =AL64-AK64 -> -2300840.438 | AS64: 10407818.63 | AZ64: =#REF! ->  | BA64: =#REF! -> 
A65: 994 | D65: Utah | H65: 287893006 | I65: 287893006 | J65: 291822492.8 | K65: 291387130.7 | L65: 293070155.4 | M65: 293740519.8 | N65: 294188522 | O65: 294650566.1 | P65: 295539573.6 | Q65: 295539573.6 | R65: 296511839.6 | S65: 293762862.2 | T65: 297616826.5 | V65: =(SUM(I65:S65)+(0.5*T65)+(0.5*H65))/12 -> 293405096.5 | Y65: =T65 -> 297616826.5 | Z65: 293405096.5 | AA65: =T65 -> 297616826.5 | AB65: 293405096.5 | AC65: =AB65-T65 -> -4211730.002 | AD65: 58 | AE65: 53 | AF65: -4211730.002 | AI65: Utah | AK65: =+T65 -> 297616826.5 | AL65: =AB65 -> 293405096.5 | AM65: =AL65-AK65 -> -4211730.002 | AS65: 266531314.8 | AZ65: =#REF! ->  | BA65: =#REF! -> 
A66: 995 | D66: Total | H66: =SUM(H64:H65) -> 299243413.9 | I66: =SUM(I64:I65) -> 299243413.9 | J66: 303217037.4 | K66: 302797778.2 | L66: 304534463.8 | M66: 305210464.5 | N66: 305673103.7 | O66: 306155424.9 | P66: 307070068.1 | Q66: 307070068.1 | R66: 310527822.2 | S66: 308006904.4 | T66: 311937313.2 | V66: =SUM(V64:V65) -> 305424742.7 | Y66: =T66 -> 311937313.2 | Z66: 305424742.7 | AA66: =T66 -> 311937313.2 | AB66: 305424742.7 | AC66: =SUM(AC64:AC65) -> -6512570.44 | AD66: 59 | AE66: 54 | AF66: -6512570.44 | AI66: Total | AS66: 276939133.4 | AZ66: =#REF! ->  | BA66: =#REF! -> 
A67: 996 | AB67: 0 | AD67: 60 | AE67: 55 | AF67: 0
A68: 997 | B68: 381...2 | C68: Meters & Meter Installation | AB68: 0 | AD68: 61 | AE68: 56 | AF68: 0 | AG68: 381...2 | AH68: Meters & Meter Installation
A69: 998 | D69: WVoming | H69: 6746516.91 | I69: 6746516.91 | J69: 6746516.91 | K69: 6746811.15 | L69: 6746811.15 | M69: 6746811.15 | N69: 6745168.54 | O69: 7049578.91 | P69: 7054148.38 | Q69: 7054148.38 | R69: 7054148.38 | S69: 7143839.37 | T69: 7226958.12 | V69: =(SUM(I69:S69)+(0.5*T69)+(0.5*H69))/12 -> 6901769.729 | Y69: =T69 -> 7226958.12 | Z69: 6901769.729 | AA69: =T69 -> 7226958.12 | AB69: 6901769.729 | AC69: =AB69-T69 -> -325188.3912 | AD69: 62 | AE69: 57 | AF69: -325188.3912 | AI69: Wyoming | AK69: =+T69 -> 7226958.12 | AL69: =AB69 -> 6901769.729 | AM69: =AL69-AK69 -> -325188.3912 | AS69: 5893357.973 | AZ69: =#REF! ->  | BA69: =#REF! -> 
A70: 999 | D70: Utah | H70: 230601404.2 | I70: 230601404.2 | J70: 230601404.2 | K70: 230629803.9 | L70: 231545149 | M70: 231547163.6 | N70: 233647007.2 | O70: 241232563.3 | P70: 242364348.8 | Q70: 242385351.3 | R70: 243570406.1 | S70: 246143112.2 | T70: 247628464.8 | V70: =(SUM(I70:S70)+(0.5*T70)+(0.5*H70))/12 -> 236948554 | Y70: =T70 -> 247628464.8 | Z70: 236948554 | AA70: =T70 -> 247628464.8 | AB70: 236948554 | AC70: =AB70-T70 -> -10679910.82 | AD70: 63 | AE70: 58 | AF70: -10679910.82 | AI70: Utah | AK70: =+T70 -> 247628464.8 | AL70: =AB70 -> 236948554 | AM70: =AL70-AK70 -> -10679910.82 | AS70: 199827127.6 | AZ70: =#REF! ->  | BA70: =#REF! -> 
A71: 1000 | D71: Total | H71: =SUM(H69:H70) -> 237347921.1 | I71: =SUM(I69:I70) -> 237347921.1 | J71: 237347921.1 | K71: 237376615 | L71: 238291960.2 | M71: 238293974.7 | N71: 240392175.7 | O71: 248282142.2 | P71: 249418497.2 | Q71: 249439499.7 | R71: 250624554.5 | S71: 253286951.6 | T71: 254855423 | V71: =SUM(V69:V70) -> 243850323.8 | Y71: =T71 -> 254855423 | Z71: 243850323.8 | AA71: =T71 -> 254855423 | AB71: 243850323.8 | AC71: =SUM(AC69:AC70) -> -11005099.21 | AD71: 64 | AE71: 59 | AF71: -11005099.21 | AI71: Total | AS71: 205720485.6 | AZ71: =#REF! ->  | BA71: =#REF! -> 
A72: 1001 | AB72: 0 | AD72: 65 | AE72: 60 | AF72: 0
A73: 1002 | B73: 383...4 | C73: House Regulators & Reg Installations | AB73: 0 | AD73: 66 | AE73: 61 | AF73: 0 | AG73: 383...4 | AH73: House Regulators & Reg Installations
A74: 1003 | D74: WVoming | H74: 931110.81 | I74: 931110.81 | J74: 931110.81 | K74: 931110.81 | L74: 931110.81 | M74: 931110.81 | N74: 931110.81 | O74: 931110.81 | P74: 931110.81 | Q74: 931110.81 | R74: 931110.81 | S74: 931110.81 | T74: 931101.69 | V74: =(SUM(I74:S74)+(0.5*T74)+(0.5*H74))/12 -> 931110.43 | Y74: =T74 -> 931101.69 | Z74: 931110.43 | AA74: =T74 -> 931101.69 | AB74: 931110.43 | AC74: =AB74-T74 -> 8.74 | AD74: 67 | AE74: 62 | AF74: 8.74 | AI74: Wyoming | AK74: =+T74 -> 931101.69 | AL74: =AB74 -> 931110.43 | AM74: =AL74-AK74 -> 8.74 | AS74: 653119.39 | AZ74: =#REF! ->  | BA74: =#REF! -> 
A75: 1004 | D75: Utah | H75: 14209172.61 | I75: 14209172.61 | J75: 14209172.61 | K75: 14209172.61 | L75: 14170727.46 | M75: 14170727.46 | N75: 14170629.62 | O75: 14170629.62 | P75: 14170629.62 | Q75: 14170629.62 | R75: 14170629.62 | S75: 14170629.62 | T75: 14170629.62 | V75: =(SUM(I75:S75)+(0.5*T75)+(0.5*H75))/12 -> 14181887.63 | Y75: =T75 -> 14170629.62 | Z75: 14181887.63 | AA75: =T75 -> 14170629.62 | AB75: 14181887.63 | AC75: =AB75-T75 -> 11258.01208 | AD75: 68 | AE75: 63 | AF75: 11258.01208 | AI75: Utah | AK75: =+T75 -> 14170629.62 | AL75: =AB75 -> 14181887.63 | AM75: =AL75-AK75 -> 11258.01208 | AS75: 14447747.13 | AZ75: =#REF! ->  | BA75: =#REF! -> 
A76: 1005 | D76: Total | H76: =SUM(H74:H75) -> 15140283.42 | I76: =SUM(I74:I75) -> 15140283.42 | J76: 15140283.42 | K76: 15140283.42 | L76: 15101838.27 | M76: 15101838.27 | N76: 15101740.43 | O76: 15101740.43 | P76: 15101740.43 | Q76: 15101740.43 | R76: 15101740.43 | S76: 15101740.43 | T76: 15101731.31 | V76: =SUM(V74:V75) -> 15112998.06 | Y76: =T76 -> 15101731.31 | Z76: 15112998.06 | AA76: =T76 -> 15101731.31 | AB76: 15112998.06 | AC76: =SUM(AC74:AC75) -> 11266.75208 | AD76: 69 | AE76: 64 | AF76: 11266.75208 | AI76: Total | AS76: 15100866.52 | AZ76: =#REF! ->  | BA76: =#REF! -> 
A77: 1006 | AB77: 0 | AD77: 70 | AE77: 65 | AF77: 0
A78: 1007 | B78: 387 | C78: Other Equipment | AB78: 0 | AD78: 71 | AE78: 66 | AF78: 0 | AG78: 387 | AH78: Other Equipment
A79: 1008 | D79: WVoming | H79: 57111.42 | I79: 57111.42 | J79: 57111.42 | K79: 57111.42 | L79: 57111.42 | M79: 57111.42 | N79: 57111.42 | O79: 57111.42 | P79: 57111.42 | Q79: 57111.42 | R79: 57111.42 | S79: 57111.42 | T79: 57111.42 | V79: =(SUM(I79:S79)+(0.5*T79)+(0.5*H79))/12 -> 57111.42 | Y79: =T79 -> 57111.42 | Z79: =V79 -> 57111.42 | AA79: =T79 -> 57111.42 | AB79: =HLOOKUP($AB$8,RateBaseScenarios,AD79,FALSE) -> 57111.42 | AC79: =AB79-T79 -> 0 | AD79: 72 | AE79: 67 | AF79: 0 | AI79: Wyoming | AK79: =+T79 -> 57111.42 | AL79: =AB79 -> 57111.42 | AM79: =AL79-AK79 -> 0 | AS79: 53204.68667 | AZ79: =#REF! ->  | BA79: =#REF! -> 
A80: 1009 | D80: Utah | H80: 1321778.75 | I80: 1321778.75 | J80: 1323522.05 | K80: 1322650.4 | L80: 1323584.95 | M80: 1323793.19 | N80: 1325407.32 | O80: 1325454.04 | P80: 1337815.38 | Q80: 1337815.38 | R80: 1335331.25 | S80: 1335331.25 | T80: 1372934.95 | V80: =(SUM(I80:S80)+(0.5*T80)+(0.5*H80))/12 -> 1329986.734 | Y80: =T80 -> 1372934.95 | Z80: 1329986.734 | AA80: =T80 -> 1372934.95 | AB80: 1329986.734 | AC80: =AB80-T80 -> -42948.21583 | AD80: 73 | AE80: 68 | AF80: -42948.21583 | AI80: Utah | AK80: =+T80 -> 1372934.95 | AL80: =AB80 -> 1329986.734 | AM80: =AL80-AK80 -> -42948.21583 | AS80: 276976.705 | AZ80: =#REF! ->  | BA80: =#REF! -> 
A81: 1010 | D81: Total | H81: =SUM(H79:H80) -> 1378890.17 | I81: =SUM(I79:I80) -> 1378890.17 | J81: 1380633.47 | K81: 1379761.82 | L81: 1380696.37 | M81: 1380904.61 | N81: 1382518.74 | O81: 1382565.46 | P81: 1394926.8 | Q81: 1394926.8 | R81: 1392442.67 | S81: 1392442.67 | T81: 1430046.37 | V81: =SUM(V79:V80) -> 1387098.154 | Y81: =T81 -> 1430046.37 | Z81: 1387098.154 | AA81: =T81 -> 1430046.37 | AB81: 1387098.154 | AC81: =SUM(AC79:AC80) -> -42948.21583 | AD81: 74 | AE81: 69 | AF81: -42948.21583 | AI81: Total | AS81: 330181.3917 | AZ81: =#REF! ->  | BA81: =#REF! -> 
A82: 1011 | AB82: 0 | AD82: 75 | AE82: 70 | AF82: 0
A83: 1012 | B83: 388 | C83: Asset Retirement Costs | AB83: 0 | AD83: 76 | AE83: 71 | AF83: 0 | AG83: 388 | AH83: Asset Retirement Costs
A84: 1013 | D84: WVoming | H84: 0 | I84: 0 | J84: 0 | K84: 0 | L84: 0 | M84: 0 | N84: 0 | O84: 0 | P84: 0 | Q84: 0 | R84: 0 | S84: 0 | T84: 0 | V84: =(SUM(I84:S84)+(0.5*T84)+(0.5*H84))/12 -> 0 | Y84: =T84 -> 0 | Z84: 0 | AA84: =T84 -> 0 | AB84: 0 | AC84: =AB84-T84 -> 0 | AD84: 77 | AE84: 72 | AF84: 0 | AI84: Wyoming | AK84: =+T84 -> 0 | AL84: =AB84 -> 0 | AM84: =AL84-AK84 -> 0 | AS84: 0 | AZ84: =#REF! ->  | BA84: =#REF! -> 
A85: 1014 | D85: Utah | H85: 347788 | I85: 347788 | J85: 347788 | K85: 347788 | L85: 347788 | M85: 347788 | N85: 347788 | O85: 347788 | P85: 347788 | Q85: 347788 | R85: 347788 | S85: 347788 | T85: 260972 | V85: =(SUM(I85:S85)+(0.5*T85)+(0.5*H85))/12 -> 344170.6667 | Y85: =T85 -> 260972 | Z85: 344170.6667 | AA85: =T85 -> 260972 | AB85: 344170.6667 | AC85: =AB85-T85 -> 83198.66667 | AD85: 78 | AE85: 73 | AF85: 83198.66667 | AI85: Utah | AK85: =+T85 -> 260972 | AL85: =AB85 -> 344170.6667 | AM85: =AL85-AK85 -> 83198.66667 | AS85: 392459.4583 | AZ85: =#REF! ->  | BA85: =#REF! -> 
A86: 1015 | D86: Total | H86: =SUM(H84:H85) -> 347788 | I86: =SUM(I84:I85) -> 347788 | J86: 347788 | K86: 347788 | L86: 347788 | M86: 347788 | N86: 347788 | O86: 347788 | P86: 347788 | Q86: 347788 | R86: 347788 | S86: 347788 | T86: 260972 | V86: =SUM(V84:V85) -> 344170.6667 | Y86: =T86 -> 260972 | Z86: 344170.6667 | AA86: =T86 -> 260972 | AB86: 344170.6667 | AC86: =AB86-T86 -> 83198.66667 | AD86: 79 | AE86: 74 | AF86: 83198.66667 | AI86: Total | AS86: 392459.4583 | AZ86: =#REF! ->  | BA86: =#REF! -> 
A87: 1016 | AB87: 0 | AD87: 80 | AE87: 75 | AF87: 0
A88: 1017 | C88: Total Distribution Plant | H88: =H81+H76+H71+H66+H61+H56+H51+H40+H35+H86 -> 1490112610 | I88: 1488937971 | J88: 1493865883 | K88: 1495500952 | L88: 1495573110 | M88: 1497998076 | N88: 1502449081 | O88: 1516900025 | P88: 1549797561 | Q88: 1534372904 | R88: 1541051549 | S88: 1557061033 | T88: 1583102624 | V88: =V81+V76+V71+V66+V61+V56+V51+V40+V35+V86 -> 1517509647 | Y88: =T88 -> 1583102624 | Z88: 1517509647 | AA88: =T88 -> 1583102624 | AB88: 1517509647 | AC88: =AC81+AC76+AC71+AC66+AC61+AC56+AC51+AC40+AC35+AC86 -> -65592977.35 | AD88: 81 | AE88: 76 | AF88: -65592977.35 | AH88: Total Distribution Plant | AS88: 1280067620 | AZ88: =#REF! ->  | BA88: =#REF! -> 
A89: 1018 | AB89: 0 | AD89: 82 | AE89: 77 | AF89: 0
A90: 1019 | B90: General Plant | AB90: 0 | AD90: 83 | AE90: 78 | AF90: 0
A91: 1020 | B91: 389 | C91: Land & Land Rights | AB91: 0 | AD91: 84 | AE91: 79 | AF91: 0 | AG91: 389 | AH91: Land & Land Rights
A92: 1021 | D92: WVoming | H92: 11584.02 | I92: 11584.02 | J92: 11584.02 | K92: 11584.02 | L92: 11584.02 | M92: 11584.02 | N92: 11584.02 | O92: 11584.02 | P92: 11584.02 | Q92: 11584.02 | R92: 11584.02 | S92: 11584.02 | T92: 11584.02 | V92: =(SUM(I92:S92)+(0.5*T92)+(0.5*H92))/12 -> 11584.02 | Y92: =T92 -> 11584.02 | Z92: 11584.02 | AA92: =T92 -> 11584.02 | AB92: 11584.02 | AC92: =AB92-T92 -> 0 | AD92: 85 | AE92: 80 | AF92: 0 | AI92: Distribution - Wyoming | AK92: =+T92 -> 11584.02 | AL92: =AB92 -> 11584.02 | AM92: =AL92-AK92 -> 0 | AS92: 11584.02 | AZ92: =#REF! ->  | BA92: =#REF! -> 
A93: 1022 | D93: Utah | H93: 638059.08 | I93: 638059.08 | J93: 638059.08 | K93: 638059.08 | L93: 638059.08 | M93: 638059.08 | N93: 730341.66 | O93: 730341.66 | P93: 730341.66 | Q93: 730341.66 | R93: 730341.66 | S93: 730341.66 | T93: 730341.66 | V93: =(SUM(I93:S93)+(0.5*T93)+(0.5*H93))/12 -> 688045.4775 | Y93: =T93 -> 730341.66 | Z93: 688045.4775 | AA93: =T93 -> 730341.66 | AB93: 688045.4775 | AC93: =AB93-T93 -> -42296.1825 | AD93: 86 | AE93: 81 | AF93: -42296.1825 | AI93: Distribution - Utah | AK93: =+T93 -> 730341.66 | AL93: =AB93 -> 688045.4775 | AM93: =AL93-AK93 -> -42296.1825 | AS93: 638059.08 | AZ93: =#REF! ->  | BA93: =#REF! -> 
A94: 1023 | D94: Total | H94: =SUM(H92:H93) -> 649643.1 | I94: =SUM(I92:I93) -> 649643.1 | J94: 649643.1 | K94: 649643.1 | L94: 649643.1 | M94: 649643.1 | N94: 741925.68 | O94: 741925.68 | P94: 741925.68 | Q94: 741925.68 | R94: 741925.68 | S94: 741925.68 | T94: 741925.68 | V94: =SUM(V92:V93) -> 699629.4975 | Y94: =T94 -> 741925.68 | Z94: 699629.4975 | AA94: =T94 -> 741925.68 | AB94: 699629.4975 | AC94: =AB94-T94 -> -42296.1825 | AD94: 87 | AE94: 82 | AF94: -42296.1825 | AI94: Total | AS94: 649643.1 | AZ94: =#REF! ->  | BA94: =#REF! -> 
A95: 1024 | AB95: 0 | AD95: 88 | AE95: 83 | AF95: 0
A96: 1025 | B96: 390 | C96: Structures & Improvements | AB96: 0 | AD96: 89 | AE96: 84 | AF96: 0 | AG96: 390 | AH96: Structures & Improyements
A97: 1026 | D97: WVoming | H97: 1395725.86 | I97: 1395725.86 | J97: 1395725.86 | K97: 1395725.86 | L97: 1395725.86 | M97: 1395725.86 | N97: 1395725.86 | O97: 1395725.86 | P97: 1395725.86 | Q97: 1395725.86 | R97: 1395725.86 | S97: 1395725.86 | T97: 1395725.86 | V97: =(SUM(I97:S97)+(0.5*T97)+(0.5*H97))/12 -> 1395725.86 | Y97: =T97 -> 1395725.86 | Z97: 1395725.86 | AA97: =T97 -> 1395725.86 | AB97: 1395725.86 | AC97: =AB97-T97 -> 0 | AD97: 90 | AE97: 85 | AF97: 0 | AI97: Distribution - Wyoming | AK97: =+T97 -> 1395725.86 | AL97: =AB97 -> 1395725.86 | AM97: =AL97-AK97 -> 0 | AS97: 1315034.846 | AZ97: =#REF! ->  | BA97: =#REF! -> 
A98: 1027 | D98: Utah | H98: 7847348.7 | I98: 7873896.41 | J98: 8279262.9 | K98: 8071157.07 | L98: 7898229.53 | M98: 7898345.36 | N98: 7898345.36 | O98: 7915393.09 | P98: 7915393.09 | Q98: 7915393.09 | R98: 7915393.09 | S98: 7941799.69 | T98: 15642929.42 | V98: =(SUM(I98:S98)+(0.5*T98)+(0.5*H98))/12 -> 8272312.312 | Y98: =T98 -> 15642929.42 | Z98: 8272312.312 | AA98: =T98 -> 15642929.42 | AB98: 8272312.312 | AC98: =AB98-T98 -> -7370617.108 | AD98: 91 | AE98: 86 | AF98: -7370617.108 | AI98: Distribution - Utah | AK98: =+T98 -> 15642929.42 | AL98: =AB98 -> 8272312.312 | AM98: =AL98-AK98 -> -7370617.108 | AS98: 6951603.091 | AZ98: =#REF! ->  | BA98: =#REF! -> 
A99: 1028 | D99: General | H99: 48222901.22 | I99: 48222901.22 | J99: 48222901.22 | K99: 48222901.22 | L99: 48222901.22 | M99: 48222901.22 | N99: 48222901.22 | O99: 48222901.22 | P99: 48222901.22 | Q99: 48222901.22 | R99: 48222901.22 | S99: 48222901.22 | T99: 41506852.09 | V99: =(SUM(I99:S99)+(0.5*T99)+(0.5*H99))/12 -> 47943065.84 | Y99: =T99 -> 41506852.09 | Z99: 47943065.84 | AA99: =T99 -> 41506852.09 | AB99: 47943065.84 | AC99: =AB99-T99 -> 6436213.75 | AD99: 92 | AE99: 87 | AF99: 6436213.75 | AI99: =D99 -> General | AK99: =+T99 -> 41506852.09 | AL99: =AB99 -> 47943065.84 | AM99: =AL99-AK99 -> 6436213.75 | AZ99: =#REF! ->  | BA99: =#REF! -> 
A100: 1029 | D100: Total | H100: =SUM(H97:H99) -> 57465975.78 | I100: =SUM(I97:I99) -> 57492523.49 | J100: 57897889.98 | K100: 57689784.15 | L100: 57516856.61 | M100: 57516972.44 | N100: 57516972.44 | O100: 57534020.17 | P100: 57534020.17 | Q100: 57534020.17 | R100: 57534020.17 | S100: 57560426.77 | T100: 58545507.37 | V100: =SUM(V97:V99) -> 57611104.01 | Y100: =SUM(Y97:Y99) -> 58545507.37 | Z100: =SUM(Z97:Z99) -> 57611104.01 | AA100: =SUM(AA97:AA99) -> 58545507.37 | AB100: 57611104.01 | AC100: =AB100-T100 -> -934403.3587 | AD100: 93 | AE100: 88 | AF100: -934403.3587 | AI100: Total | AK100: =+T100 -> 58545507.37 | AL100: =AB100 -> 57611104.01 | AM100: =AL100-AK100 -> -934403.3587 | AS100: 8266637.938 | AZ100: =SUM(AZ97:AZ99) ->  | BA100: =SUM(BA97:BA99) -> 
A101: 1030 | AB101: 0 | AD101: 94 | AE101: 89 | AF101: 0
A102: 1031 | B102: 391 | C102: Office Furniture & Equipment | AB102: 0 | AD102: 95 | AE102: 90 | AF102: 0 | AG102: 391 | AH102: Office Furniture & Equipment
A103: 1032 | D103: WVoming | H103: 73159.64 | I103: 105719.64 | J103: 183369.19 | K103: 195246.19 | L103: 198841.03 | M103: 198841.03 | N103: 204748.03 | O103: 206348.73 | P103: 206348.73 | Q103: 206348.73 | R103: 214228.55 | S103: 214444.81 | T103: 214444.81 | V103: =(SUM(I103:S103)+(0.5*T103)+(0.5*H103))/12 -> 189857.2404 | Y103: =T103 -> 214444.81 | Z103: 189857.2404 | AA103: =T103 -> 214444.81 | AB103: 189857.2404 | AC103: =AB103-T103 -> -24587.56958 | AD103: 96 | AE103: 91 | AF103: -24587.56958 | AI103: Distribution - Wyoming | AK103: =+T103 -> 214444.81 | AL103: =AB103 -> 189857.2404 | AM103: =AL103-AK103 -> -24587.56958 | AS103: 140862.3763 | AZ103: =#REF! ->  | BA103: =#REF! -> 
A104: 1033 | D104: Utah | H104: 15689883.97 | I104: 16628997.64 | J104: 17707929.11 | K104: 18091632.18 | L104: 15459999.69 | M104: 15625617.35 | N104: 16195248.77 | O104: 15220856.81 | P104: 19316266.03 | Q104: 18810130.54 | R104: 19236421.55 | S104: 20605049.4 | T104: 15227654.52 | V104: =(SUM(I104:S104)+(0.5*T104)+(0.5*H104))/12 -> 17363076.53 | Y104: =T104 -> 15227654.52 | Z104: 17363076.53 | AA104: =T104 -> 15227654.52 | AB104: 17363076.53 | AC104: =AB104-T104 -> 2135422.006 | AD104: 97 | AE104: 92 | AF104: 2135422.006 | AI104: Distribution - Utah | AK104: =+T104 -> 15227654.52 | AL104: =AB104 -> 17363076.53 | AM104: =AL104-AK104 -> 2135422.006 | AS104: 15080006.19 | AZ104: =#REF! ->  | BA104: =#REF! -> 
A105: 1034 | D105: General | H105: 42200670.27 | I105: 42200670.27 | J105: 42200670.27 | K105: 42200670.27 | L105: 42200670.27 | M105: 42200670.27 | N105: 42200670.27 | O105: 42200670.27 | P105: 42200670.27 | Q105: 42200670.27 | R105: 42200670.27 | S105: 42200670.27 | T105: 44160820.68 | V105: =(SUM(I105:S105)+(0.5*T105)+(0.5*H105))/12 -> 42282343.2 | Y105: =T105 -> 44160820.68 | Z105: 42282343.2 | AA105: =T105 -> 44160820.68 | AB105: 42282343.2 | AC105: =AB105-T105 -> -1878477.476 | AD105: 98 | AE105: 93 | AF105: -1878477.476 | AI105: General | AK105: =+T105 -> 44160820.68 | AL105: =AB105 -> 42282343.2 | AM105: =AL105-AK105 -> -1878477.476 | AS105: 44579640.82 | AZ105: =#REF! ->  | BA105: =#REF! -> 
A106: 1035 | D106: Total | H106: =SUM(H103:H105) -> 57963713.88 | I106: =SUM(I103:I105) -> 58935387.55 | J106: 60091968.57 | K106: 60487548.64 | L106: 57859510.99 | M106: 58025128.65 | N106: 58600667.07 | O106: 57627875.81 | P106: 61723285.03 | Q106: 61217149.54 | R106: 61651320.37 | S106: 63020164.48 | T106: 59602920.01 | V106: =SUM(V103:V105) -> 59835276.97 | Y106: =T106 -> 59602920.01 | Z106: 59835276.97 | AA106: =T106 -> 59602920.01 | AB106: 59835276.97 | AC106: =AB106-T106 -> 232356.9604 | AD106: 99 | AE106: 94 | AF106: 232356.9604 | AI106: Total | AS106: 59800509.38 | AZ106: =#REF! ->  | BA106: =#REF! -> 
A107: 1036 | AB107: 0 | AD107: 100 | AE107: 95 | AF107: 0
A108: 1037 | B108: 392 | C108: Transportation Equipment | AB108: 0 | AD108: 101 | AE108: 96 | AF108: 0 | AG108: 392 | AH108: Transportation Equipment
A109: 1038 | D109: WVoming | H109: 1406170.16 | I109: 1406170.16 | J109: 1406170.16 | K109: 1406170.16 | L109: 1406170.16 | M109: 1402606.53 | N109: 1404606.69 | O109: 1404606.69 | P109: 1404606.69 | Q109: 1419515.6 | R109: 1419515.6 | S109: 1419515.6 | T109: 1419515.6 | V109: =(SUM(I109:S109)+(0.5*T109)+(0.5*H109))/12 -> 1409374.743 | Y109: =T109 -> 1419515.6 | Z109: 1409374.743 | AA109: =T109 -> 1419515.6 | AB109: 1409374.743 | AC109: =AB109-T109 -> -10140.85667 | AD109: 102 | AE109: 97 | AF109: -10140.85667 | AI109: Distribution - Wyoming | AK109: =+T109 -> 1419515.6 | AL109: =AB109 -> 1409374.743 | AM109: =AL109-AK109 -> -10140.85667 | AS109: 1398031.013 | AZ109: =#REF! ->  | BA109: =#REF! -> 
A110: 1039 | D110: Utah | H110: 34032696.75 | I110: 33989727.4 | J110: 33994851.67 | K110: 34292521.8 | L110: 34217030.52 | M110: 34851218.36 | N110: 35389165.1 | O110: 35682907.47 | P110: 35355374.22 | Q110: 36648140.53 | R110: 36648140.53 | S110: 36677985.95 | T110: 37276165.28 | V110: =(SUM(I110:S110)+(0.5*T110)+(0.5*H110))/12 -> 35283457.88 | Y110: =T110 -> 37276165.28 | Z110: 35283457.88 | AA110: =T110 -> 37276165.28 | AB110: 35283457.88 | AC110: =AB110-T110 -> -1992707.4 | AD110: 103 | AE110: 98 | AF110: -1992707.4 | AI110: Distribution - Utah | AK110: =+T110 -> 37276165.28 | AL110: =AB110 -> 35283457.88 | AM110: =AL110-AK110 -> -1992707.4 | AS110: 28508580.25 | AZ110: =#REF! ->  | BA110: =#REF! -> 
A111: 1040 | D111: General | H111: 0 | I111: 0 | J111: 0 | K111: 0 | L111: 0 | M111: 0 | N111: 0 | O111: 0 | P111: 0 | Q111: 0 | R111: 0 | S111: 0 | T111: 0 | V111: =(SUM(I111:S111)+(0.5*T111)+(0.5*H111))/12 -> 0 | Y111: =T111 -> 0 | Z111: 0 | AA111: =T111 -> 0 | AB111: 0 | AC111: =AB111-T111 -> 0 | AD111: 104 | AE111: 99 | AF111: 0 | AI111: General | AK111: =+T111 -> 0 | AL111: =AB111 -> 0 | AM111: =AL111-AK111 -> 0 | AS111: 0 | AZ111: =#REF! ->  | BA111: =#REF! -> 
A112: 1041 | D112: Total | H112: =SUM(H109:H111) -> 35438866.91 | I112: =SUM(I109:I111) -> 35395897.56 | J112: 35401021.83 | K112: 35698691.96 | L112: 35623200.68 | M112: 36253824.89 | N112: 36793771.79 | O112: 37087514.16 | P112: 36759980.91 | Q112: 38067656.13 | R112: 38067656.13 | S112: 38097501.55 | T112: 38695680.88 | V112: =(SUM(I112:S112)+(0.5*T112)+(0.5*H112))/12 -> 36692832.62 | Y112: =T112 -> 38695680.88 | Z112: 36692832.62 | AA112: =T112 -> 38695680.88 | AB112: 36692832.62 | AC112: =AB112-T112 -> -2002848.256 | AD112: =+AD111+1 -> 105 | AE112: =+AE111+1 -> 100 | AF112: -2002848.256 | AI112: Total | AK112: =+T112 -> 38695680.88 | AL112: =AB112 -> 36692832.62 | AM112: =AL112-AK112 -> -2002848.256 | AS112: 29906611.26 | AZ112: =#REF! ->  | BA112: =#REF! -> 
A113: 1042 | AB113: 0 | AD113: 106 | AE113: 101 | AF113: 0
A114: 1043 | B114: 393 | C114: Stores Equipment | AB114: 0 | AD114: 107 | AE114: 102 | AF114: 0 | AG114: 393 | AH114: Stores Equipment
A115: 1044 | D115: WVoming | H115: 0 | I115: 0 | J115: 0 | K115: 0 | L115: 0 | M115: 0 | N115: 0 | O115: 0 | P115: 0 | Q115: 12371.89 | R115: 12371.89 | S115: 12371.89 | T115: 12371.89 | V115: =(SUM(I115:S115)+(0.5*T115)+(0.5*H115))/12 -> 3608.467917 | Y115: =T115 -> 12371.89 | Z115: 3608.467917 | AA115: =T115 -> 12371.89 | AB115: 3608.467917 | AC115: =AB115-T115 -> -8763.422083 | AD115: 108 | AE115: 103 | AF115: -8763.422083 | AI115: Distribution - Wyoming | AK115: =+T115 -> 12371.89 | AL115: =AB115 -> 3608.467917 | AM115: =AL115-AK115 -> -8763.422083 | AS115: 0 | AZ115: =#REF! ->  | BA115: =#REF! -> 
A116: =+A115+1 -> 1045 | D116: Utah | H116: 7521.07 | I116: 7521.07 | J116: 7521.07 | K116: 7521.07 | L116: 7521.07 | M116: 7521.07 | N116: 7521.07 | O116: 7521.07 | P116: 7521.07 | Q116: 23956.59 | R116: 23956.59 | S116: 23956.59 | T116: 23956.59 | V116: =(SUM(I116:S116)+(0.5*T116)+(0.5*H116))/12 -> 12314.76333 | Y116: =T116 -> 23956.59 | Z116: 12314.76333 | AA116: =T116 -> 23956.59 | AB116: 12314.76333 | AC116: =AB116-T116 -> -11641.82667 | AD116: 109 | AE116: 104 | AF116: -11641.82667 | AI116: Distribution - Utah | AK116: =+T116 -> 23956.59 | AL116: =AB116 -> 12314.76333 | AM116: =AL116-AK116 -> -11641.82667 | AS116: 10645.12 | AZ116: =#REF! ->  | BA116: =#REF! -> 
A117: 1046 | D117: Total | H117: =SUM(H115:H116) -> 7521.07 | I117: =SUM(I115:I116) -> 7521.07 | J117: 7521.07 | K117: 7521.07 | L117: 7521.07 | M117: 7521.07 | N117: 7521.07 | O117: 7521.07 | P117: 7521.07 | Q117: 36328.48 | R117: 36328.48 | S117: 36328.48 | T117: 36328.48 | V117: =SUM(V115:V116) -> 15923.23125 | Y117: =T117 -> 36328.48 | Z117: 15923.23125 | AA117: =T117 -> 36328.48 | AB117: 15923.23125 | AC117: =AB117-T117 -> -20405.24875 | AD117: 110 | AE117: 105 | AF117: -20405.24875 | AI117: Total | AK117: =+T117 -> 36328.48 | AL117: =AB117 -> 15923.23125 | AM117: =AL117-AK117 -> -20405.24875 | AS117: 10645.12 | AZ117: =#REF! ->  | BA117: =#REF! -> 
A118: 1047 | AB118: 0 | AD118: 111 | AE118: 106 | AF118: 0
A119: 1048 | B119: 394 | C119: Tools, Shop & Garage Equipment | AB119: 0 | AD119: 112 | AE119: 107 | AF119: 0 | AG119: 394 | AH119: Tools, Shop & Garage Equipment
A120: 1049 | D120: WVoming | H120: 603776.38 | I120: 603776.38 | J120: 603776.38 | K120: 603776.38 | L120: 657874.97 | M120: 657874.97 | N120: 684122.1 | O120: 685996.61 | P120: 687023.84 | Q120: 687023.84 | R120: 694538.3 | S120: 695857.75 | T120: 727934.61 | V120: =(SUM(I120:S120)+(0.5*T120)+(0.5*H120))/12 -> 660624.7512 | Y120: =T120 -> 727934.61 | Z120: 660624.7512 | AA120: =T120 -> 727934.61 | AB120: 660624.7512 | AC120: =AB120-T120 -> -67309.85875 | AD120: 113 | AE120: 108 | AF120: -67309.85875 | AI120: Distribution - Wyoming | AK120: =+T120 -> 727934.61 | AL120: =AB120 -> 660624.7512 | AM120: =AL120-AK120 -> -67309.85875 | AS120: 408530.3604 | AZ120: =#REF! ->  | BA120: =#REF! -> 
A121: 1050 | D121: Utah | H121: 17822832.69 | I121: 17822832.69 | J121: 17822832.69 | K121: 17822832.69 | L121: 18570671.54 | M121: 18463322.86 | N121: 18698707.74 | O121: 17827068.95 | P121: 17838973.85 | Q121: 17852023.17 | R121: 18144545.34 | S121: 18502123.66 | T121: 21769477.69 | V121: =(SUM(I121:S121)+(0.5*T121)+(0.5*H121))/12 -> 18263507.53 | Y121: =T121 -> 21769477.69 | Z121: 18263507.53 | AA121: =T121 -> 21769477.69 | AB121: 18263507.53 | AC121: =AB121-T121 -> -3505970.159 | AD121: 114 | AE121: 109 | AF121: -3505970.159 | AI121: Distribution - Utah | AK121: =+T121 -> 21769477.69 | AL121: =AB121 -> 18263507.53 | AM121: =AL121-AK121 -> -3505970.159 | AS121: 8293006.845 | AZ121: =#REF! ->  | BA121: =#REF! -> 
A122: 1051 | D122: General | H122: 0 | I122: 0 | J122: 0 | K122: 0 | L122: 0 | M122: 0 | N122: 0 | O122: 0 | P122: 0 | Q122: 0 | R122: 0 | S122: 0 | T122: 0 | V122: =(SUM(I122:S122)+(0.5*T122)+(0.5*H122))/12 -> 0 | Y122: =T122 -> 0 | Z122: 0 | AA122: =T122 -> 0 | AB122: 0 | AC122: =AB122-T122 -> 0 | AD122: 115 | AE122: 110 | AF122: 0 | AI122: General | AK122: =+T122 -> 0 | AL122: =AB122 -> 0 | AM122: =AL122-AK122 -> 0 | AS122: 0 | AZ122: =#REF! ->  | BA122: =#REF! -> 
A123: 1052 | D123: Total | H123: =SUM(H120:H122) -> 18426609.07 | I123: =SUM(I120:I122) -> 18426609.07 | J123: 18426609.07 | K123: 18426609.07 | L123: 19228546.51 | M123: 19121197.83 | N123: 19382829.84 | O123: 18513065.56 | P123: 18525997.69 | Q123: 18539047.01 | R123: 18839083.64 | S123: 19197981.41 | T123: 22497412.3 | V123: =SUM(V120:V122) -> 18924132.28 | Y123: =T123 -> 22497412.3 | Z123: 18924132.28 | AA123: =T123 -> 22497412.3 | AB123: 18924132.28 | AC123: =AB123-T123 -> -3573280.018 | AD123: 116 | AE123: 111 | AF123: -3573280.018 | AI123: Total | AK123: =+T123 -> 22497412.3 | AL123: =AB123 -> 18924132.28 | AM123: =AL123-AK123 -> -3573280.018 | AS123: 8701537.206 | AZ123: =#REF! ->  | BA123: =#REF! -> 
A124: 1053 | AB124: 0 | AD124: 117 | AE124: 112 | AF124: 0
A125: 1054 | B125: 395 | C125: LaboratorV Equipment | AB125: 0 | AD125: 118 | AE125: 113 | AF125: 0 | AG125: 395 | AH125: Laboratory Equipment
A126: 1055 | D126: WVoming | H126: 0 | I126: 0 | J126: 0 | K126: 0 | L126: 0 | M126: 0 | N126: 0 | O126: 0 | P126: 0 | Q126: 0 | R126: 0 | S126: 0 | T126: 0 | V126: =(SUM(I126:S126)+(0.5*T126)+(0.5*H126))/12 -> 0 | Y126: =T126 -> 0 | Z126: 0 | AA126: =T126 -> 0 | AB126: 0 | AC126: =AB126-T126 -> 0 | AD126: 119 | AE126: 114 | AF126: 0 | AI126: Distribution - Wyoming | AK126: =+T126 -> 0 | AL126: =AB126 -> 0 | AM126: =AL126-AK126 -> 0 | AS126: 0 | AZ126: =#REF! ->  | BA126: =#REF! -> 
A127: 1056 | D127: Utah | H127: 86324.81 | I127: 86324.81 | J127: 86324.81 | K127: 86324.81 | L127: 76245.36 | M127: 76245.36 | N127: 76245.36 | O127: 76245.36 | P127: 76245.36 | Q127: 76245.36 | R127: 76245.36 | S127: 76245.36 | T127: 76245.36 | V127: =(SUM(I127:S127)+(0.5*T127)+(0.5*H127))/12 -> 79185.19958 | Y127: =T127 -> 76245.36 | Z127: 79185.19958 | AA127: =T127 -> 76245.36 | AB127: 79185.19958 | AC127: =AB127-T127 -> 2939.839583 | AD127: 120 | AE127: 115 | AF127: 2939.839583 | AI127: Distribution - Utah | AK127: =+T127 -> 76245.36 | AL127: =AB127 -> 79185.19958 | AM127: =AL127-AK127 -> 2939.839583 | AS127: 101039.2275 | AZ127: =#REF! ->  | BA127: =#REF! -> 
A128: 1057 | D128: General | H128: 0 | I128: 0 | J128: 0 | K128: 0 | L128: 0 | M128: 0 | N128: 0 | O128: 0 | P128: 0 | Q128: 0 | R128: 0 | S128: 0 | T128: 0 | V128: =(SUM(I128:S128)+(0.5*T128)+(0.5*H128))/12 -> 0 | Y128: =T128 -> 0 | Z128: 0 | AA128: =T128 -> 0 | AB128: 0 | AC128: =AB128-T128 -> 0 | AD128: 121 | AE128: 116 | AF128: 0 | AI128: General | AK128: 0 | AL128: =AB128 -> 0 | AM128: =AL128-AK128 -> 0 | AS128: 0 | AZ128: =#REF! ->  | BA128: =#REF! -> 
A129: 1058 | D129: Total | H129: =SUM(H126:H128) -> 86324.81 | I129: =SUM(I126:I128) -> 86324.81 | J129: 86324.81 | K129: 86324.81 | L129: 76245.36 | M129: 76245.36 | N129: 76245.36 | O129: 76245.36 | P129: 76245.36 | Q129: 76245.36 | R129: 76245.36 | S129: 76245.36 | T129: 76245.36 | V129: =SUM(V126:V128) -> 79185.19958 | Y129: =T129 -> 76245.36 | Z129: 79185.19958 | AA129: =T129 -> 76245.36 | AB129: 79185.19958 | AC129: =AB129-T129 -> 2939.839583 | AD129: 122 | AE129: 117 | AF129: 2939.839583 | AI129: Total | AK129: 1 | AL129: =AB129 -> 79185.19958 | AM129: =AL129-AK129 -> 79184.19958 | AS129: 101039.2275 | AZ129: =#REF! ->  | BA129: =#REF! -> 
A130: 1059 | AB130: 0 | AD130: 123 | AE130: 118 | AF130: 0
A131: 1060 | B131: 396 | C131: Power Operated Equipment | AB131: 0 | AD131: 124 | AE131: 119 | AF131: 0 | AG131: 396 | AH131: Power Operated Equipment
A132: 1061 | D132: WVoming | H132: 521069.39 | I132: 521069.39 | J132: 521069.39 | K132: 521069.39 | L132: 521069.39 | M132: 513022.72 | N132: 513022.72 | O132: 513022.72 | P132: 513022.72 | Q132: 532199.32 | R132: 532199.32 | S132: 532199.32 | T132: 532199.32 | V132: =(SUM(I132:S132)+(0.5*T132)+(0.5*H132))/12 -> 521633.3963 | Y132: =T132 -> 532199.32 | Z132: 521633.3963 | AA132: =T132 -> 532199.32 | AB132: 521633.3963 | AC132: =AB132-T132 -> -10565.92375 | AD132: 125 | AE132: 120 | AF132: -10565.92375 | AI132: Distribution - Wyoming | AK132: =+T132 -> 532199.32 | AL132: =AB132 -> 521633.3963 | AM132: =AL132-AK132 -> -10565.92375 | AS132: 672460.945 | AZ132: =#REF! ->  | BA132: =#REF! -> 
A133: 1062 | D133: Utah | H133: 7323967.21 | I133: 7255162.59 | J133: 7255162.59 | K133: 7255162.59 | L133: 7160815.59 | M133: 6917945.94 | N133: 9574376.57 | O133: 9609158.46 | P133: 9539592.6 | Q133: 9829181.28 | R133: 9829181.28 | S133: 9829181.28 | T133: 9974975.77 | V133: =(SUM(I133:S133)+(0.5*T133)+(0.5*H133))/12 -> 8558699.355 | Y133: 9974975.77 | Z133: 8558699.355 | AA133: 9974975.77 | AB133: 8558699.355 | AC133: =AB133-T133 -> -1416276.415 | AD133: 126 | AE133: 121 | AF133: -1416276.415 | AI133: Distribution - Utah | AK133: =+T133 -> 9974975.77 | AL133: =AB133 -> 8558699.355 | AM133: =AL133-AK133 -> -1416276.415 | AS133: 6596676.008 | AZ133: =#REF! ->  | BA133: =#REF! -> 
A134: 1063 | D134: General | H134: 0 | I134: 0 | J134: 0 | K134: 0 | L134: 0 | M134: 0 | N134: 0 | O134: 0 | P134: 0 | Q134: 0 | R134: 0 | S134: 0 | T134: 0 | V134: =(SUM(I134:S134)+(0.5*T134)+(0.5*H134))/12 -> 0 | Y134: 0 | Z134: 0 | AA134: 0 | AB134: 0 | AC134: =AB134-T134 -> 0 | AD134: 127 | AE134: 122 | AF134: 0 | AI134: General | AK134: =+T134 -> 0 | AL134: =AB134 -> 0 | AM134: =AL134-AK134 -> 0 | AS134: 0 | AZ134: =#REF! ->  | BA134: =#REF! -> 
A135: 1064 | D135: Total | H135: =SUM(H132:H134) -> 7845036.6 | I135: =SUM(I132:I134) -> 7776231.98 | J135: 7776231.98 | K135: 7776231.98 | L135: 7681884.98 | M135: 7430968.66 | N135: 10087399.29 | O135: 10122181.18 | P135: 10052615.32 | Q135: 10361380.6 | R135: 10361380.6 | S135: 10361380.6 | T135: 10507175.09 | V135: =SUM(V132:V134) -> 9080332.751 | Y135: 10507175.09 | Z135: 9080332.751 | AA135: 10507175.09 | AB135: 9080332.751 | AC135: =AB135-T135 -> -1426842.339 | AD135: 128 | AE135: 123 | AF135: -1426842.339 | AI135: Total | AK135: =+T135 -> 10507175.09 | AL135: =AB135 -> 9080332.751 | AM135: =AL135-AK135 -> -1426842.339 | AS135: 7269136.953 | AZ135: =#REF! ->  | BA135: =#REF! -> 
A136: 1065 | Y136: 0 | Z136: 0 | AA136: 0 | AB136: 0 | AD136: 129 | AE136: 124 | AF136: 0
A137: 1066 | B137: 397 | C137: Communication Equipment | Y137: 0 | Z137: 0 | AA137: 0 | AB137: 0 | AD137: 130 | AE137: 125 | AF137: 0 | AG137: 397 | AH137: Communication Equipment
A138: 1067 | D138: WVoming | H138: 2071223.39 | I138: 2071223.39 | J138: 2071223.39 | K138: 2071223.39 | L138: 2030069.69 | M138: 2030069.69 | N138: 2028318.13 | O138: 2028318.13 | P138: 2028318.13 | Q138: 1918123.57 | R138: 1918123.57 | S138: 1918123.57 | T138: 1913213.51 | V138: =(SUM(I138:S138)+(0.5*T138)+(0.5*H138))/12 -> 2008779.425 | Y138: 1913213.51 | Z138: 2008779.425 | AA138: 1913213.51 | AB138: 2008779.425 | AC138: =AB138-T138 -> 95565.915 | AD138: 131 | AE138: 126 | AF138: 95565.915 | AI138: Distribution - Wyoming | AK138: =+T138 -> 1913213.51 | AL138: =AB138 -> 2008779.425 | AM138: =AL138-AK138 -> 95565.915 | AS138: 2636547.544 | AZ138: =#REF! ->  | BA138: =#REF! -> 
A139: 1068 | D139: Utah | H139: 7915036.48 | I139: 7920157.43 | J139: 7925847.29 | K139: 7923002.36 | L139: 6608138.93 | M139: 6608138.93 | N139: 6265105.46 | O139: 6274597.14 | P139: 6350675.02 | Q139: 5928228.34 | R139: 5929402.67 | S139: 6345083.7 | T139: 7455552.37 | V139: =(SUM(I139:S139)+(0.5*T139)+(0.5*H139))/12 -> 6813639.308 | Y139: 7455552.37 | Z139: 6813639.308 | AA139: 7455552.37 | AB139: 6813639.308 | AC139: =AB139-T139 -> -641913.0621 | AD139: 132 | AE139: 127 | AF139: -641913.0621 | AI139: Distribution - Utah | AK139: =+T139 -> 7455552.37 | AL139: =AB139 -> 6813639.308 | AM139: =AL139-AK139 -> -641913.0621 | AS139: 8090964.95 | AZ139: =#REF! ->  | BA139: =#REF! -> 
A140: 1069 | D140: Total | H140: =SUM(H138:H139) -> 9986259.87 | I140: =SUM(I138:I139) -> 9991380.82 | J140: 9997070.68 | K140: 9994225.75 | L140: 8638208.62 | M140: 8638208.62 | N140: 8293423.59 | O140: 8302915.27 | P140: 8378993.15 | Q140: 7846351.91 | R140: 7847526.24 | S140: 8263207.27 | T140: 9368765.88 | V140: =SUM(V138:V139) -> 8822418.733 | Y140: 9368765.88 | Z140: 8822418.733 | AA140: 9368765.88 | AB140: 8822418.733 | AC140: =AB140-T140 -> -546347.1471 | AD140: 133 | AE140: 128 | AF140: -546347.1471 | AI140: Total | AK140: =+T140 -> 9368765.88 | AL140: =AB140 -> 8822418.733 | AM140: =AL140-AK140 -> -546347.1471 | AS140: 10727512.49 | AZ140: =#REF! ->  | BA140: =#REF! -> 
A141: 1070 | AB141: 0 | AD141: 134 | AE141: 129 | AF141: 0
A142: 1071 | B142: 398 | C142: Miscellaneous Equipment | AB142: 0 | AD142: 135 | AE142: 130 | AF142: 0 | AG142: 398 | AH142: Miscellaneous Equipment
A143: 1072 | D143: WVoming | H143: 0 | I143: 0 | J143: 0 | K143: 0 | L143: 0 | M143: 0 | N143: 0 | O143: 0 | P143: 0 | Q143: 0 | R143: 0 | S143: 0 | T143: 0 | V143: =(SUM(I143:S143)+(0.5*T143)+(0.5*H143))/12 -> 0 | Y143: =T143 -> 0 | Z143: 0 | AA143: =T143 -> 0 | AB143: =HLOOKUP($AB$8,RateBaseScenarios,AD143,FALSE) -> 0 | AC143: =AB143-T143 -> 0 | AD143: 136 | AE143: 131 | AF143: 0 | AI143: Distribution - Wyoming | AK143: =+T143 -> 0 | AL143: =AB143 -> 0 | AM143: =AL143-AK143 -> 0 | AS143: 0 | AZ143: =#REF! ->  | BA143: =#REF! -> 
A144: 1073 | D144: Utah | H144: 317777.3 | I144: 317777.3 | J144: 317777.3 | K144: 317777.3 | L144: 122982.64 | M144: 122982.64 | N144: 122982.64 | O144: 122982.64 | P144: 122982.64 | Q144: 122982.64 | R144: 122982.64 | S144: 122982.64 | T144: 126333.33 | V144: =(SUM(I144:S144)+(0.5*T144)+(0.5*H144))/12 -> 179937.3612 | Y144: =T144 -> 126333.33 | Z144: =V144 -> 179937.3612 | AA144: =T144 -> 126333.33 | AB144: 179937.3612 | AC144: =AB144-T144 -> 53604.03125 | AD144: 137 | AE144: 132 | AF144: 53604.03125 | AI144: Distribution - Utah | AK144: =+T144 -> 126333.33 | AL144: =AB144 -> 179937.3612 | AM144: =AL144-AK144 -> 53604.03125 | AS144: 458999.6092 | AZ144: =#REF! ->  | BA144: =#REF! -> 
A145: 1074 | D145: General | H145: 0 | I145: 0 | J145: 0 | K145: 0 | L145: 0 | M145: 0 | N145: 0 | O145: 0 | P145: 0 | Q145: 0 | R145: 0 | S145: 0 | T145: 0 | V145: =(SUM(I145:S145)+(0.5*T145)+(0.5*H145))/12 -> 0 | Y145: =T145 -> 0 | Z145: =V145 -> 0 | AA145: =T145 -> 0 | AB145: 0 | AC145: =AB145-T145 -> 0 | AD145: 138 | AE145: 133 | AF145: 0 | AI145: General | AK145: =+T145 -> 0 | AL145: =AB145 -> 0 | AM145: =AL145-AK145 -> 0 | AS145: 0 | AZ145: =#REF! ->  | BA145: =#REF! -> 
A146: 1075 | D146: Total | H146: =SUM(H143:H145) -> 317777.3 | I146: =SUM(I143:I145) -> 317777.3 | J146: 317777.3 | K146: 317777.3 | L146: 122982.64 | M146: 122982.64 | N146: 122982.64 | O146: 122982.64 | P146: 122982.64 | Q146: 122982.64 | R146: 122982.64 | S146: 122982.64 | T146: 126333.33 | V146: =SUM(V143:V145) -> 179937.3612 | Y146: =T146 -> 126333.33 | Z146: =V146 -> 179937.3612 | AA146: =T146 -> 126333.33 | AB146: 179937.3612 | AC146: =AB146-T146 -> 53604.03125 | AD146: 139 | AE146: 134 | AF146: 53604.03125 | AI146: Total | AK146: =+T146 -> 126333.33 | AL146: =AB146 -> 179937.3612 | AM146: =AL146-AK146 -> 53604.03125 | AS146: 458999.6092 | AZ146: =#REF! ->  | BA146: =#REF! -> 
A147: 1076 | AB147: 0 | AD147: 140 | AE147: 135 | AF147: 0 | AZ147: =#REF! ->  | BA147: =#REF! -> 
A148: 1077 | B148: 399 | C148: Asset Retirement Costs | AB148: 0 | AD148: 141 | AE148: 136 | AF148: 0 | AG148: 393 | AH148: Stores Equipment | AZ148: =#REF! ->  | BA148: =#REF! -> 
A149: 1078 | D149: WVoming | H149: 0 | I149: 0 | J149: 0 | K149: 0 | L149: 0 | M149: 0 | N149: 0 | O149: 0 | P149: 0 | Q149: 0 | R149: 0 | S149: 0 | T149: 0 | V149: =(SUM(I149:S149)+(0.5*T149)+(0.5*H149))/12 -> 0 | Y149: =T149 -> 0 | Z149: =V149 -> 0 | AA149: =T149 -> 0 | AB149: 0 | AC149: =AB149-T149 -> 0 | AD149: 142 | AE149: 137 | AF149: 0 | AI149: Distribution - Wyoming | AK149: =+T149 -> 0 | AL149: =AB149 -> 0 | AM149: =AL149-AK149 -> 0 | AS149: 0 | AZ149: =#REF! ->  | BA149: =#REF! -> 
A150: 1079 | D150: Utah | H150: 71663 | I150: 71663 | J150: 71663 | K150: 71663 | L150: 71663 | M150: 71663 | N150: 71663 | O150: 71663 | P150: 71663 | Q150: 71663 | R150: 71663 | S150: 71663 | T150: 15644 | V150: =(SUM(I150:S150)+(0.5*T150)+(0.5*H150))/12 -> 69328.875 | Y150: =T150 -> 15644 | Z150: =V150 -> 69328.875 | AA150: =T150 -> 15644 | AB150: 69328.875 | AC150: =AB150-T150 -> 53684.875 | AD150: 143 | AE150: 138 | AF150: 53684.875 | AI150: Distribution - Utah | AK150: =+T150 -> 15644 | AL150: =AB150 -> 69328.875 | AM150: =AL150-AK150 -> 53684.875 | AS150: 71663 | AZ150: =#REF! ->  | BA150: =#REF! -> 
A151: 1080 | D151: Total | H151: =SUM(H149:H150) -> 71663 | I151: =SUM(I149:I150) -> 71663 | J151: 71663 | K151: 71663 | L151: 71663 | M151: 71663 | N151: 71663 | O151: 71663 | P151: 71663 | Q151: 71663 | R151: 71663 | S151: 71663 | T151: 15644 | V151: =SUM(V149:V150) -> 69328.875 | Y151: =T151 -> 15644 | Z151: =V151 -> 69328.875 | AA151: =T151 -> 15644 | AB151: 69328.875 | AC151: =AB151-T151 -> 53684.875 | AD151: 144 | AE151: 139 | AF151: 53684.875 | AI151: Total | AK151: =+T151 -> 15644 | AL151: =AB151 -> 69328.875 | AM151: =AL151-AK151 -> 53684.875 | AS151: 71663 | AZ151: =#REF! ->  | BA151: =#REF! -> 
A152: 1081 | AB152: 0 | AD152: 145 | AE152: 140 | AF152: 0
A153: 1082 | C153: Total General Plant | H153: =H146+H140+H135+H129+H123+H117+H112+H106+H100+H94+H151 -> 188259391.4 | I153: =I146+I140+I135+I129+I123+I117+I112+I106+I100+I94+I151 -> 189150959.8 | J153: 190723721.4 | K153: 191206020.8 | L153: 187476263.6 | M153: 187914356.3 | N153: 191695401.8 | O153: 190207909.9 | P153: 193995230 | Q153: 194614750.5 | R153: 195350132.3 | S153: 197549807.2 | T153: 200213938.4 | V153: =V146+V140+V135+V129+V123+V117+V112+V106+V100+V94+V151 -> 192010101.5 | Y153: =Y146+Y140+Y135+Y129+Y123+Y117+Y112+Y106+Y100+Y94+Y151 -> 200213938.4 | Z153: =Z146+Z140+Z135+Z129+Z123+Z117+Z112+Z106+Z100+Z94+Z151 -> 192010101.5 | AA153: =AA146+AA140+AA135+AA129+AA123+AA117+AA112+AA106+AA100+AA94+AA151 -> 200213938.4 | AB153: 192010101.5 | AC153: =AB153-T153 -> -8203836.844 | AD153: 146 | AE153: 141 | AF153: -8203836.844 | AH153: Total General Plant | AS153: 125963935.3 | AZ153: =#REF! ->  | BA153: =#REF! -> 
A154: 1083 | AB154: 0 | AD154: 147 | AE154: 142 | AF154: 0
A155: 1084 | B155: 101 | C155: Gas Plant in Service | AB155: 0 | AD155: 148 | AE155: 143 | AF155: 0
A156: 1085 | D156: Production | H156: =H29 -> 83069634.05 | I156: =I29 -> 83069634.05 | J156: 83069634.05 | K156: 83069634.05 | L156: 83069634.05 | M156: 83069634.05 | N156: 83069634.05 | O156: 83069634.05 | P156: 83069408.33 | Q156: 83069408.33 | R156: 83069408.33 | S156: 83069408.33 | T156: 83069408.33 | V156: =(SUM(I156:S156)+(0.5*T156)+(0.5*H156))/12 -> 83069549.4 | Y156: =Y29 -> 83069408.33 | Z156: =Z29 -> 83069549.41 | AA156: =AA29 -> 83069408.33 | AB156: 83069549.41 | AC156: =AB156-T156 -> 141.075 | AD156: 149 | AE156: 144 | AF156: 141.075 | AG156: 101 | AI156: Production | AK156: =+T156 -> 83069408.33 | AL156: =AB156 -> 83069549.41 | AM156: =AL156-AK156 -> 141.075 | AS156: 85398682.19 | AZ156: =#REF! ->  | BA156: =#REF! -> 
A157: 1086 | D157: Distribution - Wyoming | H157: =H15+H33+H38+H46+H54+H59+H64+H69+H74+H79+H84 -> 48149847.77 | I157: 48149847.77 | J157: 48761160.16 | K157: 48738423.28 | L157: 48797479.6 | M157: 48838057.28 | N157: 48868557.47 | O157: 51049589.67 | P157: 50992885.91 | Q157: 49820433.28 | R157: 52746833.64 | S157: 53452366.1 | T157: 55852407.27 | V157: =(SUM(I157:S157)+(0.5*T157)+(0.5*H157))/12 -> 50184730.14 | Y157: =Y15+Y33+Y38+Y46+Y54+Y59+Y64+Y69+Y74+Y79+Y84 -> 55852407.27 | Z157: =Z15+Z33+Z38+Z46+Z54+Z59+Z64+Z69+Z74+Z79+Z84 -> 50184730.14 | AA157: =AA15+AA33+AA38+AA46+AA54+AA59+AA64+AA69+AA74+AA79+AA84 -> 55852407.27 | AB157: 50184730.14 | AC157: =AB157-T157 -> -5667677.13 | AD157: 150 | AE157: 145 | AF157: -5667677.13 | AI157: Distribution - Wyoming | AK157: =+T157 -> 55852407.27 | AL157: =AB157 -> 50184730.14 | AM157: =AL157-AK157 -> -5667677.13 | AS157: 41065401.53 | AZ157: =#REF! ->  | BA157: =#REF! -> 
A158: 1087 | D158: Distribution - Utah | H158: =H16+H34+H39+H50+H55+H60+H65+H70+H75+H80+H85 -> 1442032388 | I158: 1440857749 | J158: 1445174349 | K158: 1446832154 | L158: 1446845256 | M158: 1449229645 | N158: 1453650150 | O158: 1465920061 | P158: 1498874301 | Q158: 1484622097 | R158: 1488374341 | S158: 1503678293 | T158: 1527319843 | V158: =(SUM(I158:S158)+(0.5*T158)+(0.5*H158))/12 -> 1467394543 | Y158: =Y16+Y34+Y39+Y50+Y55+Y60+Y65+Y70+Y75+Y80+Y85 -> 1527319843 | Z158: =Z16+Z34+Z39+Z50+Z55+Z60+Z65+Z70+Z75+Z80+Z85 -> 1467394543 | AA158: =AA16+AA34+AA39+AA50+AA55+AA60+AA65+AA70+AA75+AA80+AA85 -> 1527319843 | AB158: 1467394543 | AC158: =AB158-T158 -> -59925300.22 | AD158: 151 | AE158: 146 | AF158: -59925300.22 | AI158: Distribution - Utah | AK158: =+T158 -> 1527319843 | AL158: =AB158 -> 1467394543 | AM158: =AL158-AK158 -> -59925300.22 | AS158: 1239071845 | AZ158: =#REF! ->  | BA158: =#REF! -> 
A159: 1088 | D159: General | H159: =H153 -> 188259391.4 | I159: =I153 -> 189150959.8 | J159: 190723721.4 | K159: 191206020.8 | L159: 187476263.6 | M159: 187914356.3 | N159: 191695401.8 | O159: 190207909.9 | P159: 193995230 | Q159: 194614750.5 | R159: 195350132.3 | S159: 197549807.2 | T159: 200213938.4 | V159: =(SUM(I159:S159)+(0.5*T159)+(0.5*H159))/12 -> 192010101.5 | Y159: =Y153 -> 200213938.4 | Z159: =Z153 -> 192010101.5 | AA159: =AA153 -> 200213938.4 | AB159: 192010101.5 | AC159: =AB159-T159 -> -8203836.844 | AD159: 152 | AE159: 147 | AF159: -8203836.844 | AI159: General | AK159: =+T159 -> 200213938.4 | AL159: =AB159 -> 192010101.5 | AM159: =AL159-AK159 -> -8203836.844 | AS159: 125963935.3 | AZ159: =#REF! ->  | BA159: =#REF! -> 
A160: 1089 | D160: Gas Plant in Service | H160: =SUM(H156:H159) -> 1761511261 | I160: =SUM(I156:I159) -> 1761228190 | J160: 1767728865 | K160: 1769846232 | L160: 1766188633 | M160: 1769051693 | N160: 1777283743 | O160: 1790247195 | P160: 1826931826 | Q160: 1812126689 | R160: 1819540715 | S160: 1837749874 | T160: 1866455597 | V160: =(SUM(I160:S160)+(0.5*T160)+(0.5*H160))/12 -> 1792658924 | Y160: =SUM(Y156:Y159) -> 1866455597 | Z160: =SUM(Z156:Z159) -> 1792658924 | AA160: =SUM(AA156:AA159) -> 1866455597 | AB160: 1792658924 | AC160: =AB160-T160 -> -73796673.12 | AD160: 153 | AE160: 148 | AF160: -73796673.12 | AI160: Gas Plant in Seryice | AK160: =SUM(AK156:AK159) -> 1866455597 | AL160: =AB160 -> 1792658924 | AM160: =AL160-AK160 -> -73796673.12 | AS160: 1491499864 | AZ160: =#REF! ->  | BA160: =#REF! -> 
A161: 1090 | AB161: 0 | AD161: 154 | AE161: 149 | AF161: 0 | AZ161: =+AZ160-N160 -> 
A162: 1091 | B162: 105 | C162: Gas Plant Held For Future Use | AB162: 0 | AD162: 155 | AE162: 150 | AF162: 0 | AG162: 105 | AH162: Gas Plant Held For Future Use
A163: 1092 | D163: Distribution - Utah | H163: 5036.83 | I163: 5036.83 | J163: 5036.83 | K163: 5036.83 | L163: 5036.83 | M163: 5036.83 | N163: 5036.83 | O163: 5036.83 | P163: 5036.83 | Q163: 5036.83 | R163: 5036.83 | S163: 5036.83 | T163: 5036.83 | V163: =(SUM(I163:S163)+(0.5*T163)+(0.5*H163))/12 -> 5036.83 | Y163: =T163 -> 5036.83 | Z163: =V163 -> 5036.83 | AA163: =T163 -> 5036.83 | AB163: 5036.83 | AC163: =AB163-T163 -> 0 | AD163: 156 | AE163: 151 | AF163: 0 | AI163: Distribution - Utah | AK163: =+T163 -> 5036.83 | AL163: =AB163 -> 5036.83 | AM163: =AL163-AK163 -> 0 | AS163: 5036.83 | AZ163: =#REF! ->  | BA163: =#REF! -> 
A164: 1093 | D164: Total | H164: =SUM(H163) -> 5036.83 | I164: =SUM(I163) -> 5036.83 | J164: 5036.83 | K164: 5036.83 | L164: 5036.83 | M164: 5036.83 | N164: 5036.83 | O164: 5036.83 | P164: 5036.83 | Q164: 5036.83 | R164: 5036.83 | S164: 5036.83 | T164: 5036.83 | V164: =(SUM(I164:S164)+(0.5*T164)+(0.5*H164))/12 -> 5036.83 | Y164: =T164 -> 5036.83 | Z164: =V164 -> 5036.83 | AA164: =T164 -> 5036.83 | AB164: 5036.83 | AC164: =AB164-T164 -> 0 | AD164: 157 | AE164: 152 | AF164: 0 | AI164: Total | AK164: =SUM(AK163) -> 5036.83 | AL164: =AB164 -> 5036.83 | AM164: =AL164-AK164 -> 0 | AS164: 5036.83 | AZ164: =#REF! ->  | BA164: =#REF! -> 
A165: 1094 | AB165: 0 | AD165: 158 | AE165: 153 | AF165: 0
A166: 1095 | B166: 106 | C166: Complete Construction Not Vet Classified | AB166: 0 | AD166: 159 | AE166: 154 | AF166: 0 | AG166: 106 | AH166: Complete Construction Not Yet Classified
A167: 1096 | D167: Production | H167: 0 | I167: 0 | J167: 0 | K167: 0 | L167: 0 | M167: 0 | N167: 0 | O167: 0 | P167: 0 | Q167: 0 | R167: 0 | S167: 0 | T167: 0 | V167: =(SUM(I167:S167)+(0.5*T167)+(0.5*H167))/12 -> 0 | Y167: =T167 -> 0 | Z167: =V167 -> 0 | AA167: =T167 -> 0 | AB167: 0 | AC167: =AB167-T167 -> 0 | AD167: 160 | AE167: 155 | AF167: 0 | AI167: Production | AK167: =+T167 -> 0 | AL167: =AB167 -> 0 | AM167: =AL167-AK167 -> 0 | AS167: 0 | AZ167: =#REF! ->  | BA167: =#REF! -> 
A168: 1097 | D168: Distribution - WVoming | H168: 426614.1 | I168: 567526.48 | J168: 59447.53 | K168: 159969.77 | L168: 182772 | M168: 232751.45 | N168: 283371.58 | O168: 47040.42 | P168: 46243.76 | Q168: 417779.18 | R168: 1589510.51 | S168: 1857396.88 | T168: 980210.39 | V168: =(SUM(I168:S168)+(0.5*T168)+(0.5*H168))/12 -> 512268.4837 | Y168: =T168 -> 980210.39 | Z168: =V168 -> 512268.4837 | AA168: =T168 -> 980210.39 | AB168: 512268.4837 | AC168: =AB168-T168 -> -467941.9063 | AD168: 161 | AE168: 156 | AF168: -467941.9063 | AI168: Distribution - Wyoming | AK168: =+T168 -> 980210.39 | AL168: =AB168 -> 512268.4837 | AM168: =AL168-AK168 -> -467941.9063 | AS168: 265914.6367 | AZ168: =#REF! ->  | BA168: =#REF! -> 
A169: 1098 | D169: Distribution - Utah | H169: 4632340.68 | I169: 7114959.68 | J169: 6392051.56 | K169: 8530092.84 | L169: 9811478.64 | M169: 11194918.23 | N169: 10187074.62 | O169: -10028208.03 | P169: -10296154.09 | Q169: 10836226.86 | R169: 14216264.2 | S169: 6871886.16 | T169: 12901121.1 | V169: =(SUM(I169:S169)+(0.5*T169)+(0.5*H169))/12 -> 6133110.13 | Y169: =T169 -> 12901121.1 | Z169: =V169 -> 6133110.13 | AA169: =T169 -> 12901121.1 | AB169: 6133110.13 | AC169: =AB169-T169 -> -6768010.97 | AD169: 162 | AE169: 157 | AF169: -6768010.97 | AI169: Distribution - Utah | AK169: =+T169 -> 12901121.1 | AL169: =AB169 -> 6133110.13 | AM169: =AL169-AK169 -> -6768010.97 | AS169: 5384197.345 | AZ169: =#REF! ->  | BA169: =#REF! -> 
A170: 1099 | D170: General | H170: 1735579 | I170: 1563461.48 | J170: 540338.79 | K170: 1335428.74 | L170: -439812.89 | M170: -600762.53 | N170: -635661.93 | O170: 96740.63 | P170: -53935 | Q170: -190897.81 | R170: -122458.05 | S170: 2449818.71 | T170: 3255188.12 | V170: =(SUM(I170:S170)+(0.5*T170)+(0.5*H170))/12 -> 536470.3083 | Y170: =T170 -> 3255188.12 | Z170: =V170 -> 536470.3083 | AA170: =T170 -> 3255188.12 | AB170: 536470.3083 | AC170: =AB170-T170 -> -2718717.812 | AD170: 163 | AE170: 158 | AF170: -2718717.812 | AI170: General | AK170: =+T170 -> 3255188.12 | AL170: =AB170 -> 536470.3083 | AM170: =AL170-AK170 -> -2718717.812 | AS170: 957800.0162 | AZ170: =#REF! ->  | BA170: =#REF! -> 
A171: 1100 | D171: Total | H171: =SUM(H167:H170) -> 6794533.78 | I171: =SUM(I167:I170) -> 9245947.64 | J171: 6991837.88 | K171: 10025491.35 | L171: 9554437.75 | M171: 10826907.15 | N171: 9834784.27 | O171: -9884426.98 | P171: -10303845.33 | Q171: 11063108.23 | R171: 15683316.66 | S171: 11179101.75 | T171: 17136519.61 | V171: =(SUM(I171:S171)+(0.5*T171)+(0.5*H171))/12 -> 7181848.922 | Y171: =T171 -> 17136519.61 | Z171: =V171 -> 7181848.922 | AA171: =T171 -> 17136519.61 | AB171: 7181848.922 | AC171: =AB171-T171 -> -9954670.688 | AD171: 164 | AE171: 159 | AF171: -9954670.688 | AI171: Total | AK171: =SUM(AK167:AK170) -> 17136519.61 | AL171: =AB171 -> 7181848.922 | AM171: =AL171-AK171 -> -9954670.688 | AS171: 6607911.998 | AZ171: =SUM(AZ167:AZ170) ->  | BA171: =SUM(BA167:BA170) -> 
A172: 1101 | AB172: 0 | AD172: 165 | AE172: 160 | AF172: 0 | AZ172: =+AZ171-N171 -> 
A173: 1102 | B173: 108 | C173: Accum Prov For Deprec - Gas Plant In Svc | AB173: 0 | AD173: 166 | AE173: 161 | AF173: 0 | AG173: 108 | AH173: Accum Proy For Deprec - Gas Plant In Svc | AZ173: =+AZ172+AZ161 -> 
A174: 1103 | D174: Production | H174: -67671623.03 | I174: -67738197.59 | J174: -67803742.2 | K174: -67863032.69 | L174: -67926616 | M174: -67988119.4 | N174: -68058306.34 | O174: -68124947.77 | P174: -68189861.96 | Q174: -68254868.29 | R174: -68322938.21 | S174: -68427537.38 | T174: -68485402.93 | V174: =(SUM(I174:S174)+(0.5*T174)+(0.5*H174))/12 -> -68064723.4 | Y174: =T174 -> -68485402.93 | Z174: =V174 -> -68064723.4 | AA174: =T174 -> -68485402.93 | AB174: -68064723.4 | AC174: =AB174-T174 -> 420679.5292 | AD174: 167 | AE174: 162 | AF174: 420679.5292 | AI174: Production | AK174: =+T174 -> -68485402.93 | AL174: =AB174 -> -68064723.4 | AM174: =AL174-AK174 -> 420679.5292 | AS174: -67215184.86 | AZ174: =#REF! ->  | BA174: =#REF! -> 
A175: 1104 | D175: Distribution - WVoming | H175: -21912448.57 | I175: -22017477.87 | J175: -22123607.44 | K175: -22229708.38 | L175: -22336001.2 | M175: -22442387.18 | N175: -22548841.2 | O175: -22659236.82 | P175: -22769568.69 | Q175: -22877854.01 | R175: -22986634.29 | S175: -23103035.55 | T175: -23226073.07 | V175: =(SUM(I175:S175)+(0.5*T175)+(0.5*H175))/12 -> -22555301.12 | Y175: =T175 -> -23226073.07 | Z175: =V175 -> -22555301.12 | AA175: =T175 -> -23226073.07 | AB175: -22555301.12 | AC175: =AB175-T175 -> 670771.9492 | AD175: 168 | AE175: 163 | AF175: 670771.9492 | AI175: Distribution - Wyoming | AK175: =+T175 -> -23226073.07 | AL175: =AB175 -> -22555301.12 | AM175: =AL175-AK175 -> 670771.9492 | AS175: -18186050.54 | AZ175: =#REF! ->  | BA175: =#REF! -> 
A176: 1105 | D176: Distribution - Utah | H176: -492787596.6 | I176: -495533542.1 | J176: -497984687.3 | K176: -499999629.6 | L176: -500852984.1 | M176: -503417457 | N176: -505473728.4 | O176: -507841191.8 | P176: -509044272.8 | Q176: -511901060.8 | R176: -514398333.2 | S176: -517051967.9 | T176: -519157829.9 | V176: =(SUM(I176:S176)+(0.5*T176)+(0.5*H176))/12 -> -505789297.4 | Y176: =T176 -> -519157829.9 | Z176: =V176 -> -505789297.4 | AA176: =T176 -> -519157829.9 | AB176: -505789297.4 | AC176: =AB176-T176 -> 13368532.5 | AD176: =+AD175+1 -> 169 | AE176: =+AE175+1 -> 164 | AF176: 13368532.5 | AI176: Distribution - Utah | AK176: =+T176 -> -519157829.9 | AL176: =AB176 -> -505789297.4 | AM176: =AL176-AK176 -> 13368532.5 | AS176: -452037575.9 | AZ176: =#REF! ->  | BA176: =#REF! -> 
A177: 1106 | D177: General | H177: -131907591.4 | I177: -132706230.8 | J177: -133704073.4 | K177: -134697187.6 | L177: -130881453.9 | M177: -131179320.8 | N177: -131717895.8 | O177: -131286993.9 | P177: -131978509.1 | Q177: -132054301 | R177: -133086028.4 | S177: -134165673 | T177: -131571729.3 | V177: =(SUM(I177:S177)+(0.5*T177)+(0.5*H177))/12 -> -132433110.7 | Y177: =T177 -> -131571729.3 | Z177: =V177 -> -132433110.7 | AA177: =T177 -> -131571729.3 | AB177: -132433110.7 | AC177: =AB177-T177 -> -861381.3854 | AD177: 170 | AE177: 165 | AF177: -861381.3854 | AI177: General | AK177: =+T177 -> -131571729.3 | AL177: =AB177 -> -132433110.7 | AM177: =AL177-AK177 -> -861381.3854 | AS177: -82697713.61 | AZ177: =#REF! ->  | BA177: =#REF! -> 
A178: 1107 | D178: Total | H178: =SUM(H174:H177) -> -714279259.7 | I178: =SUM(I174:I177) -> -717995448.4 | J178: -721616110.3 | K178: -724789558.3 | L178: -721997055.1 | M178: -725027284.3 | N178: -727798771.8 | O178: -729912370.3 | P178: -731982212.6 | Q178: -735088084.1 | R178: -738793934.1 | S178: =SUM(S174:S177) -> -742748213.9 | T178: -742441035.2 | V178: =(SUM(I178:S178)+(0.5*T178)+(0.5*H178))/12 -> -728842432.6 | Y178: =T178 -> -742441035.2 | Z178: =V178 -> -728842432.6 | AA178: =T178 -> -742441035.2 | AB178: -728842432.6 | AC178: =AB178-T178 -> 13598602.6 | AD178: 171 | AE178: 166 | AF178: 13598602.6 | AI178: Total | AK178: =SUM(AK174:AK177) -> -742441035.2 | AL178: =AB178 -> -728842432.6 | AM178: =AL178-AK178 -> 13598602.6 | AS178: -620136525 | AZ178: =SUM(AZ174:AZ177) ->  | BA178: =SUM(BA174:BA177) -> 
A179: 1108 | AB179: 0 | AD179: 172 | AE179: 167 | AF179: 0 | AZ179: =+AZ178-N178 -> 
A180: =+A179+1 -> 1109 | B180: 111 | C180: Accum Prov For Amort & Depl - Gas Plant In Svc | AB180: 0 | AD180: 173 | AE180: 168 | AF180: 0 | AG180: 111 | AH180: Accum Prov For Amort & Depl - Gas Plant In Svc
A181: 1110 | D181: Production | H181: -6029762.82 | I181: -6031221.19 | J181: -6032653.39 | K181: -6034093.95 | L181: -6035531.86 | M181: -6036914.79 | N181: -6038527.21 | O181: -6040045.92 | P181: -6041524.98 | Q181: -6043000.49 | R181: -6044556.96 | S181: -6046347.92 | T181: -6047634.72 | V181: =(SUM(I181:S181)+(0.5*T181)+(0.5*H181))/12 -> -6038593.119 | Y181: =T181 -> -6047634.72 | Z181: =V181 -> -6038593.119 | AA181: =T181 -> -6047634.72 | AB181: -6038593.119 | AC181: =AB181-T181 -> 9041.600833 | AD181: 174 | AE181: 169 | AF181: 9041.600833 | AI181: Production | AK181: =+T181 -> -6047634.72 | AL181: =AB181 -> -6038593.119 | AM181: =AL181-AK181 -> 9041.600833 | AS181: -5969187.372 | AZ181: =#REF! ->  | BA181: =#REF! -> 
A182: 1111 | D182: Distribution - WVoming | H182: -300 | I182: -300 | J182: -300 | K182: -300 | L182: -300 | M182: -300 | N182: -300 | O182: -300 | P182: -300 | Q182: -300 | R182: -300 | S182: -300 | T182: -300 | V182: =(SUM(I182:S182)+(0.5*T182)+(0.5*H182))/12 -> -300 | Y182: =T182 -> -300 | Z182: =V182 -> -300 | AA182: =T182 -> -300 | AB182: -300 | AC182: =AB182-T182 -> 0 | AD182: 175 | AE182: 170 | AF182: 0 | AI182: Distribution - Wyoming | AK182: =+T182 -> -300 | AL182: =AB182 -> -300 | AM182: =AL182-AK182 -> 0 | AS182: -300 | AZ182: =#REF! ->  | BA182: =#REF! -> 
A183: 1112 | D183: Distribution - Utah | H183: -69325.97 | I183: -69325.97 | J183: -69325.97 | K183: -69325.97 | L183: -69325.97 | M183: -69325.97 | N183: -69325.97 | O183: -69325.97 | P183: -69325.97 | Q183: -69325.97 | R183: -69325.97 | S183: -69325.97 | T183: -69325.97 | V183: =(SUM(I183:S183)+(0.5*T183)+(0.5*H183))/12 -> -69325.97 | Y183: =T183 -> -69325.97 | Z183: =V183 -> -69325.97 | AA183: =T183 -> -69325.97 | AB183: -69325.97 | AC183: =AB183-T183 -> 8.003553376e-10 | AD183: 176 | AE183: 171 | AF183: 8.003553376e-10 | AI183: Distribution - Utah | AK183: =+T183 -> -69325.97 | AL183: =AB183 -> -69325.97 | AM183: =AL183-AK183 -> 8.003553376e-10 | AS183: -69325.97 | AZ183: =#REF! ->  | BA183: =#REF! -> 
A184: 1113 | D184: General | H184: 0 | I184: 0 | J184: 0 | K184: 0 | L184: 0 | M184: 0 | N184: 0 | O184: 0 | P184: 0 | Q184: 0 | R184: 0 | S184: 0 | T184: 0 | V184: =(SUM(I184:S184)+(0.5*T184)+(0.5*H184))/12 -> 0 | Y184: =T184 -> 0 | Z184: =V184 -> 0 | AA184: =T184 -> 0 | AB184: 0 | AC184: =AB184-T184 -> 0 | AD184: 177 | AE184: 172 | AF184: 0 | AI184: General | AK184: =+T184 -> 0 | AL184: =AB184 -> 0 | AM184: =AL184-AK184 -> 0 | AS184: -1791386.787 | AZ184: =#REF! ->  | BA184: =#REF! -> 
A185: 1114 | D185: Total | H185: =SUM(H181:H184) -> -6099388.79 | I185: =SUM(I181:I184) -> -6100847.16 | J185: -6102279.36 | K185: -6103719.92 | L185: -6105157.83 | M185: -6106540.76 | N185: -6108153.18 | O185: -6109671.89 | P185: -6111150.95 | Q185: -6112626.46 | R185: -6114182.93 | S185: -6115973.89 | T185: -6117260.69 | V185: =(SUM(I185:S185)+(0.5*T185)+(0.5*H185))/12 -> -6108219.089 | Y185: =T185 -> -6117260.69 | Z185: =V185 -> -6108219.089 | AA185: =T185 -> -6117260.69 | AB185: -6108219.089 | AC185: =AB185-T185 -> 9041.600833 | AD185: 178 | AE185: 173 | AF185: 9041.600833 | AI185: Total | AK185: =SUM(AK181:AK184) -> -6117260.69 | AL185: =AB185 -> -6108219.089 | AM185: =AL185-AK185 -> 9041.600833 | AS185: -7830200.129 | AZ185: =SUM(AZ181:AZ184) ->  | BA185: =SUM(BA181:BA184) -> 
A186: 1115 | AB186: 0 | AD186: 179 | AE186: 174 | AF186: 0 | AZ186: =+AZ185-N185 -> 
A187: 1116 | AB187: 0 | AD187: 180 | AE187: 175 | AF187: 0 | AZ187: =+AZ178+AZ185 -> 
A188: 1117 | B188: SVstem Net UtilitV Plant | AB188: 0 | AD188: 181 | AE188: 176 | AF188: 0 | AG188: System Net Utility Plant
